Workbook

Sheet Instructions
A1: Payment in Lieu of Taxes Financial Agreement Forecasting Model (PFAF)
A2: Guide to the Payment in Lieu of Taxes Financial Agreement Forecasting Model
A4: Introduction
A6: The PILOT Financial Agreement Forecasting Model (PFAF model) produces 30-year project cash flow, PILOT payment, and municipality net benefit projections based on user-entered assumptions, 2023 Census data, and 2024 tax and budget information.
A7: The Model allows municipalities to forecast and understand the net financial impact of PILOT payments relative to the projected impact of the proposed project on municipal spending.
A8: The Model populates from user inputs on the "Inputs/Assumptions" tab and 2024 property tax and municipal budgeted expenditure data on the Data tab.
A9: Cells that are highlighted in yellow or with blue font are meant for user entry. All other cells are formula cells that should not be changed.
A10: For the Model to perform correctly, it is essential that operating expenses and debt service be entered as negative values.
A12: Interpreting and Using the Output
A13: The Model enables users to run their own project Net Cash Flow and PILOT calculations using different PILOT assumptions than those proposed by developers. These can be used in negotiations with developers to demonstrate project feasibility at PILOT levels that hold the municipal budget harmless or limit the net subsidy required from the municipality. For example, the Net Cash Flow data column shows developers the net profits they would make each year using the municipality's PILOT assumptions, while the Internal Rate of Return (IRR) figure calculates the overall profitability of the project over the life of the investment under those assumptions. In addition, municipalities can use the Net Benefit/Loss and Change in Municipal Property Tax Revenues data columns to show developers the cost to municipal taxpayers of subsidizing the project with a reduced tax liability from the PILOT, which can inform negotiations in reaching a reasonable PILOT level.
A21: Inputs & Assumptions Tab
A22: Projection Options
A24: Users have the option to select one of three projection methods, selected from a drop down box at the top of the Inputs & Assumptions Tab
B26: A: % of Actual Gross Revenues
B27: This option calculates PILOT payments as a user-specified percentage of actual gross revenues.
B29: B: % of Taxes
B30: This option calculates PILOT payments as a user-specified percentage of the full tax liability.
B32: C: Manual Entry
B33: This option allows the user to manually enter PILOT payments for each year.
A35: The assumptions for these options are entered in the PILOT Methods Assumptions section.
A37: Users may also select the methodology for allocating the PILOT between the municipality, county, and school district from a drop down box at the top of the Inputs & Assumptions Tab
B38: A. Share of Total Levy
B39: The PILOT is allocated between the municipality, county, and school district based on their shares of the combined levy.
B40: B. User Entered Allocation (Default)
B41: The user enters in the percentage PILOT allocation shares for the municipality, county, and school district
A43: In addition, users can specify if the project is already subject to a PILOT agreement using the "Existing PILOT Currently in Place?" drop down box. The default answer is "No". If "Yes" is selected, the user should enter in the PILOT payments under the existing agreement for the life of the project in column J of the Project Budget and Valuation Assumptions section.
A45: Project Type
A47: Users select from one of three project types, residential, commercial/industrial, and mixed-use. Each type has an assumptions section which is activated when that type is selected. This section projects the number of persons occupying the development. This number is multiplied by municipal spending per capita (municipal spending divided by daytime population) to estimate the municipal spending stemming from the project. Users can also indicate whether the project has affordable housing or not, which is strictly for informational purposes.
B49: For Residential Projects, users enter in the number of studio, 1 bedroom, 2 bedroom, and 3 bedroom units. The number of persons occupying the units are calculated based on multipliers from "Who Lives in New Jersey Housing: A Quick Guide to New Jersey Residential Demographic Multipliers,” published by Center for Urban Policy Research at Rutgers University. This also produces a public school children estimate for informational purposes that can be used to separately calculate direct school district impacts.
B51: For Commercial/Industrial Projects, users enter in the projected number of occupants in a commercial or industrial building
B53: For Mixed-Use Projects, users enter in the projected number of housing units for the residential portion and the projected occupancy in the commercial or industrial portion.
A55: Project Assumptions
A57: In this section, users enter projected gross revenue, operating expenses, debt service, equity, and the full property tax liability for the property before and after improvements (i.e. new construction).
B59: Net Rents/Gross Revenue | C59: Projected project gross revenue from net rents (taking into account vacancies) and other forms of revenue.
B60: Operating Expenses | C60: All project operating expenses excluding PILOT payments. Must be entered as negative values.
B61: Existing PILOT Payments (Municipal Portion) | C61: The municipal portion of total PILOT payments for a property already subject to a PILOT agreement. This is only applicable if the project is currently subject to a PILOT agreement.
B62: Property Assessed Value Pre-Improvement | C62: Projected full tax assessment for the development before improvements (i.e. assessed value of vacant land)
B63: Property Assessed Value Post-Improvement | C63: Estimated full tax assessment for the development after improvements (i.e. new construction)
B64: Debt Service | C64: Anticipated annual debt service on debt issued for the project
B65: Equity (In)/Out | C65: Total funds invested in the property (enter as negative values) and projected proceeds from sale of the property (enter as positive values)
A67: Municipal Spending Assumptions
A69: In this section, users enter projected annual growth rates for the municipal budget. These are used to grow the additional municipal spending impact from the project. Users also enter the percentage of spending in ten key budget areas that would be affected by new residents or jobs. These entries flow to the municipal spending per capita calculation. Municipal spending per capita is used to project the additional cost to the municipality from the project. Users can also add the value of additional benefits and costs not captured by the model in the "Additional Net Benefit/Loss to Municipality" section. This may include the value of affordable housing, community facilities, parks and green space, and other public benefits contributed by the project. In addition, users can enter other project-associated costs not accounted for in the core budget areas in the "Additional Municipal Costs Outside Core Budget" section.
A73: Projection Tab
A75: The projection tab calculates the PILOT payments, the municipal, county and school district split, the project net cash flows, the internal rate of return, and the net cost or benefit to the municipality. It is populated by data in the "Data" tab and entries on the "Inputs & Assumptions" tab. Outputs are as follows:
B77: Year | C77: The year of the payment.
B78: Year Number | C78: The sequential year of the payment.
B79: Net Rents/Gross Revenue | C79: Projected gross revenue from net rents (taking into account vacancies) and other forms of project revenue.
B80: Operating Expenses | C80: All project operating expenses excluding PILOT payments.
B81: Property Assessed Value Pre-Improvement | C81: Projected full tax assessment for the development after improvements (i.e. new construction).
B82: Municipal Property Tax Revenue Pre-Improvement | C82: Property tax bill for property before improvements (i.e. vacant land).
B83: Property Assessed Value Post-Improvement | C83: Projected full tax assessment for the development before improvements (i.e. assessed value of vacant land).
B84: Total Property Taxes without PILOT | C84: Total property taxes (county, municipal, school) due on property post-improvement with no abatement or exemption.
B85: Municipal Property Taxes without PILOT | C85: Total municipal property taxes due on property post-improvement with no abatement or exemption.
B86: PILOT Payments | C86: Calculated PILOT payment based on selected projection option.
B87: Municipal PILOT | C87: Calculated municipal portion of PILOT payment, based on the municipal percentage of the total levy.
B88: County PILOT | C88: Calculated county portion of PILOT payment, based on the county percentage of the total levy.
B89: School PILOT | C89: Calculated school district portion of PILOT payment, based on the school district percentage of the total levy.
B90: Project Net Operating Income before Debt Service | C90: Total project net operating income before debt service. Calculated as the net rents/revenue minus operating expenses and the PILOT payment.
B91: Debt Service | C91: Anticipated annual debt service on debt issued for the project.
B92: Project Cash Flow | C92: Project Net Operating Income minus debt service.
B93: Equity (In)/Out | C93: Total funds invested in the property (enter as negative values) and proceeds from sale of the property (enter as positive values).
B94: Net Cash Flow | C94: The sum of Project Cash Flow and Equity In/Out. Used to compute the Internal Rate of Return (IRR).
B95: PILOT % of Annual Gross Revenue | C95: Total PILOT payments divided by total annual gross revenue.
B96: PILOT % of Conventional Taxes | C96: Total PILOT payments divided by total property tax liability without abatements or exemptions.
B97: Additional Municipal Costs | C97: Calculated additional municipal spending due to the project.
B98: Net Benefit (Loss) to Municipality | C98: Calculated net financial benefit or loss to the municipality. Calculated as the municipal PILOT payment less pre-improvement property taxes and additional municipal costs.
B99: Change in Municipal Property Tax Revenue due to Project | C99: Calculated change in municipal property tax revenue from the PILOT.
B100: Adjust PILOT to IRR Target Button | C100: Adjusts PILOT payments to produce the IRR entered in cell AB6.
B101: Adjust PILOT to Hold Municipality Harmless (Net Benefit/Loss) Button | C101: Adjusts PILOT payments to produce no net financial impact to the municipality over the life of the project.
B102: Adjust PILOT to Hold Municipality Harmless (Chg. in Prop Tax) Button | C102: Adjusts PILOT payments to produce no net change in municipal property tax revenues
B103: Remove PILOT Adjustment Button | C103: Removes PILOT adjustments and reverts back to original calculation.
A106: Data Tab
A108: This tab contains the raw source data used to calculate property tax liabilities and municipal spending. The data are based on the US Census Bureau's 2019-23 American Community Survey 5-Year Estimates (daytime population), DCA's 2024 Property Tax Information release, and the 2024 municipal User Friendly Budget submissions. Users have the option to enter in more recent tax and spending data on this tab, if desired
A111: The following 17 municipalities do not have 2024 User Friendly Budget data available to perform the Net Benefit/Loss calculation:
B112: Aberdeen Township, Monmouth County
B113: Belmar Borough, Monmouth County
B114: City of Orange Township, Essex County
B115: East Brunswick Township, Middlesex County
B116: Estell Manor City, Atlantic County
B117: High Bridge Borough, Hunterdon County
B118: Hightstown Borough, Mercer County
B119: Irvington Township, Essex County
B120: Jackson Township, Ocean County
B121: Lodi Borough, Bergen County
B122: Paterson City, Passaic County
B123: Roosevelt Borough, Monmouth County
B124: South Brunswick Township, Middlesex County
B125: Victory Gardens Borough, Morris County
B126: Waterford Township, Camden County
B127: Weehawken Township, Hudson County
B128: West Cape May Borough, Cape May County

Sheet FAQ
A1: =Instructions!A1 -> Payment in Lieu of Taxes Financial Agreement Forecasting Model (PFAF)
A2: Frequently Asked Questions
A4: Can I clear out existing data in the model?
A5: You may clear out or replace any data in blue font or in a yellow-highlighted cell. The data in the Inputs and Assumptions tab are examples and should be replaced with actual project data and user assumptions.
A7: Can I print the model outputs?
A8: Yes, all of the model's tabs have been formatted to print.
A10: I have received a pro forma from the developer. However would I integrate that into the model?
A11: You would find the data corresponding to total operating expenses, debt service, total revenue or net rents, and enter them in the Project Budget & Valuation Assumptions section of the Inputs and Assumptions tab. The model will then calculate the IRR and municipality net benefit based on this data and the user-entered municipal spending, tax assessment, and PILOT method assumptions.
A13: I have received a proposed PILOT schedule from the developer. How do I use the model to determine if this is a net benefit to my town?
A14: You can enter in the PILOT numbers in the Manual Entry column of the PILOT Method Assumptions section on the Inputs and Assumptions tab. Select "Manual Entry" in the PILOT Method drop down menu to activate the scenario. The model will show the projected net benefit/loss on the Model tab.
A16: I would like to add additional costs to my municipality from the project beyond the core budget areas included in the model. How do I do that?
A17: Additional costs can be entered in the "Additional Municipal Costs Outside Core Budget" column in the Municipal Spending Assumptions section of the Inputs and Assumptions tab. These costs are added to the core budget costs projected by the model.
A19: The project provides additional benefits to my municipality beyond the PILOT payment. How do I account for this in the net benefit calculation?
A20: The estimated monetary value of additional benefits (such as affordable housing, parks and green space, or other developer contributions) or losses (i.e. noise pollution, environmental contamination) from the project can be entered in the "Additional Benefit/Loss to Municipality" column in the Municipal Spending Assumptions section of the Inputs and Assumptions tab. These benefits/losses will be added to the existing net benefit calculation.
A22: My projection shows a net loss to my municipality during the latter half of the project. Can I remedy that through the PILOT assumptions? | AN22: `
A23: Yes. You can adjust the % of Taxes, % of Gross Revenues, or Manual Entries on the Inputs & Assumptions tab in those net loss years to produce a net benefit.
A25: I have more recent tax and municipal budget information than is included in the model. How can I incorporate that into the calculation?
A26: You may enter more recent data for your municipality on the Data tab, replacing the data that is already there. Any data in blue font or yellow highlighting may be changed.
A28: I do not want to do a 30 year abatement, I would prefer a shorter timeframe. Does the model accommodate that?
A29: Yes. You may enter in data for any period of time less than 30 years, clearing out any data for years the PILOT would not be in effect on the Inputs and Assumptions tab.
A31: I want to calculate the fiscal impact of the project on the school district. Can I do that through this model? | AJ31: `
A32: The model produces two outputs that are relevant to that calculation, the projected number of new children from new developments (on the Inputs & Assumptions tab) and the School PILOT on the Model tab. However the calculation itself must be done outside the model based on school district data.
A35: I have entered in an IRR Target and clicked "Adjust PILOT to IRR Target" but the Current IRR is not matching. Why does this happen? | AJ35: `
A36: The model produces the IRR closest to the IRR Target that can be achieved through a PILOT. Because the PILOT is only one component of many that determine an IRR, In some cases, the target can only be approximated rather than exactly achieved.
A39: My projection shows nothing in the municipalilty net benefit/loss column despite entering in all the assumptions. How do I fix that?
A40: The lack of a net benefit/loss projection is due to the fact that the Division of Local Government Services does not have 2021 UFB information on file for your municipality. Simply enter in the requisite budget information on the Data tab if this is case and be sure to submit your UFB to the Division.

Sheet Inputs & Assumptions
A1: ="Payment in Lieu of Taxes Financial Agreement Forecasting Model "&"- "&VLOOKUP(Muni,$AL$4:$AM$567,2,FALSE)&IF(B11="",""," - ")&B11 -> Payment in Lieu of Taxes Financial Agreement Forecasting Model - Trenton City, Mercer County
A2: Inputs/Assumptions
H3: Existing PILOT Currently in Place?
B4: Select Municipality | H4: 2 | L4: Year 1 Municipal PILOT | M4: =-Model!K4 -> 128045.9704 | P4: Municipal Tax Rate (per $100 valuation) | Q4: =VLOOKUP(Muni,Data!E4:H567,4,FALSE) -> 3.723266258 | AL4: =AL3+1 -> 1 | AM4: Aberdeen Township, Monmouth County | AU4: % of Actual Gross Revenue
B5: 495 | F5: First Year | G5: 2025 | H5: PILOT Allocation Methodology | L5: Average Municipal PILOT | M5: =-AVERAGE(Model!K4:K33) -> 203061.3424 | P5: Total Tax Rate (per $100 valuation) | Q5: =VLOOKUP(Muni,Data!E4:K567,7,FALSE) -> 5.800991217 | AL5: 2 | AM5: Absecon City, Atlantic County | AU5: % of Taxes
H6: 2 | L6: IRR (Internal Rate of Return) | M6: =Model!AB4 -> 0.04500872364 | P6: Mun. Spending/Daytime Pop. Ratio | Q6: =VLOOKUP(Muni,Data!$E$4:$S$567,15,FALSE) -> 578.4793749 | AL6: 3 | AM6: Alexandria Township, Hunterdon County | AU6: Manual Entry
B7: PILOT Method | F7: Project Type | H7: Includes Affordable Housing? | L7: Avg. Municipal Net Benefit (Loss) | M7: =IFERROR(AVERAGE(Model!Y4:Y33),"No Data") -> -305245.3146 | AL7: 4 | AM7: Allamuchy Township, Warren County
B8: 3 | F8: 1 | I8: 1 | AL8: 5 | AM8: Allendale Borough, Bergen County | AU8: Residential
AL9: =AL8+1 -> 6 | AM9: Allenhurst Borough, Monmouth County | AU9: Commercial/Industrial
B10: Name of Project | AL10: 7 | AM10: Allentown Borough, Monmouth County | AU10: Mixed Use
AL11: 8 | AM11: Alloway Township, Salem County
AL12: =AL11+1 -> 9 | AM12: Alpha Borough, Warren County
B13: Residential Projects | I13: PILOT Allocation | AL13: 10 | AM13: Alpine Borough, Bergen County
B14: Num. of Units | C14: Num. of Units | D14: Persons Multiplier | E14: Total New Persons | F14: Public School Multiplier | G14: Total New Public School Children | I14: Entity | J14: % | AL14: 11 | AM14: Andover Borough, Sussex County
B15: Studio | C15: 0 | D15: 1.644 | E15: =ROUND(D15*C15,0) -> 0 | F15: 0.051 | G15: =ROUND(F15*C15,0) -> 0 | I15: Municipal | J15: 0.95 | AL15: 12 | AM15: Andover Township, Sussex County | AU15: Yes
B16: 1 Bedroom | C16: 15 | D16: 1.644 | E16: =ROUND(D16*C16,0) -> 25 | F16: 0.051 | G16: =ROUND(F16*C16,0) -> 1 | I16: County | J16: 0.05 | AL16: 13 | AM16: Asbury Park City, Monmouth County | AU16: No
B17: 2 Bedroom | C17: 29 | D17: 2.107 | E17: =ROUND(D17*C17,0) -> 61 | F17: 0.115 | G17: =ROUND(F17*C17,0) -> 3 | I17: School | J17: 0 | AL17: 14 | AM17: Atlantic City, Atlantic County
B18: 3 Bedroom | C18: 12 | D18: 3.422 | E18: =ROUND(D18*C18,0) -> 41 | F18: 0.56 | G18: =ROUND(F18*C18,0) -> 7 | I18: TOTAL | J18: =SUM(J15:J17) -> 1 | AL18: 15 | AM18: Atlantic Highlands Borough, Monmouth County | AU18: Share of Total Levy
B19: TOTAL | C19: =SUM(C15:C18) -> 56 | E19: =SUM(E15:E18) -> 127 | G19: =SUM(G15:G18) -> 11 | AL19: 16 | AM19: Audubon Borough, Camden County | AU19: User Entered Allocation
AL20: 17 | AM20: Audubon Park Borough, Camden County
B21: Commercial/Industrial Projects | AL21: =AL20+1 -> 18 | AM21: Avalon Borough, Cape May County | AU21: Yes
C22: Num. of Persons | AL22: 19 | AM22: Avon-by-the-Sea Borough, Monmouth County | AU22: No
B23: Estimated Occupancy | C23: 0 | AL23: 20 | AM23: Barnegat Light Borough, Ocean County
AL24: 21 | AM24: Barnegat Township, Ocean County
B25: Mixed-Use Projects | AL25: 22 | AM25: Barrington Borough, Camden County
B26: Num. of Units | C26: Num. of Units | D26: Persons Multiplier | E26: Total New Persons | F26: Public School Multiplier | G26: Total New Public School Children | AL26: 23 | AM26: Bass River Township, Burlington County
B27: Residential Component | AL27: 24 | AM27: Bay Head Borough, Ocean County
B28: Studio | C28: 0 | D28: 1.644 | E28: =ROUND(D28*C28,0) -> 0 | F28: 0.051 | G28: =ROUND(F28*C28,0) -> 0 | AL28: 25 | AM28: Bayonne City, Hudson County
B29: 1 Bedroom | C29: 0 | D29: 1.644 | E29: =ROUND(D29*C29,0) -> 0 | F29: 0.051 | G29: =ROUND(F29*C29,0) -> 0 | AL29: 26 | AM29: Beach Haven Borough, Ocean County
B30: 2 Bedroom | C30: 0 | D30: 2.107 | E30: =ROUND(D30*C30,0) -> 0 | F30: 0.115 | G30: =ROUND(F30*C30,0) -> 0 | AL30: 27 | AM30: Beachwood Borough, Ocean County
B31: 3 Bedroom | C31: 0 | D31: 3.422 | E31: =ROUND(D31*C31,0) -> 0 | F31: 0.56 | G31: =ROUND(F31*C31,0) -> 0 | AL31: 28 | AM31: Bedminster Township, Somerset County
B32: TOTAL | C32: =SUM(C28:C31) -> 0 | E32: =SUM(E28:E31) -> 0 | G32: =SUM(G28:G31) -> 0 | AL32: 29 | AM32: Belleville Township, Essex County
B33: Commercial/Industrial Component | AL33: 30 | AM33: Bellmawr Borough, Camden County
B34: Estimated Occupancy | C34: 0 | AL34: 31 | AM34: Belmar Borough, Monmouth County
AL35: 32 | AM35: Belvidere Town, Warren County
B36: TOTAL NEW PERSONS | C36: =C34+SUM(E28:E31) -> 0 | AL36: =AL35+1 -> 33 | AM36: Bergenfield Borough, Bergen County
AL37: 34 | AM37: Berkeley Heights Township, Union County
C38: PILOT Method Assumptions | F38: Project Budget & Valuation Assumptions | M38: Municipal Spending Assumptions | AL38: 35 | AM38: Berkeley Township, Ocean County
B39: Year | C39: % of Actual Gross Revenue | D39: % of Taxes | E39: Total PILOT Payments (Manual Entry) | F39: Net Rents/Gross Revenue | G39: Operating Expenses (not including PILOT) | H39: Debt Service | I39: Equity (In)/Out | J39: Existing PILOT Payments (Municipal Portion) | K39: Property Assessed Value Pre-Improvement | L39: Property Assessed Value Post-Improvement | M39: Additional Benefit/Loss to Municipality | N39: Additional Municipal Costs Outside Core Budget | O39: % Growth in Municipal Budget | P39: Spending Area | Q39: % of Spending Applied in Municipal Cost Calculation | AL39: 36 | AM39: Berlin Borough, Camden County
B40: 1 | C40: 0.0628 | D40: 0.9 | E40: 92341 | F40: 1470394 | G40: =-1066661+E40 -> -974320 | H40: -362569 | I40: -8630249 | J40: =168285*$J$15 -> 159870.75 | K40: 6926200 | L40: =K40+(1003240) -> 7929440 | M40: 0 | N40: 0 | O40: -- | P40: General Government | Q40: 0.1 | AL40: 37 | AM40: Berlin Township, Camden County
B41: 2 | C41: 0.0628 | D41: 0.9 | E41: 95111.23 | F41: 1514505.82 | G41: =G40*1.03 -> -1003549.6 | H41: -362569 | J41: =J40*1.03 -> 164666.8725 | K41: 7133986 | L41: =L40*1.03 -> 8167323.2 | M41: 0 | N41: 0 | O41: 0.02 | P41: Land-Use Administration | Q41: 0.1 | AL41: 38 | AM41: Bernards Township, Somerset County
B42: 3 | C42: 0.0628 | D42: 0.9 | E42: 97964.5669 | F42: 1559940.995 | G42: =G41*1.03 -> -1033656.088 | H42: -362569 | J42: =J41*1.03 -> 169606.8787 | K42: 7348005.58 | L42: 8412342.896 | M42: 0 | N42: 0 | O42: 0.02 | P42: Uniform Construction Code | Q42: 0.5 | AL42: 39 | AM42: Bernardsville Borough, Somerset County
B43: 4 | C43: 0.0628 | D43: 0.9 | E43: 100903.5039 | F43: 1606739.224 | G43: -1064665.771 | H43: -362569 | J43: 174695.085 | K43: 7568445.747 | L43: 8664713.183 | M43: 0 | N43: 0 | O43: 0.02 | P43: Public Safety | Q43: 0.5 | AL43: 40 | AM43: Bethlehem Township, Hunterdon County
B44: 5 | C44: 0.0628 | D44: 0.9 | E44: 103930.609 | F44: 1654941.401 | G44: -1096605.744 | H44: -362569 | J44: 179935.9376 | K44: 7795499.12 | L44: 8924654.578 | M44: 0 | N44: 0 | O44: 0.02 | P44: Public Works | Q44: 0.1 | AL44: 41 | AM44: Beverly City, Burlington County | AU44: 505756 | AV44: 519298 | AW44: 533225 | AX44: 547552 | AY44: 562291 | AZ44: 577453 | BA44: 593049 | BB44: 609097 | BC44: 625605 | BD44: 642589 | BE44: 660061 | BF44: 678035 | BG44: 696526 | BH44: 715550 | BI44: 735120 | BJ44: 755256 | BK44: 775972 | BL44: 797286 | BM44: 819215 | BN44: 841777 | BO44: 864991 | BP44: 888875 | BQ44: 913450 | BR44: 938735 | BS44: 964752 | BT44: 991520 | BU44: 1019063 | BV44: 1047403 | BW44: 1076563 | BX44: 1106568
B45: 6 | C45: 0.0628 | D45: 0.9 | E45: 107048.5273 | F45: 1704589.643 | G45: -1129503.916 | H45: -362569 | J45: 185334.0157 | K45: 8029364.093 | L45: 9192394.216 | M45: 0 | N45: 0 | O45: 0.02 | P45: Health and Human Services | Q45: 0.1 | AL45: 42 | AM45: Blairstown Township, Warren County | AU45: =-AU44 -> -505756 | AV45: =-AV44 -> -519298 | AW45: -533225 | AX45: -547552 | AY45: -562291 | AZ45: -577453 | BA45: -593049 | BB45: -609097 | BC45: -625605 | BD45: -642589 | BE45: -660061 | BF45: -678035 | BG45: -696526 | BH45: -715550 | BI45: -735120 | BJ45: -755256 | BK45: -775972 | BL45: -797286 | BM45: -819215 | BN45: -841777 | BO45: -864991 | BP45: -888875 | BQ45: -913450 | BR45: -938735 | BS45: -964752 | BT45: -991520 | BU45: -1019063 | BV45: -1047403 | BW45: -1076563 | BX45: -1106568
B46: 7 | C46: 0.0628 | D46: 0.9 | E46: 110259.9831 | F46: 1755727.333 | G46: -1163389.034 | H46: -362569 | J46: 190894.0362 | K46: 8270245.016 | L46: 9468166.042 | M46: 0 | N46: 0 | O46: 0.02 | P46: Education (including Library) | Q46: 0.1 | AL46: 43 | AM46: Bloomfield Township, Essex County
B47: 8 | C47: 0.0628 | D47: 0.9 | E47: 113567.7826 | F47: 1808399.152 | G47: -1198290.705 | H47: -362569 | J47: 196620.8573 | K47: 8518352.367 | L47: 9752211.023 | M47: 0 | N47: 0 | O47: 0.02 | P47: Landfill / Solid Waste Disposal | Q47: 0.5 | AL47: 44 | AM47: Bloomingdale Borough, Passaic County | AU47: $42,635 $43,488 $44,357 $45,244 $46,148 $47,070 $48,011 $48,971 $49,950 $50,949 $51,967 $53,006 $54,066 $55,147 $56,249 $57,373 $58,520 $59,690 $60,883 $62,100 $63,342 $64,608 $65,900 $67,218 $68,562 $69,933 $71,331 $72,757 $74,212 $75,696
B48: 9 | C48: 0.0628 | D48: 0.9 | E48: 116974.8161 | F48: 1862651.127 | G48: -1234239.426 | H48: -362569 | J48: 202519.483 | K48: 8773902.938 | L48: 10044777.35 | M48: 0 | N48: 0 | O48: 0.02 | P48: Statutory Expenditures | Q48: 0.5 | AL48: 45 | AM48: Bloomsbury Borough, Hunterdon County
B49: 10 | C49: 0.0628 | D49: 0.8 | E49: 120484.0606 | F49: 1918530.661 | G49: -1271266.608 | H49: -362569 | J49: 208595.0675 | K49: 9037120.026 | L49: 10346120.67 | M49: 0 | N49: 0 | O49: 0.02 | P49: Court and Public Defender | Q49: 0.5 | AL49: 46 | AM49: Bogota Borough, Bergen County | AU49: 42635 | AV49: 43488 | AW49: 44357 | AX49: 45244 | AY49: 46148 | AZ49: 47070 | BA49: 48011 | BB49: 48971 | BC49: 49950 | BD49: 50949 | BE49: 51967 | BF49: 53006 | BG49: 54066 | BH49: 55147 | BI49: 56249 | BJ49: 57373 | BK49: 58520 | BL49: 59690 | BM49: 60883 | BN49: 62100 | BO49: 63342 | BP49: 64608 | BQ49: 65900 | BR49: 67218 | BS49: 68562 | BT49: 69933 | BU49: 71331 | BV49: 72757 | BW49: 74212 | BX49: 75696
B50: 11 | C50: 0.0628 | D50: 0.8 | E50: 124098.5824 | F50: 1976086.581 | G50: -1309404.607 | H50: -362569 | J50: 214852.9195 | K50: 9308233.627 | L50: 10656504.3 | M50: 0 | N50: 0 | O50: 0.02 | AL50: 47 | AM50: Boonton Town, Morris County
B51: 12 | C51: 0.0628 | D51: 0.8 | E51: 127821.5399 | F51: 2035369.178 | G51: -1348686.745 | H51: -362569 | J51: 221298.5071 | K51: 9587480.635 | L51: 10976199.42 | M51: 0 | N51: 0 | O51: 0.02 | AL51: 48 | AM51: Boonton Township, Morris County
B52: =B51+1 -> 13 | C52: 0.0628 | D52: 0.8 | E52: 131656.1861 | F52: 2096430.253 | G52: -1389147.347 | H52: -362569 | J52: 227937.4623 | K52: 9875105.054 | L52: 11305485.41 | M52: 0 | N52: 0 | O52: 0.02 | AL52: 49 | AM52: Bordentown City, Burlington County
B53: 14 | C53: 0.0628 | D53: 0.8 | E53: 135605.8716 | F53: 2159323.161 | G53: -1430821.768 | H53: -362569 | J53: 234775.5862 | K53: 10171358.21 | L53: 11644649.97 | M53: 0 | N53: 0 | O53: 0.02 | AL53: =AL52+1 -> 50 | AM53: Bordentown Township, Burlington County
B54: 15 | C54: 0.0628 | D54: 0.8 | E54: 139674.0478 | F54: 2224102.856 | G54: -1473746.421 | H54: -362569 | J54: 241818.8538 | K54: 10476498.95 | L54: 11993989.47 | M54: 0 | N54: 0 | O54: 0.02 | AL54: 51 | AM54: Bound Brook Borough, Somerset County
B55: 16 | C55: 0.0628 | D55: 0.8 | E55: 143864.2692 | F55: 2290825.942 | G55: -1517958.813 | H55: -362569 | J55: 249073.4194 | K55: 10790793.92 | L55: 12353809.15 | M55: 0 | N55: 0 | O55: 0.02 | AL55: 52 | AM55: Bradley Beach Borough, Monmouth County
B56: 17 | C56: 0.0628 | D56: 0.8 | E56: 148180.1973 | F56: 2359550.72 | G56: -1563497.578 | H56: -362569 | J56: 256545.6219 | K56: 11114517.74 | L56: 12724423.43 | M56: 0 | N56: 0 | O56: 0.02 | AL56: 53 | AM56: Branchburg Township, Somerset County
B57: 18 | C57: 0.0628 | D57: 0.8 | E57: 152625.6032 | F57: 2430337.241 | G57: -1610402.505 | H57: -362569 | J57: 264241.9906 | K57: 11447953.27 | L57: 13106156.13 | M57: 0 | N57: 0 | O57: 0.02 | AL57: 54 | AM57: Branchville Borough, Sussex County
B58: 19 | C58: 0.0628 | D58: 0.8 | E58: 157204.3713 | F58: 2503247.359 | G58: -1658714.58 | H58: -362569 | J58: 272169.2503 | K58: 11791391.87 | L58: 13499340.81 | M58: 0 | N58: 0 | O58: 0.02 | AL58: 55 | AM58: Brick Township, Ocean County
B59: 20 | C59: 0.0628 | D59: 0.8 | E59: 161920.5024 | F59: 2578344.779 | G59: -1708476.018 | H59: -362569 | J59: 280334.3278 | K59: 12145133.62 | L59: 13904321.04 | M59: 0 | N59: 0 | O59: 0.02 | AL59: 56 | AM59: Bridgeton City, Cumberland County
B60: 21 | C60: 0.0628 | D60: 0.8 | E60: 166778.1175 | F60: 2655695.123 | G60: -1759730.298 | H60: -362569 | J60: 288744.3577 | K60: 12509487.63 | L60: 14321450.67 | M60: 0 | N60: 0 | O60: 0.02 | AL60: 57 | AM60: Bridgewater Township, Somerset County
B61: 22 | C61: 0.0628 | D61: 0.8 | E61: 171781.461 | F61: 2735365.976 | G61: -1812522.207 | H61: -362569 | J61: 297406.6884 | K61: 12884772.26 | L61: 14751094.19 | M61: 0 | N61: 0 | O61: 0.02 | AL61: 58 | AM61: Brielle Borough, Monmouth County
B62: 23 | C62: 0.0628 | D62: 0.8 | E62: 176934.9049 | F62: 2817426.956 | G62: -1866897.873 | H62: -362569 | J62: 306328.8891 | K62: 13271315.43 | L62: 15193627.01 | M62: 0 | N62: 0 | O62: 0.02 | AL62: 59 | AM62: Brigantine City, Atlantic County
B63: 24 | C63: 0.0628 | D63: 0.8 | E63: 182242.952 | F63: 2901949.764 | G63: -1922904.81 | H63: -362569 | J63: 315518.7557 | K63: 13669454.89 | L63: 15649435.82 | M63: 0 | N63: 0 | O63: 0.02 | AL63: 60 | AM63: Brooklawn Borough, Camden County
B64: 25 | C64: 0.0628 | D64: 0.8 | E64: 187710.2406 | F64: 2989008.257 | G64: -1980591.954 | H64: -362569 | J64: 324984.3184 | K64: 14079538.54 | L64: 16118918.9 | M64: 0 | N64: 0 | O64: 0.02 | AL64: 61 | AM64: Buena Borough, Atlantic County
B65: 26 | C65: 0.0628 | D65: 0.8 | E65: 193341.5478 | F65: 3078678.505 | G65: -2040009.712 | H65: -362569 | J65: 334733.8479 | K65: 14501924.7 | L65: 16602486.47 | M65: 0 | N65: 0 | O65: 0.02 | AL65: 62 | AM65: Buena Vista Township, Atlantic County
B66: 27 | C66: 0.0628 | D66: 0.8 | E66: 199141.7942 | F66: 3171038.86 | G66: -2101210.004 | H66: -362569 | J66: 344775.8634 | K66: 14936982.44 | L66: 17100561.06 | M66: 0 | N66: 0 | O66: 0.02 | AL66: 63 | AM66: Burlington City, Burlington County
B67: 28 | C67: 0.0628 | D67: 0.8 | E67: 205116.0481 | F67: 3266170.026 | G67: -2164246.304 | H67: -362569 | J67: 355119.1393 | K67: 15385091.91 | L67: 17613577.89 | M67: 0 | N67: 0 | O67: 0.02 | AL67: =AL66+1 -> 64 | AM67: Burlington Township, Burlington County
B68: 29 | C68: 0.0628 | D68: 0.8 | E68: 211269.5295 | F68: 3364155.127 | G68: -2229173.693 | H68: -362569 | J68: 365772.7135 | K68: 15846644.67 | L68: 18141985.23 | M68: 0 | N68: 0 | O68: 0.02 | AL68: 65 | AM68: Butler Borough, Morris County
B69: 30 | C69: 0.0628 | D69: 0.8 | E69: 217607.6154 | F69: 3465079.781 | G69: -2296048.904 | H69: 0 | I69: =FV(0.03,30,0,I40) -> 20947879.51 | J69: 376745.8949 | K69: 16322044.01 | L69: 18686244.79 | M69: 0 | N69: 0 | O69: 0.02 | AL69: 66 | AM69: Byram Township, Sussex County
AL70: 67 | AM70: Caldwell Borough, Essex County
AL71: 68 | AM71: Califon Borough, Hunterdon County
AL72: 69 | AM72: Camden City, Camden County
AL73: 70 | AM73: Cape May City, Cape May County
AL74: 71 | AM74: Cape May Point Borough, Cape May County
AL75: 72 | AM75: Carlstadt Borough, Bergen County
AL76: =AL75+1 -> 73 | AM76: Carneys Point Township, Salem County
AL77: 74 | AM77: Carteret Borough, Middlesex County
AL78: 75 | AM78: Cedar Grove Township, Essex County
AL79: 76 | AM79: Chatham Borough, Morris County
AL80: 77 | AM80: Chatham Township, Morris County
AL81: 78 | AM81: Cherry Hill Township, Camden County
AL82: 79 | AM82: Chesilhurst Borough, Camden County
AL83: 80 | AM83: Chester Borough, Morris County
AL84: 81 | AM84: Chester Township, Morris County
AL85: 82 | AM85: Chesterfield Township, Burlington County
AL86: 83 | AM86: Cinnaminson Township, Burlington County
AL87: 84 | AM87: City of Orange Township, Essex County
AL88: 85 | AM88: Clark Township, Union County
AL89: 86 | AM89: Clayton Borough, Gloucester County
AL90: 87 | AM90: Clementon Borough, Camden County
AL91: 88 | AM91: Cliffside Park Borough, Bergen County
AL92: 89 | AM92: Clifton City, Passaic County
AL93: 90 | AM93: Clinton Town, Hunterdon County
AL94: 91 | AM94: Clinton Township, Hunterdon County
AL95: 92 | AM95: Closter Borough, Bergen County
AL96: 93 | AM96: Collingswood Borough, Camden County
AL97: 94 | AM97: Colts Neck Township, Monmouth County
AL98: 95 | AM98: Commercial Township, Cumberland County
AL99: 96 | AM99: Corbin City, Atlantic County
AL100: 97 | AM100: Cranbury Township, Middlesex County
AL101: 98 | AM101: Cranford Township, Union County
AL102: 99 | AM102: Cresskill Borough, Bergen County
AL103: 100 | AM103: Deal Borough, Monmouth County
AL104: 101 | AM104: Deerfield Township, Cumberland County
AL105: 102 | AM105: Delanco Township, Burlington County
AL106: 103 | AM106: Delaware Township, Hunterdon County
AL107: 104 | AM107: Delran Township, Burlington County
AL108: 105 | AM108: Demarest Borough, Bergen County
AL109: 106 | AM109: Dennis Township, Cape May County
AL110: 107 | AM110: Denville Township, Morris County
AL111: 108 | AM111: Deptford Township, Gloucester County
AL112: 109 | AM112: Dover Town, Morris County
AL113: 110 | AM113: Downe Township, Cumberland County
AL114: 111 | AM114: Dumont Borough, Bergen County
AL115: 112 | AM115: Dunellen Borough, Middlesex County
AL116: 113 | AM116: Eagleswood Township, Ocean County
AL117: 114 | AM117: East Amwell Township, Hunterdon County
AL118: 115 | AM118: East Brunswick Township, Middlesex County
AL119: 116 | AM119: East Greenwich Township, Gloucester County
AL120: 117 | AM120: East Hanover Township, Morris County
AL121: 118 | AM121: East Newark Borough, Hudson County
AL122: 119 | AM122: East Orange City, Essex County
AL123: 120 | AM123: East Rutherford Borough, Bergen County
AL124: 121 | AM124: East Windsor Township, Mercer County
AL125: 122 | AM125: Eastampton Township, Burlington County
AL126: 123 | AM126: Eatontown Borough, Monmouth County
AL127: 124 | AM127: Edgewater Borough, Bergen County
AL128: 125 | AM128: Edgewater Park Township, Burlington County
AL129: 126 | AM129: Edison Township, Middlesex County
AL130: 127 | AM130: Egg Harbor City, Atlantic County
AL131: 128 | AM131: Egg Harbor Township, Atlantic County
AL132: 129 | AM132: Elizabeth City, Union County
AL133: 130 | AM133: Elk Township, Gloucester County
AL134: 131 | AM134: Elmer Borough, Salem County
AL135: 132 | AM135: Elmwood Park Borough, Bergen County
AL136: 133 | AM136: Elsinboro Township, Salem County
AL137: 134 | AM137: Emerson Borough, Bergen County
AL138: 135 | AM138: Englewood City, Bergen County
AL139: 136 | AM139: Englewood Cliffs Borough, Bergen County
AL140: =AL139+1 -> 137 | AM140: Englishtown Borough, Monmouth County
AL141: 138 | AM141: Essex Fells Borough, Essex County
AL142: 139 | AM142: Estell Manor City, Atlantic County
AL143: 140 | AM143: Evesham Township, Burlington County
AL144: 141 | AM144: Ewing Township, Mercer County
AL145: 142 | AM145: Fair Haven Borough, Monmouth County
AL146: 143 | AM146: Fair Lawn Borough, Bergen County
AL147: 144 | AM147: Fairfield Township, Cumberland County
AL148: 145 | AM148: Fairfield Township, Essex County
AL149: 146 | AM149: Fairview Borough, Bergen County
AL150: 147 | AM150: Fanwood Borough, Union County
AL151: 148 | AM151: Far Hills Borough, Somerset County
AL152: 149 | AM152: Farmingdale Borough, Monmouth County
AL153: 150 | AM153: Fieldsboro Borough, Burlington County
AL154: 151 | AM154: Flemington Borough, Hunterdon County
AL155: 152 | AM155: Florence Township, Burlington County
AL156: 153 | AM156: Florham Park Borough, Morris County
AL157: 154 | AM157: Folsom Borough, Atlantic County
AL158: 155 | AM158: Fort Lee Borough, Bergen County
AL159: 156 | AM159: Frankford Township, Sussex County
AL160: 157 | AM160: Franklin Borough, Sussex County
AL161: 158 | AM161: Franklin Lakes Borough, Bergen County
AL162: 159 | AM162: Franklin Township, Gloucester County
AL163: 160 | AM163: Franklin Township, Hunterdon County
AL164: 161 | AM164: Franklin Township, Somerset County
AL165: 162 | AM165: Franklin Township, Warren County
AL166: 163 | AM166: Fredon Township, Sussex County
AL167: 164 | AM167: Freehold Borough, Monmouth County
AL168: 165 | AM168: Freehold Township, Monmouth County
AL169: 166 | AM169: Frelinghuysen Township, Warren County
AL170: 167 | AM170: Frenchtown Borough, Hunterdon County
AL171: 168 | AM171: Galloway Township, Atlantic County
AL172: 169 | AM172: Garfield City, Bergen County
AL173: 170 | AM173: Garwood Borough, Union County
AL174: 171 | AM174: Gibbsboro Borough, Camden County
AL175: 172 | AM175: Glassboro Borough, Gloucester County
AL176: 173 | AM176: Glen Gardner Borough, Hunterdon County
AL177: 174 | AM177: Glen Ridge Borough, Essex County
AL178: 175 | AM178: Glen Rock Borough, Bergen County
AL179: 176 | AM179: Gloucester City, Camden County
AL180: 177 | AM180: Gloucester Township, Camden County
AL181: 178 | AM181: Green Brook Township, Somerset County
AL182: 179 | AM182: Green Township, Sussex County
AL183: 180 | AM183: Greenwich Township, Cumberland County
AL184: 181 | AM184: Greenwich Township, Gloucester County
AL185: 182 | AM185: Greenwich Township, Warren County
AL186: 183 | AM186: Guttenberg Town, Hudson County
AL187: 184 | AM187: Hackensack City, Bergen County
AL188: 185 | AM188: Hackettstown Town, Warren County
AL189: 186 | AM189: Haddon Heights Borough, Camden County
AL190: 187 | AM190: Haddon Township, Camden County
AL191: 188 | AM191: Haddonfield Borough, Camden County
AL192: 189 | AM192: Hainesport Township, Burlington County
AL193: 190 | AM193: Haledon Borough, Passaic County
AL194: 191 | AM194: Hamburg Borough, Sussex County
AL195: 192 | AM195: Hamilton Township, Atlantic County
AL196: 193 | AM196: Hamilton Township, Mercer County
AL197: 194 | AM197: Hammonton Town, Atlantic County
AL198: 195 | AM198: Hampton Borough, Hunterdon County
AL199: 196 | AM199: Hampton Township, Sussex County
AL200: 197 | AM200: Hanover Township, Morris County
... 367 more rows

Sheet Model
A1: ='Inputs & Assumptions'!A1 -> Payment in Lieu of Taxes Financial Agreement Forecasting Model - Trenton City, Mercer County
A2: Projections
A3: Year | B3: Year Number | C3: Net Rents/Gross Revenue | D3: Operating Expenses | E3: Property Assessed Value Pre-Improvement | F3: =IF(existpilot=2,"Municipal Property Tax Revenue Pre-Improvement", "Municipal PILOT Revenue Pre-Improvement") -> Municipal Property Tax Revenue Pre-Improvement | G3: Property Assessed Value Post-Improvement | H3: Total Property Taxes without PILOT | I3: Municipal Property Taxes without PILOT | J3: PILOT Payments | K3: Municipal PILOT | L3: County PILOT | M3: School PILOT | N3: Project Net Operating Income before Debt Service | O3: Debt Service | P3: Project Cash Flow | Q3: Equity (In)/Out | R3: Net Cash Flow | S3: PILOT % of Annual Gross Revenue | T3: PILOT % of Conventional Taxes | U3: Additional Municipal Costs Outside Core Budget | V3: Additional Municipal Costs (Core Budget) | W3: Total Additional Municipal Costs | X3: Additional Net Benefit (Loss to Municipality) | Y3: Net Benefit (Loss) to Municipality | Z3: =IF(existpilot=2,"Change in Municipal Property Tax Revenue due to Project", "Change in Municipal PILOT Revenue due to Project") -> Change in Municipal Property Tax Revenue due to Project
A4: ='Inputs & Assumptions'!G5 -> 2025 | B4: 1 | C4: ='Inputs & Assumptions'!F40 -> 1470394 | D4: ='Inputs & Assumptions'!G40 -> -974320 | E4: ='Inputs & Assumptions'!K40 -> 6926200 | F4: =IF(existpilot=2,'Inputs & Assumptions'!$Q$4*(E4/100),'Inputs & Assumptions'!J40) -> 257880.8676 | G4: ='Inputs & Assumptions'!L40 -> 7929440 | H4: =(G4/100)*'Inputs & Assumptions'!$Q$5 -> 459986.118 | I4: =(G4/100)*'Inputs & Assumptions'!$Q$4 -> 295234.164 | J4: =IF(IF('Inputs & Assumptions'!$B$8=1,-C4*'Inputs & Assumptions'!$C40,IF('Inputs & Assumptions'!$B$8=2,-H4*'Inputs & Assumptions'!$D40,IF('Inputs & Assumptions'!$B$8=3,-'Inputs & Assumptions'!E40,"")))*$AA$10>0,0,IF('Inputs & Assumptions'!$B$8=1,-C4*'Inputs & Assumptions'!$C40,IF('Inputs & Assumptions'!$B$8=2,-H4*'Inputs & Assumptions'!$D40,IF('Inputs & Assumptions'!$B$8=3,-'Inputs & Assumptions'!E40,"")))*$AA$10) -> -134785.232 | K4: =IF(pilotmeth=1,VLOOKUP(Muni,Data!$E$4:$Q$567,11,FALSE),'Inputs & Assumptions'!$J$15)*J4 -> -128045.9704 | L4: =IF(pilotmeth=1,VLOOKUP(Muni,Data!$E$4:$Q$567,12,FALSE),'Inputs & Assumptions'!$J$16)*J4 -> -6739.2616 | M4: =IF(pilotmeth=1,VLOOKUP(Muni,Data!$E$4:$Q$567,13,FALSE),'Inputs & Assumptions'!$J$17)*J4 -> 0 | N4: =J4+D4+C4 -> 361288.768 | O4: ='Inputs & Assumptions'!H40 -> -362569 | P4: =SUM(N4:O4) -> -1280.231991 | Q4: ='Inputs & Assumptions'!I40 -> -8630249 | R4: =SUM(P4:Q4) -> -8631529.232 | S4: =IFERROR(-J4/C4,"--") -> 0.09166606501 | T4: =IFERROR(-J4/H4,"--") -> 0.2930202167 | U4: ='Inputs & Assumptions'!N40 -> 0 | V4: =IFERROR(IF(Type=1,'Inputs & Assumptions'!$Q$6*'Inputs & Assumptions'!E19,IF(Type=2,'Inputs & Assumptions'!$Q$6*'Inputs & Assumptions'!C23,IF(Type=3,'Inputs & Assumptions'!$Q$6*'Inputs & Assumptions'!C36,"--"))),"No Data") -> 73466.88061 | W4: =IFERROR(V4+U4,"--") -> 73466.88061 | X4: ='Inputs & Assumptions'!M40 -> 0 | Y4: =IFERROR(-K4-F4-W4+X4,"--") -> -203301.7778 | Z4: =-K4-F4 -> -129834.8972 | AA4: Current IRR | AB4: =IRR(R4:R33,0.1) -> 0.04500872364
A5: =A4+1 -> 2026 | B5: 2 | C5: ='Inputs & Assumptions'!F41 -> 1514505.82 | D5: ='Inputs & Assumptions'!G41 -> -1003549.6 | E5: ='Inputs & Assumptions'!K41 -> 7133986 | F5: =IF(existpilot=2,'Inputs & Assumptions'!$Q$4*(E5/100),'Inputs & Assumptions'!J41) -> 265617.2936 | G5: ='Inputs & Assumptions'!L41 -> 8167323.2 | H5: =(G5/100)*'Inputs & Assumptions'!$Q$5 -> 473785.7015 | I5: =(G5/100)*'Inputs & Assumptions'!$Q$4 -> 304091.1889 | J5: =IF(C5="","--",IF(IF('Inputs & Assumptions'!$B$8=1,-C5*'Inputs & Assumptions'!$C41,IF('Inputs & Assumptions'!$B$8=2,-H5*'Inputs & Assumptions'!$D41,IF('Inputs & Assumptions'!$B$8=3,-'Inputs & Assumptions'!E41,"")))*$AA$10>0,0,IF('Inputs & Assumptions'!$B$8=1,-C5*'Inputs & Assumptions'!$C41,IF('Inputs & Assumptions'!$B$8=2,-H5*'Inputs & Assumptions'!$D41,IF('Inputs & Assumptions'!$B$8=3,-'Inputs & Assumptions'!E41,"")))*$AA$10)) -> -138828.789 | K5: =IF(pilotmeth=1,VLOOKUP(Muni,Data!$E$4:$Q$567,11,FALSE),'Inputs & Assumptions'!$J$15)*J5 -> -131887.3495 | L5: =IF(pilotmeth=1,VLOOKUP(Muni,Data!$E$4:$Q$567,12,FALSE),'Inputs & Assumptions'!$J$16)*J5 -> -6941.439448 | M5: =IF(pilotmeth=1,VLOOKUP(Muni,Data!$E$4:$Q$567,13,FALSE),'Inputs & Assumptions'!$J$17)*J5 -> 0 | N5: =J5+D5+C5 -> 372127.431 | O5: ='Inputs & Assumptions'!H41 -> -362569 | P5: =SUM(N5:O5) -> 9558.431049 | Q5: ='Inputs & Assumptions'!I41 -> 0 | R5: =SUM(P5:Q5) -> 9558.431049 | S5: =IFERROR(-J5/C5,"--") -> 0.09166606501 | T5: =IFERROR(-J5/H5,"--") -> 0.2930202167 | U5: ='Inputs & Assumptions'!N41 -> 0 | V5: =IF(OR(C5>0),IFERROR(V4*((1+'Inputs & Assumptions'!O41)),"No Data"),"--") -> 74936.21822 | W5: =IFERROR(V5+U5,"--") -> 74936.21822 | X5: ='Inputs & Assumptions'!M41 -> 0 | Y5: =IFERROR(-K5-F5-W5+X5,"--") -> -208666.1623 | Z5: =-K5-F5 -> -133729.9441
A6: =A5+1 -> 2027 | B6: 3 | C6: ='Inputs & Assumptions'!F42 -> 1559940.995 | D6: ='Inputs & Assumptions'!G42 -> -1033656.088 | E6: ='Inputs & Assumptions'!K42 -> 7348005.58 | F6: =IF(existpilot=2,'Inputs & Assumptions'!$Q$4*(E6/100),'Inputs & Assumptions'!J42) -> 273585.8124 | G6: ='Inputs & Assumptions'!L42 -> 8412342.896 | H6: =(G6/100)*'Inputs & Assumptions'!$Q$5 -> 487999.2726 | I6: =(G6/100)*'Inputs & Assumptions'!$Q$4 -> 313213.9246 | J6: =IF(C6="","--",IF(IF('Inputs & Assumptions'!$B$8=1,-C6*'Inputs & Assumptions'!$C42,IF('Inputs & Assumptions'!$B$8=2,-H6*'Inputs & Assumptions'!$D42,IF('Inputs & Assumptions'!$B$8=3,-'Inputs & Assumptions'!E42,"")))*$AA$10>0,0,IF('Inputs & Assumptions'!$B$8=1,-C6*'Inputs & Assumptions'!$C42,IF('Inputs & Assumptions'!$B$8=2,-H6*'Inputs & Assumptions'!$D42,IF('Inputs & Assumptions'!$B$8=3,-'Inputs & Assumptions'!E42,"")))*$AA$10)) -> -142993.6526 | K6: =IF(pilotmeth=1,VLOOKUP(Muni,Data!$E$4:$Q$567,11,FALSE),'Inputs & Assumptions'!$J$15)*J6 -> -135843.97 | L6: =IF(pilotmeth=1,VLOOKUP(Muni,Data!$E$4:$Q$567,12,FALSE),'Inputs & Assumptions'!$J$16)*J6 -> -7149.682631 | M6: =IF(pilotmeth=1,VLOOKUP(Muni,Data!$E$4:$Q$567,13,FALSE),'Inputs & Assumptions'!$J$17)*J6 -> 0 | N6: 383291.254 | O6: ='Inputs & Assumptions'!H42 -> -362569 | P6: =SUM(N6:O6) -> 20722.25398 | Q6: ='Inputs & Assumptions'!I42 -> 0 | R6: =SUM(P6:Q6) -> 20722.25398 | S6: 0.09166606501 | T6: 0.2930202167 | U6: ='Inputs & Assumptions'!N42 -> 0 | V6: =IF(OR(C6>0),IFERROR(V5*((1+'Inputs & Assumptions'!O42)),"No Data"),"--") -> 76434.94259 | W6: 76434.94259 | X6: ='Inputs & Assumptions'!M42 -> 0 | Y6: =IFERROR(-K6-F6-W6+X6,"--") -> -214176.785 | Z6: -137741.8424 | AA6: IRR Target | AB6: 0.045
A7: 2028 | B7: 4 | C7: ='Inputs & Assumptions'!F43 -> 1606739.224 | D7: ='Inputs & Assumptions'!G43 -> -1064665.771 | E7: ='Inputs & Assumptions'!K43 -> 7568445.747 | F7: =IF(existpilot=2,'Inputs & Assumptions'!$Q$4*(E7/100),'Inputs & Assumptions'!J43) -> 281793.3868 | G7: ='Inputs & Assumptions'!L43 -> 8664713.183 | H7: =(G7/100)*'Inputs & Assumptions'!$Q$5 -> 502639.2508 | I7: =(G7/100)*'Inputs & Assumptions'!$Q$4 -> 322610.3423 | J7: =IF(C7="","--",IF(IF('Inputs & Assumptions'!$B$8=1,-C7*'Inputs & Assumptions'!$C43,IF('Inputs & Assumptions'!$B$8=2,-H7*'Inputs & Assumptions'!$D43,IF('Inputs & Assumptions'!$B$8=3,-'Inputs & Assumptions'!E43,"")))*$AA$10>0,0,IF('Inputs & Assumptions'!$B$8=1,-C7*'Inputs & Assumptions'!$C43,IF('Inputs & Assumptions'!$B$8=2,-H7*'Inputs & Assumptions'!$D43,IF('Inputs & Assumptions'!$B$8=3,-'Inputs & Assumptions'!E43,"")))*$AA$10)) -> -147283.4622 | K7: =IF(pilotmeth=1,VLOOKUP(Muni,Data!$E$4:$Q$567,11,FALSE),'Inputs & Assumptions'!$J$15)*J7 -> -139919.2891 | L7: =IF(pilotmeth=1,VLOOKUP(Muni,Data!$E$4:$Q$567,12,FALSE),'Inputs & Assumptions'!$J$16)*J7 -> -7364.17311 | M7: =IF(pilotmeth=1,VLOOKUP(Muni,Data!$E$4:$Q$567,13,FALSE),'Inputs & Assumptions'!$J$17)*J7 -> 0 | N7: 394789.9916 | O7: ='Inputs & Assumptions'!H43 -> -362569 | P7: =SUM(N7:O7) -> 32220.9916 | Q7: ='Inputs & Assumptions'!I43 -> 0 | R7: 32220.9916 | S7: 0.09166606501 | T7: 0.2930202167 | U7: ='Inputs & Assumptions'!N43 -> 0 | V7: =IF(OR(C7>0),IFERROR(V6*((1+'Inputs & Assumptions'!O43)),"No Data"),"--") -> 77963.64144 | W7: 77963.64144 | X7: ='Inputs & Assumptions'!M43 -> 0 | Y7: -219837.7391 | Z7: -141874.0977
A8: 2029 | B8: 5 | C8: ='Inputs & Assumptions'!F44 -> 1654941.401 | D8: ='Inputs & Assumptions'!G44 -> -1096605.744 | E8: ='Inputs & Assumptions'!K44 -> 7795499.12 | F8: =IF(existpilot=2,'Inputs & Assumptions'!$Q$4*(E8/100),'Inputs & Assumptions'!J44) -> 290247.1884 | G8: ='Inputs & Assumptions'!L44 -> 8924654.578 | H8: =(G8/100)*'Inputs & Assumptions'!$Q$5 -> 517718.4283 | I8: =(G8/100)*'Inputs & Assumptions'!$Q$4 -> 332288.6526 | J8: =IF(C8="","--",IF(IF('Inputs & Assumptions'!$B$8=1,-C8*'Inputs & Assumptions'!$C44,IF('Inputs & Assumptions'!$B$8=2,-H8*'Inputs & Assumptions'!$D44,IF('Inputs & Assumptions'!$B$8=3,-'Inputs & Assumptions'!E44,"")))*$AA$10>0,0,IF('Inputs & Assumptions'!$B$8=1,-C8*'Inputs & Assumptions'!$C44,IF('Inputs & Assumptions'!$B$8=2,-H8*'Inputs & Assumptions'!$D44,IF('Inputs & Assumptions'!$B$8=3,-'Inputs & Assumptions'!E44,"")))*$AA$10)) -> -151701.9661 | K8: =IF(pilotmeth=1,VLOOKUP(Muni,Data!$E$4:$Q$567,11,FALSE),'Inputs & Assumptions'!$J$15)*J8 -> -144116.8678 | L8: =IF(pilotmeth=1,VLOOKUP(Muni,Data!$E$4:$Q$567,12,FALSE),'Inputs & Assumptions'!$J$16)*J8 -> -7585.098303 | M8: =IF(pilotmeth=1,VLOOKUP(Muni,Data!$E$4:$Q$567,13,FALSE),'Inputs & Assumptions'!$J$17)*J8 -> 0 | N8: 406633.6913 | O8: ='Inputs & Assumptions'!H44 -> -362569 | P8: 44064.69135 | Q8: ='Inputs & Assumptions'!I44 -> 0 | R8: =SUM(P8:Q8) -> 44064.69135 | S8: 0.09166606501 | T8: 0.2930202167 | U8: ='Inputs & Assumptions'!N44 -> 0 | V8: =IF(OR(C8>0),IFERROR(V7*((1+'Inputs & Assumptions'!O44)),"No Data"),"--") -> 79522.91427 | W8: 79522.91427 | X8: ='Inputs & Assumptions'!M44 -> 0 | Y8: -225653.2349 | Z8: -146130.3206
A9: 2030 | B9: 6 | C9: ='Inputs & Assumptions'!F45 -> 1704589.643 | D9: ='Inputs & Assumptions'!G45 -> -1129503.916 | E9: ='Inputs & Assumptions'!K45 -> 8029364.093 | F9: =IF(existpilot=2,'Inputs & Assumptions'!$Q$4*(E9/100),'Inputs & Assumptions'!J45) -> 298954.604 | G9: ='Inputs & Assumptions'!L45 -> 9192394.216 | H9: =(G9/100)*'Inputs & Assumptions'!$Q$5 -> 533249.9811 | I9: =(G9/100)*'Inputs & Assumptions'!$Q$4 -> 342257.3122 | J9: =IF(C9="","--",IF(IF('Inputs & Assumptions'!$B$8=1,-C9*'Inputs & Assumptions'!$C45,IF('Inputs & Assumptions'!$B$8=2,-H9*'Inputs & Assumptions'!$D45,IF('Inputs & Assumptions'!$B$8=3,-'Inputs & Assumptions'!E45,"")))*$AA$10>0,0,IF('Inputs & Assumptions'!$B$8=1,-C9*'Inputs & Assumptions'!$C45,IF('Inputs & Assumptions'!$B$8=2,-H9*'Inputs & Assumptions'!$D45,IF('Inputs & Assumptions'!$B$8=3,-'Inputs & Assumptions'!E45,"")))*$AA$10)) -> -156253.025 | K9: =IF(pilotmeth=1,VLOOKUP(Muni,Data!$E$4:$Q$567,11,FALSE),'Inputs & Assumptions'!$J$15)*J9 -> -148440.3738 | L9: =IF(pilotmeth=1,VLOOKUP(Muni,Data!$E$4:$Q$567,12,FALSE),'Inputs & Assumptions'!$J$16)*J9 -> -7812.651252 | M9: =IF(pilotmeth=1,VLOOKUP(Muni,Data!$E$4:$Q$567,13,FALSE),'Inputs & Assumptions'!$J$17)*J9 -> 0 | N9: 418832.7021 | O9: ='Inputs & Assumptions'!H45 -> -362569 | P9: 56263.70209 | Q9: ='Inputs & Assumptions'!I45 -> 0 | R9: 56263.70209 | S9: 0.09166606501 | T9: 0.2930202167 | U9: ='Inputs & Assumptions'!N45 -> 0 | V9: =IF(OR(C9>0),IFERROR(V8*((1+'Inputs & Assumptions'!O45)),"No Data"),"--") -> 81113.37255 | W9: 81113.37255 | X9: ='Inputs & Assumptions'!M45 -> 0 | Y9: -231627.6028 | Z9: -150514.2302 | AA9: PILOT Adjustment Factor
A10: 2031 | B10: 7 | C10: ='Inputs & Assumptions'!F46 -> 1755727.333 | D10: ='Inputs & Assumptions'!G46 -> -1163389.034 | E10: ='Inputs & Assumptions'!K46 -> 8270245.016 | F10: =IF(existpilot=2,'Inputs & Assumptions'!$Q$4*(E10/100),'Inputs & Assumptions'!J46) -> 307923.2422 | G10: ='Inputs & Assumptions'!L46 -> 9468166.042 | H10: =(G10/100)*'Inputs & Assumptions'!$Q$5 -> 549247.4806 | I10: =(G10/100)*'Inputs & Assumptions'!$Q$4 -> 352525.0315 | J10: =IF(C10="","--",IF(IF('Inputs & Assumptions'!$B$8=1,-C10*'Inputs & Assumptions'!$C46,IF('Inputs & Assumptions'!$B$8=2,-H10*'Inputs & Assumptions'!$D46,IF('Inputs & Assumptions'!$B$8=3,-'Inputs & Assumptions'!E46,"")))*$AA$10>0,0,IF('Inputs & Assumptions'!$B$8=1,-C10*'Inputs & Assumptions'!$C46,IF('Inputs & Assumptions'!$B$8=2,-H10*'Inputs & Assumptions'!$D46,IF('Inputs & Assumptions'!$B$8=3,-'Inputs & Assumptions'!E46,"")))*$AA$10)) -> -160940.6158 | K10: =IF(pilotmeth=1,VLOOKUP(Muni,Data!$E$4:$Q$567,11,FALSE),'Inputs & Assumptions'!$J$15)*J10 -> -152893.585 | L10: =IF(pilotmeth=1,VLOOKUP(Muni,Data!$E$4:$Q$567,12,FALSE),'Inputs & Assumptions'!$J$16)*J10 -> -8047.03079 | M10: =IF(pilotmeth=1,VLOOKUP(Muni,Data!$E$4:$Q$567,13,FALSE),'Inputs & Assumptions'!$J$17)*J10 -> 0 | N10: 431397.6832 | O10: ='Inputs & Assumptions'!H46 -> -362569 | P10: 68828.68315 | Q10: ='Inputs & Assumptions'!I46 -> 0 | R10: 68828.68315 | S10: 0.09166606501 | T10: 0.2930202167 | U10: ='Inputs & Assumptions'!N46 -> 0 | V10: =IF(OR(C10>0),IFERROR(V9*((1+'Inputs & Assumptions'!O46)),"No Data"),"--") -> 82735.64 | W10: 82735.64 | X10: ='Inputs & Assumptions'!M46 -> 0 | Y10: -237765.2972 | Z10: -155029.6571 | AA10: 1.459646657
A11: 2032 | B11: 8 | C11: ='Inputs & Assumptions'!F47 -> 1808399.152 | D11: ='Inputs & Assumptions'!G47 -> -1198290.705 | E11: ='Inputs & Assumptions'!K47 -> 8518352.367 | F11: =IF(existpilot=2,'Inputs & Assumptions'!$Q$4*(E11/100),'Inputs & Assumptions'!J47) -> 317160.9394 | G11: ='Inputs & Assumptions'!L47 -> 9752211.023 | H11: =(G11/100)*'Inputs & Assumptions'!$Q$5 -> 565724.905 | I11: =(G11/100)*'Inputs & Assumptions'!$Q$4 -> 363100.7825 | J11: =IF(C11="","--",IF(IF('Inputs & Assumptions'!$B$8=1,-C11*'Inputs & Assumptions'!$C47,IF('Inputs & Assumptions'!$B$8=2,-H11*'Inputs & Assumptions'!$D47,IF('Inputs & Assumptions'!$B$8=3,-'Inputs & Assumptions'!E47,"")))*$AA$10>0,0,IF('Inputs & Assumptions'!$B$8=1,-C11*'Inputs & Assumptions'!$C47,IF('Inputs & Assumptions'!$B$8=2,-H11*'Inputs & Assumptions'!$D47,IF('Inputs & Assumptions'!$B$8=3,-'Inputs & Assumptions'!E47,"")))*$AA$10)) -> -165768.8343 | K11: =IF(pilotmeth=1,VLOOKUP(Muni,Data!$E$4:$Q$567,11,FALSE),'Inputs & Assumptions'!$J$15)*J11 -> -157480.3926 | L11: =IF(pilotmeth=1,VLOOKUP(Muni,Data!$E$4:$Q$567,12,FALSE),'Inputs & Assumptions'!$J$16)*J11 -> -8288.441714 | M11: =IF(pilotmeth=1,VLOOKUP(Muni,Data!$E$4:$Q$567,13,FALSE),'Inputs & Assumptions'!$J$17)*J11 -> 0 | N11: 444339.6136 | O11: ='Inputs & Assumptions'!H47 -> -362569 | P11: 81770.61365 | Q11: ='Inputs & Assumptions'!I47 -> 0 | R11: 81770.61365 | S11: 0.09166606501 | T11: 0.2930202167 | U11: ='Inputs & Assumptions'!N47 -> 0 | V11: =IF(OR(C11>0),IFERROR(V10*((1+'Inputs & Assumptions'!O47)),"No Data"),"--") -> 84390.3528 | W11: 84390.3528 | X11: ='Inputs & Assumptions'!M47 -> 0 | Y11: -244070.8997 | Z11: -159680.5469
A12: 2033 | B12: 9 | C12: ='Inputs & Assumptions'!F48 -> 1862651.127 | D12: ='Inputs & Assumptions'!G48 -> -1234239.426 | E12: ='Inputs & Assumptions'!K48 -> 8773902.938 | F12: =IF(existpilot=2,'Inputs & Assumptions'!$Q$4*(E12/100),'Inputs & Assumptions'!J48) -> 326675.7676 | G12: ='Inputs & Assumptions'!L48 -> 10044777.35 | H12: =(G12/100)*'Inputs & Assumptions'!$Q$5 -> 582696.6521 | I12: =(G12/100)*'Inputs & Assumptions'!$Q$4 -> 373993.8059 | J12: =IF(C12="","--",IF(IF('Inputs & Assumptions'!$B$8=1,-C12*'Inputs & Assumptions'!$C48,IF('Inputs & Assumptions'!$B$8=2,-H12*'Inputs & Assumptions'!$D48,IF('Inputs & Assumptions'!$B$8=3,-'Inputs & Assumptions'!E48,"")))*$AA$10>0,0,IF('Inputs & Assumptions'!$B$8=1,-C12*'Inputs & Assumptions'!$C48,IF('Inputs & Assumptions'!$B$8=2,-H12*'Inputs & Assumptions'!$D48,IF('Inputs & Assumptions'!$B$8=3,-'Inputs & Assumptions'!E48,"")))*$AA$10)) -> -170741.8993 | K12: =IF(pilotmeth=1,VLOOKUP(Muni,Data!$E$4:$Q$567,11,FALSE),'Inputs & Assumptions'!$J$15)*J12 -> -162204.8043 | L12: =IF(pilotmeth=1,VLOOKUP(Muni,Data!$E$4:$Q$567,12,FALSE),'Inputs & Assumptions'!$J$16)*J12 -> -8537.094965 | M12: =IF(pilotmeth=1,VLOOKUP(Muni,Data!$E$4:$Q$567,13,FALSE),'Inputs & Assumptions'!$J$17)*J12 -> 0 | N12: =J12+D12+C12 -> 457669.8021 | O12: ='Inputs & Assumptions'!H48 -> -362569 | P12: 95100.80205 | Q12: ='Inputs & Assumptions'!I48 -> 0 | R12: 95100.80205 | S12: 0.09166606501 | T12: 0.2930202167 | U12: ='Inputs & Assumptions'!N48 -> 0 | V12: =IF(OR(C12>0),IFERROR(V11*((1+'Inputs & Assumptions'!O48)),"No Data"),"--") -> 86078.15986 | W12: 86078.15986 | X12: ='Inputs & Assumptions'!M48 -> 0 | Y12: -250549.1231 | Z12: -164470.9633
A13: 2034 | B13: 10 | C13: ='Inputs & Assumptions'!F49 -> 1918530.661 | D13: ='Inputs & Assumptions'!G49 -> -1271266.608 | E13: ='Inputs & Assumptions'!K49 -> 9037120.026 | F13: =IF(existpilot=2,'Inputs & Assumptions'!$Q$4*(E13/100),'Inputs & Assumptions'!J49) -> 336476.0406 | G13: ='Inputs & Assumptions'!L49 -> 10346120.67 | H13: =(G13/100)*'Inputs & Assumptions'!$Q$5 -> 600177.5517 | I13: =(G13/100)*'Inputs & Assumptions'!$Q$4 -> 385213.6201 | J13: =IF(C13="","--",IF(IF('Inputs & Assumptions'!$B$8=1,-C13*'Inputs & Assumptions'!$C49,IF('Inputs & Assumptions'!$B$8=2,-H13*'Inputs & Assumptions'!$D49,IF('Inputs & Assumptions'!$B$8=3,-'Inputs & Assumptions'!E49,"")))*$AA$10>0,0,IF('Inputs & Assumptions'!$B$8=1,-C13*'Inputs & Assumptions'!$C49,IF('Inputs & Assumptions'!$B$8=2,-H13*'Inputs & Assumptions'!$D49,IF('Inputs & Assumptions'!$B$8=3,-'Inputs & Assumptions'!E49,"")))*$AA$10)) -> -175864.1563 | K13: =IF(pilotmeth=1,VLOOKUP(Muni,Data!$E$4:$Q$567,11,FALSE),'Inputs & Assumptions'!$J$15)*J13 -> -167070.9485 | L13: =IF(pilotmeth=1,VLOOKUP(Muni,Data!$E$4:$Q$567,12,FALSE),'Inputs & Assumptions'!$J$16)*J13 -> -8793.207814 | M13: =IF(pilotmeth=1,VLOOKUP(Muni,Data!$E$4:$Q$567,13,FALSE),'Inputs & Assumptions'!$J$17)*J13 -> 0 | N13: 471399.8961 | O13: ='Inputs & Assumptions'!H49 -> -362569 | P13: 108830.8961 | Q13: ='Inputs & Assumptions'!I49 -> 0 | R13: 108830.8961 | S13: 0.09166606501 | T13: 0.2930202167 | U13: ='Inputs & Assumptions'!N49 -> 0 | V13: =IF(OR(C13>0),IFERROR(V12*((1+'Inputs & Assumptions'!O49)),"No Data"),"--") -> 87799.72306 | W13: 87799.72306 | X13: ='Inputs & Assumptions'!M49 -> 0 | Y13: -257204.8152 | Z13: -169405.0922
A14: 2035 | B14: 11 | C14: ='Inputs & Assumptions'!F50 -> 1976086.581 | D14: ='Inputs & Assumptions'!G50 -> -1309404.607 | E14: ='Inputs & Assumptions'!K50 -> 9308233.627 | F14: =IF(existpilot=2,'Inputs & Assumptions'!$Q$4*(E14/100),'Inputs & Assumptions'!J50) -> 346570.3219 | G14: ='Inputs & Assumptions'!L50 -> 10656504.3 | H14: =(G14/100)*'Inputs & Assumptions'!$Q$5 -> 618182.8782 | I14: =(G14/100)*'Inputs & Assumptions'!$Q$4 -> 396770.0287 | J14: =IF(C14="","--",IF(IF('Inputs & Assumptions'!$B$8=1,-C14*'Inputs & Assumptions'!$C50,IF('Inputs & Assumptions'!$B$8=2,-H14*'Inputs & Assumptions'!$D50,IF('Inputs & Assumptions'!$B$8=3,-'Inputs & Assumptions'!E50,"")))*$AA$10>0,0,IF('Inputs & Assumptions'!$B$8=1,-C14*'Inputs & Assumptions'!$C50,IF('Inputs & Assumptions'!$B$8=2,-H14*'Inputs & Assumptions'!$D50,IF('Inputs & Assumptions'!$B$8=3,-'Inputs & Assumptions'!E50,"")))*$AA$10)) -> -181140.081 | K14: =IF(pilotmeth=1,VLOOKUP(Muni,Data!$E$4:$Q$567,11,FALSE),'Inputs & Assumptions'!$J$15)*J14 -> -172083.0769 | L14: =IF(pilotmeth=1,VLOOKUP(Muni,Data!$E$4:$Q$567,12,FALSE),'Inputs & Assumptions'!$J$16)*J14 -> -9057.004048 | M14: =IF(pilotmeth=1,VLOOKUP(Muni,Data!$E$4:$Q$567,13,FALSE),'Inputs & Assumptions'!$J$17)*J14 -> 0 | N14: =IFERROR(J14+D14+C14,"--") -> 485541.893 | O14: ='Inputs & Assumptions'!H50 -> -362569 | P14: =IF(C14="","--",SUM(N14:O14)) -> 122972.893 | Q14: ='Inputs & Assumptions'!I50 -> 0 | R14: =IF(C14="","--",SUM(P14:Q14)) -> 122972.893 | S14: 0.09166606501 | T14: 0.2930202167 | U14: ='Inputs & Assumptions'!N50 -> 0 | V14: =IF(OR(C14>0),IFERROR(V13*((1+'Inputs & Assumptions'!O50)),"No Data"),"--") -> 89555.71752 | W14: 89555.71752 | X14: ='Inputs & Assumptions'!M50 -> 0 | Y14: -264042.9624 | Z14: -174487.2449
A15: 2036 | B15: 12 | C15: ='Inputs & Assumptions'!F51 -> 2035369.178 | D15: ='Inputs & Assumptions'!G51 -> -1348686.745 | E15: ='Inputs & Assumptions'!K51 -> 9587480.635 | F15: =IF(existpilot=2,'Inputs & Assumptions'!$Q$4*(E15/100),'Inputs & Assumptions'!J51) -> 356967.4315 | G15: ='Inputs & Assumptions'!L51 -> 10976199.42 | H15: =(G15/100)*'Inputs & Assumptions'!$Q$5 -> 636728.3646 | I15: =(G15/100)*'Inputs & Assumptions'!$Q$4 -> 408673.1296 | J15: =IF(C15="","--",IF(IF('Inputs & Assumptions'!$B$8=1,-C15*'Inputs & Assumptions'!$C51,IF('Inputs & Assumptions'!$B$8=2,-H15*'Inputs & Assumptions'!$D51,IF('Inputs & Assumptions'!$B$8=3,-'Inputs & Assumptions'!E51,"")))*$AA$10>0,0,IF('Inputs & Assumptions'!$B$8=1,-C15*'Inputs & Assumptions'!$C51,IF('Inputs & Assumptions'!$B$8=2,-H15*'Inputs & Assumptions'!$D51,IF('Inputs & Assumptions'!$B$8=3,-'Inputs & Assumptions'!E51,"")))*$AA$10)) -> -186574.2834 | K15: =IF(pilotmeth=1,VLOOKUP(Muni,Data!$E$4:$Q$567,11,FALSE),'Inputs & Assumptions'!$J$15)*J15 -> -177245.5692 | L15: =IF(pilotmeth=1,VLOOKUP(Muni,Data!$E$4:$Q$567,12,FALSE),'Inputs & Assumptions'!$J$16)*J15 -> -9328.71417 | M15: =IF(pilotmeth=1,VLOOKUP(Muni,Data!$E$4:$Q$567,13,FALSE),'Inputs & Assumptions'!$J$17)*J15 -> 0 | N15: =IFERROR(J15+D15+C15,"--") -> 500108.1498 | O15: ='Inputs & Assumptions'!H51 -> -362569 | P15: =IF(C15="","--",SUM(N15:O15)) -> 137539.1498 | Q15: ='Inputs & Assumptions'!I51 -> 0 | R15: =IF(C15="","--",SUM(P15:Q15)) -> 137539.1498 | S15: 0.09166606501 | T15: 0.2930202167 | U15: ='Inputs & Assumptions'!N51 -> 0 | V15: =IF(OR(C15>0),IFERROR(V14*((1+'Inputs & Assumptions'!O51)),"No Data"),"--") -> 91346.83187 | W15: 91346.83187 | X15: ='Inputs & Assumptions'!M51 -> 0 | Y15: -271068.6941 | Z15: -179721.8623
A16: 2037 | B16: =B15+1 -> 13 | C16: ='Inputs & Assumptions'!F52 -> 2096430.253 | D16: ='Inputs & Assumptions'!G52 -> -1389147.347 | E16: ='Inputs & Assumptions'!K52 -> 9875105.054 | F16: =IF(existpilot=2,'Inputs & Assumptions'!$Q$4*(E16/100),'Inputs & Assumptions'!J52) -> 367676.4545 | G16: ='Inputs & Assumptions'!L52 -> 11305485.41 | H16: =(G16/100)*'Inputs & Assumptions'!$Q$5 -> 655830.2155 | I16: =(G16/100)*'Inputs & Assumptions'!$Q$4 -> 420933.3235 | J16: =IF(C16="","--",IF(IF('Inputs & Assumptions'!$B$8=1,-C16*'Inputs & Assumptions'!$C52,IF('Inputs & Assumptions'!$B$8=2,-H16*'Inputs & Assumptions'!$D52,IF('Inputs & Assumptions'!$B$8=3,-'Inputs & Assumptions'!E52,"")))*$AA$10>0,0,IF('Inputs & Assumptions'!$B$8=1,-C16*'Inputs & Assumptions'!$C52,IF('Inputs & Assumptions'!$B$8=2,-H16*'Inputs & Assumptions'!$D52,IF('Inputs & Assumptions'!$B$8=3,-'Inputs & Assumptions'!E52,"")))*$AA$10)) -> -192171.5119 | K16: =IF(pilotmeth=1,VLOOKUP(Muni,Data!$E$4:$Q$567,11,FALSE),'Inputs & Assumptions'!$J$15)*J16 -> -182562.9363 | L16: =IF(pilotmeth=1,VLOOKUP(Muni,Data!$E$4:$Q$567,12,FALSE),'Inputs & Assumptions'!$J$16)*J16 -> -9608.575595 | M16: =IF(pilotmeth=1,VLOOKUP(Muni,Data!$E$4:$Q$567,13,FALSE),'Inputs & Assumptions'!$J$17)*J16 -> 0 | N16: 515111.3943 | O16: ='Inputs & Assumptions'!H52 -> -362569 | P16: 152542.3943 | Q16: ='Inputs & Assumptions'!I52 -> 0 | R16: 152542.3943 | S16: 0.09166606501 | T16: 0.2930202167 | U16: ='Inputs & Assumptions'!N52 -> 0 | V16: =IF(OR(C16>0),IFERROR(V15*((1+'Inputs & Assumptions'!O52)),"No Data"),"--") -> 93173.76851 | W16: 93173.76851 | X16: ='Inputs & Assumptions'!M52 -> 0 | Y16: -278287.2867 | Z16: -185113.5181
A17: 2038 | B17: =B16+1 -> 14 | C17: ='Inputs & Assumptions'!F53 -> 2159323.161 | D17: ='Inputs & Assumptions'!G53 -> -1430821.768 | E17: ='Inputs & Assumptions'!K53 -> 10171358.21 | F17: =IF(existpilot=2,'Inputs & Assumptions'!$Q$4*(E17/100),'Inputs & Assumptions'!J53) -> 378706.7481 | G17: ='Inputs & Assumptions'!L53 -> 11644649.97 | H17: =(G17/100)*'Inputs & Assumptions'!$Q$5 -> 675505.122 | I17: =(G17/100)*'Inputs & Assumptions'!$Q$4 -> 433561.3232 | J17: =IF(C17="","--",IF(IF('Inputs & Assumptions'!$B$8=1,-C17*'Inputs & Assumptions'!$C53,IF('Inputs & Assumptions'!$B$8=2,-H17*'Inputs & Assumptions'!$D53,IF('Inputs & Assumptions'!$B$8=3,-'Inputs & Assumptions'!E53,"")))*$AA$10>0,0,IF('Inputs & Assumptions'!$B$8=1,-C17*'Inputs & Assumptions'!$C53,IF('Inputs & Assumptions'!$B$8=2,-H17*'Inputs & Assumptions'!$D53,IF('Inputs & Assumptions'!$B$8=3,-'Inputs & Assumptions'!E53,"")))*$AA$10)) -> -197936.6573 | K17: =IF(pilotmeth=1,VLOOKUP(Muni,Data!$E$4:$Q$567,11,FALSE),'Inputs & Assumptions'!$J$15)*J17 -> -188039.8244 | L17: =IF(pilotmeth=1,VLOOKUP(Muni,Data!$E$4:$Q$567,12,FALSE),'Inputs & Assumptions'!$J$16)*J17 -> -9896.832863 | M17: =IF(pilotmeth=1,VLOOKUP(Muni,Data!$E$4:$Q$567,13,FALSE),'Inputs & Assumptions'!$J$17)*J17 -> 0 | N17: 530564.7361 | O17: ='Inputs & Assumptions'!H53 -> -362569 | P17: 167995.7361 | Q17: ='Inputs & Assumptions'!I53 -> 0 | R17: 167995.7361 | S17: 0.09166606501 | T17: 0.2930202167 | U17: ='Inputs & Assumptions'!N53 -> 0 | V17: =IF(OR(C17>0),IFERROR(V16*((1+'Inputs & Assumptions'!O53)),"No Data"),"--") -> 95037.24388 | W17: 95037.24388 | X17: ='Inputs & Assumptions'!M53 -> 0 | Y17: -285704.1676 | Z17: -190666.9237
A18: 2039 | B18: 15 | C18: ='Inputs & Assumptions'!F54 -> 2224102.856 | D18: ='Inputs & Assumptions'!G54 -> -1473746.421 | E18: ='Inputs & Assumptions'!K54 -> 10476498.95 | F18: =IF(existpilot=2,'Inputs & Assumptions'!$Q$4*(E18/100),'Inputs & Assumptions'!J54) -> 390067.9505 | G18: ='Inputs & Assumptions'!L54 -> 11993989.47 | H18: =(G18/100)*'Inputs & Assumptions'!$Q$5 -> 695770.2757 | I18: =(G18/100)*'Inputs & Assumptions'!$Q$4 -> 446568.1629 | J18: =IF(C18="","--",IF(IF('Inputs & Assumptions'!$B$8=1,-C18*'Inputs & Assumptions'!$C54,IF('Inputs & Assumptions'!$B$8=2,-H18*'Inputs & Assumptions'!$D54,IF('Inputs & Assumptions'!$B$8=3,-'Inputs & Assumptions'!E54,"")))*$AA$10>0,0,IF('Inputs & Assumptions'!$B$8=1,-C18*'Inputs & Assumptions'!$C54,IF('Inputs & Assumptions'!$B$8=2,-H18*'Inputs & Assumptions'!$D54,IF('Inputs & Assumptions'!$B$8=3,-'Inputs & Assumptions'!E54,"")))*$AA$10)) -> -203874.757 | K18: =IF(pilotmeth=1,VLOOKUP(Muni,Data!$E$4:$Q$567,11,FALSE),'Inputs & Assumptions'!$J$15)*J18 -> -193681.0191 | L18: =IF(pilotmeth=1,VLOOKUP(Muni,Data!$E$4:$Q$567,12,FALSE),'Inputs & Assumptions'!$J$16)*J18 -> -10193.73785 | M18: =IF(pilotmeth=1,VLOOKUP(Muni,Data!$E$4:$Q$567,13,FALSE),'Inputs & Assumptions'!$J$17)*J18 -> 0 | N18: 546481.6782 | O18: ='Inputs & Assumptions'!H54 -> -362569 | P18: 183912.6782 | Q18: ='Inputs & Assumptions'!I54 -> 0 | R18: 183912.6782 | S18: 0.09166606501 | T18: 0.2930202167 | U18: ='Inputs & Assumptions'!N54 -> 0 | V18: =IF(OR(C18>0),IFERROR(V17*((1+'Inputs & Assumptions'!O54)),"No Data"),"--") -> 96937.98875 | W18: 96937.98875 | X18: ='Inputs & Assumptions'!M54 -> 0 | Y18: -293324.9202 | Z18: -196386.9314
A19: 2040 | B19: 16 | C19: ='Inputs & Assumptions'!F55 -> 2290825.942 | D19: ='Inputs & Assumptions'!G55 -> -1517958.813 | E19: ='Inputs & Assumptions'!K55 -> 10790793.92 | F19: =IF(existpilot=2,'Inputs & Assumptions'!$Q$4*(E19/100),'Inputs & Assumptions'!J55) -> 401769.989 | G19: ='Inputs & Assumptions'!L55 -> 12353809.15 | H19: =(G19/100)*'Inputs & Assumptions'!$Q$5 -> 716643.3839 | I19: =(G19/100)*'Inputs & Assumptions'!$Q$4 -> 459965.2078 | J19: =IF(C19="","--",IF(IF('Inputs & Assumptions'!$B$8=1,-C19*'Inputs & Assumptions'!$C55,IF('Inputs & Assumptions'!$B$8=2,-H19*'Inputs & Assumptions'!$D55,IF('Inputs & Assumptions'!$B$8=3,-'Inputs & Assumptions'!E55,"")))*$AA$10>0,0,IF('Inputs & Assumptions'!$B$8=1,-C19*'Inputs & Assumptions'!$C55,IF('Inputs & Assumptions'!$B$8=2,-H19*'Inputs & Assumptions'!$D55,IF('Inputs & Assumptions'!$B$8=3,-'Inputs & Assumptions'!E55,"")))*$AA$10)) -> -209990.9997 | K19: =IF(pilotmeth=1,VLOOKUP(Muni,Data!$E$4:$Q$567,11,FALSE),'Inputs & Assumptions'!$J$15)*J19 -> -199491.4497 | L19: =IF(pilotmeth=1,VLOOKUP(Muni,Data!$E$4:$Q$567,12,FALSE),'Inputs & Assumptions'!$J$16)*J19 -> -10499.54998 | M19: =IF(pilotmeth=1,VLOOKUP(Muni,Data!$E$4:$Q$567,13,FALSE),'Inputs & Assumptions'!$J$17)*J19 -> 0 | N19: 562876.1285 | O19: ='Inputs & Assumptions'!H55 -> -362569 | P19: 200307.1285 | Q19: ='Inputs & Assumptions'!I55 -> 0 | R19: 200307.1285 | S19: 0.09166606501 | T19: 0.2930202167 | U19: ='Inputs & Assumptions'!N55 -> 0 | V19: =IF(OR(C19>0),IFERROR(V18*((1+'Inputs & Assumptions'!O55)),"No Data"),"--") -> 98876.74853 | W19: 98876.74853 | X19: ='Inputs & Assumptions'!M55 -> 0 | Y19: -301155.2879 | Z19: -202278.5393
A20: 2041 | B20: 17 | C20: ='Inputs & Assumptions'!F56 -> 2359550.72 | D20: ='Inputs & Assumptions'!G56 -> -1563497.578 | E20: ='Inputs & Assumptions'!K56 -> 11114517.74 | F20: =IF(existpilot=2,'Inputs & Assumptions'!$Q$4*(E20/100),'Inputs & Assumptions'!J56) -> 413823.0887 | G20: ='Inputs & Assumptions'!L56 -> 12724423.43 | H20: =(G20/100)*'Inputs & Assumptions'!$Q$5 -> 738142.6854 | I20: =(G20/100)*'Inputs & Assumptions'!$Q$4 -> 473764.164 | J20: =IF(C20="","--",IF(IF('Inputs & Assumptions'!$B$8=1,-C20*'Inputs & Assumptions'!$C56,IF('Inputs & Assumptions'!$B$8=2,-H20*'Inputs & Assumptions'!$D56,IF('Inputs & Assumptions'!$B$8=3,-'Inputs & Assumptions'!E56,"")))*$AA$10>0,0,IF('Inputs & Assumptions'!$B$8=1,-C20*'Inputs & Assumptions'!$C56,IF('Inputs & Assumptions'!$B$8=2,-H20*'Inputs & Assumptions'!$D56,IF('Inputs & Assumptions'!$B$8=3,-'Inputs & Assumptions'!E56,"")))*$AA$10)) -> -216290.7297 | K20: =IF(pilotmeth=1,VLOOKUP(Muni,Data!$E$4:$Q$567,11,FALSE),'Inputs & Assumptions'!$J$15)*J20 -> -205476.1932 | L20: =IF(pilotmeth=1,VLOOKUP(Muni,Data!$E$4:$Q$567,12,FALSE),'Inputs & Assumptions'!$J$16)*J20 -> -10814.53648 | M20: =IF(pilotmeth=1,VLOOKUP(Muni,Data!$E$4:$Q$567,13,FALSE),'Inputs & Assumptions'!$J$17)*J20 -> 0 | N20: 579762.4124 | O20: ='Inputs & Assumptions'!H56 -> -362569 | P20: 217193.4124 | Q20: ='Inputs & Assumptions'!I56 -> 0 | R20: 217193.4124 | S20: 0.09166606501 | T20: 0.2930202167 | U20: ='Inputs & Assumptions'!N56 -> 0 | V20: =IF(OR(C20>0),IFERROR(V19*((1+'Inputs & Assumptions'!O56)),"No Data"),"--") -> 100854.2835 | W20: 100854.2835 | X20: ='Inputs & Assumptions'!M56 -> 0 | Y20: -309201.179 | Z20: -208346.8955
A21: 2042 | B21: 18 | C21: ='Inputs & Assumptions'!F57 -> 2430337.241 | D21: ='Inputs & Assumptions'!G57 -> -1610402.505 | E21: ='Inputs & Assumptions'!K57 -> 11447953.27 | F21: =IF(existpilot=2,'Inputs & Assumptions'!$Q$4*(E21/100),'Inputs & Assumptions'!J57) -> 426237.7814 | G21: ='Inputs & Assumptions'!L57 -> 13106156.13 | H21: =(G21/100)*'Inputs & Assumptions'!$Q$5 -> 760286.966 | I21: =(G21/100)*'Inputs & Assumptions'!$Q$4 -> 487977.0889 | J21: =IF(C21="","--",IF(IF('Inputs & Assumptions'!$B$8=1,-C21*'Inputs & Assumptions'!$C57,IF('Inputs & Assumptions'!$B$8=2,-H21*'Inputs & Assumptions'!$D57,IF('Inputs & Assumptions'!$B$8=3,-'Inputs & Assumptions'!E57,"")))*$AA$10>0,0,IF('Inputs & Assumptions'!$B$8=1,-C21*'Inputs & Assumptions'!$C57,IF('Inputs & Assumptions'!$B$8=2,-H21*'Inputs & Assumptions'!$D57,IF('Inputs & Assumptions'!$B$8=3,-'Inputs & Assumptions'!E57,"")))*$AA$10)) -> -222779.4516 | K21: =IF(pilotmeth=1,VLOOKUP(Muni,Data!$E$4:$Q$567,11,FALSE),'Inputs & Assumptions'!$J$15)*J21 -> -211640.479 | L21: =IF(pilotmeth=1,VLOOKUP(Muni,Data!$E$4:$Q$567,12,FALSE),'Inputs & Assumptions'!$J$16)*J21 -> -11138.97258 | M21: =IF(pilotmeth=1,VLOOKUP(Muni,Data!$E$4:$Q$567,13,FALSE),'Inputs & Assumptions'!$J$17)*J21 -> 0 | N21: 597155.2848 | O21: ='Inputs & Assumptions'!H57 -> -362569 | P21: 234586.2848 | Q21: ='Inputs & Assumptions'!I57 -> 0 | R21: 234586.2848 | S21: 0.09166606501 | T21: 0.2930202167 | U21: ='Inputs & Assumptions'!N57 -> 0 | V21: =IF(OR(C21>0),IFERROR(V20*((1+'Inputs & Assumptions'!O57)),"No Data"),"--") -> 102871.3692 | W21: 102871.3692 | X21: ='Inputs & Assumptions'!M57 -> 0 | Y21: -317468.6716 | Z21: -214597.3024
A22: 2043 | B22: 19 | C22: ='Inputs & Assumptions'!F58 -> 2503247.359 | D22: ='Inputs & Assumptions'!G58 -> -1658714.58 | E22: ='Inputs & Assumptions'!K58 -> 11791391.87 | F22: =IF(existpilot=2,'Inputs & Assumptions'!$Q$4*(E22/100),'Inputs & Assumptions'!J58) -> 439024.9148 | G22: ='Inputs & Assumptions'!L58 -> 13499340.81 | H22: =(G22/100)*'Inputs & Assumptions'!$Q$5 -> 783095.575 | I22: =(G22/100)*'Inputs & Assumptions'!$Q$4 -> 502616.4016 | J22: =IF(C22="","--",IF(IF('Inputs & Assumptions'!$B$8=1,-C22*'Inputs & Assumptions'!$C58,IF('Inputs & Assumptions'!$B$8=2,-H22*'Inputs & Assumptions'!$D58,IF('Inputs & Assumptions'!$B$8=3,-'Inputs & Assumptions'!E58,"")))*$AA$10>0,0,IF('Inputs & Assumptions'!$B$8=1,-C22*'Inputs & Assumptions'!$C58,IF('Inputs & Assumptions'!$B$8=2,-H22*'Inputs & Assumptions'!$D58,IF('Inputs & Assumptions'!$B$8=3,-'Inputs & Assumptions'!E58,"")))*$AA$10)) -> -229462.8351 | K22: =IF(pilotmeth=1,VLOOKUP(Muni,Data!$E$4:$Q$567,11,FALSE),'Inputs & Assumptions'!$J$15)*J22 -> -217989.6934 | L22: =IF(pilotmeth=1,VLOOKUP(Muni,Data!$E$4:$Q$567,12,FALSE),'Inputs & Assumptions'!$J$16)*J22 -> -11473.14176 | M22: =IF(pilotmeth=1,VLOOKUP(Muni,Data!$E$4:$Q$567,13,FALSE),'Inputs & Assumptions'!$J$17)*J22 -> 0 | N22: 615069.9433 | O22: ='Inputs & Assumptions'!H58 -> -362569 | P22: 252500.9433 | Q22: ='Inputs & Assumptions'!I58 -> 0 | R22: 252500.9433 | S22: 0.09166606501 | T22: 0.2930202167 | U22: ='Inputs & Assumptions'!N58 -> 0 | V22: =IF(OR(C22>0),IFERROR(V21*((1+'Inputs & Assumptions'!O58)),"No Data"),"--") -> 104928.7966 | W22: 104928.7966 | X22: ='Inputs & Assumptions'!M58 -> 0 | Y22: -325964.018 | Z22: -221035.2215
A23: 2044 | B23: 20 | C23: ='Inputs & Assumptions'!F59 -> 2578344.779 | D23: ='Inputs & Assumptions'!G59 -> -1708476.018 | E23: ='Inputs & Assumptions'!K59 -> 12145133.62 | F23: =IF(existpilot=2,'Inputs & Assumptions'!$Q$4*(E23/100),'Inputs & Assumptions'!J59) -> 452195.6623 | G23: ='Inputs & Assumptions'!L59 -> 13904321.04 | H23: =(G23/100)*'Inputs & Assumptions'!$Q$5 -> 806588.4422 | I23: =(G23/100)*'Inputs & Assumptions'!$Q$4 -> 517694.8936 | J23: =IF(C23="","--",IF(IF('Inputs & Assumptions'!$B$8=1,-C23*'Inputs & Assumptions'!$C59,IF('Inputs & Assumptions'!$B$8=2,-H23*'Inputs & Assumptions'!$D59,IF('Inputs & Assumptions'!$B$8=3,-'Inputs & Assumptions'!E59,"")))*$AA$10>0,0,IF('Inputs & Assumptions'!$B$8=1,-C23*'Inputs & Assumptions'!$C59,IF('Inputs & Assumptions'!$B$8=2,-H23*'Inputs & Assumptions'!$D59,IF('Inputs & Assumptions'!$B$8=3,-'Inputs & Assumptions'!E59,"")))*$AA$10)) -> -236346.7202 | K23: =IF(pilotmeth=1,VLOOKUP(Muni,Data!$E$4:$Q$567,11,FALSE),'Inputs & Assumptions'!$J$15)*J23 -> -224529.3842 | L23: =IF(pilotmeth=1,VLOOKUP(Muni,Data!$E$4:$Q$567,12,FALSE),'Inputs & Assumptions'!$J$16)*J23 -> -11817.33601 | M23: =IF(pilotmeth=1,VLOOKUP(Muni,Data!$E$4:$Q$567,13,FALSE),'Inputs & Assumptions'!$J$17)*J23 -> 0 | N23: 633522.0416 | O23: ='Inputs & Assumptions'!H59 -> -362569 | P23: 270953.0416 | Q23: ='Inputs & Assumptions'!I59 -> 0 | R23: 270953.0416 | S23: 0.09166606501 | T23: 0.2930202167 | U23: ='Inputs & Assumptions'!N59 -> 0 | V23: =IF(OR(C23>0),IFERROR(V22*((1+'Inputs & Assumptions'!O59)),"No Data"),"--") -> 107027.3725 | W23: 107027.3725 | X23: ='Inputs & Assumptions'!M59 -> 0 | Y23: -334693.6506 | Z23: -227666.2781
A24: 2045 | B24: 21 | C24: ='Inputs & Assumptions'!F60 -> 2655695.123 | D24: ='Inputs & Assumptions'!G60 -> -1759730.298 | E24: ='Inputs & Assumptions'!K60 -> 12509487.63 | F24: =IF(existpilot=2,'Inputs & Assumptions'!$Q$4*(E24/100),'Inputs & Assumptions'!J60) -> 465761.5321 | G24: ='Inputs & Assumptions'!L60 -> 14321450.67 | H24: =(G24/100)*'Inputs & Assumptions'!$Q$5 -> 830786.0955 | I24: =(G24/100)*'Inputs & Assumptions'!$Q$4 -> 533225.7404 | J24: =IF(C24="","--",IF(IF('Inputs & Assumptions'!$B$8=1,-C24*'Inputs & Assumptions'!$C60,IF('Inputs & Assumptions'!$B$8=2,-H24*'Inputs & Assumptions'!$D60,IF('Inputs & Assumptions'!$B$8=3,-'Inputs & Assumptions'!E60,"")))*$AA$10>0,0,IF('Inputs & Assumptions'!$B$8=1,-C24*'Inputs & Assumptions'!$C60,IF('Inputs & Assumptions'!$B$8=2,-H24*'Inputs & Assumptions'!$D60,IF('Inputs & Assumptions'!$B$8=3,-'Inputs & Assumptions'!E60,"")))*$AA$10)) -> -243437.1218 | K24: =IF(pilotmeth=1,VLOOKUP(Muni,Data!$E$4:$Q$567,11,FALSE),'Inputs & Assumptions'!$J$15)*J24 -> -231265.2657 | L24: =IF(pilotmeth=1,VLOOKUP(Muni,Data!$E$4:$Q$567,12,FALSE),'Inputs & Assumptions'!$J$16)*J24 -> -12171.85609 | M24: =IF(pilotmeth=1,VLOOKUP(Muni,Data!$E$4:$Q$567,13,FALSE),'Inputs & Assumptions'!$J$17)*J24 -> 0 | N24: 652527.7029 | O24: ='Inputs & Assumptions'!H60 -> -362569 | P24: 289958.7029 | Q24: ='Inputs & Assumptions'!I60 -> 0 | R24: 289958.7029 | S24: 0.09166606501 | T24: 0.2930202167 | U24: ='Inputs & Assumptions'!N60 -> 0 | V24: =IF(OR(C24>0),IFERROR(V23*((1+'Inputs & Assumptions'!O60)),"No Data"),"--") -> 109167.9199 | W24: 109167.9199 | X24: ='Inputs & Assumptions'!M60 -> 0 | Y24: -343664.1864 | Z24: -234496.2665
A25: 2046 | B25: 22 | C25: ='Inputs & Assumptions'!F61 -> 2735365.976 | D25: ='Inputs & Assumptions'!G61 -> -1812522.207 | E25: ='Inputs & Assumptions'!K61 -> 12884772.26 | F25: =IF(existpilot=2,'Inputs & Assumptions'!$Q$4*(E25/100),'Inputs & Assumptions'!J61) -> 479734.3781 | G25: ='Inputs & Assumptions'!L61 -> 14751094.19 | H25: =(G25/100)*'Inputs & Assumptions'!$Q$5 -> 855709.6784 | I25: =(G25/100)*'Inputs & Assumptions'!$Q$4 -> 549222.5126 | J25: =IF(C25="","--",IF(IF('Inputs & Assumptions'!$B$8=1,-C25*'Inputs & Assumptions'!$C61,IF('Inputs & Assumptions'!$B$8=2,-H25*'Inputs & Assumptions'!$D61,IF('Inputs & Assumptions'!$B$8=3,-'Inputs & Assumptions'!E61,"")))*$AA$10>0,0,IF('Inputs & Assumptions'!$B$8=1,-C25*'Inputs & Assumptions'!$C61,IF('Inputs & Assumptions'!$B$8=2,-H25*'Inputs & Assumptions'!$D61,IF('Inputs & Assumptions'!$B$8=3,-'Inputs & Assumptions'!E61,"")))*$AA$10)) -> -250740.2354 | K25: =IF(pilotmeth=1,VLOOKUP(Muni,Data!$E$4:$Q$567,11,FALSE),'Inputs & Assumptions'!$J$15)*J25 -> -238203.2236 | L25: =IF(pilotmeth=1,VLOOKUP(Muni,Data!$E$4:$Q$567,12,FALSE),'Inputs & Assumptions'!$J$16)*J25 -> -12537.01177 | M25: =IF(pilotmeth=1,VLOOKUP(Muni,Data!$E$4:$Q$567,13,FALSE),'Inputs & Assumptions'!$J$17)*J25 -> 0 | N25: 672103.5339 | O25: ='Inputs & Assumptions'!H61 -> -362569 | P25: 309534.5339 | Q25: ='Inputs & Assumptions'!I61 -> 0 | R25: 309534.5339 | S25: 0.09166606501 | T25: 0.2930202167 | U25: ='Inputs & Assumptions'!N61 -> 0 | V25: =IF(OR(C25>0),IFERROR(V24*((1+'Inputs & Assumptions'!O61)),"No Data"),"--") -> 111351.2783 | W25: 111351.2783 | X25: ='Inputs & Assumptions'!M61 -> 0 | Y25: -352882.4328 | Z25: -241531.1544
A26: 2047 | B26: 23 | C26: ='Inputs & Assumptions'!F62 -> 2817426.956 | D26: ='Inputs & Assumptions'!G62 -> -1866897.873 | E26: ='Inputs & Assumptions'!K62 -> 13271315.43 | F26: =IF(existpilot=2,'Inputs & Assumptions'!$Q$4*(E26/100),'Inputs & Assumptions'!J62) -> 494126.4094 | G26: ='Inputs & Assumptions'!L62 -> 15193627.01 | H26: =(G26/100)*'Inputs & Assumptions'!$Q$5 -> 881380.9687 | I26: =(G26/100)*'Inputs & Assumptions'!$Q$4 -> 565699.188 | J26: =IF(C26="","--",IF(IF('Inputs & Assumptions'!$B$8=1,-C26*'Inputs & Assumptions'!$C62,IF('Inputs & Assumptions'!$B$8=2,-H26*'Inputs & Assumptions'!$D62,IF('Inputs & Assumptions'!$B$8=3,-'Inputs & Assumptions'!E62,"")))*$AA$10>0,0,IF('Inputs & Assumptions'!$B$8=1,-C26*'Inputs & Assumptions'!$C62,IF('Inputs & Assumptions'!$B$8=2,-H26*'Inputs & Assumptions'!$D62,IF('Inputs & Assumptions'!$B$8=3,-'Inputs & Assumptions'!E62,"")))*$AA$10)) -> -258262.4425 | K26: =IF(pilotmeth=1,VLOOKUP(Muni,Data!$E$4:$Q$567,11,FALSE),'Inputs & Assumptions'!$J$15)*J26 -> -245349.3204 | L26: =IF(pilotmeth=1,VLOOKUP(Muni,Data!$E$4:$Q$567,12,FALSE),'Inputs & Assumptions'!$J$16)*J26 -> -12913.12212 | M26: =IF(pilotmeth=1,VLOOKUP(Muni,Data!$E$4:$Q$567,13,FALSE),'Inputs & Assumptions'!$J$17)*J26 -> 0 | N26: 692266.64 | O26: ='Inputs & Assumptions'!H62 -> -362569 | P26: 329697.64 | Q26: ='Inputs & Assumptions'!I62 -> 0 | R26: 329697.64 | S26: 0.09166606501 | T26: 0.2930202167 | U26: ='Inputs & Assumptions'!N62 -> 0 | V26: =IF(OR(C26>0),IFERROR(V25*((1+'Inputs & Assumptions'!O62)),"No Data"),"--") -> 113578.3039 | W26: 113578.3039 | X26: ='Inputs & Assumptions'!M62 -> 0 | Y26: -362355.393 | Z26: -248777.0891
A27: 2048 | B27: 24 | C27: ='Inputs & Assumptions'!F63 -> 2901949.764 | D27: ='Inputs & Assumptions'!G63 -> -1922904.81 | E27: ='Inputs & Assumptions'!K63 -> 13669454.89 | F27: =IF(existpilot=2,'Inputs & Assumptions'!$Q$4*(E27/100),'Inputs & Assumptions'!J63) -> 508950.2017 | G27: ='Inputs & Assumptions'!L63 -> 15649435.82 | H27: =(G27/100)*'Inputs & Assumptions'!$Q$5 -> 907822.3978 | I27: =(G27/100)*'Inputs & Assumptions'!$Q$4 -> 582670.1637 | J27: =IF(C27="","--",IF(IF('Inputs & Assumptions'!$B$8=1,-C27*'Inputs & Assumptions'!$C63,IF('Inputs & Assumptions'!$B$8=2,-H27*'Inputs & Assumptions'!$D63,IF('Inputs & Assumptions'!$B$8=3,-'Inputs & Assumptions'!E63,"")))*$AA$10>0,0,IF('Inputs & Assumptions'!$B$8=1,-C27*'Inputs & Assumptions'!$C63,IF('Inputs & Assumptions'!$B$8=2,-H27*'Inputs & Assumptions'!$D63,IF('Inputs & Assumptions'!$B$8=3,-'Inputs & Assumptions'!E63,"")))*$AA$10)) -> -266010.3158 | K27: =IF(pilotmeth=1,VLOOKUP(Muni,Data!$E$4:$Q$567,11,FALSE),'Inputs & Assumptions'!$J$15)*J27 -> -252709.8 | L27: =IF(pilotmeth=1,VLOOKUP(Muni,Data!$E$4:$Q$567,12,FALSE),'Inputs & Assumptions'!$J$16)*J27 -> -13300.51579 | M27: =IF(pilotmeth=1,VLOOKUP(Muni,Data!$E$4:$Q$567,13,FALSE),'Inputs & Assumptions'!$J$17)*J27 -> 0 | N27: 713034.6392 | O27: ='Inputs & Assumptions'!H63 -> -362569 | P27: 350465.6392 | Q27: ='Inputs & Assumptions'!I63 -> 0 | R27: 350465.6392 | S27: 0.09166606501 | T27: 0.2930202167 | U27: ='Inputs & Assumptions'!N63 -> 0 | V27: =IF(OR(C27>0),IFERROR(V26*((1+'Inputs & Assumptions'!O63)),"No Data"),"--") -> 115849.87 | W27: 115849.87 | X27: ='Inputs & Assumptions'!M63 -> 0 | Y27: -372090.2717 | Z27: -256240.4018
A28: 2049 | B28: 25 | C28: ='Inputs & Assumptions'!F64 -> 2989008.257 | D28: ='Inputs & Assumptions'!G64 -> -1980591.954 | E28: ='Inputs & Assumptions'!K64 -> 14079538.54 | F28: =IF(existpilot=2,'Inputs & Assumptions'!$Q$4*(E28/100),'Inputs & Assumptions'!J64) -> 524218.7078 | G28: ='Inputs & Assumptions'!L64 -> 16118918.9 | H28: =(G28/100)*'Inputs & Assumptions'!$Q$5 -> 935057.0697 | I28: =(G28/100)*'Inputs & Assumptions'!$Q$4 -> 600150.2686 | J28: =IF(C28="","--",IF(IF('Inputs & Assumptions'!$B$8=1,-C28*'Inputs & Assumptions'!$C64,IF('Inputs & Assumptions'!$B$8=2,-H28*'Inputs & Assumptions'!$D64,IF('Inputs & Assumptions'!$B$8=3,-'Inputs & Assumptions'!E64,"")))*$AA$10>0,0,IF('Inputs & Assumptions'!$B$8=1,-C28*'Inputs & Assumptions'!$C64,IF('Inputs & Assumptions'!$B$8=2,-H28*'Inputs & Assumptions'!$D64,IF('Inputs & Assumptions'!$B$8=3,-'Inputs & Assumptions'!E64,"")))*$AA$10)) -> -273990.6252 | K28: =IF(pilotmeth=1,VLOOKUP(Muni,Data!$E$4:$Q$567,11,FALSE),'Inputs & Assumptions'!$J$15)*J28 -> -260291.094 | L28: =IF(pilotmeth=1,VLOOKUP(Muni,Data!$E$4:$Q$567,12,FALSE),'Inputs & Assumptions'!$J$16)*J28 -> -13699.53126 | M28: =IF(pilotmeth=1,VLOOKUP(Muni,Data!$E$4:$Q$567,13,FALSE),'Inputs & Assumptions'!$J$17)*J28 -> 0 | N28: 734425.6783 | O28: ='Inputs & Assumptions'!H64 -> -362569 | P28: 371856.6783 | Q28: ='Inputs & Assumptions'!I64 -> 0 | R28: 371856.6783 | S28: 0.09166606501 | T28: 0.2930202167 | U28: ='Inputs & Assumptions'!N64 -> 0 | V28: =IF(OR(C28>0),IFERROR(V27*((1+'Inputs & Assumptions'!O64)),"No Data"),"--") -> 118166.8674 | W28: 118166.8674 | X28: ='Inputs & Assumptions'!M64 -> 0 | Y28: -382094.4812 | Z28: -263927.6138
A29: 2050 | B29: 26 | C29: ='Inputs & Assumptions'!F65 -> 3078678.505 | D29: ='Inputs & Assumptions'!G65 -> -2040009.712 | E29: ='Inputs & Assumptions'!K65 -> 14501924.7 | F29: =IF(existpilot=2,'Inputs & Assumptions'!$Q$4*(E29/100),'Inputs & Assumptions'!J65) -> 539945.269 | G29: ='Inputs & Assumptions'!L65 -> 16602486.47 | H29: =(G29/100)*'Inputs & Assumptions'!$Q$5 -> 963108.7818 | I29: =(G29/100)*'Inputs & Assumptions'!$Q$4 -> 618154.7766 | J29: =IF(C29="","--",IF(IF('Inputs & Assumptions'!$B$8=1,-C29*'Inputs & Assumptions'!$C65,IF('Inputs & Assumptions'!$B$8=2,-H29*'Inputs & Assumptions'!$D65,IF('Inputs & Assumptions'!$B$8=3,-'Inputs & Assumptions'!E65,"")))*$AA$10>0,0,IF('Inputs & Assumptions'!$B$8=1,-C29*'Inputs & Assumptions'!$C65,IF('Inputs & Assumptions'!$B$8=2,-H29*'Inputs & Assumptions'!$D65,IF('Inputs & Assumptions'!$B$8=3,-'Inputs & Assumptions'!E65,"")))*$AA$10)) -> -282210.344 | K29: =IF(pilotmeth=1,VLOOKUP(Muni,Data!$E$4:$Q$567,11,FALSE),'Inputs & Assumptions'!$J$15)*J29 -> -268099.8268 | L29: =IF(pilotmeth=1,VLOOKUP(Muni,Data!$E$4:$Q$567,12,FALSE),'Inputs & Assumptions'!$J$16)*J29 -> -14110.5172 | M29: =IF(pilotmeth=1,VLOOKUP(Muni,Data!$E$4:$Q$567,13,FALSE),'Inputs & Assumptions'!$J$17)*J29 -> 0 | N29: 756458.4487 | O29: ='Inputs & Assumptions'!H65 -> -362569 | P29: 393889.4487 | Q29: ='Inputs & Assumptions'!I65 -> 0 | R29: 393889.4487 | S29: 0.09166606501 | T29: 0.2930202167 | U29: ='Inputs & Assumptions'!N65 -> 0 | V29: =IF(OR(C29>0),IFERROR(V28*((1+'Inputs & Assumptions'!O65)),"No Data"),"--") -> 120530.2047 | W29: 120530.2047 | X29: ='Inputs & Assumptions'!M65 -> 0 | Y29: -392375.6469 | Z29: -271845.4422
A30: 2051 | B30: 27 | C30: ='Inputs & Assumptions'!F66 -> 3171038.86 | D30: ='Inputs & Assumptions'!G66 -> -2101210.004 | E30: ='Inputs & Assumptions'!K66 -> 14936982.44 | F30: =IF(existpilot=2,'Inputs & Assumptions'!$Q$4*(E30/100),'Inputs & Assumptions'!J66) -> 556143.6271 | G30: ='Inputs & Assumptions'!L66 -> 17100561.06 | H30: =(G30/100)*'Inputs & Assumptions'!$Q$5 -> 992002.0453 | I30: =(G30/100)*'Inputs & Assumptions'!$Q$4 -> 636699.4199 | J30: =IF(C30="","--",IF(IF('Inputs & Assumptions'!$B$8=1,-C30*'Inputs & Assumptions'!$C66,IF('Inputs & Assumptions'!$B$8=2,-H30*'Inputs & Assumptions'!$D66,IF('Inputs & Assumptions'!$B$8=3,-'Inputs & Assumptions'!E66,"")))*$AA$10>0,0,IF('Inputs & Assumptions'!$B$8=1,-C30*'Inputs & Assumptions'!$C66,IF('Inputs & Assumptions'!$B$8=2,-H30*'Inputs & Assumptions'!$D66,IF('Inputs & Assumptions'!$B$8=3,-'Inputs & Assumptions'!E66,"")))*$AA$10)) -> -290676.6543 | K30: =IF(pilotmeth=1,VLOOKUP(Muni,Data!$E$4:$Q$567,11,FALSE),'Inputs & Assumptions'!$J$15)*J30 -> -276142.8216 | L30: =IF(pilotmeth=1,VLOOKUP(Muni,Data!$E$4:$Q$567,12,FALSE),'Inputs & Assumptions'!$J$16)*J30 -> -14533.83272 | M30: =IF(pilotmeth=1,VLOOKUP(Muni,Data!$E$4:$Q$567,13,FALSE),'Inputs & Assumptions'!$J$17)*J30 -> 0 | N30: 779152.2021 | O30: ='Inputs & Assumptions'!H66 -> -362569 | P30: 416583.2021 | Q30: ='Inputs & Assumptions'!I66 -> 0 | R30: 416583.2021 | S30: 0.09166606501 | T30: 0.2930202167 | U30: ='Inputs & Assumptions'!N66 -> 0 | V30: =IF(OR(C30>0),IFERROR(V29*((1+'Inputs & Assumptions'!O66)),"No Data"),"--") -> 122940.8088 | W30: 122940.8088 | X30: ='Inputs & Assumptions'!M66 -> 0 | Y30: -402941.6143 | Z30: -280000.8055
A31: 2052 | B31: 28 | C31: ='Inputs & Assumptions'!F67 -> 3266170.026 | D31: ='Inputs & Assumptions'!G67 -> -2164246.304 | E31: ='Inputs & Assumptions'!K67 -> 15385091.91 | F31: =IF(existpilot=2,'Inputs & Assumptions'!$Q$4*(E31/100),'Inputs & Assumptions'!J67) -> 572827.9359 | G31: ='Inputs & Assumptions'!L67 -> 17613577.89 | H31: =(G31/100)*'Inputs & Assumptions'!$Q$5 -> 1021762.107 | I31: =(G31/100)*'Inputs & Assumptions'!$Q$4 -> 655800.4025 | J31: =IF(C31="","--",IF(IF('Inputs & Assumptions'!$B$8=1,-C31*'Inputs & Assumptions'!$C67,IF('Inputs & Assumptions'!$B$8=2,-H31*'Inputs & Assumptions'!$D67,IF('Inputs & Assumptions'!$B$8=3,-'Inputs & Assumptions'!E67,"")))*$AA$10>0,0,IF('Inputs & Assumptions'!$B$8=1,-C31*'Inputs & Assumptions'!$C67,IF('Inputs & Assumptions'!$B$8=2,-H31*'Inputs & Assumptions'!$D67,IF('Inputs & Assumptions'!$B$8=3,-'Inputs & Assumptions'!E67,"")))*$AA$10)) -> -299396.9539 | K31: =IF(pilotmeth=1,VLOOKUP(Muni,Data!$E$4:$Q$567,11,FALSE),'Inputs & Assumptions'!$J$15)*J31 -> -284427.1062 | L31: =IF(pilotmeth=1,VLOOKUP(Muni,Data!$E$4:$Q$567,12,FALSE),'Inputs & Assumptions'!$J$16)*J31 -> -14969.8477 | M31: =IF(pilotmeth=1,VLOOKUP(Muni,Data!$E$4:$Q$567,13,FALSE),'Inputs & Assumptions'!$J$17)*J31 -> 0 | N31: 802526.7682 | O31: ='Inputs & Assumptions'!H67 -> -362569 | P31: 439957.7682 | Q31: ='Inputs & Assumptions'!I67 -> 0 | R31: 439957.7682 | S31: 0.09166606501 | T31: 0.2930202167 | U31: ='Inputs & Assumptions'!N67 -> 0 | V31: =IF(OR(C31>0),IFERROR(V30*((1+'Inputs & Assumptions'!O67)),"No Data"),"--") -> 125399.625 | W31: 125399.625 | X31: ='Inputs & Assumptions'!M67 -> 0 | Y31: -413800.4546 | Z31: -288400.8296
A32: 2053 | B32: 29 | C32: ='Inputs & Assumptions'!F68 -> 3364155.127 | D32: ='Inputs & Assumptions'!G68 -> -2229173.693 | E32: ='Inputs & Assumptions'!K68 -> 15846644.67 | F32: =IF(existpilot=2,'Inputs & Assumptions'!$Q$4*(E32/100),'Inputs & Assumptions'!J68) -> 590012.774 | G32: ='Inputs & Assumptions'!L68 -> 18141985.23 | H32: =(G32/100)*'Inputs & Assumptions'!$Q$5 -> 1052414.97 | I32: =(G32/100)*'Inputs & Assumptions'!$Q$4 -> 675474.4146 | J32: =IF(C32="","--",IF(IF('Inputs & Assumptions'!$B$8=1,-C32*'Inputs & Assumptions'!$C68,IF('Inputs & Assumptions'!$B$8=2,-H32*'Inputs & Assumptions'!$D68,IF('Inputs & Assumptions'!$B$8=3,-'Inputs & Assumptions'!E68,"")))*$AA$10>0,0,IF('Inputs & Assumptions'!$B$8=1,-C32*'Inputs & Assumptions'!$C68,IF('Inputs & Assumptions'!$B$8=2,-H32*'Inputs & Assumptions'!$D68,IF('Inputs & Assumptions'!$B$8=3,-'Inputs & Assumptions'!E68,"")))*$AA$10)) -> -308378.8626 | K32: =IF(pilotmeth=1,VLOOKUP(Muni,Data!$E$4:$Q$567,11,FALSE),'Inputs & Assumptions'!$J$15)*J32 -> -292959.9194 | L32: =IF(pilotmeth=1,VLOOKUP(Muni,Data!$E$4:$Q$567,12,FALSE),'Inputs & Assumptions'!$J$16)*J32 -> -15418.94313 | M32: =IF(pilotmeth=1,VLOOKUP(Muni,Data!$E$4:$Q$567,13,FALSE),'Inputs & Assumptions'!$J$17)*J32 -> 0 | N32: 826602.5713 | O32: ='Inputs & Assumptions'!H68 -> -362569 | P32: 464033.5713 | Q32: ='Inputs & Assumptions'!I68 -> 0 | R32: 464033.5713 | S32: 0.09166606501 | T32: 0.2930202167 | U32: ='Inputs & Assumptions'!N68 -> 0 | V32: =IF(OR(C32>0),IFERROR(V31*((1+'Inputs & Assumptions'!O68)),"No Data"),"--") -> 127907.6175 | W32: 127907.6175 | X32: ='Inputs & Assumptions'!M68 -> 0 | Y32: -424960.472 | Z32: -297052.8545
A33: 2054 | B33: 30 | C33: ='Inputs & Assumptions'!F69 -> 3465079.781 | D33: ='Inputs & Assumptions'!G69 -> -2296048.904 | E33: ='Inputs & Assumptions'!K69 -> 16322044.01 | F33: =IF(existpilot=2,'Inputs & Assumptions'!$Q$4*(E33/100),'Inputs & Assumptions'!J69) -> 607713.1572 | G33: ='Inputs & Assumptions'!L69 -> 18686244.79 | H33: =(G33/100)*'Inputs & Assumptions'!$Q$5 -> 1083987.419 | I33: =(G33/100)*'Inputs & Assumptions'!$Q$4 -> 695738.647 | J33: =IF(C33="","--",IF(IF('Inputs & Assumptions'!$B$8=1,-C33*'Inputs & Assumptions'!$C69,IF('Inputs & Assumptions'!$B$8=2,-H33*'Inputs & Assumptions'!$D69,IF('Inputs & Assumptions'!$B$8=3,-'Inputs & Assumptions'!E69,"")))*$AA$10>0,0,IF('Inputs & Assumptions'!$B$8=1,-C33*'Inputs & Assumptions'!$C69,IF('Inputs & Assumptions'!$B$8=2,-H33*'Inputs & Assumptions'!$D69,IF('Inputs & Assumptions'!$B$8=3,-'Inputs & Assumptions'!E69,"")))*$AA$10)) -> -317630.2284 | K33: =IF(pilotmeth=1,VLOOKUP(Muni,Data!$E$4:$Q$567,11,FALSE),'Inputs & Assumptions'!$J$15)*J33 -> -301748.717 | L33: =IF(pilotmeth=1,VLOOKUP(Muni,Data!$E$4:$Q$567,12,FALSE),'Inputs & Assumptions'!$J$16)*J33 -> -15881.51142 | M33: =IF(pilotmeth=1,VLOOKUP(Muni,Data!$E$4:$Q$567,13,FALSE),'Inputs & Assumptions'!$J$17)*J33 -> 0 | N33: 851400.6484 | O33: ='Inputs & Assumptions'!H69 -> 0 | P33: 851400.6484 | Q33: ='Inputs & Assumptions'!I69 -> 20947879.51 | R33: 21799280.16 | S33: 0.09166606501 | T33: 0.2930202167 | U33: ='Inputs & Assumptions'!N69 -> 0 | V33: =IF(OR(C33>0),IFERROR(V32*((1+'Inputs & Assumptions'!O69)),"No Data"),"--") -> 130465.7698 | W33: 130465.7698 | X33: ='Inputs & Assumptions'!M69 -> 0 | Y33: -436430.21 | Z33: -305964.4402
B35: TOTAL | C35: =SUM(C4:C33) -> 69954605.8 | D35: -46353679.03 | E35: 329516844.3 | F35: 12268789.48 | G35: 377246404.3 | H35: 21884030.78 | I35: 14045888.08 | J35: -6412463.443 | K35: -6091840.271 | L35: -320623.1722 | M35: 0 | N35: 17188463.33 | O35: -10514501 | P35: 6673962.328 | Q35: 12317630.51 | R35: 18991592.84 | V35: =SUM(V4:V33) -> 2980410.232 | W35: =SUM(W4:W33) -> 2980410.232 | X35: =SUM(X4:X33) -> 0 | Y35: -9157359.438 | Z35: =SUM(Z4:Z33) -> -6176949.207

Sheet Data
A1: ='Inputs & Assumptions'!A1 -> Payment in Lieu of Taxes Financial Agreement Forecasting Model - Trenton City, Mercer County
A2: Data
A3: Municode | B3: Municipality | C3: County | D3: Census FIPS | E3: ID | F3: 2024 Net Valuation Taxable | G3: 2024 Total Municipal Tax Levy | H3: 2024 Total Municipal Tax Rate | I3: 2024 Municipal Expenditures Applicable to Project | J3: 2020 Land Area (in Acres) | K3: 2024 CY Total Rate | L3: 2024 County Levy | M3: 2024 School Levy | N3: 2024 Total Levy | O3: 2024 Municipal Share of Levy | P3: 2024 County Share of Levy | Q3: 2024 School Share of Levy | R3: Daytime Pop. (2019-23 estimate) | S3: Municipal Spending/Daytime Pop. Ratio | T3: General Government Approp. | U3: Land-Use Administration Approp. | V3: Uniform Construction Code Approp. | W3: Public Safety Approp. | X3: Public Works Approp. | Y3: Health and Human Services Approp. | Z3: Education (including Library) Approp. | AA3: Landfill / Solid Waste Disposal Approp. | AB3: Statutory Expenditures Approp. | AC3: Court and Public Defender Approp. | AD3: General Government Appl. to Project | AE3: Land-Use Admin. Appl. to Project | AF3: Uniform Construction Code Appl. to Project | AG3: Public Safety Appl. to Project | AH3: Public Works Appl. to Project | AI3: Health and Human Services Appl. to Project | AJ3: Education (including Library) Appl. to Project | AK3: Landfill / Solid Waste Disposal Appl. to Project | AL3: Statutory Expenditures Appl. to Project | AM3: Court and Public Defender Appl. to Project
A4: 1330 | B4: Aberdeen Township | C4: Monmouth | D4: 3402500070 | E4: 1 | F4: 3407588900 | G4: 13829804.06 | H4: =G4/(F4/100) -> 0.405853067 | I4: =IF(IFERROR(SUM(AD4:AM4),"--")=0,"--",IFERROR(SUM(AD4:AM4),"--")) -> -- | J4: 3484.420434 | K4: 1.885255248 | L4: 6828082.51 | M4: 43583862 | N4: 64241748.57 | O4: =G4/N4 -> 0.2152775161 | P4: =L4/N4 -> 0.1062873079 | Q4: =M4/N4 -> 0.678435176 | R4: 22158 | S4: =IFERROR(I4/R4,"--") -> -- | T4: =VLOOKUP(A4,'[1]2024 Summary'!$A$8:$DK$571,92,FALSE) -> No data | U4: =VLOOKUP(A4,'[1]2024 Summary'!$A$8:$DK$571,93,FALSE) -> No data | V4: =VLOOKUP(A4,'[1]2024 Summary'!$A$8:$DK$571,94,FALSE) -> No data | W4: =VLOOKUP(A4,'[1]2024 Summary'!$A$8:$DK$571,96,FALSE) -> No data | X4: =VLOOKUP(A4,'[1]2024 Summary'!$A$8:$DK$571,97,FALSE) -> No data | Y4: =VLOOKUP(A4,'[1]2024 Summary'!$A$8:$DK$571,98,FALSE) -> No data | Z4: =VLOOKUP(A4,'[1]2024 Summary'!$A$8:$DK$571,100,FALSE) -> No data | AA4: =VLOOKUP(A4,'[1]2024 Summary'!$A$8:$DK$571,103,FALSE) -> No data | AB4: =VLOOKUP(A4,'[1]2024 Summary'!$A$8:$DK$571,105,FALSE) -> No data | AC4: =VLOOKUP(A4,'[1]2024 Summary'!$A$8:$DK$571,108,FALSE) -> No data | AD4: =IFERROR(T4*'Inputs & Assumptions'!$Q$40,"--") -> -- | AE4: =IFERROR(U4*'Inputs & Assumptions'!$Q$41,"--") -> -- | AF4: =IFERROR(V4*'Inputs & Assumptions'!$Q$42,"--") -> -- | AG4: =IFERROR(W4*'Inputs & Assumptions'!$Q$43,"--") -> -- | AH4: =IFERROR(X4*'Inputs & Assumptions'!$Q$44,"--") -> -- | AI4: =IFERROR(Y4*'Inputs & Assumptions'!$Q$45,"--") -> -- | AJ4: =IFERROR(Z4*'Inputs & Assumptions'!$Q$46,"--") -> -- | AK4: =IFERROR(AA4*'Inputs & Assumptions'!$Q$47,"--") -> -- | AL4: =IFERROR(AB4*'Inputs & Assumptions'!$Q$48,"--") -> -- | AM4: =IFERROR(AC4*'Inputs & Assumptions'!$Q$49,"--") -> --
A5: 0101 | B5: Absecon City | C5: Atlantic | D5: 3400100100 | E5: =E4+1 -> 2 | F5: 727055300 | G5: 7698271.93 | H5: =G5/(F5/100) -> 1.058828941 | I5: =IF(IFERROR(SUM(AD5:AM5),"--")=0,"--",IFERROR(SUM(AD5:AM5),"--")) -> 3914659 | J5: 3499.667571 | K5: 3.345575727 | L5: 4208635.71 | M5: 12417278 | N5: 24324185.64 | O5: 0.3164863171 | P5: 0.1730226768 | Q5: 0.5104910061 | R5: 11177 | S5: =IFERROR(I5/R5,"--") -> 350.2423727 | T5: =VLOOKUP(A5,'[1]2024 Summary'!$A$8:$DK$571,92,FALSE) -> 1176000 | U5: =VLOOKUP(A5,'[1]2024 Summary'!$A$8:$DK$571,93,FALSE) -> 29000 | V5: =VLOOKUP(A5,'[1]2024 Summary'!$A$8:$DK$571,94,FALSE) -> 160000 | W5: =VLOOKUP(A5,'[1]2024 Summary'!$A$8:$DK$571,96,FALSE) -> 3756500 | X5: =VLOOKUP(A5,'[1]2024 Summary'!$A$8:$DK$571,97,FALSE) -> 1091000 | Y5: =VLOOKUP(A5,'[1]2024 Summary'!$A$8:$DK$571,98,FALSE) -> 8400 | Z5: =VLOOKUP(A5,'[1]2024 Summary'!$A$8:$DK$571,100,FALSE) -> 0 | AA5: =VLOOKUP(A5,'[1]2024 Summary'!$A$8:$DK$571,103,FALSE) -> 1863000 | AB5: =VLOOKUP(A5,'[1]2024 Summary'!$A$8:$DK$571,105,FALSE) -> 1441738 | AC5: =VLOOKUP(A5,'[1]2024 Summary'!$A$8:$DK$571,108,FALSE) -> 147200 | AD5: =IFERROR(T5*'Inputs & Assumptions'!$Q$40,"--") -> 117600 | AE5: =IFERROR(U5*'Inputs & Assumptions'!$Q$41,"--") -> 2900 | AF5: =IFERROR(V5*'Inputs & Assumptions'!$Q$42,"--") -> 80000 | AG5: =IFERROR(W5*'Inputs & Assumptions'!$Q$43,"--") -> 1878250 | AH5: =IFERROR(X5*'Inputs & Assumptions'!$Q$44,"--") -> 109100 | AI5: =IFERROR(Y5*'Inputs & Assumptions'!$Q$45,"--") -> 840 | AJ5: =IFERROR(Z5*'Inputs & Assumptions'!$Q$46,"--") -> 0 | AK5: =IFERROR(AA5*'Inputs & Assumptions'!$Q$47,"--") -> 931500 | AL5: =IFERROR(AB5*'Inputs & Assumptions'!$Q$48,"--") -> 720869 | AM5: =IFERROR(AC5*'Inputs & Assumptions'!$Q$49,"--") -> 73600
A6: 1001 | B6: Alexandria Township | C6: Hunterdon | D6: 3401900550 | E6: 3 | F6: 731363549 | G6: 2442772.71 | H6: =G6/(F6/100) -> 0.3340025236 | I6: 519282.487 | J6: 17621.43755 | K6: 3.000391298 | L6: 3607773.57 | M6: 15893222 | N6: 21943768.28 | O6: 0.1113196548 | P6: 0.1644099374 | Q6: 0.7242704078 | R6: 5390 | S6: 96.34183432 | T6: =VLOOKUP(A6,'[1]2024 Summary'!$A$8:$DK$571,92,FALSE) -> 676941 | U6: =VLOOKUP(A6,'[1]2024 Summary'!$A$8:$DK$571,93,FALSE) -> 54952 | V6: =VLOOKUP(A6,'[1]2024 Summary'!$A$8:$DK$571,94,FALSE) -> 195500 | W6: =VLOOKUP(A6,'[1]2024 Summary'!$A$8:$DK$571,96,FALSE) -> 293820 | X6: =VLOOKUP(A6,'[1]2024 Summary'!$A$8:$DK$571,97,FALSE) -> 1094681.87 | Y6: =VLOOKUP(A6,'[1]2024 Summary'!$A$8:$DK$571,98,FALSE) -> 24545 | Z6: =VLOOKUP(A6,'[1]2024 Summary'!$A$8:$DK$571,100,FALSE) -> 0 | AA6: =VLOOKUP(A6,'[1]2024 Summary'!$A$8:$DK$571,103,FALSE) -> 0 | AB6: =VLOOKUP(A6,'[1]2024 Summary'!$A$8:$DK$571,105,FALSE) -> 139021 | AC6: =VLOOKUP(A6,'[1]2024 Summary'!$A$8:$DK$571,108,FALSE) -> 40000 | AD6: =IFERROR(T6*'Inputs & Assumptions'!$Q$40,"--") -> 67694.1 | AE6: =IFERROR(U6*'Inputs & Assumptions'!$Q$41,"--") -> 5495.2 | AF6: =IFERROR(V6*'Inputs & Assumptions'!$Q$42,"--") -> 97750 | AG6: =IFERROR(W6*'Inputs & Assumptions'!$Q$43,"--") -> 146910 | AH6: =IFERROR(X6*'Inputs & Assumptions'!$Q$44,"--") -> 109468.187 | AI6: =IFERROR(Y6*'Inputs & Assumptions'!$Q$45,"--") -> 2454.5 | AJ6: =IFERROR(Z6*'Inputs & Assumptions'!$Q$46,"--") -> 0 | AK6: =IFERROR(AA6*'Inputs & Assumptions'!$Q$47,"--") -> 0 | AL6: =IFERROR(AB6*'Inputs & Assumptions'!$Q$48,"--") -> 69510.5 | AM6: =IFERROR(AC6*'Inputs & Assumptions'!$Q$49,"--") -> 20000
A7: 2101 | B7: Allamuchy Township | C7: Warren | D7: 3404100670 | E7: 4 | F7: 600545000 | G7: 2736680 | H7: 0.4556994064 | I7: 451910.2 | J7: 12794.996 | K7: 3.209665344 | L7: 5550371.74 | M7: 10988433 | N7: 19275484.74 | O7: 0.1419772336 | P7: 0.2879497878 | Q7: 0.5700729786 | R7: 5787 | S7: 78.09058234 | T7: =VLOOKUP(A7,'[1]2024 Summary'!$A$8:$DK$571,92,FALSE) -> 760203 | U7: =VLOOKUP(A7,'[1]2024 Summary'!$A$8:$DK$571,93,FALSE) -> 40835 | V7: =VLOOKUP(A7,'[1]2024 Summary'!$A$8:$DK$571,94,FALSE) -> 15738 | W7: =VLOOKUP(A7,'[1]2024 Summary'!$A$8:$DK$571,96,FALSE) -> 126414 | X7: =VLOOKUP(A7,'[1]2024 Summary'!$A$8:$DK$571,97,FALSE) -> 1595238 | Y7: =VLOOKUP(A7,'[1]2024 Summary'!$A$8:$DK$571,98,FALSE) -> 33126 | Z7: =VLOOKUP(A7,'[1]2024 Summary'!$A$8:$DK$571,100,FALSE) -> 0 | AA7: =VLOOKUP(A7,'[1]2024 Summary'!$A$8:$DK$571,103,FALSE) -> 0 | AB7: =VLOOKUP(A7,'[1]2024 Summary'!$A$8:$DK$571,105,FALSE) -> 210538 | AC7: =VLOOKUP(A7,'[1]2024 Summary'!$A$8:$DK$571,108,FALSE) -> 65250 | AD7: =IFERROR(T7*'Inputs & Assumptions'!$Q$40,"--") -> 76020.3 | AE7: =IFERROR(U7*'Inputs & Assumptions'!$Q$41,"--") -> 4083.5 | AF7: =IFERROR(V7*'Inputs & Assumptions'!$Q$42,"--") -> 7869 | AG7: =IFERROR(W7*'Inputs & Assumptions'!$Q$43,"--") -> 63207 | AH7: =IFERROR(X7*'Inputs & Assumptions'!$Q$44,"--") -> 159523.8 | AI7: =IFERROR(Y7*'Inputs & Assumptions'!$Q$45,"--") -> 3312.6 | AJ7: =IFERROR(Z7*'Inputs & Assumptions'!$Q$46,"--") -> 0 | AK7: =IFERROR(AA7*'Inputs & Assumptions'!$Q$47,"--") -> 0 | AL7: =IFERROR(AB7*'Inputs & Assumptions'!$Q$48,"--") -> 105269 | AM7: =IFERROR(AC7*'Inputs & Assumptions'!$Q$49,"--") -> 32625
A8: 0201 | B8: Allendale Borough | C8: Bergen | D8: 3400300700 | E8: 5 | F8: 2165626800 | G8: 11918565 | H8: 0.5503517504 | I8: 2810424.8 | J8: 1982.143142 | K8: 2.108657914 | L8: 5095574.9 | M8: 28651521 | N8: 45665660.9 | O8: 0.2609962227 | P8: 0.1115843897 | Q8: 0.6274193877 | R8: 9385 | S8: 299.4592222 | T8: =VLOOKUP(A8,'[1]2024 Summary'!$A$8:$DK$571,92,FALSE) -> 1294100 | U8: =VLOOKUP(A8,'[1]2024 Summary'!$A$8:$DK$571,93,FALSE) -> 112500 | V8: =VLOOKUP(A8,'[1]2024 Summary'!$A$8:$DK$571,94,FALSE) -> 275850 | W8: =VLOOKUP(A8,'[1]2024 Summary'!$A$8:$DK$571,96,FALSE) -> 2988579 | X8: =VLOOKUP(A8,'[1]2024 Summary'!$A$8:$DK$571,97,FALSE) -> 2510546 | Y8: =VLOOKUP(A8,'[1]2024 Summary'!$A$8:$DK$571,98,FALSE) -> 58000 | Z8: =VLOOKUP(A8,'[1]2024 Summary'!$A$8:$DK$571,100,FALSE) -> 736932 | AA8: =VLOOKUP(A8,'[1]2024 Summary'!$A$8:$DK$571,103,FALSE) -> 0 | AB8: =VLOOKUP(A8,'[1]2024 Summary'!$A$8:$DK$571,105,FALSE) -> 1389505 | AC8: =VLOOKUP(A8,'[1]2024 Summary'!$A$8:$DK$571,108,FALSE) -> 24500 | AD8: =IFERROR(T8*'Inputs & Assumptions'!$Q$40,"--") -> 129410 | AE8: =IFERROR(U8*'Inputs & Assumptions'!$Q$41,"--") -> 11250 | AF8: =IFERROR(V8*'Inputs & Assumptions'!$Q$42,"--") -> 137925 | AG8: =IFERROR(W8*'Inputs & Assumptions'!$Q$43,"--") -> 1494289.5 | AH8: =IFERROR(X8*'Inputs & Assumptions'!$Q$44,"--") -> 251054.6 | AI8: =IFERROR(Y8*'Inputs & Assumptions'!$Q$45,"--") -> 5800 | AJ8: =IFERROR(Z8*'Inputs & Assumptions'!$Q$46,"--") -> 73693.2 | AK8: =IFERROR(AA8*'Inputs & Assumptions'!$Q$47,"--") -> 0 | AL8: =IFERROR(AB8*'Inputs & Assumptions'!$Q$48,"--") -> 694752.5 | AM8: =IFERROR(AC8*'Inputs & Assumptions'!$Q$49,"--") -> 12250
A9: 1301 | B9: Allenhurst Borough | C9: Monmouth | D9: 3402500730 | E9: 6 | F9: 1165610700 | G9: 3168642.2 | H9: 0.2718439527 | I9: 1168294.055 | J9: 160.3075736 | K9: 0.5884981324 | L9: 3326386 | M9: 364569 | N9: 6859597.2 | O9: 0.4619283185 | P9: 0.4849243918 | Q9: 0.05314728976 | R9: 569 | S9: 2053.24087 | T9: =VLOOKUP(A9,'[1]2024 Summary'!$A$8:$DK$571,92,FALSE) -> 863670 | U9: =VLOOKUP(A9,'[1]2024 Summary'!$A$8:$DK$571,93,FALSE) -> 46600 | V9: =VLOOKUP(A9,'[1]2024 Summary'!$A$8:$DK$571,94,FALSE) -> 66000 | W9: =VLOOKUP(A9,'[1]2024 Summary'!$A$8:$DK$571,96,FALSE) -> 1280452.6 | X9: =VLOOKUP(A9,'[1]2024 Summary'!$A$8:$DK$571,97,FALSE) -> 801200 | Y9: =VLOOKUP(A9,'[1]2024 Summary'!$A$8:$DK$571,98,FALSE) -> 22900 | Z9: =VLOOKUP(A9,'[1]2024 Summary'!$A$8:$DK$571,100,FALSE) -> 0 | AA9: =VLOOKUP(A9,'[1]2024 Summary'!$A$8:$DK$571,103,FALSE) -> 0 | AB9: =VLOOKUP(A9,'[1]2024 Summary'!$A$8:$DK$571,105,FALSE) -> 618086.51 | AC9: =VLOOKUP(A9,'[1]2024 Summary'!$A$8:$DK$571,108,FALSE) -> 25175 | AD9: =IFERROR(T9*'Inputs & Assumptions'!$Q$40,"--") -> 86367 | AE9: =IFERROR(U9*'Inputs & Assumptions'!$Q$41,"--") -> 4660 | AF9: =IFERROR(V9*'Inputs & Assumptions'!$Q$42,"--") -> 33000 | AG9: =IFERROR(W9*'Inputs & Assumptions'!$Q$43,"--") -> 640226.3 | AH9: =IFERROR(X9*'Inputs & Assumptions'!$Q$44,"--") -> 80120 | AI9: =IFERROR(Y9*'Inputs & Assumptions'!$Q$45,"--") -> 2290 | AJ9: =IFERROR(Z9*'Inputs & Assumptions'!$Q$46,"--") -> 0 | AK9: =IFERROR(AA9*'Inputs & Assumptions'!$Q$47,"--") -> 0 | AL9: =IFERROR(AB9*'Inputs & Assumptions'!$Q$48,"--") -> 309043.255 | AM9: =IFERROR(AC9*'Inputs & Assumptions'!$Q$49,"--") -> 12587.5
A10: 1302 | B10: Allentown Borough | C10: Monmouth | D10: 3402500760 | E10: 7 | F10: 193244900 | G10: 1905622.77 | H10: 0.986118014 | I10: 841150.593 | J10: 381.5569926 | K10: 3.21745036 | L10: 572094.96 | M10: 3739841 | N10: 6217558.73 | O10: 0.3064905138 | P10: 0.09201279551 | Q10: 0.6014966906 | R10: 2671 | S10: 314.9197278 | T10: =VLOOKUP(A10,'[1]2024 Summary'!$A$8:$DK$571,92,FALSE) -> 2297672.93 | U10: =VLOOKUP(A10,'[1]2024 Summary'!$A$8:$DK$571,93,FALSE) -> 9900 | V10: =VLOOKUP(A10,'[1]2024 Summary'!$A$8:$DK$571,94,FALSE) -> 1450 | W10: =VLOOKUP(A10,'[1]2024 Summary'!$A$8:$DK$571,96,FALSE) -> 719800 | X10: =VLOOKUP(A10,'[1]2024 Summary'!$A$8:$DK$571,97,FALSE) -> 492803 | Y10: =VLOOKUP(A10,'[1]2024 Summary'!$A$8:$DK$571,98,FALSE) -> 2500 | Z10: =VLOOKUP(A10,'[1]2024 Summary'!$A$8:$DK$571,100,FALSE) -> 3000 | AA10: =VLOOKUP(A10,'[1]2024 Summary'!$A$8:$DK$571,103,FALSE) -> 0 | AB10: =VLOOKUP(A10,'[1]2024 Summary'!$A$8:$DK$571,105,FALSE) -> 326676 | AC10: =VLOOKUP(A10,'[1]2024 Summary'!$A$8:$DK$571,108,FALSE) -> 73200 | AD10: =IFERROR(T10*'Inputs & Assumptions'!$Q$40,"--") -> 229767.293 | AE10: =IFERROR(U10*'Inputs & Assumptions'!$Q$41,"--") -> 990 | AF10: =IFERROR(V10*'Inputs & Assumptions'!$Q$42,"--") -> 725 | AG10: =IFERROR(W10*'Inputs & Assumptions'!$Q$43,"--") -> 359900 | AH10: =IFERROR(X10*'Inputs & Assumptions'!$Q$44,"--") -> 49280.3 | AI10: =IFERROR(Y10*'Inputs & Assumptions'!$Q$45,"--") -> 250 | AJ10: =IFERROR(Z10*'Inputs & Assumptions'!$Q$46,"--") -> 300 | AK10: =IFERROR(AA10*'Inputs & Assumptions'!$Q$47,"--") -> 0 | AL10: =IFERROR(AB10*'Inputs & Assumptions'!$Q$48,"--") -> 163338 | AM10: =IFERROR(AC10*'Inputs & Assumptions'!$Q$49,"--") -> 36600
A11: 1701 | B11: Alloway Township | C11: Salem | D11: 3403300880 | E11: 8 | F11: 288079088 | G11: 832030.26 | H11: 0.2888200826 | I11: 286347.809 | J11: 21425.34015 | K11: 3.48666746 | L11: 4498926.56 | M11: 4713403 | N11: 10044359.82 | O11: 0.08283556891 | P11: 0.4479057541 | Q11: 0.469258677 | R11: 3633 | S11: 78.81855464 | T11: =VLOOKUP(A11,'[1]2024 Summary'!$A$8:$DK$571,92,FALSE) -> 396025 | U11: =VLOOKUP(A11,'[1]2024 Summary'!$A$8:$DK$571,93,FALSE) -> 4500 | V11: =VLOOKUP(A11,'[1]2024 Summary'!$A$8:$DK$571,94,FALSE) -> 55300 | W11: =VLOOKUP(A11,'[1]2024 Summary'!$A$8:$DK$571,96,FALSE) -> 46900 | X11: =VLOOKUP(A11,'[1]2024 Summary'!$A$8:$DK$571,97,FALSE) -> 772671 | Y11: =VLOOKUP(A11,'[1]2024 Summary'!$A$8:$DK$571,98,FALSE) -> 30917.09 | Z11: =VLOOKUP(A11,'[1]2024 Summary'!$A$8:$DK$571,100,FALSE) -> 0 | AA11: =VLOOKUP(A11,'[1]2024 Summary'!$A$8:$DK$571,103,FALSE) -> 119000 | AB11: =VLOOKUP(A11,'[1]2024 Summary'!$A$8:$DK$571,105,FALSE) -> 110673 | AC11: =VLOOKUP(A11,'[1]2024 Summary'!$A$8:$DK$571,108,FALSE) -> 0 | AD11: =IFERROR(T11*'Inputs & Assumptions'!$Q$40,"--") -> 39602.5 | AE11: =IFERROR(U11*'Inputs & Assumptions'!$Q$41,"--") -> 450 | AF11: =IFERROR(V11*'Inputs & Assumptions'!$Q$42,"--") -> 27650 | AG11: =IFERROR(W11*'Inputs & Assumptions'!$Q$43,"--") -> 23450 | AH11: =IFERROR(X11*'Inputs & Assumptions'!$Q$44,"--") -> 77267.1 | AI11: =IFERROR(Y11*'Inputs & Assumptions'!$Q$45,"--") -> 3091.709 | AJ11: =IFERROR(Z11*'Inputs & Assumptions'!$Q$46,"--") -> 0 | AK11: =IFERROR(AA11*'Inputs & Assumptions'!$Q$47,"--") -> 59500 | AL11: =IFERROR(AB11*'Inputs & Assumptions'!$Q$48,"--") -> 55336.5 | AM11: =IFERROR(AC11*'Inputs & Assumptions'!$Q$49,"--") -> 0
A12: 2102 | B12: Alpha Borough | C12: Warren | D12: 3404101030 | E12: 9 | F12: 217462295 | G12: 2115405.91 | H12: 0.9727690541 | I12: 331784.59 | J12: 1075.628527 | K12: 3.643753608 | L12: 1565266.31 | M12: 4243118 | N12: 7923790.22 | O12: 0.2669689443 | P12: 0.1975400997 | Q12: 0.535490956 | R12: 3183 | S12: 104.2364405 | T12: =VLOOKUP(A12,'[1]2024 Summary'!$A$8:$DK$571,92,FALSE) -> 1362120 | U12: =VLOOKUP(A12,'[1]2024 Summary'!$A$8:$DK$571,93,FALSE) -> 31925 | V12: =VLOOKUP(A12,'[1]2024 Summary'!$A$8:$DK$571,94,FALSE) -> 42550 | W12: =VLOOKUP(A12,'[1]2024 Summary'!$A$8:$DK$571,96,FALSE) -> 80559.38 | X12: =VLOOKUP(A12,'[1]2024 Summary'!$A$8:$DK$571,97,FALSE) -> 616400 | Y12: =VLOOKUP(A12,'[1]2024 Summary'!$A$8:$DK$571,98,FALSE) -> 9000 | Z12: =VLOOKUP(A12,'[1]2024 Summary'!$A$8:$DK$571,100,FALSE) -> 91849 | AA12: =VLOOKUP(A12,'[1]2024 Summary'!$A$8:$DK$571,103,FALSE) -> 0 | AB12: =VLOOKUP(A12,'[1]2024 Summary'!$A$8:$DK$571,105,FALSE) -> 118201 | AC12: =VLOOKUP(A12,'[1]2024 Summary'!$A$8:$DK$571,108,FALSE) -> 0 | AD12: =IFERROR(T12*'Inputs & Assumptions'!$Q$40,"--") -> 136212 | AE12: =IFERROR(U12*'Inputs & Assumptions'!$Q$41,"--") -> 3192.5 | AF12: =IFERROR(V12*'Inputs & Assumptions'!$Q$42,"--") -> 21275 | AG12: =IFERROR(W12*'Inputs & Assumptions'!$Q$43,"--") -> 40279.69 | AH12: =IFERROR(X12*'Inputs & Assumptions'!$Q$44,"--") -> 61640 | AI12: =IFERROR(Y12*'Inputs & Assumptions'!$Q$45,"--") -> 900 | AJ12: =IFERROR(Z12*'Inputs & Assumptions'!$Q$46,"--") -> 9184.9 | AK12: =IFERROR(AA12*'Inputs & Assumptions'!$Q$47,"--") -> 0 | AL12: =IFERROR(AB12*'Inputs & Assumptions'!$Q$48,"--") -> 59100.5 | AM12: =IFERROR(AC12*'Inputs & Assumptions'!$Q$49,"--") -> 0
A13: 0202 | B13: Alpine Borough | C13: Bergen | D13: 3400301090 | E13: 10 | F13: 1986151200 | G13: 4036655 | H13: 0.2032400655 | I13: 1854297.5 | J13: 4096.623518 | K13: 0.8174769136 | L13: 4792149.53 | M13: 7407523 | N13: 16236327.53 | O13: 0.248618722 | P13: 0.2951498435 | Q13: 0.4562314345 | R13: 1928 | S13: 961.7725622 | T13: =VLOOKUP(A13,'[1]2024 Summary'!$A$8:$DK$571,92,FALSE) -> 635700 | U13: =VLOOKUP(A13,'[1]2024 Summary'!$A$8:$DK$571,93,FALSE) -> 27750 | V13: =VLOOKUP(A13,'[1]2024 Summary'!$A$8:$DK$571,94,FALSE) -> 172800 | W13: =VLOOKUP(A13,'[1]2024 Summary'!$A$8:$DK$571,96,FALSE) -> 2315840 | X13: =VLOOKUP(A13,'[1]2024 Summary'!$A$8:$DK$571,97,FALSE) -> 579400 | Y13: =VLOOKUP(A13,'[1]2024 Summary'!$A$8:$DK$571,98,FALSE) -> 34650 | Z13: =VLOOKUP(A13,'[1]2024 Summary'!$A$8:$DK$571,100,FALSE) -> 1000 | AA13: =VLOOKUP(A13,'[1]2024 Summary'!$A$8:$DK$571,103,FALSE) -> 0 | AB13: =VLOOKUP(A13,'[1]2024 Summary'!$A$8:$DK$571,105,FALSE) -> 932255 | AC13: =VLOOKUP(A13,'[1]2024 Summary'!$A$8:$DK$571,108,FALSE) -> 32000 | AD13: =IFERROR(T13*'Inputs & Assumptions'!$Q$40,"--") -> 63570 | AE13: =IFERROR(U13*'Inputs & Assumptions'!$Q$41,"--") -> 2775 | AF13: =IFERROR(V13*'Inputs & Assumptions'!$Q$42,"--") -> 86400 | AG13: =IFERROR(W13*'Inputs & Assumptions'!$Q$43,"--") -> 1157920 | AH13: =IFERROR(X13*'Inputs & Assumptions'!$Q$44,"--") -> 57940 | AI13: =IFERROR(Y13*'Inputs & Assumptions'!$Q$45,"--") -> 3465 | AJ13: =IFERROR(Z13*'Inputs & Assumptions'!$Q$46,"--") -> 100 | AK13: =IFERROR(AA13*'Inputs & Assumptions'!$Q$47,"--") -> 0 | AL13: =IFERROR(AB13*'Inputs & Assumptions'!$Q$48,"--") -> 466127.5 | AM13: =IFERROR(AC13*'Inputs & Assumptions'!$Q$49,"--") -> 16000
A14: 1901 | B14: Andover Borough | C14: Sussex | D14: 3403701330 | E14: 11 | F14: 67770200 | G14: 403993.45 | H14: 0.5961225583 | I14: 111151.56 | J14: 862.6361309 | K14: 3.250934496 | L14: 395252.36 | M14: 1403919 | N14: 2203164.81 | O14: 0.1833696 | P14: 0.1794020848 | Q14: 0.6372283152 | R14: 1024 | S14: 108.5464453 | T14: =VLOOKUP(A14,'[1]2024 Summary'!$A$8:$DK$571,92,FALSE) -> 230494 | U14: =VLOOKUP(A14,'[1]2024 Summary'!$A$8:$DK$571,93,FALSE) -> 17816 | V14: =VLOOKUP(A14,'[1]2024 Summary'!$A$8:$DK$571,94,FALSE) -> 20387 | W14: =VLOOKUP(A14,'[1]2024 Summary'!$A$8:$DK$571,96,FALSE) -> 33840 | X14: =VLOOKUP(A14,'[1]2024 Summary'!$A$8:$DK$571,97,FALSE) -> 209835 | Y14: =VLOOKUP(A14,'[1]2024 Summary'!$A$8:$DK$571,98,FALSE) -> 5454 | Z14: =VLOOKUP(A14,'[1]2024 Summary'!$A$8:$DK$571,100,FALSE) -> 0 | AA14: =VLOOKUP(A14,'[1]2024 Summary'!$A$8:$DK$571,103,FALSE) -> 40792.32 | AB14: =VLOOKUP(A14,'[1]2024 Summary'!$A$8:$DK$571,105,FALSE) -> 34564 | AC14: =VLOOKUP(A14,'[1]2024 Summary'!$A$8:$DK$571,108,FALSE) -> 0 | AD14: =IFERROR(T14*'Inputs & Assumptions'!$Q$40,"--") -> 23049.4 | AE14: =IFERROR(U14*'Inputs & Assumptions'!$Q$41,"--") -> 1781.6 | AF14: =IFERROR(V14*'Inputs & Assumptions'!$Q$42,"--") -> 10193.5 | AG14: =IFERROR(W14*'Inputs & Assumptions'!$Q$43,"--") -> 16920 | AH14: =IFERROR(X14*'Inputs & Assumptions'!$Q$44,"--") -> 20983.5 | AI14: =IFERROR(Y14*'Inputs & Assumptions'!$Q$45,"--") -> 545.4 | AJ14: =IFERROR(Z14*'Inputs & Assumptions'!$Q$46,"--") -> 0 | AK14: =IFERROR(AA14*'Inputs & Assumptions'!$Q$47,"--") -> 20396.16 | AL14: =IFERROR(AB14*'Inputs & Assumptions'!$Q$48,"--") -> 17282 | AM14: =IFERROR(AC14*'Inputs & Assumptions'!$Q$49,"--") -> 0
A15: 1902 | B15: Andover Township | C15: Sussex | D15: 3403701360 | E15: 12 | F15: 628677520 | G15: 7149544.38 | H15: 1.13723557 | I15: 2370882.84 | J15: 12828.47185 | K15: 4.212679497 | L15: 4243823.61 | M15: 15090801 | N15: 26484168.99 | O15: 0.269955398 | P15: 0.160240014 | Q15: 0.569804588 | R15: 7270 | S15: 326.118685 | T15: =VLOOKUP(A15,'[1]2024 Summary'!$A$8:$DK$571,92,FALSE) -> 856490 | U15: =VLOOKUP(A15,'[1]2024 Summary'!$A$8:$DK$571,93,FALSE) -> 100140 | V15: =VLOOKUP(A15,'[1]2024 Summary'!$A$8:$DK$571,94,FALSE) -> 0 | W15: =VLOOKUP(A15,'[1]2024 Summary'!$A$8:$DK$571,96,FALSE) -> 2373299.07 | X15: =VLOOKUP(A15,'[1]2024 Summary'!$A$8:$DK$571,97,FALSE) -> 1312441.12 | Y15: =VLOOKUP(A15,'[1]2024 Summary'!$A$8:$DK$571,98,FALSE) -> 12631.93 | Z15: =VLOOKUP(A15,'[1]2024 Summary'!$A$8:$DK$571,100,FALSE) -> 0 | AA15: =VLOOKUP(A15,'[1]2024 Summary'!$A$8:$DK$571,103,FALSE) -> 702000 | AB15: =VLOOKUP(A15,'[1]2024 Summary'!$A$8:$DK$571,105,FALSE) -> 1059826 | AC15: =VLOOKUP(A15,'[1]2024 Summary'!$A$8:$DK$571,108,FALSE) -> 150300 | AD15: =IFERROR(T15*'Inputs & Assumptions'!$Q$40,"--") -> 85649 | AE15: =IFERROR(U15*'Inputs & Assumptions'!$Q$41,"--") -> 10014 | AF15: =IFERROR(V15*'Inputs & Assumptions'!$Q$42,"--") -> 0 | AG15: =IFERROR(W15*'Inputs & Assumptions'!$Q$43,"--") -> 1186649.535 | AH15: =IFERROR(X15*'Inputs & Assumptions'!$Q$44,"--") -> 131244.112 | AI15: =IFERROR(Y15*'Inputs & Assumptions'!$Q$45,"--") -> 1263.193 | AJ15: =IFERROR(Z15*'Inputs & Assumptions'!$Q$46,"--") -> 0 | AK15: =IFERROR(AA15*'Inputs & Assumptions'!$Q$47,"--") -> 351000 | AL15: =IFERROR(AB15*'Inputs & Assumptions'!$Q$48,"--") -> 529913 | AM15: =IFERROR(AC15*'Inputs & Assumptions'!$Q$49,"--") -> 75150
A16: 1303 | B16: Asbury Park City | C16: Monmouth | D16: 3402501960 | E16: 13 | F16: 3052187280 | G16: 17612851.71 | H16: 0.5770567168 | I16: 19798252.95 | J16: 914.549985 | K16: 1.581480543 | L16: 6223286.26 | M16: 24433610 | N16: 48269747.97 | O16: 0.3648838548 | P16: 0.1289272582 | Q16: 0.506188887 | R16: 19684 | S16: 1005.804357 | T16: =VLOOKUP(A16,'[1]2024 Summary'!$A$8:$DK$571,92,FALSE) -> 3743490 | U16: =VLOOKUP(A16,'[1]2024 Summary'!$A$8:$DK$571,93,FALSE) -> 682550 | V16: =VLOOKUP(A16,'[1]2024 Summary'!$A$8:$DK$571,94,FALSE) -> 1124326 | W16: =VLOOKUP(A16,'[1]2024 Summary'!$A$8:$DK$571,96,FALSE) -> 20481113.91 | X16: =VLOOKUP(A16,'[1]2024 Summary'!$A$8:$DK$571,97,FALSE) -> 29376738 | Y16: =VLOOKUP(A16,'[1]2024 Summary'!$A$8:$DK$571,98,FALSE) -> 1182567 | Z16: =VLOOKUP(A16,'[1]2024 Summary'!$A$8:$DK$571,100,FALSE) -> 933380 | AA16: =VLOOKUP(A16,'[1]2024 Summary'!$A$8:$DK$571,103,FALSE) -> 2135000 | AB16: =VLOOKUP(A16,'[1]2024 Summary'!$A$8:$DK$571,105,FALSE) -> 8207270 | AC16: =VLOOKUP(A16,'[1]2024 Summary'!$A$8:$DK$571,108,FALSE) -> 465051 | AD16: =IFERROR(T16*'Inputs & Assumptions'!$Q$40,"--") -> 374349 | AE16: =IFERROR(U16*'Inputs & Assumptions'!$Q$41,"--") -> 68255 | AF16: =IFERROR(V16*'Inputs & Assumptions'!$Q$42,"--") -> 562163 | AG16: =IFERROR(W16*'Inputs & Assumptions'!$Q$43,"--") -> 10240556.96 | AH16: =IFERROR(X16*'Inputs & Assumptions'!$Q$44,"--") -> 2937673.8 | AI16: =IFERROR(Y16*'Inputs & Assumptions'!$Q$45,"--") -> 118256.7 | AJ16: =IFERROR(Z16*'Inputs & Assumptions'!$Q$46,"--") -> 93338 | AK16: =IFERROR(AA16*'Inputs & Assumptions'!$Q$47,"--") -> 1067500 | AL16: =IFERROR(AB16*'Inputs & Assumptions'!$Q$48,"--") -> 4103635 | AM16: =IFERROR(AC16*'Inputs & Assumptions'!$Q$49,"--") -> 232525.5
A17: 0102 | B17: Atlantic City City | C17: Atlantic | D17: 3400102080 | E17: 14 | F17: 2406105063 | G17: 36006554.53 | H17: 1.49646643 | I17: 55780485.39 | J17: 6886.699118 | K17: 3.451782507 | L17: 13818883.14 | M17: 33228076 | N17: 83053513.67 | O17: 0.4335343917 | P17: 0.1663852922 | Q17: 0.4000803161 | R17: 62193 | S17: 896.8933061 | T17: =VLOOKUP(A17,'[1]2024 Summary'!$A$8:$DK$571,92,FALSE) -> 14076344 | U17: =VLOOKUP(A17,'[1]2024 Summary'!$A$8:$DK$571,93,FALSE) -> 1082540 | V17: =VLOOKUP(A17,'[1]2024 Summary'!$A$8:$DK$571,94,FALSE) -> 5314784.66 | W17: =VLOOKUP(A17,'[1]2024 Summary'!$A$8:$DK$571,96,FALSE) -> 69448757.53 | X17: =VLOOKUP(A17,'[1]2024 Summary'!$A$8:$DK$571,97,FALSE) -> 39052382.24 | Y17: =VLOOKUP(A17,'[1]2024 Summary'!$A$8:$DK$571,98,FALSE) -> 3045728 | Z17: =VLOOKUP(A17,'[1]2024 Summary'!$A$8:$DK$571,100,FALSE) -> 1653119 | AA17: =VLOOKUP(A17,'[1]2024 Summary'!$A$8:$DK$571,103,FALSE) -> 0 | AB17: =VLOOKUP(A17,'[1]2024 Summary'!$A$8:$DK$571,105,FALSE) -> 23376457.94 | AC17: =VLOOKUP(A17,'[1]2024 Summary'!$A$8:$DK$571,108,FALSE) -> 1638948 | AD17: =IFERROR(T17*'Inputs & Assumptions'!$Q$40,"--") -> 1407634.4 | AE17: =IFERROR(U17*'Inputs & Assumptions'!$Q$41,"--") -> 108254 | AF17: =IFERROR(V17*'Inputs & Assumptions'!$Q$42,"--") -> 2657392.33 | AG17: =IFERROR(W17*'Inputs & Assumptions'!$Q$43,"--") -> 34724378.77 | AH17: =IFERROR(X17*'Inputs & Assumptions'!$Q$44,"--") -> 3905238.224 | AI17: =IFERROR(Y17*'Inputs & Assumptions'!$Q$45,"--") -> 304572.8 | AJ17: =IFERROR(Z17*'Inputs & Assumptions'!$Q$46,"--") -> 165311.9 | AK17: =IFERROR(AA17*'Inputs & Assumptions'!$Q$47,"--") -> 0 | AL17: =IFERROR(AB17*'Inputs & Assumptions'!$Q$48,"--") -> 11688228.97 | AM17: =IFERROR(AC17*'Inputs & Assumptions'!$Q$49,"--") -> 819474
A18: 1304 | B18: Atlantic Highlands Borough | C18: Monmouth | D18: 3402502110 | E18: 15 | F18: 1164954000 | G18: 6227360.78 | H18: 0.534558513 | I18: 2936731.728 | J18: 809.0014357 | K18: 1.66456379 | L18: 2735260.67 | M18: 10428781 | N18: 19391402.45 | O18: 0.321140299 | P18: 0.1410553299 | Q18: 0.5378043711 | R18: 5675 | S18: 517.485767 | T18: =VLOOKUP(A18,'[1]2024 Summary'!$A$8:$DK$571,92,FALSE) -> 7746509.63 | U18: =VLOOKUP(A18,'[1]2024 Summary'!$A$8:$DK$571,93,FALSE) -> 58500 | V18: =VLOOKUP(A18,'[1]2024 Summary'!$A$8:$DK$571,94,FALSE) -> 96000 | W18: =VLOOKUP(A18,'[1]2024 Summary'!$A$8:$DK$571,96,FALSE) -> 2041250 | X18: =VLOOKUP(A18,'[1]2024 Summary'!$A$8:$DK$571,97,FALSE) -> 820500 | Y18: =VLOOKUP(A18,'[1]2024 Summary'!$A$8:$DK$571,98,FALSE) -> 10000 | Z18: =VLOOKUP(A18,'[1]2024 Summary'!$A$8:$DK$571,100,FALSE) -> 1500 | AA18: =VLOOKUP(A18,'[1]2024 Summary'!$A$8:$DK$571,103,FALSE) -> 555000 | AB18: =VLOOKUP(A18,'[1]2024 Summary'!$A$8:$DK$571,105,FALSE) -> 1324311.53 | AC18: =VLOOKUP(A18,'[1]2024 Summary'!$A$8:$DK$571,108,FALSE) -> 129500 | AD18: =IFERROR(T18*'Inputs & Assumptions'!$Q$40,"--") -> 774650.963 | AE18: =IFERROR(U18*'Inputs & Assumptions'!$Q$41,"--") -> 5850 | AF18: =IFERROR(V18*'Inputs & Assumptions'!$Q$42,"--") -> 48000 | AG18: =IFERROR(W18*'Inputs & Assumptions'!$Q$43,"--") -> 1020625 | AH18: =IFERROR(X18*'Inputs & Assumptions'!$Q$44,"--") -> 82050 | AI18: =IFERROR(Y18*'Inputs & Assumptions'!$Q$45,"--") -> 1000 | AJ18: =IFERROR(Z18*'Inputs & Assumptions'!$Q$46,"--") -> 150 | AK18: =IFERROR(AA18*'Inputs & Assumptions'!$Q$47,"--") -> 277500 | AL18: =IFERROR(AB18*'Inputs & Assumptions'!$Q$48,"--") -> 662155.765 | AM18: =IFERROR(AC18*'Inputs & Assumptions'!$Q$49,"--") -> 64750
A19: 0401 | B19: Audubon Borough | C19: Camden | D19: 3400702200 | E19: 16 | F19: 713845304 | G19: 7371000 | H19: 1.03257666 | I19: 2598268.518 | J19: 948.5830539 | K19: 4.036330237 | L19: 6106941.85 | M19: 15335212 | N19: 28813153.85 | O19: 0.2558206588 | P19: 0.211949788 | Q19: 0.5322295532 | R19: 10665 | S19: 243.6257401 | T19: =VLOOKUP(A19,'[1]2024 Summary'!$A$8:$DK$571,92,FALSE) -> 711509 | U19: =VLOOKUP(A19,'[1]2024 Summary'!$A$8:$DK$571,93,FALSE) -> 45800 | V19: =VLOOKUP(A19,'[1]2024 Summary'!$A$8:$DK$571,94,FALSE) -> 67710 | W19: =VLOOKUP(A19,'[1]2024 Summary'!$A$8:$DK$571,96,FALSE) -> 2866783 | X19: =VLOOKUP(A19,'[1]2024 Summary'!$A$8:$DK$571,97,FALSE) -> 1510125 | Y19: =VLOOKUP(A19,'[1]2024 Summary'!$A$8:$DK$571,98,FALSE) -> 0 | Z19: =VLOOKUP(A19,'[1]2024 Summary'!$A$8:$DK$571,100,FALSE) -> 326016.18 | AA19: =VLOOKUP(A19,'[1]2024 Summary'!$A$8:$DK$571,103,FALSE) -> 400000 | AB19: =VLOOKUP(A19,'[1]2024 Summary'!$A$8:$DK$571,105,FALSE) -> 1175981 | AC19: =VLOOKUP(A19,'[1]2024 Summary'!$A$8:$DK$571,108,FALSE) -> 167373 | AD19: =IFERROR(T19*'Inputs & Assumptions'!$Q$40,"--") -> 71150.9 | AE19: =IFERROR(U19*'Inputs & Assumptions'!$Q$41,"--") -> 4580 | AF19: =IFERROR(V19*'Inputs & Assumptions'!$Q$42,"--") -> 33855 | AG19: =IFERROR(W19*'Inputs & Assumptions'!$Q$43,"--") -> 1433391.5 | AH19: =IFERROR(X19*'Inputs & Assumptions'!$Q$44,"--") -> 151012.5 | AI19: =IFERROR(Y19*'Inputs & Assumptions'!$Q$45,"--") -> 0 | AJ19: =IFERROR(Z19*'Inputs & Assumptions'!$Q$46,"--") -> 32601.618 | AK19: =IFERROR(AA19*'Inputs & Assumptions'!$Q$47,"--") -> 200000 | AL19: =IFERROR(AB19*'Inputs & Assumptions'!$Q$48,"--") -> 587990.5 | AM19: =IFERROR(AC19*'Inputs & Assumptions'!$Q$49,"--") -> 83686.5
A20: 0402 | B20: Audubon Park Borough | C20: Camden | D20: 3400702230 | E20: 17 | F20: 20700000 | G20: 974000 | H20: 4.70531401 | I20: 64961.794 | J20: 96.27369972 | K20: 6.911317633 | L20: 137483.75 | M20: 319159 | N20: 1430642.75 | O20: 0.6808128724 | P20: 0.09609928824 | Q20: 0.2230878394 | R20: 1200 | S20: 54.13482833 | T20: =VLOOKUP(A20,'[1]2024 Summary'!$A$8:$DK$571,92,FALSE) -> 150995.44 | U20: =VLOOKUP(A20,'[1]2024 Summary'!$A$8:$DK$571,93,FALSE) -> 0 | V20: =VLOOKUP(A20,'[1]2024 Summary'!$A$8:$DK$571,94,FALSE) -> 3000 | W20: =VLOOKUP(A20,'[1]2024 Summary'!$A$8:$DK$571,96,FALSE) -> 34202.02 | X20: =VLOOKUP(A20,'[1]2024 Summary'!$A$8:$DK$571,97,FALSE) -> 76000 | Y20: =VLOOKUP(A20,'[1]2024 Summary'!$A$8:$DK$571,98,FALSE) -> 8380.8 | Z20: =VLOOKUP(A20,'[1]2024 Summary'!$A$8:$DK$571,100,FALSE) -> 19796 | AA20: =VLOOKUP(A20,'[1]2024 Summary'!$A$8:$DK$571,103,FALSE) -> 0 | AB20: =VLOOKUP(A20,'[1]2024 Summary'!$A$8:$DK$571,105,FALSE) -> 41687.12 | AC20: =VLOOKUP(A20,'[1]2024 Summary'!$A$8:$DK$571,108,FALSE) -> 0 | AD20: =IFERROR(T20*'Inputs & Assumptions'!$Q$40,"--") -> 15099.544 | AE20: =IFERROR(U20*'Inputs & Assumptions'!$Q$41,"--") -> 0 | AF20: =IFERROR(V20*'Inputs & Assumptions'!$Q$42,"--") -> 1500 | AG20: =IFERROR(W20*'Inputs & Assumptions'!$Q$43,"--") -> 17101.01 | AH20: =IFERROR(X20*'Inputs & Assumptions'!$Q$44,"--") -> 7600 | AI20: =IFERROR(Y20*'Inputs & Assumptions'!$Q$45,"--") -> 838.08 | AJ20: =IFERROR(Z20*'Inputs & Assumptions'!$Q$46,"--") -> 1979.6 | AK20: =IFERROR(AA20*'Inputs & Assumptions'!$Q$47,"--") -> 0 | AL20: =IFERROR(AB20*'Inputs & Assumptions'!$Q$48,"--") -> 20843.56 | AM20: =IFERROR(AC20*'Inputs & Assumptions'!$Q$49,"--") -> 0
A21: 0501 | B21: Avalon Borough | C21: Cape May | D21: 3400902320 | E21: 18 | F21: 9942643618 | G21: 25775080 | H21: 0.2592376936 | I21: 4976338.406 | J21: 2732.755824 | K21: 0.6136993295 | L21: 32102589.22 | M21: 3140268 | N21: 61017937.22 | O21: 0.4224180819 | P21: 0.5261172482 | Q21: 0.05146466995 | R21: 2636 | S21: 1887.837028 | T21: =VLOOKUP(A21,'[1]2024 Summary'!$A$8:$DK$571,92,FALSE) -> 2717495.01 | U21: =VLOOKUP(A21,'[1]2024 Summary'!$A$8:$DK$571,93,FALSE) -> 88162 | V21: =VLOOKUP(A21,'[1]2024 Summary'!$A$8:$DK$571,94,FALSE) -> 244663.01 | W21: =VLOOKUP(A21,'[1]2024 Summary'!$A$8:$DK$571,96,FALSE) -> 4296504 | X21: =VLOOKUP(A21,'[1]2024 Summary'!$A$8:$DK$571,97,FALSE) -> 5597037 | Y21: =VLOOKUP(A21,'[1]2024 Summary'!$A$8:$DK$571,98,FALSE) -> 60050 | Z21: =VLOOKUP(A21,'[1]2024 Summary'!$A$8:$DK$571,100,FALSE) -> 5315080 | AA21: =VLOOKUP(A21,'[1]2024 Summary'!$A$8:$DK$571,103,FALSE) -> 305000 | AB21: =VLOOKUP(A21,'[1]2024 Summary'!$A$8:$DK$571,105,FALSE) -> 2144468 | AC21: =VLOOKUP(A21,'[1]2024 Summary'!$A$8:$DK$571,108,FALSE) -> 206477 | AD21: =IFERROR(T21*'Inputs & Assumptions'!$Q$40,"--") -> 271749.501 | AE21: =IFERROR(U21*'Inputs & Assumptions'!$Q$41,"--") -> 8816.2 | AF21: =IFERROR(V21*'Inputs & Assumptions'!$Q$42,"--") -> 122331.505 | AG21: =IFERROR(W21*'Inputs & Assumptions'!$Q$43,"--") -> 2148252 | AH21: =IFERROR(X21*'Inputs & Assumptions'!$Q$44,"--") -> 559703.7 | AI21: =IFERROR(Y21*'Inputs & Assumptions'!$Q$45,"--") -> 6005 | AJ21: =IFERROR(Z21*'Inputs & Assumptions'!$Q$46,"--") -> 531508 | AK21: =IFERROR(AA21*'Inputs & Assumptions'!$Q$47,"--") -> 152500 | AL21: =IFERROR(AB21*'Inputs & Assumptions'!$Q$48,"--") -> 1072234 | AM21: =IFERROR(AC21*'Inputs & Assumptions'!$Q$49,"--") -> 103238.5
A22: 1305 | B22: Avon-by-the-Sea Borough | C22: Monmouth | D22: 3402502440 | E22: 19 | F22: 1387964600 | G22: 4255048.7 | H22: 0.3065675234 | I22: 1764241.752 | J22: 272.3530149 | K22: 0.8687577046 | L22: 3369986.7 | M22: 4433014 | N22: 12058049.4 | O22: 0.3528803506 | P22: 0.2794802532 | Q22: 0.3676393961 | R22: 2164 | S22: 815.2688318 | T22: =VLOOKUP(A22,'[1]2024 Summary'!$A$8:$DK$571,92,FALSE) -> 1612900 | U22: =VLOOKUP(A22,'[1]2024 Summary'!$A$8:$DK$571,93,FALSE) -> 29200 | V22: =VLOOKUP(A22,'[1]2024 Summary'!$A$8:$DK$571,94,FALSE) -> 170345 | W22: =VLOOKUP(A22,'[1]2024 Summary'!$A$8:$DK$571,96,FALSE) -> 1701147.86 | X22: =VLOOKUP(A22,'[1]2024 Summary'!$A$8:$DK$571,97,FALSE) -> 1196956 | Y22: =VLOOKUP(A22,'[1]2024 Summary'!$A$8:$DK$571,98,FALSE) -> 9900 | Z22: =VLOOKUP(A22,'[1]2024 Summary'!$A$8:$DK$571,100,FALSE) -> 512914.22 | AA22: =VLOOKUP(A22,'[1]2024 Summary'!$A$8:$DK$571,103,FALSE) -> 175000 | AB22: =VLOOKUP(A22,'[1]2024 Summary'!$A$8:$DK$571,105,FALSE) -> 786616.6 | AC22: =VLOOKUP(A22,'[1]2024 Summary'!$A$8:$DK$571,108,FALSE) -> 23000 | AD22: =IFERROR(T22*'Inputs & Assumptions'!$Q$40,"--") -> 161290 | AE22: =IFERROR(U22*'Inputs & Assumptions'!$Q$41,"--") -> 2920 | AF22: =IFERROR(V22*'Inputs & Assumptions'!$Q$42,"--") -> 85172.5 | AG22: =IFERROR(W22*'Inputs & Assumptions'!$Q$43,"--") -> 850573.93 | AH22: =IFERROR(X22*'Inputs & Assumptions'!$Q$44,"--") -> 119695.6 | AI22: =IFERROR(Y22*'Inputs & Assumptions'!$Q$45,"--") -> 990 | AJ22: =IFERROR(Z22*'Inputs & Assumptions'!$Q$46,"--") -> 51291.422 | AK22: =IFERROR(AA22*'Inputs & Assumptions'!$Q$47,"--") -> 87500 | AL22: =IFERROR(AB22*'Inputs & Assumptions'!$Q$48,"--") -> 393308.3 | AM22: =IFERROR(AC22*'Inputs & Assumptions'!$Q$49,"--") -> 11500
A23: 1501 | B23: Barnegat Light Borough | C23: Ocean | D23: 3402903130 | E23: 20 | F23: 1063983700 | G23: 2794842 | H23: 0.2626771444 | I23: 630068.638 | J23: 531.7253423 | K23: 1.00719188 | L23: 5603482.43 | M23: 2318033 | N23: 10716357.43 | O23: 0.2608014914 | P23: 0.5228905873 | Q23: 0.2163079213 | R23: 700 | S23: 900.0980543 | T23: =VLOOKUP(A23,'[1]2024 Summary'!$A$8:$DK$571,92,FALSE) -> 1786976.38 | U23: =VLOOKUP(A23,'[1]2024 Summary'!$A$8:$DK$571,93,FALSE) -> 35750 | V23: =VLOOKUP(A23,'[1]2024 Summary'!$A$8:$DK$571,94,FALSE) -> 35000 | W23: =VLOOKUP(A23,'[1]2024 Summary'!$A$8:$DK$571,96,FALSE) -> 97800 | X23: =VLOOKUP(A23,'[1]2024 Summary'!$A$8:$DK$571,97,FALSE) -> 292000 | Y23: =VLOOKUP(A23,'[1]2024 Summary'!$A$8:$DK$571,98,FALSE) -> 10100 | Z23: =VLOOKUP(A23,'[1]2024 Summary'!$A$8:$DK$571,100,FALSE) -> 0 | AA23: =VLOOKUP(A23,'[1]2024 Summary'!$A$8:$DK$571,103,FALSE) -> 408500 | AB23: =VLOOKUP(A23,'[1]2024 Summary'!$A$8:$DK$571,105,FALSE) -> 260872 | AC23: =VLOOKUP(A23,'[1]2024 Summary'!$A$8:$DK$571,108,FALSE) -> 33000 | AD23: =IFERROR(T23*'Inputs & Assumptions'!$Q$40,"--") -> 178697.638 | AE23: =IFERROR(U23*'Inputs & Assumptions'!$Q$41,"--") -> 3575 | AF23: =IFERROR(V23*'Inputs & Assumptions'!$Q$42,"--") -> 17500 | AG23: =IFERROR(W23*'Inputs & Assumptions'!$Q$43,"--") -> 48900 | AH23: =IFERROR(X23*'Inputs & Assumptions'!$Q$44,"--") -> 29200 | AI23: =IFERROR(Y23*'Inputs & Assumptions'!$Q$45,"--") -> 1010 | AJ23: =IFERROR(Z23*'Inputs & Assumptions'!$Q$46,"--") -> 0 | AK23: =IFERROR(AA23*'Inputs & Assumptions'!$Q$47,"--") -> 204250 | AL23: =IFERROR(AB23*'Inputs & Assumptions'!$Q$48,"--") -> 130436 | AM23: =IFERROR(AC23*'Inputs & Assumptions'!$Q$49,"--") -> 16500
A24: 1533 | B24: Barnegat Township | C24: Ocean | D24: 3402903050 | E24: 21 | F24: 2707085900 | G24: 26569181.09 | H24: 0.9814679723 | I24: 9718881.4 | J24: 21912.95004 | K24: 2.976923824 | L24: 13998805.99 | M24: 40019898 | N24: 80587885.08 | O24: 0.329692001 | P24: 0.1737085664 | Q24: 0.4965994325 | R24: 26837 | S24: 362.1448523 | T24: =VLOOKUP(A24,'[1]2024 Summary'!$A$8:$DK$571,92,FALSE) -> 9013583 | U24: =VLOOKUP(A24,'[1]2024 Summary'!$A$8:$DK$571,93,FALSE) -> 189000 | V24: =VLOOKUP(A24,'[1]2024 Summary'!$A$8:$DK$571,94,FALSE) -> 1327350 | W24: =VLOOKUP(A24,'[1]2024 Summary'!$A$8:$DK$571,96,FALSE) -> 9556016.2 | X24: =VLOOKUP(A24,'[1]2024 Summary'!$A$8:$DK$571,97,FALSE) -> 4478300 | Y24: =VLOOKUP(A24,'[1]2024 Summary'!$A$8:$DK$571,98,FALSE) -> 47850 | Z24: =VLOOKUP(A24,'[1]2024 Summary'!$A$8:$DK$571,100,FALSE) -> 0 | AA24: =VLOOKUP(A24,'[1]2024 Summary'!$A$8:$DK$571,103,FALSE) -> 958000 | AB24: =VLOOKUP(A24,'[1]2024 Summary'!$A$8:$DK$571,105,FALSE) -> 4520150 | AC24: =VLOOKUP(A24,'[1]2024 Summary'!$A$8:$DK$571,108,FALSE) -> 330500 | AD24: =IFERROR(T24*'Inputs & Assumptions'!$Q$40,"--") -> 901358.3 | AE24: =IFERROR(U24*'Inputs & Assumptions'!$Q$41,"--") -> 18900 | AF24: =IFERROR(V24*'Inputs & Assumptions'!$Q$42,"--") -> 663675 | AG24: =IFERROR(W24*'Inputs & Assumptions'!$Q$43,"--") -> 4778008.1 | AH24: =IFERROR(X24*'Inputs & Assumptions'!$Q$44,"--") -> 447830 | AI24: =IFERROR(Y24*'Inputs & Assumptions'!$Q$45,"--") -> 4785 | AJ24: =IFERROR(Z24*'Inputs & Assumptions'!$Q$46,"--") -> 0 | AK24: =IFERROR(AA24*'Inputs & Assumptions'!$Q$47,"--") -> 479000 | AL24: =IFERROR(AB24*'Inputs & Assumptions'!$Q$48,"--") -> 2260075 | AM24: =IFERROR(AC24*'Inputs & Assumptions'!$Q$49,"--") -> 165250
A25: 0403 | B25: Barrington Borough | C25: Camden | D25: 3400703250 | E25: 22 | F25: 496427666 | G25: 6750350.91 | H25: 1.359785397 | I25: 2339520.985 | J25: 1011.980137 | K25: 4.787657217 | L25: 4938306.07 | M25: 12078598 | N25: 23767254.98 | O25: 0.2840189545 | P25: 0.2077777208 | Q25: 0.5082033247 | R25: 9163 | S25: 255.3226001 | T25: =VLOOKUP(A25,'[1]2024 Summary'!$A$8:$DK$571,92,FALSE) -> 865488.91 | U25: =VLOOKUP(A25,'[1]2024 Summary'!$A$8:$DK$571,93,FALSE) -> 23625 | V25: =VLOOKUP(A25,'[1]2024 Summary'!$A$8:$DK$571,94,FALSE) -> 0 | W25: =VLOOKUP(A25,'[1]2024 Summary'!$A$8:$DK$571,96,FALSE) -> 2397748.58 | X25: =VLOOKUP(A25,'[1]2024 Summary'!$A$8:$DK$571,97,FALSE) -> 1545488.54 | Y25: =VLOOKUP(A25,'[1]2024 Summary'!$A$8:$DK$571,98,FALSE) -> 25650 | Z25: =VLOOKUP(A25,'[1]2024 Summary'!$A$8:$DK$571,100,FALSE) -> 0 | AA25: =VLOOKUP(A25,'[1]2024 Summary'!$A$8:$DK$571,103,FALSE) -> 729525 | AB25: =VLOOKUP(A25,'[1]2024 Summary'!$A$8:$DK$571,105,FALSE) -> 930717.9 | AC25: =VLOOKUP(A25,'[1]2024 Summary'!$A$8:$DK$571,108,FALSE) -> 129000 | AD25: =IFERROR(T25*'Inputs & Assumptions'!$Q$40,"--") -> 86548.891 | AE25: =IFERROR(U25*'Inputs & Assumptions'!$Q$41,"--") -> 2362.5 | AF25: =IFERROR(V25*'Inputs & Assumptions'!$Q$42,"--") -> 0 | AG25: =IFERROR(W25*'Inputs & Assumptions'!$Q$43,"--") -> 1198874.29 | AH25: =IFERROR(X25*'Inputs & Assumptions'!$Q$44,"--") -> 154548.854 | AI25: =IFERROR(Y25*'Inputs & Assumptions'!$Q$45,"--") -> 2565 | AJ25: =IFERROR(Z25*'Inputs & Assumptions'!$Q$46,"--") -> 0 | AK25: =IFERROR(AA25*'Inputs & Assumptions'!$Q$47,"--") -> 364762.5 | AL25: =IFERROR(AB25*'Inputs & Assumptions'!$Q$48,"--") -> 465358.95 | AM25: =IFERROR(AC25*'Inputs & Assumptions'!$Q$49,"--") -> 64500
A26: 0301 | B26: Bass River Township | C26: Burlington | D26: 3400503370 | E26: 23 | F26: 174973277 | G26: 675519.98 | H26: 0.3860703712 | I26: 269049.8 | J26: 48079.38726 | K26: 2.183071791 | L26: 801531.2724 | M26: 2342741 | N26: 3819792.252 | O26: 0.1768473088 | P26: 0.2098363522 | Q26: 0.613316339 | R26: 2010 | S26: 133.8556219 | T26: =VLOOKUP(A26,'[1]2024 Summary'!$A$8:$DK$571,92,FALSE) -> 342100 | U26: =VLOOKUP(A26,'[1]2024 Summary'!$A$8:$DK$571,93,FALSE) -> 23700 | V26: =VLOOKUP(A26,'[1]2024 Summary'!$A$8:$DK$571,94,FALSE) -> 5900 | W26: =VLOOKUP(A26,'[1]2024 Summary'!$A$8:$DK$571,96,FALSE) -> 134400 | X26: =VLOOKUP(A26,'[1]2024 Summary'!$A$8:$DK$571,97,FALSE) -> 369063 | Y26: =VLOOKUP(A26,'[1]2024 Summary'!$A$8:$DK$571,98,FALSE) -> 6000 | Z26: =VLOOKUP(A26,'[1]2024 Summary'!$A$8:$DK$571,100,FALSE) -> 0 | AA26: =VLOOKUP(A26,'[1]2024 Summary'!$A$8:$DK$571,103,FALSE) -> 3000 | AB26: =VLOOKUP(A26,'[1]2024 Summary'!$A$8:$DK$571,105,FALSE) -> 66627 | AC26: =VLOOKUP(A26,'[1]2024 Summary'!$A$8:$DK$571,108,FALSE) -> 180000 | AD26: =IFERROR(T26*'Inputs & Assumptions'!$Q$40,"--") -> 34210 | AE26: =IFERROR(U26*'Inputs & Assumptions'!$Q$41,"--") -> 2370 | AF26: =IFERROR(V26*'Inputs & Assumptions'!$Q$42,"--") -> 2950 | AG26: =IFERROR(W26*'Inputs & Assumptions'!$Q$43,"--") -> 67200 | AH26: =IFERROR(X26*'Inputs & Assumptions'!$Q$44,"--") -> 36906.3 | AI26: =IFERROR(Y26*'Inputs & Assumptions'!$Q$45,"--") -> 600 | AJ26: =IFERROR(Z26*'Inputs & Assumptions'!$Q$46,"--") -> 0 | AK26: =IFERROR(AA26*'Inputs & Assumptions'!$Q$47,"--") -> 1500 | AL26: =IFERROR(AB26*'Inputs & Assumptions'!$Q$48,"--") -> 33313.5 | AM26: =IFERROR(AC26*'Inputs & Assumptions'!$Q$49,"--") -> 90000
A27: 1502 | B27: Bay Head Borough | C27: Ocean | D27: 3402903520 | E27: 24 | F27: 1672804200 | G27: 4535631.53 | H27: 0.2711394155 | I27: 1545891.875 | J27: 374.7195895 | K27: 1.009752829 | L27: 8406859.21 | M27: 3948697 | N27: 16891187.74 | O27: 0.2685205801 | P27: 0.4977068125 | Q27: 0.2337726074 | R27: 1859 | S27: 831.5717456 | T27: =VLOOKUP(A27,'[1]2024 Summary'!$A$8:$DK$571,92,FALSE) -> 559311 | U27: =VLOOKUP(A27,'[1]2024 Summary'!$A$8:$DK$571,93,FALSE) -> 55000 | V27: =VLOOKUP(A27,'[1]2024 Summary'!$A$8:$DK$571,94,FALSE) -> 174574 | W27: =VLOOKUP(A27,'[1]2024 Summary'!$A$8:$DK$571,96,FALSE) -> 1683039.88 | X27: =VLOOKUP(A27,'[1]2024 Summary'!$A$8:$DK$571,97,FALSE) -> 353202 | Y27: =VLOOKUP(A27,'[1]2024 Summary'!$A$8:$DK$571,98,FALSE) -> 8850 | Z27: =VLOOKUP(A27,'[1]2024 Summary'!$A$8:$DK$571,100,FALSE) -> 3000 | AA27: =VLOOKUP(A27,'[1]2024 Summary'!$A$8:$DK$571,103,FALSE) -> 352000 | AB27: =VLOOKUP(A27,'[1]2024 Summary'!$A$8:$DK$571,105,FALSE) -> 631037 | AC27: =VLOOKUP(A27,'[1]2024 Summary'!$A$8:$DK$571,108,FALSE) -> 55260.27 | AD27: =IFERROR(T27*'Inputs & Assumptions'!$Q$40,"--") -> 55931.1 | AE27: =IFERROR(U27*'Inputs & Assumptions'!$Q$41,"--") -> 5500 | AF27: =IFERROR(V27*'Inputs & Assumptions'!$Q$42,"--") -> 87287 | AG27: =IFERROR(W27*'Inputs & Assumptions'!$Q$43,"--") -> 841519.94 | AH27: =IFERROR(X27*'Inputs & Assumptions'!$Q$44,"--") -> 35320.2 | AI27: =IFERROR(Y27*'Inputs & Assumptions'!$Q$45,"--") -> 885 | AJ27: =IFERROR(Z27*'Inputs & Assumptions'!$Q$46,"--") -> 300 | AK27: =IFERROR(AA27*'Inputs & Assumptions'!$Q$47,"--") -> 176000 | AL27: =IFERROR(AB27*'Inputs & Assumptions'!$Q$48,"--") -> 315518.5 | AM27: =IFERROR(AC27*'Inputs & Assumptions'!$Q$49,"--") -> 27630.135
A28: 0901 | B28: Bayonne City | C28: Hudson | D28: 3401703580 | E28: 25 | F28: 7570703976 | G28: 94659974.29 | H28: 1.250345735 | I28: 41369140.33 | J28: 3725.750369 | K28: 2.795212101 | L28: 36861168.07 | M28: 80096091.31 | N28: 211617233.7 | O28: 0.4473169441 | P28: 0.1741879309 | Q28: 0.378495125 | R28: 78565 | S28: 526.5594136 | T28: =VLOOKUP(A28,'[1]2024 Summary'!$A$8:$DK$571,92,FALSE) -> 8271442 | U28: =VLOOKUP(A28,'[1]2024 Summary'!$A$8:$DK$571,93,FALSE) -> 1020350 | V28: =VLOOKUP(A28,'[1]2024 Summary'!$A$8:$DK$571,94,FALSE) -> 0 | W28: =VLOOKUP(A28,'[1]2024 Summary'!$A$8:$DK$571,96,FALSE) -> 51888412.97 | X28: =VLOOKUP(A28,'[1]2024 Summary'!$A$8:$DK$571,97,FALSE) -> 9523515.42 | Y28: =VLOOKUP(A28,'[1]2024 Summary'!$A$8:$DK$571,98,FALSE) -> 2248994 | Z28: =VLOOKUP(A28,'[1]2024 Summary'!$A$8:$DK$571,100,FALSE) -> 3306137.06 | AA28: =VLOOKUP(A28,'[1]2024 Summary'!$A$8:$DK$571,103,FALSE) -> 3900000 | AB28: =VLOOKUP(A28,'[1]2024 Summary'!$A$8:$DK$571,105,FALSE) -> 20755780 | AC28: =VLOOKUP(A28,'[1]2024 Summary'!$A$8:$DK$571,108,FALSE) -> 1320000 | AD28: =IFERROR(T28*'Inputs & Assumptions'!$Q$40,"--") -> 827144.2 | AE28: =IFERROR(U28*'Inputs & Assumptions'!$Q$41,"--") -> 102035 | AF28: =IFERROR(V28*'Inputs & Assumptions'!$Q$42,"--") -> 0 | AG28: =IFERROR(W28*'Inputs & Assumptions'!$Q$43,"--") -> 25944206.49 | AH28: =IFERROR(X28*'Inputs & Assumptions'!$Q$44,"--") -> 952351.542 | AI28: =IFERROR(Y28*'Inputs & Assumptions'!$Q$45,"--") -> 224899.4 | AJ28: =IFERROR(Z28*'Inputs & Assumptions'!$Q$46,"--") -> 330613.706 | AK28: =IFERROR(AA28*'Inputs & Assumptions'!$Q$47,"--") -> 1950000 | AL28: =IFERROR(AB28*'Inputs & Assumptions'!$Q$48,"--") -> 10377890 | AM28: =IFERROR(AC28*'Inputs & Assumptions'!$Q$49,"--") -> 660000
A29: 1503 | B29: Beach Haven Borough | C29: Ocean | D29: 3402903940 | E29: 26 | F29: 2188346100 | G29: 10268387.75 | H29: 0.4692305184 | I29: 2937102.125 | J29: 626.7986046 | K29: 1.311497082 | L29: 11018960.5 | M29: 7412747 | N29: 28700095.25 | O29: 0.3577823579 | P29: 0.3839346317 | Q29: 0.2582830104 | R29: 1765 | S29: 1664.080524 | T29: =VLOOKUP(A29,'[1]2024 Summary'!$A$8:$DK$571,92,FALSE) -> 3771237 | U29: =VLOOKUP(A29,'[1]2024 Summary'!$A$8:$DK$571,93,FALSE) -> 89400 | V29: =VLOOKUP(A29,'[1]2024 Summary'!$A$8:$DK$571,94,FALSE) -> 202250 | W29: =VLOOKUP(A29,'[1]2024 Summary'!$A$8:$DK$571,96,FALSE) -> 2595606.44 | X29: =VLOOKUP(A29,'[1]2024 Summary'!$A$8:$DK$571,97,FALSE) -> 1622603.69 | Y29: =VLOOKUP(A29,'[1]2024 Summary'!$A$8:$DK$571,98,FALSE) -> 105000 | Z29: =VLOOKUP(A29,'[1]2024 Summary'!$A$8:$DK$571,100,FALSE) -> 1230518.36 | AA29: =VLOOKUP(A29,'[1]2024 Summary'!$A$8:$DK$571,103,FALSE) -> 240000 | AB29: =VLOOKUP(A29,'[1]2024 Summary'!$A$8:$DK$571,105,FALSE) -> 1362255 | AC29: =VLOOKUP(A29,'[1]2024 Summary'!$A$8:$DK$571,108,FALSE) -> 110341 | AD29: =IFERROR(T29*'Inputs & Assumptions'!$Q$40,"--") -> 377123.7 | AE29: =IFERROR(U29*'Inputs & Assumptions'!$Q$41,"--") -> 8940 | AF29: =IFERROR(V29*'Inputs & Assumptions'!$Q$42,"--") -> 101125 | AG29: =IFERROR(W29*'Inputs & Assumptions'!$Q$43,"--") -> 1297803.22 | AH29: =IFERROR(X29*'Inputs & Assumptions'!$Q$44,"--") -> 162260.369 | AI29: =IFERROR(Y29*'Inputs & Assumptions'!$Q$45,"--") -> 10500 | AJ29: =IFERROR(Z29*'Inputs & Assumptions'!$Q$46,"--") -> 123051.836 | AK29: =IFERROR(AA29*'Inputs & Assumptions'!$Q$47,"--") -> 120000 | AL29: =IFERROR(AB29*'Inputs & Assumptions'!$Q$48,"--") -> 681127.5 | AM29: =IFERROR(AC29*'Inputs & Assumptions'!$Q$49,"--") -> 55170.5
A30: 1504 | B30: Beachwood Borough | C30: Ocean | D30: 3402904180 | E30: 27 | F30: 829292300 | G30: 9014362.8 | H30: 1.086994634 | I30: 3209070.73 | J30: 1768.374589 | K30: 2.903011972 | L30: 4555491.95 | M30: 10504600 | N30: 24074454.75 | O30: 0.3744368416 | P30: 0.189225135 | Q30: 0.4363380234 | R30: 11549 | S30: 277.8656793 | T30: =VLOOKUP(A30,'[1]2024 Summary'!$A$8:$DK$571,92,FALSE) -> 963091.31 | U30: =VLOOKUP(A30,'[1]2024 Summary'!$A$8:$DK$571,93,FALSE) -> 48517.75 | V30: =VLOOKUP(A30,'[1]2024 Summary'!$A$8:$DK$571,94,FALSE) -> 152103.8 | W30: =VLOOKUP(A30,'[1]2024 Summary'!$A$8:$DK$571,96,FALSE) -> 3118331.55 | X30: =VLOOKUP(A30,'[1]2024 Summary'!$A$8:$DK$571,97,FALSE) -> 3406091.44 | Y30: =VLOOKUP(A30,'[1]2024 Summary'!$A$8:$DK$571,98,FALSE) -> 11150 | Z30: =VLOOKUP(A30,'[1]2024 Summary'!$A$8:$DK$571,100,FALSE) -> 0 | AA30: =VLOOKUP(A30,'[1]2024 Summary'!$A$8:$DK$571,103,FALSE) -> 600000 | AB30: =VLOOKUP(A30,'[1]2024 Summary'!$A$8:$DK$571,105,FALSE) -> 1497914.32 | AC30: =VLOOKUP(A30,'[1]2024 Summary'!$A$8:$DK$571,108,FALSE) -> 164021.69 | AD30: =IFERROR(T30*'Inputs & Assumptions'!$Q$40,"--") -> 96309.131 | AE30: =IFERROR(U30*'Inputs & Assumptions'!$Q$41,"--") -> 4851.775 | AF30: =IFERROR(V30*'Inputs & Assumptions'!$Q$42,"--") -> 76051.9 | AG30: =IFERROR(W30*'Inputs & Assumptions'!$Q$43,"--") -> 1559165.775 | AH30: =IFERROR(X30*'Inputs & Assumptions'!$Q$44,"--") -> 340609.144 | AI30: =IFERROR(Y30*'Inputs & Assumptions'!$Q$45,"--") -> 1115 | AJ30: =IFERROR(Z30*'Inputs & Assumptions'!$Q$46,"--") -> 0 | AK30: =IFERROR(AA30*'Inputs & Assumptions'!$Q$47,"--") -> 300000 | AL30: =IFERROR(AB30*'Inputs & Assumptions'!$Q$48,"--") -> 748957.16 | AM30: =IFERROR(AC30*'Inputs & Assumptions'!$Q$49,"--") -> 82010.845
A31: 1801 | B31: Bedminster Township | C31: Somerset | D31: 3403504450 | E31: 28 | F31: 2759691800 | G31: 8283033.74 | H31: 0.3001434341 | I31: 2653513.101 | J31: 16718.59146 | K31: 1.269931043 | L31: 8706611.11 | M31: 18056538 | N31: 35046182.85 | O31: 0.2363462456 | P31: 0.2484325082 | Q31: 0.5152212461 | R31: 13424 | S31: 197.6693311 | T31: =VLOOKUP(A31,'[1]2024 Summary'!$A$8:$DK$571,92,FALSE) -> 1396813 | U31: =VLOOKUP(A31,'[1]2024 Summary'!$A$8:$DK$571,93,FALSE) -> 109535.91 | V31: =VLOOKUP(A31,'[1]2024 Summary'!$A$8:$DK$571,94,FALSE) -> 284240 | W31: =VLOOKUP(A31,'[1]2024 Summary'!$A$8:$DK$571,96,FALSE) -> 2946128.95 | X31: =VLOOKUP(A31,'[1]2024 Summary'!$A$8:$DK$571,97,FALSE) -> 1539086.55 | Y31: =VLOOKUP(A31,'[1]2024 Summary'!$A$8:$DK$571,98,FALSE) -> 127402.8 | Z31: =VLOOKUP(A31,'[1]2024 Summary'!$A$8:$DK$571,100,FALSE) -> 894467.7 | AA31: =VLOOKUP(A31,'[1]2024 Summary'!$A$8:$DK$571,103,FALSE) -> 0 | AB31: =VLOOKUP(A31,'[1]2024 Summary'!$A$8:$DK$571,105,FALSE) -> 1192966.06 | AC31: =VLOOKUP(A31,'[1]2024 Summary'!$A$8:$DK$571,108,FALSE) -> 70230 | AD31: =IFERROR(T31*'Inputs & Assumptions'!$Q$40,"--") -> 139681.3 | AE31: =IFERROR(U31*'Inputs & Assumptions'!$Q$41,"--") -> 10953.591 | AF31: =IFERROR(V31*'Inputs & Assumptions'!$Q$42,"--") -> 142120 | AG31: =IFERROR(W31*'Inputs & Assumptions'!$Q$43,"--") -> 1473064.475 | AH31: =IFERROR(X31*'Inputs & Assumptions'!$Q$44,"--") -> 153908.655 | AI31: =IFERROR(Y31*'Inputs & Assumptions'!$Q$45,"--") -> 12740.28 | AJ31: =IFERROR(Z31*'Inputs & Assumptions'!$Q$46,"--") -> 89446.77 | AK31: =IFERROR(AA31*'Inputs & Assumptions'!$Q$47,"--") -> 0 | AL31: =IFERROR(AB31*'Inputs & Assumptions'!$Q$48,"--") -> 596483.03 | AM31: =IFERROR(AC31*'Inputs & Assumptions'!$Q$49,"--") -> 35115
A32: 0701 | B32: Belleville Township | C32: Essex | D32: 3401304695 | E32: 29 | F32: 3130594800 | G32: 59893979.8 | H32: 1.913182115 | I32: 16611600.82 | J32: 2109.329219 | K32: 4.032746446 | L32: 16319282.75 | M32: 50035688 | N32: 126248950.6 | O32: 0.4744117043 | P32: 0.12926272 | Q32: 0.3963255756 | R32: 44220 | S32: 375.6580919 | T32: =VLOOKUP(A32,'[1]2024 Summary'!$A$8:$DK$571,92,FALSE) -> 2032962.96 | U32: =VLOOKUP(A32,'[1]2024 Summary'!$A$8:$DK$571,93,FALSE) -> 255000 | V32: =VLOOKUP(A32,'[1]2024 Summary'!$A$8:$DK$571,94,FALSE) -> 1246000 | W32: =VLOOKUP(A32,'[1]2024 Summary'!$A$8:$DK$571,96,FALSE) -> 16308000 | X32: =VLOOKUP(A32,'[1]2024 Summary'!$A$8:$DK$571,97,FALSE) -> 3551000 | Y32: =VLOOKUP(A32,'[1]2024 Summary'!$A$8:$DK$571,98,FALSE) -> 984500 | Z32: =VLOOKUP(A32,'[1]2024 Summary'!$A$8:$DK$571,100,FALSE) -> 1399714.28 | AA32: =VLOOKUP(A32,'[1]2024 Summary'!$A$8:$DK$571,103,FALSE) -> 4300000 | AB32: =VLOOKUP(A32,'[1]2024 Summary'!$A$8:$DK$571,105,FALSE) -> 9349566.2 | AC32: =VLOOKUP(A32,'[1]2024 Summary'!$A$8:$DK$571,108,FALSE) -> 375000 | AD32: =IFERROR(T32*'Inputs & Assumptions'!$Q$40,"--") -> 203296.296 | AE32: =IFERROR(U32*'Inputs & Assumptions'!$Q$41,"--") -> 25500 | AF32: =IFERROR(V32*'Inputs & Assumptions'!$Q$42,"--") -> 623000 | AG32: =IFERROR(W32*'Inputs & Assumptions'!$Q$43,"--") -> 8154000 | AH32: =IFERROR(X32*'Inputs & Assumptions'!$Q$44,"--") -> 355100 | AI32: =IFERROR(Y32*'Inputs & Assumptions'!$Q$45,"--") -> 98450 | AJ32: =IFERROR(Z32*'Inputs & Assumptions'!$Q$46,"--") -> 139971.428 | AK32: =IFERROR(AA32*'Inputs & Assumptions'!$Q$47,"--") -> 2150000 | AL32: =IFERROR(AB32*'Inputs & Assumptions'!$Q$48,"--") -> 4674783.1 | AM32: =IFERROR(AC32*'Inputs & Assumptions'!$Q$49,"--") -> 187500
A33: 0404 | B33: Bellmawr Borough | C33: Camden | D33: 3400704750 | E33: 30 | F33: 825642300 | G33: 10104222.81 | H33: 1.223801495 | I33: 3773011.249 | J33: 1909.949605 | K33: 3.781202861 | L33: 6839746.46 | M33: 14275241 | N33: 31219210.27 | O33: 0.323654017 | P33: 0.2190877476 | Q33: 0.4572582354 | R33: 16515 | S33: 228.4596578 | T33: =VLOOKUP(A33,'[1]2024 Summary'!$A$8:$DK$571,92,FALSE) -> 976039.5 | U33: =VLOOKUP(A33,'[1]2024 Summary'!$A$8:$DK$571,93,FALSE) -> 28545 | V33: =VLOOKUP(A33,'[1]2024 Summary'!$A$8:$DK$571,94,FALSE) -> 211600 | W33: =VLOOKUP(A33,'[1]2024 Summary'!$A$8:$DK$571,96,FALSE) -> 4445748.15 | X33: =VLOOKUP(A33,'[1]2024 Summary'!$A$8:$DK$571,97,FALSE) -> 2932858.49 | Y33: =VLOOKUP(A33,'[1]2024 Summary'!$A$8:$DK$571,98,FALSE) -> 52300 | Z33: =VLOOKUP(A33,'[1]2024 Summary'!$A$8:$DK$571,100,FALSE) -> 0 | AA33: =VLOOKUP(A33,'[1]2024 Summary'!$A$8:$DK$571,103,FALSE) -> 0 | AB33: =VLOOKUP(A33,'[1]2024 Summary'!$A$8:$DK$571,105,FALSE) -> 1803621 | AC33: =VLOOKUP(A33,'[1]2024 Summary'!$A$8:$DK$571,108,FALSE) -> 287104.75 | AD33: =IFERROR(T33*'Inputs & Assumptions'!$Q$40,"--") -> 97603.95 | AE33: =IFERROR(U33*'Inputs & Assumptions'!$Q$41,"--") -> 2854.5 | AF33: =IFERROR(V33*'Inputs & Assumptions'!$Q$42,"--") -> 105800 | AG33: =IFERROR(W33*'Inputs & Assumptions'!$Q$43,"--") -> 2222874.075 | AH33: =IFERROR(X33*'Inputs & Assumptions'!$Q$44,"--") -> 293285.849 | AI33: =IFERROR(Y33*'Inputs & Assumptions'!$Q$45,"--") -> 5230 | AJ33: =IFERROR(Z33*'Inputs & Assumptions'!$Q$46,"--") -> 0 | AK33: =IFERROR(AA33*'Inputs & Assumptions'!$Q$47,"--") -> 0 | AL33: =IFERROR(AB33*'Inputs & Assumptions'!$Q$48,"--") -> 901810.5 | AM33: =IFERROR(AC33*'Inputs & Assumptions'!$Q$49,"--") -> 143552.375
A34: 1306 | B34: Belmar Borough | C34: Monmouth | D34: 3402504930 | E34: 31 | F34: 1779900600 | G34: 9998901.5 | H34: 0.5617674099 | I34: -- | J34: 668.8984253 | K34: 1.454393611 | L34: 5713653.11 | M34: 10174206 | N34: 25886760.61 | O34: 0.3862554165 | P34: 0.2207171919 | Q34: 0.3930273916 | R34: 8581 | S34: -- | T34: =VLOOKUP(A34,'[1]2024 Summary'!$A$8:$DK$571,92,FALSE) -> No data | U34: =VLOOKUP(A34,'[1]2024 Summary'!$A$8:$DK$571,93,FALSE) -> No data | V34: =VLOOKUP(A34,'[1]2024 Summary'!$A$8:$DK$571,94,FALSE) -> No data | W34: =VLOOKUP(A34,'[1]2024 Summary'!$A$8:$DK$571,96,FALSE) -> No data | X34: =VLOOKUP(A34,'[1]2024 Summary'!$A$8:$DK$571,97,FALSE) -> No data | Y34: =VLOOKUP(A34,'[1]2024 Summary'!$A$8:$DK$571,98,FALSE) -> No data | Z34: =VLOOKUP(A34,'[1]2024 Summary'!$A$8:$DK$571,100,FALSE) -> No data | AA34: =VLOOKUP(A34,'[1]2024 Summary'!$A$8:$DK$571,103,FALSE) -> No data | AB34: =VLOOKUP(A34,'[1]2024 Summary'!$A$8:$DK$571,105,FALSE) -> No data | AC34: =VLOOKUP(A34,'[1]2024 Summary'!$A$8:$DK$571,108,FALSE) -> No data | AD34: =IFERROR(T34*'Inputs & Assumptions'!$Q$40,"--") -> -- | AE34: =IFERROR(U34*'Inputs & Assumptions'!$Q$41,"--") -> -- | AF34: =IFERROR(V34*'Inputs & Assumptions'!$Q$42,"--") -> -- | AG34: =IFERROR(W34*'Inputs & Assumptions'!$Q$43,"--") -> -- | AH34: =IFERROR(X34*'Inputs & Assumptions'!$Q$44,"--") -> -- | AI34: =IFERROR(Y34*'Inputs & Assumptions'!$Q$45,"--") -> -- | AJ34: =IFERROR(Z34*'Inputs & Assumptions'!$Q$46,"--") -> -- | AK34: =IFERROR(AA34*'Inputs & Assumptions'!$Q$47,"--") -> -- | AL34: =IFERROR(AB34*'Inputs & Assumptions'!$Q$48,"--") -> -- | AM34: =IFERROR(AC34*'Inputs & Assumptions'!$Q$49,"--") -> --
A35: 2103 | B35: Belvidere Town | C35: Warren | D35: 3404104990 | E35: 32 | F35: 249096900 | G35: 2252680.88 | H35: 0.9043391869 | I35: 870465.445 | J35: 927.6435995 | K35: 3.182731407 | L35: 1408511.39 | M35: 4266893 | N35: 7928085.27 | O35: 0.2841393354 | P35: 0.1776609789 | Q35: 0.5381996856 | R35: 3304 | S35: 263.4580645 | T35: =VLOOKUP(A35,'[1]2024 Summary'!$A$8:$DK$571,92,FALSE) -> 1252950 | U35: =VLOOKUP(A35,'[1]2024 Summary'!$A$8:$DK$571,93,FALSE) -> 14400 | V35: =VLOOKUP(A35,'[1]2024 Summary'!$A$8:$DK$571,94,FALSE) -> 37800 | W35: =VLOOKUP(A35,'[1]2024 Summary'!$A$8:$DK$571,96,FALSE) -> 910451.89 | X35: =VLOOKUP(A35,'[1]2024 Summary'!$A$8:$DK$571,97,FALSE) -> 426200 | Y35: =VLOOKUP(A35,'[1]2024 Summary'!$A$8:$DK$571,98,FALSE) -> 18300 | Z35: =VLOOKUP(A35,'[1]2024 Summary'!$A$8:$DK$571,100,FALSE) -> 0 | AA35: =VLOOKUP(A35,'[1]2024 Summary'!$A$8:$DK$571,103,FALSE) -> 1500 | AB35: =VLOOKUP(A35,'[1]2024 Summary'!$A$8:$DK$571,105,FALSE) -> 384612 | AC35: =VLOOKUP(A35,'[1]2024 Summary'!$A$8:$DK$571,108,FALSE) -> 64197 | AD35: =IFERROR(T35*'Inputs & Assumptions'!$Q$40,"--") -> 125295 | AE35: =IFERROR(U35*'Inputs & Assumptions'!$Q$41,"--") -> 1440 | AF35: =IFERROR(V35*'Inputs & Assumptions'!$Q$42,"--") -> 18900 | AG35: =IFERROR(W35*'Inputs & Assumptions'!$Q$43,"--") -> 455225.945 | AH35: =IFERROR(X35*'Inputs & Assumptions'!$Q$44,"--") -> 42620 | AI35: =IFERROR(Y35*'Inputs & Assumptions'!$Q$45,"--") -> 1830 | AJ35: =IFERROR(Z35*'Inputs & Assumptions'!$Q$46,"--") -> 0 | AK35: =IFERROR(AA35*'Inputs & Assumptions'!$Q$47,"--") -> 750 | AL35: =IFERROR(AB35*'Inputs & Assumptions'!$Q$48,"--") -> 192306 | AM35: =IFERROR(AC35*'Inputs & Assumptions'!$Q$49,"--") -> 32098.5
A36: 0203 | B36: Bergenfield Borough | C36: Bergen | D36: 3400305170 | E36: 33 | F36: 2742259530 | G36: 33593285 | H36: 1.22502209 | I36: 9224566.3 | J36: 1858.64363 | K36: 3.526047629 | L36: 9613263.15 | M36: 53486829 | N36: 96693377.15 | O36: 0.3474207437 | P36: 0.09942007853 | Q36: 0.5531591778 | R36: 31142 | S36: 296.2098227 | T36: =VLOOKUP(A36,'[1]2024 Summary'!$A$8:$DK$571,92,FALSE) -> 2399480 | U36: =VLOOKUP(A36,'[1]2024 Summary'!$A$8:$DK$571,93,FALSE) -> 50450 | V36: =VLOOKUP(A36,'[1]2024 Summary'!$A$8:$DK$571,94,FALSE) -> 530800 | W36: =VLOOKUP(A36,'[1]2024 Summary'!$A$8:$DK$571,96,FALSE) -> 10681300 | X36: =VLOOKUP(A36,'[1]2024 Summary'!$A$8:$DK$571,97,FALSE) -> 5593950 | Y36: =VLOOKUP(A36,'[1]2024 Summary'!$A$8:$DK$571,98,FALSE) -> 428283 | Z36: =VLOOKUP(A36,'[1]2024 Summary'!$A$8:$DK$571,100,FALSE) -> 1590000 | AA36: =VLOOKUP(A36,'[1]2024 Summary'!$A$8:$DK$571,103,FALSE) -> 1215000 | AB36: =VLOOKUP(A36,'[1]2024 Summary'!$A$8:$DK$571,105,FALSE) -> 3797575 | AC36: =VLOOKUP(A36,'[1]2024 Summary'!$A$8:$DK$571,108,FALSE) -> 212025 | AD36: =IFERROR(T36*'Inputs & Assumptions'!$Q$40,"--") -> 239948 | AE36: =IFERROR(U36*'Inputs & Assumptions'!$Q$41,"--") -> 5045 | AF36: =IFERROR(V36*'Inputs & Assumptions'!$Q$42,"--") -> 265400 | AG36: =IFERROR(W36*'Inputs & Assumptions'!$Q$43,"--") -> 5340650 | AH36: =IFERROR(X36*'Inputs & Assumptions'!$Q$44,"--") -> 559395 | AI36: =IFERROR(Y36*'Inputs & Assumptions'!$Q$45,"--") -> 42828.3 | AJ36: =IFERROR(Z36*'Inputs & Assumptions'!$Q$46,"--") -> 159000 | AK36: =IFERROR(AA36*'Inputs & Assumptions'!$Q$47,"--") -> 607500 | AL36: =IFERROR(AB36*'Inputs & Assumptions'!$Q$48,"--") -> 1898787.5 | AM36: =IFERROR(AC36*'Inputs & Assumptions'!$Q$49,"--") -> 106012.5
A37: 2001 | B37: Berkeley Heights Township | C37: Union | D37: 3403905320 | E37: 34 | F37: 1842504685 | G37: 16323412.7 | H37: 0.8859360214 | I37: 4761626.911 | J37: 3981.028409 | K37: 4.286299708 | L37: 15227942.24 | M37: 47423918 | N37: 78975272.94 | O37: 0.2066901714 | P37: 0.1928191151 | Q37: 0.6004907135 | R37: 18028 | S37: 264.1239689 | T37: =VLOOKUP(A37,'[1]2024 Summary'!$A$8:$DK$571,92,FALSE) -> 1999435 | U37: =VLOOKUP(A37,'[1]2024 Summary'!$A$8:$DK$571,93,FALSE) -> 176750 | V37: =VLOOKUP(A37,'[1]2024 Summary'!$A$8:$DK$571,94,FALSE) -> 543100 | W37: =VLOOKUP(A37,'[1]2024 Summary'!$A$8:$DK$571,96,FALSE) -> 4793647.42 | X37: =VLOOKUP(A37,'[1]2024 Summary'!$A$8:$DK$571,97,FALSE) -> 6154520.56 | Y37: =VLOOKUP(A37,'[1]2024 Summary'!$A$8:$DK$571,98,FALSE) -> 43879.35 | Z37: =VLOOKUP(A37,'[1]2024 Summary'!$A$8:$DK$571,100,FALSE) -> 1329169 | AA37: =VLOOKUP(A37,'[1]2024 Summary'!$A$8:$DK$571,103,FALSE) -> 0 | AB37: =VLOOKUP(A37,'[1]2024 Summary'!$A$8:$DK$571,105,FALSE) -> 2209902 | AC37: =VLOOKUP(A37,'[1]2024 Summary'!$A$8:$DK$571,108,FALSE) -> 35853.62 | AD37: =IFERROR(T37*'Inputs & Assumptions'!$Q$40,"--") -> 199943.5 | AE37: =IFERROR(U37*'Inputs & Assumptions'!$Q$41,"--") -> 17675 | AF37: =IFERROR(V37*'Inputs & Assumptions'!$Q$42,"--") -> 271550 | AG37: =IFERROR(W37*'Inputs & Assumptions'!$Q$43,"--") -> 2396823.71 | AH37: =IFERROR(X37*'Inputs & Assumptions'!$Q$44,"--") -> 615452.056 | AI37: =IFERROR(Y37*'Inputs & Assumptions'!$Q$45,"--") -> 4387.935 | AJ37: =IFERROR(Z37*'Inputs & Assumptions'!$Q$46,"--") -> 132916.9 | AK37: =IFERROR(AA37*'Inputs & Assumptions'!$Q$47,"--") -> 0 | AL37: =IFERROR(AB37*'Inputs & Assumptions'!$Q$48,"--") -> 1104951 | AM37: =IFERROR(AC37*'Inputs & Assumptions'!$Q$49,"--") -> 17926.81
A38: 1505 | B38: Berkeley Township | C38: Ocean | D38: 3402905305 | E38: 35 | F38: 5394444800 | G38: 40444322.46 | H38: 0.7497402228 | I38: 12048812.52 | J38: 27334.15398 | K38: 2.410035632 | L38: 29224701.37 | M38: 60339018 | N38: 130008041.8 | O38: 0.3110909286 | P38: 0.2247914895 | Q38: 0.4641175819 | R38: 48065 | S38: 250.6774685 | T38: =VLOOKUP(A38,'[1]2024 Summary'!$A$8:$DK$571,92,FALSE) -> 4281450 | U38: =VLOOKUP(A38,'[1]2024 Summary'!$A$8:$DK$571,93,FALSE) -> 0 | V38: =VLOOKUP(A38,'[1]2024 Summary'!$A$8:$DK$571,94,FALSE) -> 317000 | W38: =VLOOKUP(A38,'[1]2024 Summary'!$A$8:$DK$571,96,FALSE) -> 12928644.05 | X38: =VLOOKUP(A38,'[1]2024 Summary'!$A$8:$DK$571,97,FALSE) -> 6042746.17 | Y38: =VLOOKUP(A38,'[1]2024 Summary'!$A$8:$DK$571,98,FALSE) -> 17955 | Z38: =VLOOKUP(A38,'[1]2024 Summary'!$A$8:$DK$571,100,FALSE) -> 0 | AA38: =VLOOKUP(A38,'[1]2024 Summary'!$A$8:$DK$571,103,FALSE) -> 2277000 | AB38: =VLOOKUP(A38,'[1]2024 Summary'!$A$8:$DK$571,105,FALSE) -> 6107550.76 | AC38: =VLOOKUP(A38,'[1]2024 Summary'!$A$8:$DK$571,108,FALSE) -> 399000 | AD38: =IFERROR(T38*'Inputs & Assumptions'!$Q$40,"--") -> 428145 | AE38: =IFERROR(U38*'Inputs & Assumptions'!$Q$41,"--") -> 0 | AF38: =IFERROR(V38*'Inputs & Assumptions'!$Q$42,"--") -> 158500 | AG38: =IFERROR(W38*'Inputs & Assumptions'!$Q$43,"--") -> 6464322.025 | AH38: =IFERROR(X38*'Inputs & Assumptions'!$Q$44,"--") -> 604274.617 | AI38: =IFERROR(Y38*'Inputs & Assumptions'!$Q$45,"--") -> 1795.5 | AJ38: =IFERROR(Z38*'Inputs & Assumptions'!$Q$46,"--") -> 0 | AK38: =IFERROR(AA38*'Inputs & Assumptions'!$Q$47,"--") -> 1138500 | AL38: =IFERROR(AB38*'Inputs & Assumptions'!$Q$48,"--") -> 3053775.38 | AM38: =IFERROR(AC38*'Inputs & Assumptions'!$Q$49,"--") -> 199500
A39: 0405 | B39: Berlin Borough | C39: Camden | D39: 3400705440 | E39: 36 | F39: 804870579 | G39: 6955397.51 | H39: 0.8641634682 | I39: 2942621.881 | J39: 2299.998371 | K39: 3.41094801 | L39: 6313282.49 | M39: 14185037 | N39: 27453717 | O39: 0.2533499384 | P39: 0.2299609372 | Q39: 0.5166891245 | R39: 10819 | S39: 271.9864942 | T39: =VLOOKUP(A39,'[1]2024 Summary'!$A$8:$DK$571,92,FALSE) -> 4361681.3 | U39: =VLOOKUP(A39,'[1]2024 Summary'!$A$8:$DK$571,93,FALSE) -> 65844.42 | V39: =VLOOKUP(A39,'[1]2024 Summary'!$A$8:$DK$571,94,FALSE) -> 193000 | W39: =VLOOKUP(A39,'[1]2024 Summary'!$A$8:$DK$571,96,FALSE) -> 2603479.76 | X39: =VLOOKUP(A39,'[1]2024 Summary'!$A$8:$DK$571,97,FALSE) -> 1033100 | Y39: =VLOOKUP(A39,'[1]2024 Summary'!$A$8:$DK$571,98,FALSE) -> 20001 | Z39: =VLOOKUP(A39,'[1]2024 Summary'!$A$8:$DK$571,100,FALSE) -> 376618.29 | AA39: =VLOOKUP(A39,'[1]2024 Summary'!$A$8:$DK$571,103,FALSE) -> 460000 | AB39: =VLOOKUP(A39,'[1]2024 Summary'!$A$8:$DK$571,105,FALSE) -> 1296320 | AC39: =VLOOKUP(A39,'[1]2024 Summary'!$A$8:$DK$571,108,FALSE) -> 160995 | AD39: =IFERROR(T39*'Inputs & Assumptions'!$Q$40,"--") -> 436168.13 | AE39: =IFERROR(U39*'Inputs & Assumptions'!$Q$41,"--") -> 6584.442 | AF39: =IFERROR(V39*'Inputs & Assumptions'!$Q$42,"--") -> 96500 | AG39: =IFERROR(W39*'Inputs & Assumptions'!$Q$43,"--") -> 1301739.88 | AH39: =IFERROR(X39*'Inputs & Assumptions'!$Q$44,"--") -> 103310 | AI39: =IFERROR(Y39*'Inputs & Assumptions'!$Q$45,"--") -> 2000.1 | AJ39: =IFERROR(Z39*'Inputs & Assumptions'!$Q$46,"--") -> 37661.829 | AK39: =IFERROR(AA39*'Inputs & Assumptions'!$Q$47,"--") -> 230000 | AL39: =IFERROR(AB39*'Inputs & Assumptions'!$Q$48,"--") -> 648160 | AM39: =IFERROR(AC39*'Inputs & Assumptions'!$Q$49,"--") -> 80497.5
A40: 0406 | B40: Berlin Township | C40: Camden | D40: 3400705470 | E40: 37 | F40: 645332172 | G40: 8487102 | H40: 1.31515247 | I40: 2383476.2 | J40: 2139.126162 | K40: 3.881531468 | L40: 5860329.33 | M40: 10701340 | N40: 25048771.33 | O40: 0.3388230859 | P40: 0.2339567579 | Q40: 0.4272201562 | R40: 9913 | S40: 240.4394432 | T40: =VLOOKUP(A40,'[1]2024 Summary'!$A$8:$DK$571,92,FALSE) -> 852780 | U40: =VLOOKUP(A40,'[1]2024 Summary'!$A$8:$DK$571,93,FALSE) -> 26810 | V40: =VLOOKUP(A40,'[1]2024 Summary'!$A$8:$DK$571,94,FALSE) -> 162000 | W40: =VLOOKUP(A40,'[1]2024 Summary'!$A$8:$DK$571,96,FALSE) -> 2483055 | X40: =VLOOKUP(A40,'[1]2024 Summary'!$A$8:$DK$571,97,FALSE) -> 1795832 | Y40: =VLOOKUP(A40,'[1]2024 Summary'!$A$8:$DK$571,98,FALSE) -> 6110 | Z40: =VLOOKUP(A40,'[1]2024 Summary'!$A$8:$DK$571,100,FALSE) -> 32600 | AA40: =VLOOKUP(A40,'[1]2024 Summary'!$A$8:$DK$571,103,FALSE) -> 340000 | AB40: =VLOOKUP(A40,'[1]2024 Summary'!$A$8:$DK$571,105,FALSE) -> 1066081 | AC40: =VLOOKUP(A40,'[1]2024 Summary'!$A$8:$DK$571,108,FALSE) -> 172990 | AD40: =IFERROR(T40*'Inputs & Assumptions'!$Q$40,"--") -> 85278 | AE40: =IFERROR(U40*'Inputs & Assumptions'!$Q$41,"--") -> 2681 | AF40: =IFERROR(V40*'Inputs & Assumptions'!$Q$42,"--") -> 81000 | AG40: =IFERROR(W40*'Inputs & Assumptions'!$Q$43,"--") -> 1241527.5 | AH40: =IFERROR(X40*'Inputs & Assumptions'!$Q$44,"--") -> 179583.2 | AI40: =IFERROR(Y40*'Inputs & Assumptions'!$Q$45,"--") -> 611 | AJ40: =IFERROR(Z40*'Inputs & Assumptions'!$Q$46,"--") -> 3260 | AK40: =IFERROR(AA40*'Inputs & Assumptions'!$Q$47,"--") -> 170000 | AL40: =IFERROR(AB40*'Inputs & Assumptions'!$Q$48,"--") -> 533040.5 | AM40: =IFERROR(AC40*'Inputs & Assumptions'!$Q$49,"--") -> 86495
A41: 1802 | B41: Bernards Township | C41: Somerset | D41: 3403505560 | E41: 38 | F41: 8441804100 | G41: 25430449.67 | H41: 0.3012442526 | I41: 7480438.604 | J41: 15488.9432 | K41: 1.778410783 | L41: 26479711.72 | M41: 98219793 | N41: 150129954.4 | O41: 0.1693895783 | P41: 0.1763786036 | Q41: 0.654231818 | R41: 41116 | S41: 181.9349792 | T41: =VLOOKUP(A41,'[1]2024 Summary'!$A$8:$DK$571,92,FALSE) -> 4889484 | U41: =VLOOKUP(A41,'[1]2024 Summary'!$A$8:$DK$571,93,FALSE) -> 640958 | V41: =VLOOKUP(A41,'[1]2024 Summary'!$A$8:$DK$571,94,FALSE) -> 1341520 | W41: =VLOOKUP(A41,'[1]2024 Summary'!$A$8:$DK$571,96,FALSE) -> 6912394.04 | X41: =VLOOKUP(A41,'[1]2024 Summary'!$A$8:$DK$571,97,FALSE) -> 5210928 | Y41: =VLOOKUP(A41,'[1]2024 Summary'!$A$8:$DK$571,98,FALSE) -> 1307168.19 | Z41: =VLOOKUP(A41,'[1]2024 Summary'!$A$8:$DK$571,100,FALSE) -> 2705102 | AA41: =VLOOKUP(A41,'[1]2024 Summary'!$A$8:$DK$571,103,FALSE) -> 268957 | AB41: =VLOOKUP(A41,'[1]2024 Summary'!$A$8:$DK$571,105,FALSE) -> 3487278.13 | AC41: =VLOOKUP(A41,'[1]2024 Summary'!$A$8:$DK$571,108,FALSE) -> 0 | AD41: =IFERROR(T41*'Inputs & Assumptions'!$Q$40,"--") -> 488948.4 | AE41: =IFERROR(U41*'Inputs & Assumptions'!$Q$41,"--") -> 64095.8 | AF41: =IFERROR(V41*'Inputs & Assumptions'!$Q$42,"--") -> 670760 | AG41: =IFERROR(W41*'Inputs & Assumptions'!$Q$43,"--") -> 3456197.02 | AH41: =IFERROR(X41*'Inputs & Assumptions'!$Q$44,"--") -> 521092.8 | AI41: =IFERROR(Y41*'Inputs & Assumptions'!$Q$45,"--") -> 130716.819 | AJ41: =IFERROR(Z41*'Inputs & Assumptions'!$Q$46,"--") -> 270510.2 | AK41: =IFERROR(AA41*'Inputs & Assumptions'!$Q$47,"--") -> 134478.5 | AL41: =IFERROR(AB41*'Inputs & Assumptions'!$Q$48,"--") -> 1743639.065 | AM41: =IFERROR(AC41*'Inputs & Assumptions'!$Q$49,"--") -> 0
A42: 1803 | B42: Bernardsville Borough | C42: Somerset | D42: 3403505590 | E42: 39 | F42: 2590444100 | G42: 13479201.01 | H42: 0.5203432496 | I42: 3699375.924 | J42: 8214.734569 | K42: 1.954748172 | L42: 8123288.67 | M42: 29034169 | N42: 50636658.68 | O42: 0.2661945192 | P42: 0.1604230785 | Q42: 0.5733824023 | R42: 10043 | S42: 368.3536716 | T42: =VLOOKUP(A42,'[1]2024 Summary'!$A$8:$DK$571,92,FALSE) -> 2727198.44 | U42: =VLOOKUP(A42,'[1]2024 Summary'!$A$8:$DK$571,93,FALSE) -> 271390 | V42: =VLOOKUP(A42,'[1]2024 Summary'!$A$8:$DK$571,94,FALSE) -> 200000 | W42: =VLOOKUP(A42,'[1]2024 Summary'!$A$8:$DK$571,96,FALSE) -> 3980199.76 | X42: =VLOOKUP(A42,'[1]2024 Summary'!$A$8:$DK$571,97,FALSE) -> 2155872 | Y42: =VLOOKUP(A42,'[1]2024 Summary'!$A$8:$DK$571,98,FALSE) -> 167100 | Z42: =VLOOKUP(A42,'[1]2024 Summary'!$A$8:$DK$571,100,FALSE) -> 918000 | AA42: =VLOOKUP(A42,'[1]2024 Summary'!$A$8:$DK$571,103,FALSE) -> 163200 | AB42: =VLOOKUP(A42,'[1]2024 Summary'!$A$8:$DK$571,105,FALSE) -> 1807440 | AC42: =VLOOKUP(A42,'[1]2024 Summary'!$A$8:$DK$571,108,FALSE) -> 0 | AD42: =IFERROR(T42*'Inputs & Assumptions'!$Q$40,"--") -> 272719.844 | AE42: =IFERROR(U42*'Inputs & Assumptions'!$Q$41,"--") -> 27139 | AF42: =IFERROR(V42*'Inputs & Assumptions'!$Q$42,"--") -> 100000 | AG42: =IFERROR(W42*'Inputs & Assumptions'!$Q$43,"--") -> 1990099.88 | AH42: =IFERROR(X42*'Inputs & Assumptions'!$Q$44,"--") -> 215587.2 | AI42: =IFERROR(Y42*'Inputs & Assumptions'!$Q$45,"--") -> 16710 | AJ42: =IFERROR(Z42*'Inputs & Assumptions'!$Q$46,"--") -> 91800 | AK42: =IFERROR(AA42*'Inputs & Assumptions'!$Q$47,"--") -> 81600 | AL42: =IFERROR(AB42*'Inputs & Assumptions'!$Q$48,"--") -> 903720 | AM42: =IFERROR(AC42*'Inputs & Assumptions'!$Q$49,"--") -> 0
A43: 1002 | B43: Bethlehem Township | C43: Hunterdon | D43: 3401905650 | E43: 40 | F43: 528163394 | G43: 2417670.09 | H43: 0.4577504078 | I43: 404634.122 | J43: 13236.82914 | K43: 3.258737365 | L43: 2722505.78 | M43: 12071282 | N43: 17211457.87 | O43: 0.1404686406 | P43: 0.1581798474 | Q43: 0.701351512 | R43: 4000 | S43: 101.1585305 | T43: =VLOOKUP(A43,'[1]2024 Summary'!$A$8:$DK$571,92,FALSE) -> 461053.53 | U43: =VLOOKUP(A43,'[1]2024 Summary'!$A$8:$DK$571,93,FALSE) -> 72972.14 | V43: =VLOOKUP(A43,'[1]2024 Summary'!$A$8:$DK$571,94,FALSE) -> 0 | W43: =VLOOKUP(A43,'[1]2024 Summary'!$A$8:$DK$571,96,FALSE) -> 263406.6 | X43: =VLOOKUP(A43,'[1]2024 Summary'!$A$8:$DK$571,97,FALSE) -> 820564 | Y43: =VLOOKUP(A43,'[1]2024 Summary'!$A$8:$DK$571,98,FALSE) -> 6500 | Z43: =VLOOKUP(A43,'[1]2024 Summary'!$A$8:$DK$571,100,FALSE) -> 0 | AA43: =VLOOKUP(A43,'[1]2024 Summary'!$A$8:$DK$571,103,FALSE) -> 17987.71 | AB43: =VLOOKUP(A43,'[1]2024 Summary'!$A$8:$DK$571,105,FALSE) -> 175256 | AC43: =VLOOKUP(A43,'[1]2024 Summary'!$A$8:$DK$571,108,FALSE) -> 80400 | AD43: =IFERROR(T43*'Inputs & Assumptions'!$Q$40,"--") -> 46105.353 | AE43: =IFERROR(U43*'Inputs & Assumptions'!$Q$41,"--") -> 7297.214 | AF43: =IFERROR(V43*'Inputs & Assumptions'!$Q$42,"--") -> 0 | AG43: =IFERROR(W43*'Inputs & Assumptions'!$Q$43,"--") -> 131703.3 | AH43: =IFERROR(X43*'Inputs & Assumptions'!$Q$44,"--") -> 82056.4 | AI43: =IFERROR(Y43*'Inputs & Assumptions'!$Q$45,"--") -> 650 | AJ43: =IFERROR(Z43*'Inputs & Assumptions'!$Q$46,"--") -> 0 | AK43: =IFERROR(AA43*'Inputs & Assumptions'!$Q$47,"--") -> 8993.855 | AL43: =IFERROR(AB43*'Inputs & Assumptions'!$Q$48,"--") -> 87628 | AM43: =IFERROR(AC43*'Inputs & Assumptions'!$Q$49,"--") -> 40200
A44: 0302 | B44: Beverly City | C44: Burlington | D44: 3400505740 | E44: 41 | F44: 123566961 | G44: 2378861.69 | H44: 1.925159987 | I44: 1018343.066 | J44: 346.402807 | K44: 4.755326136 | L44: 591332.3015 | M44: 2905818 | N44: 5876011.992 | O44: 0.4048428923 | P44: 0.1006349719 | Q44: 0.4945221358 | R44: 2618 | S44: 388.9774889 | T44: =VLOOKUP(A44,'[1]2024 Summary'!$A$8:$DK$571,92,FALSE) -> 914133.21 | U44: =VLOOKUP(A44,'[1]2024 Summary'!$A$8:$DK$571,93,FALSE) -> 12000 | V44: =VLOOKUP(A44,'[1]2024 Summary'!$A$8:$DK$571,94,FALSE) -> 121600 | W44: =VLOOKUP(A44,'[1]2024 Summary'!$A$8:$DK$571,96,FALSE) -> 1017900 | X44: =VLOOKUP(A44,'[1]2024 Summary'!$A$8:$DK$571,97,FALSE) -> 321750 | Y44: =VLOOKUP(A44,'[1]2024 Summary'!$A$8:$DK$571,98,FALSE) -> 8000 | Z44: =VLOOKUP(A44,'[1]2024 Summary'!$A$8:$DK$571,100,FALSE) -> 2000 | AA44: =VLOOKUP(A44,'[1]2024 Summary'!$A$8:$DK$571,103,FALSE) -> 118000 | AB44: =VLOOKUP(A44,'[1]2024 Summary'!$A$8:$DK$571,105,FALSE) -> 416569.49 | AC44: =VLOOKUP(A44,'[1]2024 Summary'!$A$8:$DK$571,108,FALSE) -> 111040 | AD44: =IFERROR(T44*'Inputs & Assumptions'!$Q$40,"--") -> 91413.321 | AE44: =IFERROR(U44*'Inputs & Assumptions'!$Q$41,"--") -> 1200 | AF44: =IFERROR(V44*'Inputs & Assumptions'!$Q$42,"--") -> 60800 | AG44: =IFERROR(W44*'Inputs & Assumptions'!$Q$43,"--") -> 508950 | AH44: =IFERROR(X44*'Inputs & Assumptions'!$Q$44,"--") -> 32175 | AI44: =IFERROR(Y44*'Inputs & Assumptions'!$Q$45,"--") -> 800 | AJ44: =IFERROR(Z44*'Inputs & Assumptions'!$Q$46,"--") -> 200 | AK44: =IFERROR(AA44*'Inputs & Assumptions'!$Q$47,"--") -> 59000 | AL44: =IFERROR(AB44*'Inputs & Assumptions'!$Q$48,"--") -> 208284.745 | AM44: =IFERROR(AC44*'Inputs & Assumptions'!$Q$49,"--") -> 55520
A45: 2104 | B45: Blairstown Township | C45: Warren | D45: 3404106160 | E45: 42 | F45: 701863369 | G45: 2034392.89 | H45: 0.289855972 | I45: 1093153.01 | J45: 19127.53138 | K45: 3.100934812 | L45: 5833440.65 | M45: 13896492 | N45: 21764325.54 | O45: 0.09347373923 | P45: 0.2680276326 | Q45: 0.6384986282 | R45: 7110 | S45: 153.7486653 | T45: =VLOOKUP(A45,'[1]2024 Summary'!$A$8:$DK$571,92,FALSE) -> 804477 | U45: =VLOOKUP(A45,'[1]2024 Summary'!$A$8:$DK$571,93,FALSE) -> 83351 | V45: =VLOOKUP(A45,'[1]2024 Summary'!$A$8:$DK$571,94,FALSE) -> 0 | W45: =VLOOKUP(A45,'[1]2024 Summary'!$A$8:$DK$571,96,FALSE) -> 1208100.89 | X45: =VLOOKUP(A45,'[1]2024 Summary'!$A$8:$DK$571,97,FALSE) -> 518501 | Y45: =VLOOKUP(A45,'[1]2024 Summary'!$A$8:$DK$571,98,FALSE) -> 15001 | Z45: =VLOOKUP(A45,'[1]2024 Summary'!$A$8:$DK$571,100,FALSE) -> 0 | AA45: =VLOOKUP(A45,'[1]2024 Summary'!$A$8:$DK$571,103,FALSE) -> 6275 | AB45: =VLOOKUP(A45,'[1]2024 Summary'!$A$8:$DK$571,105,FALSE) -> 622664.13 | AC45: =VLOOKUP(A45,'[1]2024 Summary'!$A$8:$DK$571,108,FALSE) -> 65000 | AD45: =IFERROR(T45*'Inputs & Assumptions'!$Q$40,"--") -> 80447.7 | AE45: =IFERROR(U45*'Inputs & Assumptions'!$Q$41,"--") -> 8335.1 | AF45: =IFERROR(V45*'Inputs & Assumptions'!$Q$42,"--") -> 0 | AG45: =IFERROR(W45*'Inputs & Assumptions'!$Q$43,"--") -> 604050.445 | AH45: =IFERROR(X45*'Inputs & Assumptions'!$Q$44,"--") -> 51850.1 | AI45: =IFERROR(Y45*'Inputs & Assumptions'!$Q$45,"--") -> 1500.1 | AJ45: =IFERROR(Z45*'Inputs & Assumptions'!$Q$46,"--") -> 0 | AK45: =IFERROR(AA45*'Inputs & Assumptions'!$Q$47,"--") -> 3137.5 | AL45: =IFERROR(AB45*'Inputs & Assumptions'!$Q$48,"--") -> 311332.065 | AM45: =IFERROR(AC45*'Inputs & Assumptions'!$Q$49,"--") -> 32500
A46: 0702 | B46: Bloomfield Township | C46: Essex | D46: 3401306260 | E46: 43 | F46: 5314862400 | G46: 70787675.82 | H46: 1.331881627 | I46: 26853582.17 | J46: 3415.629289 | K46: 3.391249576 | L46: 26538239.8 | M46: 82914333 | N46: 180240248.6 | O46: 0.392740669 | P46: 0.1472381447 | Q46: 0.4600211864 | R46: 61903 | S46: 433.8009817 | T46: =VLOOKUP(A46,'[1]2024 Summary'!$A$8:$DK$571,92,FALSE) -> 13946555.87 | U46: =VLOOKUP(A46,'[1]2024 Summary'!$A$8:$DK$571,93,FALSE) -> 185010 | V46: =VLOOKUP(A46,'[1]2024 Summary'!$A$8:$DK$571,94,FALSE) -> 966500 | W46: =VLOOKUP(A46,'[1]2024 Summary'!$A$8:$DK$571,96,FALSE) -> 31029215.97 | X46: =VLOOKUP(A46,'[1]2024 Summary'!$A$8:$DK$571,97,FALSE) -> 3917510 | Y46: =VLOOKUP(A46,'[1]2024 Summary'!$A$8:$DK$571,98,FALSE) -> 1780010 | Z46: =VLOOKUP(A46,'[1]2024 Summary'!$A$8:$DK$571,100,FALSE) -> 2292866 | AA46: =VLOOKUP(A46,'[1]2024 Summary'!$A$8:$DK$571,103,FALSE) -> 5400000 | AB46: =VLOOKUP(A46,'[1]2024 Summary'!$A$8:$DK$571,105,FALSE) -> 11189548 | AC46: =VLOOKUP(A46,'[1]2024 Summary'!$A$8:$DK$571,108,FALSE) -> 697510 | AD46: =IFERROR(T46*'Inputs & Assumptions'!$Q$40,"--") -> 1394655.587 | AE46: =IFERROR(U46*'Inputs & Assumptions'!$Q$41,"--") -> 18501 | AF46: =IFERROR(V46*'Inputs & Assumptions'!$Q$42,"--") -> 483250 | AG46: =IFERROR(W46*'Inputs & Assumptions'!$Q$43,"--") -> 15514607.98 | AH46: =IFERROR(X46*'Inputs & Assumptions'!$Q$44,"--") -> 391751 | AI46: =IFERROR(Y46*'Inputs & Assumptions'!$Q$45,"--") -> 178001 | AJ46: =IFERROR(Z46*'Inputs & Assumptions'!$Q$46,"--") -> 229286.6 | AK46: =IFERROR(AA46*'Inputs & Assumptions'!$Q$47,"--") -> 2700000 | AL46: =IFERROR(AB46*'Inputs & Assumptions'!$Q$48,"--") -> 5594774 | AM46: =IFERROR(AC46*'Inputs & Assumptions'!$Q$49,"--") -> 348755
A47: 1601 | B47: Bloomingdale Borough | C47: Passaic | D47: 3403106340 | E47: 44 | F47: 729510100 | G47: 8789160.17 | H47: 1.204803082 | I47: 3284832.823 | J47: 5632.435713 | K47: 4.586147724 | L47: 5970709.68 | M47: 18696541 | N47: 33456410.85 | O47: 0.2627048134 | P47: 0.1784623493 | Q47: 0.5588328373 | R47: 8316 | S47: 395.001542 | T47: =VLOOKUP(A47,'[1]2024 Summary'!$A$8:$DK$571,92,FALSE) -> 4569001 | U47: =VLOOKUP(A47,'[1]2024 Summary'!$A$8:$DK$571,93,FALSE) -> 94150 | V47: =VLOOKUP(A47,'[1]2024 Summary'!$A$8:$DK$571,94,FALSE) -> 125650 | W47: =VLOOKUP(A47,'[1]2024 Summary'!$A$8:$DK$571,96,FALSE) -> 3054088.64 | X47: =VLOOKUP(A47,'[1]2024 Summary'!$A$8:$DK$571,97,FALSE) -> 1643692.03 | Y47: =VLOOKUP(A47,'[1]2024 Summary'!$A$8:$DK$571,98,FALSE) -> 211450 | Z47: =VLOOKUP(A47,'[1]2024 Summary'!$A$8:$DK$571,100,FALSE) -> 389632 | AA47: =VLOOKUP(A47,'[1]2024 Summary'!$A$8:$DK$571,103,FALSE) -> 0 | AB47: =VLOOKUP(A47,'[1]2024 Summary'!$A$8:$DK$571,105,FALSE) -> 1870892 | AC47: =VLOOKUP(A47,'[1]2024 Summary'!$A$8:$DK$571,108,FALSE) -> 137450 | AD47: =IFERROR(T47*'Inputs & Assumptions'!$Q$40,"--") -> 456900.1 | AE47: =IFERROR(U47*'Inputs & Assumptions'!$Q$41,"--") -> 9415 | AF47: =IFERROR(V47*'Inputs & Assumptions'!$Q$42,"--") -> 62825 | AG47: =IFERROR(W47*'Inputs & Assumptions'!$Q$43,"--") -> 1527044.32 | AH47: =IFERROR(X47*'Inputs & Assumptions'!$Q$44,"--") -> 164369.203 | AI47: =IFERROR(Y47*'Inputs & Assumptions'!$Q$45,"--") -> 21145 | AJ47: =IFERROR(Z47*'Inputs & Assumptions'!$Q$46,"--") -> 38963.2 | AK47: =IFERROR(AA47*'Inputs & Assumptions'!$Q$47,"--") -> 0 | AL47: =IFERROR(AB47*'Inputs & Assumptions'!$Q$48,"--") -> 935446 | AM47: =IFERROR(AC47*'Inputs & Assumptions'!$Q$49,"--") -> 68725
A48: 1003 | B48: Bloomsbury Borough | C48: Hunterdon | D48: 3401906370 | E48: 45 | F48: 88357895 | G48: 669469.2 | H48: 0.7576789827 | I48: 164115.425 | J48: 596.7718536 | K48: 3.540301984 | L48: 444278.11 | M48: 2014389 | N48: 3128136.31 | O48: 0.2140153541 | P48: 0.1420264547 | Q48: 0.6439581912 | R48: 1069 | S48: 153.5223807 | T48: =VLOOKUP(A48,'[1]2024 Summary'!$A$8:$DK$571,92,FALSE) -> 292805 | U48: =VLOOKUP(A48,'[1]2024 Summary'!$A$8:$DK$571,93,FALSE) -> 9825 | V48: =VLOOKUP(A48,'[1]2024 Summary'!$A$8:$DK$571,94,FALSE) -> 0 | W48: =VLOOKUP(A48,'[1]2024 Summary'!$A$8:$DK$571,96,FALSE) -> 44275 | X48: =VLOOKUP(A48,'[1]2024 Summary'!$A$8:$DK$571,97,FALSE) -> 207534.25 | Y48: =VLOOKUP(A48,'[1]2024 Summary'!$A$8:$DK$571,98,FALSE) -> 1900 | Z48: =VLOOKUP(A48,'[1]2024 Summary'!$A$8:$DK$571,100,FALSE) -> 0 | AA48: =VLOOKUP(A48,'[1]2024 Summary'!$A$8:$DK$571,103,FALSE) -> 88200 | AB48: =VLOOKUP(A48,'[1]2024 Summary'!$A$8:$DK$571,105,FALSE) -> 43343 | AC48: =VLOOKUP(A48,'[1]2024 Summary'!$A$8:$DK$571,108,FALSE) -> 50000 | AD48: =IFERROR(T48*'Inputs & Assumptions'!$Q$40,"--") -> 29280.5 | AE48: =IFERROR(U48*'Inputs & Assumptions'!$Q$41,"--") -> 982.5 | AF48: =IFERROR(V48*'Inputs & Assumptions'!$Q$42,"--") -> 0 | AG48: =IFERROR(W48*'Inputs & Assumptions'!$Q$43,"--") -> 22137.5 | AH48: =IFERROR(X48*'Inputs & Assumptions'!$Q$44,"--") -> 20753.425 | AI48: =IFERROR(Y48*'Inputs & Assumptions'!$Q$45,"--") -> 190 | AJ48: =IFERROR(Z48*'Inputs & Assumptions'!$Q$46,"--") -> 0 | AK48: =IFERROR(AA48*'Inputs & Assumptions'!$Q$47,"--") -> 44100 | AL48: =IFERROR(AB48*'Inputs & Assumptions'!$Q$48,"--") -> 21671.5 | AM48: =IFERROR(AC48*'Inputs & Assumptions'!$Q$49,"--") -> 25000
A49: 0204 | B49: Bogota Borough | C49: Bergen | D49: 3400306490 | E49: 46 | F49: 1214194600 | G49: 9377880 | H49: 0.7723539538 | I49: 2667298.1 | J49: 482.9638103 | K49: 2.323852812 | L49: 2680629.36 | M49: 16157586 | N49: 28216095.36 | O49: 0.3323592397 | P49: 0.09500355474 | Q49: 0.5726372056 | R49: 9959 | S49: 267.8279044 | T49: =VLOOKUP(A49,'[1]2024 Summary'!$A$8:$DK$571,92,FALSE) -> 1136875 | U49: =VLOOKUP(A49,'[1]2024 Summary'!$A$8:$DK$571,93,FALSE) -> 11125 | V49: =VLOOKUP(A49,'[1]2024 Summary'!$A$8:$DK$571,94,FALSE) -> 199050 | W49: =VLOOKUP(A49,'[1]2024 Summary'!$A$8:$DK$571,96,FALSE) -> 3075990 | X49: =VLOOKUP(A49,'[1]2024 Summary'!$A$8:$DK$571,97,FALSE) -> 1756669 | Y49: =VLOOKUP(A49,'[1]2024 Summary'!$A$8:$DK$571,98,FALSE) -> 91862 | Z49: =VLOOKUP(A49,'[1]2024 Summary'!$A$8:$DK$571,100,FALSE) -> 360045 | AA49: =VLOOKUP(A49,'[1]2024 Summary'!$A$8:$DK$571,103,FALSE) -> 375000 | AB49: =VLOOKUP(A49,'[1]2024 Summary'!$A$8:$DK$571,105,FALSE) -> 1013241 | AC49: =VLOOKUP(A49,'[1]2024 Summary'!$A$8:$DK$571,108,FALSE) -> 0 | AD49: =IFERROR(T49*'Inputs & Assumptions'!$Q$40,"--") -> 113687.5 | AE49: =IFERROR(U49*'Inputs & Assumptions'!$Q$41,"--") -> 1112.5 | AF49: =IFERROR(V49*'Inputs & Assumptions'!$Q$42,"--") -> 99525 | AG49: =IFERROR(W49*'Inputs & Assumptions'!$Q$43,"--") -> 1537995 | AH49: =IFERROR(X49*'Inputs & Assumptions'!$Q$44,"--") -> 175666.9 | AI49: =IFERROR(Y49*'Inputs & Assumptions'!$Q$45,"--") -> 9186.2 | AJ49: =IFERROR(Z49*'Inputs & Assumptions'!$Q$46,"--") -> 36004.5 | AK49: =IFERROR(AA49*'Inputs & Assumptions'!$Q$47,"--") -> 187500 | AL49: =IFERROR(AB49*'Inputs & Assumptions'!$Q$48,"--") -> 506620.5 | AM49: =IFERROR(AC49*'Inputs & Assumptions'!$Q$49,"--") -> 0
A50: 1401 | B50: Boonton Town | C50: Morris | D50: 3402706610 | E50: 47 | F50: 1100497100 | G50: 10320979.15 | H50: 0.9378470102 | I50: 4248204 | J50: 1494.687947 | K50: 3.379686266 | L50: 3779262.2 | M50: 23093108 | N50: 37193349.35 | O50: 0.2774952869 | P50: 0.101611236 | Q50: 0.620893477 | R50: 11670 | S50: 364.0277635 | T50: =VLOOKUP(A50,'[1]2024 Summary'!$A$8:$DK$571,92,FALSE) -> 883660 | U50: =VLOOKUP(A50,'[1]2024 Summary'!$A$8:$DK$571,93,FALSE) -> 152730 | V50: =VLOOKUP(A50,'[1]2024 Summary'!$A$8:$DK$571,94,FALSE) -> 243340 | W50: =VLOOKUP(A50,'[1]2024 Summary'!$A$8:$DK$571,96,FALSE) -> 4463065 | X50: =VLOOKUP(A50,'[1]2024 Summary'!$A$8:$DK$571,97,FALSE) -> 5068605 | Y50: =VLOOKUP(A50,'[1]2024 Summary'!$A$8:$DK$571,98,FALSE) -> 201300 | Z50: =VLOOKUP(A50,'[1]2024 Summary'!$A$8:$DK$571,100,FALSE) -> 560920 | AA50: =VLOOKUP(A50,'[1]2024 Summary'!$A$8:$DK$571,103,FALSE) -> 543500 | AB50: =VLOOKUP(A50,'[1]2024 Summary'!$A$8:$DK$571,105,FALSE) -> 1668915 | AC50: =VLOOKUP(A50,'[1]2024 Summary'!$A$8:$DK$571,108,FALSE) -> 204145 | AD50: =IFERROR(T50*'Inputs & Assumptions'!$Q$40,"--") -> 88366 | AE50: =IFERROR(U50*'Inputs & Assumptions'!$Q$41,"--") -> 15273 | AF50: =IFERROR(V50*'Inputs & Assumptions'!$Q$42,"--") -> 121670 | AG50: =IFERROR(W50*'Inputs & Assumptions'!$Q$43,"--") -> 2231532.5 | AH50: =IFERROR(X50*'Inputs & Assumptions'!$Q$44,"--") -> 506860.5 | AI50: =IFERROR(Y50*'Inputs & Assumptions'!$Q$45,"--") -> 20130 | AJ50: =IFERROR(Z50*'Inputs & Assumptions'!$Q$46,"--") -> 56092 | AK50: =IFERROR(AA50*'Inputs & Assumptions'!$Q$47,"--") -> 271750 | AL50: =IFERROR(AB50*'Inputs & Assumptions'!$Q$48,"--") -> 834457.5 | AM50: =IFERROR(AC50*'Inputs & Assumptions'!$Q$49,"--") -> 102072.5
A51: 1402 | B51: Boonton Township | C51: Morris | D51: 3402706640 | E51: 48 | F51: 872832300 | G51: 4442716.41 | H51: 0.5090000003 | I51: 1734700.243 | J51: 5203.885721 | K51: 2.505671619 | L51: 2683341.81 | M51: 14744253 | N51: 21870311.22 | O51: 0.203139149 | P51: 0.1226933528 | Q51: 0.6741674982 | R51: 5020 | S51: 345.5578173 | T51: =VLOOKUP(A51,'[1]2024 Summary'!$A$8:$DK$571,92,FALSE) -> 676633 | U51: =VLOOKUP(A51,'[1]2024 Summary'!$A$8:$DK$571,93,FALSE) -> 94159 | V51: =VLOOKUP(A51,'[1]2024 Summary'!$A$8:$DK$571,94,FALSE) -> 1850 | W51: =VLOOKUP(A51,'[1]2024 Summary'!$A$8:$DK$571,96,FALSE) -> 2211488.81 | X51: =VLOOKUP(A51,'[1]2024 Summary'!$A$8:$DK$571,97,FALSE) -> 1183275.38 | Y51: =VLOOKUP(A51,'[1]2024 Summary'!$A$8:$DK$571,98,FALSE) -> 66961 | Z51: =VLOOKUP(A51,'[1]2024 Summary'!$A$8:$DK$571,100,FALSE) -> 0 | AA51: =VLOOKUP(A51,'[1]2024 Summary'!$A$8:$DK$571,103,FALSE) -> 0 | AB51: =VLOOKUP(A51,'[1]2024 Summary'!$A$8:$DK$571,105,FALSE) -> 818227 | AC51: =VLOOKUP(A51,'[1]2024 Summary'!$A$8:$DK$571,108,FALSE) -> 33629 | AD51: =IFERROR(T51*'Inputs & Assumptions'!$Q$40,"--") -> 67663.3 | AE51: =IFERROR(U51*'Inputs & Assumptions'!$Q$41,"--") -> 9415.9 | AF51: =IFERROR(V51*'Inputs & Assumptions'!$Q$42,"--") -> 925 | AG51: =IFERROR(W51*'Inputs & Assumptions'!$Q$43,"--") -> 1105744.405 | AH51: =IFERROR(X51*'Inputs & Assumptions'!$Q$44,"--") -> 118327.538 | AI51: =IFERROR(Y51*'Inputs & Assumptions'!$Q$45,"--") -> 6696.1 | AJ51: =IFERROR(Z51*'Inputs & Assumptions'!$Q$46,"--") -> 0 | AK51: =IFERROR(AA51*'Inputs & Assumptions'!$Q$47,"--") -> 0 | AL51: =IFERROR(AB51*'Inputs & Assumptions'!$Q$48,"--") -> 409113.5 | AM51: =IFERROR(AC51*'Inputs & Assumptions'!$Q$49,"--") -> 16814.5
A52: 0303 | B52: Bordentown City | C52: Burlington | D52: 3400506670 | E52: 49 | F52: 350420480 | G52: 4391957 | H52: 1.253339131 | I52: 814624.47 | J52: 598.10128 | K52: 3.68134384 | L52: 1693442.753 | M52: 6814783 | N52: 12900182.75 | O52: 0.3404569597 | P52: 0.1312727723 | Q52: 0.528270268 | R52: 5450 | S52: 149.4723798 | T52: =VLOOKUP(A52,'[1]2024 Summary'!$A$8:$DK$571,92,FALSE) -> 1764600 | U52: =VLOOKUP(A52,'[1]2024 Summary'!$A$8:$DK$571,93,FALSE) -> 15000 | V52: =VLOOKUP(A52,'[1]2024 Summary'!$A$8:$DK$571,94,FALSE) -> 0 | W52: =VLOOKUP(A52,'[1]2024 Summary'!$A$8:$DK$571,96,FALSE) -> 61200 | X52: =VLOOKUP(A52,'[1]2024 Summary'!$A$8:$DK$571,97,FALSE) -> 248500 | Y52: =VLOOKUP(A52,'[1]2024 Summary'!$A$8:$DK$571,98,FALSE) -> 0 | Z52: =VLOOKUP(A52,'[1]2024 Summary'!$A$8:$DK$571,100,FALSE) -> 0 | AA52: =VLOOKUP(A52,'[1]2024 Summary'!$A$8:$DK$571,103,FALSE) -> 207000 | AB52: =VLOOKUP(A52,'[1]2024 Summary'!$A$8:$DK$571,105,FALSE) -> 955428.94 | AC52: =VLOOKUP(A52,'[1]2024 Summary'!$A$8:$DK$571,108,FALSE) -> 0 | AD52: =IFERROR(T52*'Inputs & Assumptions'!$Q$40,"--") -> 176460 | AE52: =IFERROR(U52*'Inputs & Assumptions'!$Q$41,"--") -> 1500 | AF52: =IFERROR(V52*'Inputs & Assumptions'!$Q$42,"--") -> 0 | AG52: =IFERROR(W52*'Inputs & Assumptions'!$Q$43,"--") -> 30600 | AH52: =IFERROR(X52*'Inputs & Assumptions'!$Q$44,"--") -> 24850 | AI52: =IFERROR(Y52*'Inputs & Assumptions'!$Q$45,"--") -> 0 | AJ52: =IFERROR(Z52*'Inputs & Assumptions'!$Q$46,"--") -> 0 | AK52: =IFERROR(AA52*'Inputs & Assumptions'!$Q$47,"--") -> 103500 | AL52: =IFERROR(AB52*'Inputs & Assumptions'!$Q$48,"--") -> 477714.47 | AM52: =IFERROR(AC52*'Inputs & Assumptions'!$Q$49,"--") -> 0
A53: 0304 | B53: Bordentown Township | C53: Burlington | D53: 3400506700 | E53: 50 | F53: 1325560177 | G53: 8522916.35 | H53: 0.6429671393 | I53: 3686072.132 | J53: 5544.101506 | K53: 3.363812816 | L53: 7275150.774 | M53: 28791296 | N53: 44589363.12 | O53: 0.1911423656 | P53: 0.1631588851 | Q53: 0.6456987493 | R53: 15381 | S53: 239.6510066 | T53: =VLOOKUP(A53,'[1]2024 Summary'!$A$8:$DK$571,92,FALSE) -> 1374075 | U53: =VLOOKUP(A53,'[1]2024 Summary'!$A$8:$DK$571,93,FALSE) -> 185900 | V53: =VLOOKUP(A53,'[1]2024 Summary'!$A$8:$DK$571,94,FALSE) -> 346775 | W53: =VLOOKUP(A53,'[1]2024 Summary'!$A$8:$DK$571,96,FALSE) -> 3752220.35 | X53: =VLOOKUP(A53,'[1]2024 Summary'!$A$8:$DK$571,97,FALSE) -> 2978976.07 | Y53: =VLOOKUP(A53,'[1]2024 Summary'!$A$8:$DK$571,98,FALSE) -> 3500 | Z53: =VLOOKUP(A53,'[1]2024 Summary'!$A$8:$DK$571,100,FALSE) -> 0 | AA53: =VLOOKUP(A53,'[1]2024 Summary'!$A$8:$DK$571,103,FALSE) -> 400000 | AB53: =VLOOKUP(A53,'[1]2024 Summary'!$A$8:$DK$571,105,FALSE) -> 1686583.7 | AC53: =VLOOKUP(A53,'[1]2024 Summary'!$A$8:$DK$571,108,FALSE) -> 278075 | AD53: =IFERROR(T53*'Inputs & Assumptions'!$Q$40,"--") -> 137407.5 | AE53: =IFERROR(U53*'Inputs & Assumptions'!$Q$41,"--") -> 18590 | AF53: =IFERROR(V53*'Inputs & Assumptions'!$Q$42,"--") -> 173387.5 | AG53: =IFERROR(W53*'Inputs & Assumptions'!$Q$43,"--") -> 1876110.175 | AH53: =IFERROR(X53*'Inputs & Assumptions'!$Q$44,"--") -> 297897.607 | AI53: =IFERROR(Y53*'Inputs & Assumptions'!$Q$45,"--") -> 350 | AJ53: =IFERROR(Z53*'Inputs & Assumptions'!$Q$46,"--") -> 0 | AK53: =IFERROR(AA53*'Inputs & Assumptions'!$Q$47,"--") -> 200000 | AL53: =IFERROR(AB53*'Inputs & Assumptions'!$Q$48,"--") -> 843291.85 | AM53: =IFERROR(AC53*'Inputs & Assumptions'!$Q$49,"--") -> 139037.5
A54: 1804 | B54: Bound Brook Borough | C54: Somerset | D54: 3403506790 | E54: 51 | F54: 1251593600 | G54: 9573456.84 | H54: 0.7649013897 | I54: 4177686.242 | J54: 1063.229772 | K54: 2.268328143 | L54: 4354585.02 | M54: 14462208 | N54: 28390249.86 | O54: 0.3372093197 | P54: 0.1533831171 | Q54: 0.5094075632 | R54: 14679 | S54: 284.6029186 | T54: =VLOOKUP(A54,'[1]2024 Summary'!$A$8:$DK$571,92,FALSE) -> 1506000 | U54: =VLOOKUP(A54,'[1]2024 Summary'!$A$8:$DK$571,93,FALSE) -> 39925 | V54: =VLOOKUP(A54,'[1]2024 Summary'!$A$8:$DK$571,94,FALSE) -> 423342 | W54: =VLOOKUP(A54,'[1]2024 Summary'!$A$8:$DK$571,96,FALSE) -> 4979550.88 | X54: =VLOOKUP(A54,'[1]2024 Summary'!$A$8:$DK$571,97,FALSE) -> 2103771.02 | Y54: =VLOOKUP(A54,'[1]2024 Summary'!$A$8:$DK$571,98,FALSE) -> 135500 | Z54: =VLOOKUP(A54,'[1]2024 Summary'!$A$8:$DK$571,100,FALSE) -> 130502 | AA54: =VLOOKUP(A54,'[1]2024 Summary'!$A$8:$DK$571,103,FALSE) -> 0 | AB54: =VLOOKUP(A54,'[1]2024 Summary'!$A$8:$DK$571,105,FALSE) -> 1879940 | AC54: =VLOOKUP(A54,'[1]2024 Summary'!$A$8:$DK$571,108,FALSE) -> 289400 | AD54: =IFERROR(T54*'Inputs & Assumptions'!$Q$40,"--") -> 150600 | AE54: =IFERROR(U54*'Inputs & Assumptions'!$Q$41,"--") -> 3992.5 | AF54: =IFERROR(V54*'Inputs & Assumptions'!$Q$42,"--") -> 211671 | AG54: =IFERROR(W54*'Inputs & Assumptions'!$Q$43,"--") -> 2489775.44 | AH54: =IFERROR(X54*'Inputs & Assumptions'!$Q$44,"--") -> 210377.102 | AI54: =IFERROR(Y54*'Inputs & Assumptions'!$Q$45,"--") -> 13550 | AJ54: =IFERROR(Z54*'Inputs & Assumptions'!$Q$46,"--") -> 13050.2 | AK54: =IFERROR(AA54*'Inputs & Assumptions'!$Q$47,"--") -> 0 | AL54: =IFERROR(AB54*'Inputs & Assumptions'!$Q$48,"--") -> 939970 | AM54: =IFERROR(AC54*'Inputs & Assumptions'!$Q$49,"--") -> 144700
A55: 1307 | B55: Bradley Beach Borough | C55: Monmouth | D55: 3402506970 | E55: 52 | F55: 2257628400 | G55: 9040282.08 | H55: 0.4004326877 | I55: 2849972.807 | J55: 390.6914864 | K55: 0.9165872338 | L55: 4655753.62 | M55: 6997098 | N55: 20693133.7 | O55: 0.4368735162 | P55: 0.2249902643 | Q55: 0.3381362196 | R55: 4841 | S55: 588.7157213 | T55: =VLOOKUP(A55,'[1]2024 Summary'!$A$8:$DK$571,92,FALSE) -> 881360 | U55: =VLOOKUP(A55,'[1]2024 Summary'!$A$8:$DK$571,93,FALSE) -> 41100 | V55: =VLOOKUP(A55,'[1]2024 Summary'!$A$8:$DK$571,94,FALSE) -> 251250 | W55: =VLOOKUP(A55,'[1]2024 Summary'!$A$8:$DK$571,96,FALSE) -> 2927450 | X55: =VLOOKUP(A55,'[1]2024 Summary'!$A$8:$DK$571,97,FALSE) -> 3252765 | Y55: =VLOOKUP(A55,'[1]2024 Summary'!$A$8:$DK$571,98,FALSE) -> 39250 | Z55: =VLOOKUP(A55,'[1]2024 Summary'!$A$8:$DK$571,100,FALSE) -> 706558.57 | AA55: =VLOOKUP(A55,'[1]2024 Summary'!$A$8:$DK$571,103,FALSE) -> 0 | AB55: =VLOOKUP(A55,'[1]2024 Summary'!$A$8:$DK$571,105,FALSE) -> 1419728.9 | AC55: =VLOOKUP(A55,'[1]2024 Summary'!$A$8:$DK$571,108,FALSE) -> 117310 | AD55: =IFERROR(T55*'Inputs & Assumptions'!$Q$40,"--") -> 88136 | AE55: =IFERROR(U55*'Inputs & Assumptions'!$Q$41,"--") -> 4110 | AF55: =IFERROR(V55*'Inputs & Assumptions'!$Q$42,"--") -> 125625 | AG55: =IFERROR(W55*'Inputs & Assumptions'!$Q$43,"--") -> 1463725 | AH55: =IFERROR(X55*'Inputs & Assumptions'!$Q$44,"--") -> 325276.5 | AI55: =IFERROR(Y55*'Inputs & Assumptions'!$Q$45,"--") -> 3925 | AJ55: =IFERROR(Z55*'Inputs & Assumptions'!$Q$46,"--") -> 70655.857 | AK55: =IFERROR(AA55*'Inputs & Assumptions'!$Q$47,"--") -> 0 | AL55: =IFERROR(AB55*'Inputs & Assumptions'!$Q$48,"--") -> 709864.45 | AM55: =IFERROR(AC55*'Inputs & Assumptions'!$Q$49,"--") -> 58655
A56: 1805 | B56: Branchburg Township | C56: Somerset | D56: 3403507180 | E56: 53 | F56: 4435386300 | G56: 16212961.15 | H56: 0.3655366197 | I56: 4842952.394 | J56: 12845.17023 | K56: 1.803986559 | L56: 15690004.56 | M56: 48110807 | N56: 80013772.71 | O56: 0.2026271303 | P56: 0.1960912981 | Q56: 0.6012815715 | R56: 26932 | S56: 179.8214909 | T56: =VLOOKUP(A56,'[1]2024 Summary'!$A$8:$DK$571,92,FALSE) -> 4043300 | U56: =VLOOKUP(A56,'[1]2024 Summary'!$A$8:$DK$571,93,FALSE) -> 107400 | V56: =VLOOKUP(A56,'[1]2024 Summary'!$A$8:$DK$571,94,FALSE) -> 598900 | W56: =VLOOKUP(A56,'[1]2024 Summary'!$A$8:$DK$571,96,FALSE) -> 4636450 | X56: =VLOOKUP(A56,'[1]2024 Summary'!$A$8:$DK$571,97,FALSE) -> 4607635.79 | Y56: =VLOOKUP(A56,'[1]2024 Summary'!$A$8:$DK$571,98,FALSE) -> 942793.15 | Z56: =VLOOKUP(A56,'[1]2024 Summary'!$A$8:$DK$571,100,FALSE) -> 0 | AA56: =VLOOKUP(A56,'[1]2024 Summary'!$A$8:$DK$571,103,FALSE) -> 0 | AB56: =VLOOKUP(A56,'[1]2024 Summary'!$A$8:$DK$571,105,FALSE) -> 2510329 | AC56: =VLOOKUP(A56,'[1]2024 Summary'!$A$8:$DK$571,108,FALSE) -> 0 | AD56: =IFERROR(T56*'Inputs & Assumptions'!$Q$40,"--") -> 404330 | AE56: =IFERROR(U56*'Inputs & Assumptions'!$Q$41,"--") -> 10740 | AF56: =IFERROR(V56*'Inputs & Assumptions'!$Q$42,"--") -> 299450 | AG56: =IFERROR(W56*'Inputs & Assumptions'!$Q$43,"--") -> 2318225 | AH56: =IFERROR(X56*'Inputs & Assumptions'!$Q$44,"--") -> 460763.579 | AI56: =IFERROR(Y56*'Inputs & Assumptions'!$Q$45,"--") -> 94279.315 | AJ56: =IFERROR(Z56*'Inputs & Assumptions'!$Q$46,"--") -> 0 | AK56: =IFERROR(AA56*'Inputs & Assumptions'!$Q$47,"--") -> 0 | AL56: =IFERROR(AB56*'Inputs & Assumptions'!$Q$48,"--") -> 1255164.5 | AM56: =IFERROR(AC56*'Inputs & Assumptions'!$Q$49,"--") -> 0
A57: 1903 | B57: Branchville Borough | C57: Sussex | D57: 3403707300 | E57: 54 | F57: 128280300 | G57: 254855.61 | H57: 0.1986708871 | I57: 321238.308 | J57: 379.4175551 | K57: 2.451950354 | L57: 706384.66 | M57: 2184129 | N57: 3145369.27 | O57: 0.08102565649 | P57: 0.2245792463 | Q57: 0.6943950972 | R57: 1638 | S57: 196.1161832 | T57: =VLOOKUP(A57,'[1]2024 Summary'!$A$8:$DK$571,92,FALSE) -> 1179250 | U57: =VLOOKUP(A57,'[1]2024 Summary'!$A$8:$DK$571,93,FALSE) -> 8600 | V57: =VLOOKUP(A57,'[1]2024 Summary'!$A$8:$DK$571,94,FALSE) -> 27001 | W57: =VLOOKUP(A57,'[1]2024 Summary'!$A$8:$DK$571,96,FALSE) -> 53448.18 | X57: =VLOOKUP(A57,'[1]2024 Summary'!$A$8:$DK$571,97,FALSE) -> 226275 | Y57: =VLOOKUP(A57,'[1]2024 Summary'!$A$8:$DK$571,98,FALSE) -> 4112.18 | Z57: =VLOOKUP(A57,'[1]2024 Summary'!$A$8:$DK$571,100,FALSE) -> 0 | AA57: =VLOOKUP(A57,'[1]2024 Summary'!$A$8:$DK$571,103,FALSE) -> 160000 | AB57: =VLOOKUP(A57,'[1]2024 Summary'!$A$8:$DK$571,105,FALSE) -> 73330 | AC57: =VLOOKUP(A57,'[1]2024 Summary'!$A$8:$DK$571,108,FALSE) -> 45050 | AD57: =IFERROR(T57*'Inputs & Assumptions'!$Q$40,"--") -> 117925 | AE57: =IFERROR(U57*'Inputs & Assumptions'!$Q$41,"--") -> 860 | AF57: =IFERROR(V57*'Inputs & Assumptions'!$Q$42,"--") -> 13500.5 | AG57: =IFERROR(W57*'Inputs & Assumptions'!$Q$43,"--") -> 26724.09 | AH57: =IFERROR(X57*'Inputs & Assumptions'!$Q$44,"--") -> 22627.5 | AI57: =IFERROR(Y57*'Inputs & Assumptions'!$Q$45,"--") -> 411.218 | AJ57: =IFERROR(Z57*'Inputs & Assumptions'!$Q$46,"--") -> 0 | AK57: =IFERROR(AA57*'Inputs & Assumptions'!$Q$47,"--") -> 80000 | AL57: =IFERROR(AB57*'Inputs & Assumptions'!$Q$48,"--") -> 36665 | AM57: =IFERROR(AC57*'Inputs & Assumptions'!$Q$49,"--") -> 22525
A58: 1506 | B58: Brick Township | C58: Ocean | D58: 3402907420 | E58: 55 | F58: 10575809000 | G58: 84892987.48 | H58: 0.802709159 | I58: 26854996.75 | J58: 16375.48429 | K58: 2.533400176 | L58: 54858258.29 | M58: 128176318 | N58: 267927563.8 | O58: 0.3168505184 | P58: 0.2047503344 | Q58: 0.4783991471 | R58: 88508 | S58: 303.4188633 | T58: =VLOOKUP(A58,'[1]2024 Summary'!$A$8:$DK$571,92,FALSE) -> 6451641.16 | U58: =VLOOKUP(A58,'[1]2024 Summary'!$A$8:$DK$571,93,FALSE) -> 738350 | V58: =VLOOKUP(A58,'[1]2024 Summary'!$A$8:$DK$571,94,FALSE) -> 1945825 | W58: =VLOOKUP(A58,'[1]2024 Summary'!$A$8:$DK$571,96,FALSE) -> 30612473.56 | X58: =VLOOKUP(A58,'[1]2024 Summary'!$A$8:$DK$571,97,FALSE) -> 8895854.12 | Y58: =VLOOKUP(A58,'[1]2024 Summary'!$A$8:$DK$571,98,FALSE) -> 511465 | Z58: =VLOOKUP(A58,'[1]2024 Summary'!$A$8:$DK$571,100,FALSE) -> 0 | AA58: =VLOOKUP(A58,'[1]2024 Summary'!$A$8:$DK$571,103,FALSE) -> 3111541.84 | AB58: =VLOOKUP(A58,'[1]2024 Summary'!$A$8:$DK$571,105,FALSE) -> 13729526.05 | AC58: =VLOOKUP(A58,'[1]2024 Summary'!$A$8:$DK$571,108,FALSE) -> 991165 | AD58: =IFERROR(T58*'Inputs & Assumptions'!$Q$40,"--") -> 645164.116 | AE58: =IFERROR(U58*'Inputs & Assumptions'!$Q$41,"--") -> 73835 | AF58: =IFERROR(V58*'Inputs & Assumptions'!$Q$42,"--") -> 972912.5 | AG58: =IFERROR(W58*'Inputs & Assumptions'!$Q$43,"--") -> 15306236.78 | AH58: =IFERROR(X58*'Inputs & Assumptions'!$Q$44,"--") -> 889585.412 | AI58: =IFERROR(Y58*'Inputs & Assumptions'!$Q$45,"--") -> 51146.5 | AJ58: =IFERROR(Z58*'Inputs & Assumptions'!$Q$46,"--") -> 0 | AK58: =IFERROR(AA58*'Inputs & Assumptions'!$Q$47,"--") -> 1555770.92 | AL58: =IFERROR(AB58*'Inputs & Assumptions'!$Q$48,"--") -> 6864763.025 | AM58: =IFERROR(AC58*'Inputs & Assumptions'!$Q$49,"--") -> 495582.5
A59: 0601 | B59: Bridgeton City | C59: Cumberland | D59: 3401107600 | E59: 56 | F59: 492904646 | G59: 15521260.36 | H59: 3.148937728 | I59: 9513071.543 | J59: 3986.159303 | K59: 5.284291074 | L59: 6845295.85 | M59: 3679960 | N59: 26046516.21 | O59: 0.5959054268 | P59: 0.2628104194 | Q59: 0.1412841537 | R59: 33259 | S59: 286.0299932 | T59: =VLOOKUP(A59,'[1]2024 Summary'!$A$8:$DK$571,92,FALSE) -> 2965862 | U59: =VLOOKUP(A59,'[1]2024 Summary'!$A$8:$DK$571,93,FALSE) -> 27050 | V59: =VLOOKUP(A59,'[1]2024 Summary'!$A$8:$DK$571,94,FALSE) -> 206565 | W59: =VLOOKUP(A59,'[1]2024 Summary'!$A$8:$DK$571,96,FALSE) -> 10887811.91 | X59: =VLOOKUP(A59,'[1]2024 Summary'!$A$8:$DK$571,97,FALSE) -> 4381048 | Y59: =VLOOKUP(A59,'[1]2024 Summary'!$A$8:$DK$571,98,FALSE) -> 285460.71 | Z59: =VLOOKUP(A59,'[1]2024 Summary'!$A$8:$DK$571,100,FALSE) -> 347314.77 | AA59: =VLOOKUP(A59,'[1]2024 Summary'!$A$8:$DK$571,103,FALSE) -> 1485234.39 | AB59: =VLOOKUP(A59,'[1]2024 Summary'!$A$8:$DK$571,105,FALSE) -> 4270934.69 | AC59: =VLOOKUP(A59,'[1]2024 Summary'!$A$8:$DK$571,108,FALSE) -> 574250 | AD59: =IFERROR(T59*'Inputs & Assumptions'!$Q$40,"--") -> 296586.2 | AE59: =IFERROR(U59*'Inputs & Assumptions'!$Q$41,"--") -> 2705 | AF59: =IFERROR(V59*'Inputs & Assumptions'!$Q$42,"--") -> 103282.5 | AG59: =IFERROR(W59*'Inputs & Assumptions'!$Q$43,"--") -> 5443905.955 | AH59: =IFERROR(X59*'Inputs & Assumptions'!$Q$44,"--") -> 438104.8 | AI59: =IFERROR(Y59*'Inputs & Assumptions'!$Q$45,"--") -> 28546.071 | AJ59: =IFERROR(Z59*'Inputs & Assumptions'!$Q$46,"--") -> 34731.477 | AK59: =IFERROR(AA59*'Inputs & Assumptions'!$Q$47,"--") -> 742617.195 | AL59: =IFERROR(AB59*'Inputs & Assumptions'!$Q$48,"--") -> 2135467.345 | AM59: =IFERROR(AC59*'Inputs & Assumptions'!$Q$49,"--") -> 287125
A60: 1806 | B60: Bridgewater Township | C60: Somerset | D60: 3403507720 | E60: 57 | F60: 11208697600 | G60: 27239043.92 | H60: 0.2430170292 | I60: 10669687.77 | J60: 20408.0129 | K60: 1.923330398 | L60: 40291321.19 | M60: 148049923 | N60: 215580288.1 | O60: 0.1263522011 | P60: 0.186897056 | Q60: 0.6867507428 | R60: 71326 | S60: 149.5904406 | T60: =VLOOKUP(A60,'[1]2024 Summary'!$A$8:$DK$571,92,FALSE) -> 14253967.59 | U60: =VLOOKUP(A60,'[1]2024 Summary'!$A$8:$DK$571,93,FALSE) -> 353910.19 | V60: =VLOOKUP(A60,'[1]2024 Summary'!$A$8:$DK$571,94,FALSE) -> 1016066.25 | W60: =VLOOKUP(A60,'[1]2024 Summary'!$A$8:$DK$571,96,FALSE) -> 10921366.19 | X60: =VLOOKUP(A60,'[1]2024 Summary'!$A$8:$DK$571,97,FALSE) -> 3035077.99 | Y60: =VLOOKUP(A60,'[1]2024 Summary'!$A$8:$DK$571,98,FALSE) -> 464731.63 | Z60: =VLOOKUP(A60,'[1]2024 Summary'!$A$8:$DK$571,100,FALSE) -> 312900.46 | AA60: =VLOOKUP(A60,'[1]2024 Summary'!$A$8:$DK$571,103,FALSE) -> 0 | AB60: =VLOOKUP(A60,'[1]2024 Summary'!$A$8:$DK$571,105,FALSE) -> 5496421.81 | AC60: =VLOOKUP(A60,'[1]2024 Summary'!$A$8:$DK$571,108,FALSE) -> 221403.71 | AD60: =IFERROR(T60*'Inputs & Assumptions'!$Q$40,"--") -> 1425396.759 | AE60: =IFERROR(U60*'Inputs & Assumptions'!$Q$41,"--") -> 35391.019 | AF60: =IFERROR(V60*'Inputs & Assumptions'!$Q$42,"--") -> 508033.125 | AG60: =IFERROR(W60*'Inputs & Assumptions'!$Q$43,"--") -> 5460683.095 | AH60: =IFERROR(X60*'Inputs & Assumptions'!$Q$44,"--") -> 303507.799 | AI60: =IFERROR(Y60*'Inputs & Assumptions'!$Q$45,"--") -> 46473.163 | AJ60: =IFERROR(Z60*'Inputs & Assumptions'!$Q$46,"--") -> 31290.046 | AK60: =IFERROR(AA60*'Inputs & Assumptions'!$Q$47,"--") -> 0 | AL60: =IFERROR(AB60*'Inputs & Assumptions'!$Q$48,"--") -> 2748210.905 | AM60: =IFERROR(AC60*'Inputs & Assumptions'!$Q$49,"--") -> 110701.855
A61: 1308 | B61: Brielle Borough | C61: Monmouth | D61: 3402507750 | E61: 58 | F61: 2479117000 | G61: 10575778.8 | H61: 0.4265945819 | I61: 3156086.506 | J61: 1123.528897 | K61: 1.240562667 | L61: 5270197.18 | M61: 14909024 | N61: 30754999.98 | O61: 0.343871852 | P61: 0.1713606628 | Q61: 0.4847674853 | R61: 6371 | S61: 495.3832218 | T61: =VLOOKUP(A61,'[1]2024 Summary'!$A$8:$DK$571,92,FALSE) -> 2902437 | U61: =VLOOKUP(A61,'[1]2024 Summary'!$A$8:$DK$571,93,FALSE) -> 75500 | V61: =VLOOKUP(A61,'[1]2024 Summary'!$A$8:$DK$571,94,FALSE) -> 2800 | W61: =VLOOKUP(A61,'[1]2024 Summary'!$A$8:$DK$571,96,FALSE) -> 3135422.28 | X61: =VLOOKUP(A61,'[1]2024 Summary'!$A$8:$DK$571,97,FALSE) -> 828811.81 | Y61: =VLOOKUP(A61,'[1]2024 Summary'!$A$8:$DK$571,98,FALSE) -> 94000 | Z61: =VLOOKUP(A61,'[1]2024 Summary'!$A$8:$DK$571,100,FALSE) -> 185000 | AA61: =VLOOKUP(A61,'[1]2024 Summary'!$A$8:$DK$571,103,FALSE) -> 961485.97 | AB61: =VLOOKUP(A61,'[1]2024 Summary'!$A$8:$DK$571,105,FALSE) -> 1338815 | AC61: =VLOOKUP(A61,'[1]2024 Summary'!$A$8:$DK$571,108,FALSE) -> 56500 | AD61: =IFERROR(T61*'Inputs & Assumptions'!$Q$40,"--") -> 290243.7 | AE61: =IFERROR(U61*'Inputs & Assumptions'!$Q$41,"--") -> 7550 | AF61: =IFERROR(V61*'Inputs & Assumptions'!$Q$42,"--") -> 1400 | AG61: =IFERROR(W61*'Inputs & Assumptions'!$Q$43,"--") -> 1567711.14 | AH61: =IFERROR(X61*'Inputs & Assumptions'!$Q$44,"--") -> 82881.181 | AI61: =IFERROR(Y61*'Inputs & Assumptions'!$Q$45,"--") -> 9400 | AJ61: =IFERROR(Z61*'Inputs & Assumptions'!$Q$46,"--") -> 18500 | AK61: =IFERROR(AA61*'Inputs & Assumptions'!$Q$47,"--") -> 480742.985 | AL61: =IFERROR(AB61*'Inputs & Assumptions'!$Q$48,"--") -> 669407.5 | AM61: =IFERROR(AC61*'Inputs & Assumptions'!$Q$49,"--") -> 28250
A62: 0103 | B62: Brigantine City | C62: Atlantic | D62: 3400107810 | E62: 59 | F62: 3495385600 | G62: 24243098.7 | H62: 0.6935743713 | I62: 8433547.1 | J62: 4174.320584 | K62: 1.879107158 | L62: 24560260.32 | M62: 16878682 | N62: 65682041.02 | O62: 0.3690978283 | P62: 0.3739265702 | Q62: 0.2569756015 | R62: 8814 | S62: 956.8353869 | T62: =VLOOKUP(A62,'[1]2024 Summary'!$A$8:$DK$571,92,FALSE) -> 1724700 | U62: =VLOOKUP(A62,'[1]2024 Summary'!$A$8:$DK$571,93,FALSE) -> 51000 | V62: =VLOOKUP(A62,'[1]2024 Summary'!$A$8:$DK$571,94,FALSE) -> 427480 | W62: =VLOOKUP(A62,'[1]2024 Summary'!$A$8:$DK$571,96,FALSE) -> 9510300 | X62: =VLOOKUP(A62,'[1]2024 Summary'!$A$8:$DK$571,97,FALSE) -> 10076116 | Y62: =VLOOKUP(A62,'[1]2024 Summary'!$A$8:$DK$571,98,FALSE) -> 18500 | Z62: =VLOOKUP(A62,'[1]2024 Summary'!$A$8:$DK$571,100,FALSE) -> 5000 | AA62: =VLOOKUP(A62,'[1]2024 Summary'!$A$8:$DK$571,103,FALSE) -> 0 | AB62: =VLOOKUP(A62,'[1]2024 Summary'!$A$8:$DK$571,105,FALSE) -> 4374301 | AC62: =VLOOKUP(A62,'[1]2024 Summary'!$A$8:$DK$571,108,FALSE) -> 179950 | AD62: =IFERROR(T62*'Inputs & Assumptions'!$Q$40,"--") -> 172470 | AE62: =IFERROR(U62*'Inputs & Assumptions'!$Q$41,"--") -> 5100 | AF62: =IFERROR(V62*'Inputs & Assumptions'!$Q$42,"--") -> 213740 | AG62: =IFERROR(W62*'Inputs & Assumptions'!$Q$43,"--") -> 4755150 | AH62: =IFERROR(X62*'Inputs & Assumptions'!$Q$44,"--") -> 1007611.6 | AI62: =IFERROR(Y62*'Inputs & Assumptions'!$Q$45,"--") -> 1850 | AJ62: =IFERROR(Z62*'Inputs & Assumptions'!$Q$46,"--") -> 500 | AK62: =IFERROR(AA62*'Inputs & Assumptions'!$Q$47,"--") -> 0 | AL62: =IFERROR(AB62*'Inputs & Assumptions'!$Q$48,"--") -> 2187150.5 | AM62: =IFERROR(AC62*'Inputs & Assumptions'!$Q$49,"--") -> 89975
A63: 0407 | B63: Brooklawn Borough | C63: Camden | D63: 3400708170 | E63: 60 | F63: 120502800 | G63: 2423203.59 | H63: 2.01091061 | I63: 912764.355 | J63: 312.6153608 | K63: 4.2392184 | L63: 1067407.28 | M63: 1617766 | N63: 5108376.87 | O63: 0.4743588133 | P63: 0.208952336 | Q63: 0.3166888507 | R63: 2303 | S63: 396.3371059 | T63: =VLOOKUP(A63,'[1]2024 Summary'!$A$8:$DK$571,92,FALSE) -> 570200 | U63: =VLOOKUP(A63,'[1]2024 Summary'!$A$8:$DK$571,93,FALSE) -> 12000 | V63: =VLOOKUP(A63,'[1]2024 Summary'!$A$8:$DK$571,94,FALSE) -> 42500 | W63: =VLOOKUP(A63,'[1]2024 Summary'!$A$8:$DK$571,96,FALSE) -> 998450 | X63: =VLOOKUP(A63,'[1]2024 Summary'!$A$8:$DK$571,97,FALSE) -> 627229 | Y63: =VLOOKUP(A63,'[1]2024 Summary'!$A$8:$DK$571,98,FALSE) -> 15000 | Z63: =VLOOKUP(A63,'[1]2024 Summary'!$A$8:$DK$571,100,FALSE) -> 0 | AA63: =VLOOKUP(A63,'[1]2024 Summary'!$A$8:$DK$571,103,FALSE) -> 90000 | AB63: =VLOOKUP(A63,'[1]2024 Summary'!$A$8:$DK$571,105,FALSE) -> 449692.91 | AC63: =VLOOKUP(A63,'[1]2024 Summary'!$A$8:$DK$571,108,FALSE) -> 0 | AD63: =IFERROR(T63*'Inputs & Assumptions'!$Q$40,"--") -> 57020 | AE63: =IFERROR(U63*'Inputs & Assumptions'!$Q$41,"--") -> 1200 | AF63: =IFERROR(V63*'Inputs & Assumptions'!$Q$42,"--") -> 21250 | AG63: =IFERROR(W63*'Inputs & Assumptions'!$Q$43,"--") -> 499225 | AH63: =IFERROR(X63*'Inputs & Assumptions'!$Q$44,"--") -> 62722.9 | AI63: =IFERROR(Y63*'Inputs & Assumptions'!$Q$45,"--") -> 1500 | AJ63: =IFERROR(Z63*'Inputs & Assumptions'!$Q$46,"--") -> 0 | AK63: =IFERROR(AA63*'Inputs & Assumptions'!$Q$47,"--") -> 45000 | AL63: =IFERROR(AB63*'Inputs & Assumptions'!$Q$48,"--") -> 224846.455 | AM63: =IFERROR(AC63*'Inputs & Assumptions'!$Q$49,"--") -> 0
A64: 0104 | B64: Buena Borough | C64: Atlantic | D64: 3400108680 | E64: 61 | F64: 292105300 | G64: 3520611.39 | H64: 1.205254198 | I64: 706422.408 | J64: 4846.573216 | K64: 3.439160892 | L64: 1504825.85 | M64: 5020534 | N64: 10045971.24 | O64: 0.3504500765 | P64: 0.1497939636 | Q64: 0.4997559599 | R64: 5196 | S64: 135.9550439 | T64: =VLOOKUP(A64,'[1]2024 Summary'!$A$8:$DK$571,92,FALSE) -> 557576.92 | U64: =VLOOKUP(A64,'[1]2024 Summary'!$A$8:$DK$571,93,FALSE) -> 20860 | V64: =VLOOKUP(A64,'[1]2024 Summary'!$A$8:$DK$571,94,FALSE) -> 93596 | W64: =VLOOKUP(A64,'[1]2024 Summary'!$A$8:$DK$571,96,FALSE) -> 695111 | X64: =VLOOKUP(A64,'[1]2024 Summary'!$A$8:$DK$571,97,FALSE) -> 1452490.26 | Y64: =VLOOKUP(A64,'[1]2024 Summary'!$A$8:$DK$571,98,FALSE) -> 34171.9 | Z64: =VLOOKUP(A64,'[1]2024 Summary'!$A$8:$DK$571,100,FALSE) -> 12165 | AA64: =VLOOKUP(A64,'[1]2024 Summary'!$A$8:$DK$571,103,FALSE) -> 0 | AB64: =VLOOKUP(A64,'[1]2024 Summary'!$A$8:$DK$571,105,FALSE) -> 208685 | AC64: =VLOOKUP(A64,'[1]2024 Summary'!$A$8:$DK$571,108,FALSE) -> 0 | AD64: =IFERROR(T64*'Inputs & Assumptions'!$Q$40,"--") -> 55757.692 | AE64: =IFERROR(U64*'Inputs & Assumptions'!$Q$41,"--") -> 2086 | AF64: =IFERROR(V64*'Inputs & Assumptions'!$Q$42,"--") -> 46798 | AG64: =IFERROR(W64*'Inputs & Assumptions'!$Q$43,"--") -> 347555.5 | AH64: =IFERROR(X64*'Inputs & Assumptions'!$Q$44,"--") -> 145249.026 | AI64: =IFERROR(Y64*'Inputs & Assumptions'!$Q$45,"--") -> 3417.19 | AJ64: =IFERROR(Z64*'Inputs & Assumptions'!$Q$46,"--") -> 1216.5 | AK64: =IFERROR(AA64*'Inputs & Assumptions'!$Q$47,"--") -> 0 | AL64: =IFERROR(AB64*'Inputs & Assumptions'!$Q$48,"--") -> 104342.5 | AM64: =IFERROR(AC64*'Inputs & Assumptions'!$Q$49,"--") -> 0
A65: 0105 | B65: Buena Vista Township | C65: Atlantic | D65: 3400108710 | E65: 62 | F65: 649845250 | G65: 3733094.36 | H65: 0.5744589747 | I65: 780632.313 | J65: 26290.99854 | K65: 2.871611364 | L65: 3473434.69 | M65: 11454501 | N65: 18661030.05 | O65: 0.2000476046 | P65: 0.1861330634 | Q65: 0.613819332 | R65: 9308 | S65: 83.86681489 | T65: =VLOOKUP(A65,'[1]2024 Summary'!$A$8:$DK$571,92,FALSE) -> 1042238.13 | U65: =VLOOKUP(A65,'[1]2024 Summary'!$A$8:$DK$571,93,FALSE) -> 6000 | V65: =VLOOKUP(A65,'[1]2024 Summary'!$A$8:$DK$571,94,FALSE) -> 0 | W65: =VLOOKUP(A65,'[1]2024 Summary'!$A$8:$DK$571,96,FALSE) -> 481000 | X65: =VLOOKUP(A65,'[1]2024 Summary'!$A$8:$DK$571,97,FALSE) -> 1398000 | Y65: =VLOOKUP(A65,'[1]2024 Summary'!$A$8:$DK$571,98,FALSE) -> 32500 | Z65: =VLOOKUP(A65,'[1]2024 Summary'!$A$8:$DK$571,100,FALSE) -> 0 | AA65: =VLOOKUP(A65,'[1]2024 Summary'!$A$8:$DK$571,103,FALSE) -> 294200 | AB65: =VLOOKUP(A65,'[1]2024 Summary'!$A$8:$DK$571,105,FALSE) -> 290317 | AC65: =VLOOKUP(A65,'[1]2024 Summary'!$A$8:$DK$571,108,FALSE) -> 0 | AD65: =IFERROR(T65*'Inputs & Assumptions'!$Q$40,"--") -> 104223.813 | AE65: =IFERROR(U65*'Inputs & Assumptions'!$Q$41,"--") -> 600 | AF65: =IFERROR(V65*'Inputs & Assumptions'!$Q$42,"--") -> 0 | AG65: =IFERROR(W65*'Inputs & Assumptions'!$Q$43,"--") -> 240500 | AH65: =IFERROR(X65*'Inputs & Assumptions'!$Q$44,"--") -> 139800 | AI65: =IFERROR(Y65*'Inputs & Assumptions'!$Q$45,"--") -> 3250 | AJ65: =IFERROR(Z65*'Inputs & Assumptions'!$Q$46,"--") -> 0 | AK65: =IFERROR(AA65*'Inputs & Assumptions'!$Q$47,"--") -> 147100 | AL65: =IFERROR(AB65*'Inputs & Assumptions'!$Q$48,"--") -> 145158.5 | AM65: =IFERROR(AC65*'Inputs & Assumptions'!$Q$49,"--") -> 0
A66: 0305 | B66: Burlington City | C66: Burlington | D66: 3400508920 | E66: 63 | F66: 606439609 | G66: 9264000 | H66: 1.527604705 | I66: 5851224.937 | J66: 1942.539826 | K66: 4.329875347 | L66: 2822764.128 | M66: 14171315 | N66: 26258079.13 | O66: 0.3528057005 | P66: 0.1075007853 | Q66: 0.5396935142 | R66: 14297 | S66: 409.2624283 | T66: =VLOOKUP(A66,'[1]2024 Summary'!$A$8:$DK$571,92,FALSE) -> 1645900 | U66: =VLOOKUP(A66,'[1]2024 Summary'!$A$8:$DK$571,93,FALSE) -> 55500 | V66: =VLOOKUP(A66,'[1]2024 Summary'!$A$8:$DK$571,94,FALSE) -> 476900 | W66: =VLOOKUP(A66,'[1]2024 Summary'!$A$8:$DK$571,96,FALSE) -> 6078711.61 | X66: =VLOOKUP(A66,'[1]2024 Summary'!$A$8:$DK$571,97,FALSE) -> 7674222.22 | Y66: =VLOOKUP(A66,'[1]2024 Summary'!$A$8:$DK$571,98,FALSE) -> 55000 | Z66: =VLOOKUP(A66,'[1]2024 Summary'!$A$8:$DK$571,100,FALSE) -> 78837.5 | AA66: =VLOOKUP(A66,'[1]2024 Summary'!$A$8:$DK$571,103,FALSE) -> 566000 | AB66: =VLOOKUP(A66,'[1]2024 Summary'!$A$8:$DK$571,105,FALSE) -> 2212446.32 | AC66: =VLOOKUP(A66,'[1]2024 Summary'!$A$8:$DK$571,108,FALSE) -> 466500 | AD66: =IFERROR(T66*'Inputs & Assumptions'!$Q$40,"--") -> 164590 | AE66: =IFERROR(U66*'Inputs & Assumptions'!$Q$41,"--") -> 5550 | AF66: =IFERROR(V66*'Inputs & Assumptions'!$Q$42,"--") -> 238450 | AG66: =IFERROR(W66*'Inputs & Assumptions'!$Q$43,"--") -> 3039355.805 | AH66: =IFERROR(X66*'Inputs & Assumptions'!$Q$44,"--") -> 767422.222 | AI66: =IFERROR(Y66*'Inputs & Assumptions'!$Q$45,"--") -> 5500 | AJ66: =IFERROR(Z66*'Inputs & Assumptions'!$Q$46,"--") -> 7883.75 | AK66: =IFERROR(AA66*'Inputs & Assumptions'!$Q$47,"--") -> 283000 | AL66: =IFERROR(AB66*'Inputs & Assumptions'!$Q$48,"--") -> 1106223.16 | AM66: =IFERROR(AC66*'Inputs & Assumptions'!$Q$49,"--") -> 233250
A67: 0306 | B67: Burlington Township | C67: Burlington | D67: 3400508950 | E67: 64 | F67: 2554803122 | G67: 13556029 | H67: 0.5306095363 | I67: 6973748.4 | J67: 8624.69829 | K67: 2.927777938 | L67: 12743690.17 | M67: 48499243 | N67: 74798962.17 | O67: 0.1812328488 | P67: 0.1703725533 | Q67: 0.6483945979 | R67: 32942 | S67: 211.697784 | T67: =VLOOKUP(A67,'[1]2024 Summary'!$A$8:$DK$571,92,FALSE) -> 9565126 | U67: =VLOOKUP(A67,'[1]2024 Summary'!$A$8:$DK$571,93,FALSE) -> 134588 | V67: =VLOOKUP(A67,'[1]2024 Summary'!$A$8:$DK$571,94,FALSE) -> 569955 | W67: =VLOOKUP(A67,'[1]2024 Summary'!$A$8:$DK$571,96,FALSE) -> 6666008 | X67: =VLOOKUP(A67,'[1]2024 Summary'!$A$8:$DK$571,97,FALSE) -> 4507045 | Y67: =VLOOKUP(A67,'[1]2024 Summary'!$A$8:$DK$571,98,FALSE) -> 26500 | Z67: =VLOOKUP(A67,'[1]2024 Summary'!$A$8:$DK$571,100,FALSE) -> 8500 | AA67: =VLOOKUP(A67,'[1]2024 Summary'!$A$8:$DK$571,103,FALSE) -> 0 | AB67: =VLOOKUP(A67,'[1]2024 Summary'!$A$8:$DK$571,105,FALSE) -> 3441521 | AC67: =VLOOKUP(A67,'[1]2024 Summary'!$A$8:$DK$571,108,FALSE) -> 421661 | AD67: =IFERROR(T67*'Inputs & Assumptions'!$Q$40,"--") -> 956512.6 | AE67: =IFERROR(U67*'Inputs & Assumptions'!$Q$41,"--") -> 13458.8 | AF67: =IFERROR(V67*'Inputs & Assumptions'!$Q$42,"--") -> 284977.5 | AG67: =IFERROR(W67*'Inputs & Assumptions'!$Q$43,"--") -> 3333004 | AH67: =IFERROR(X67*'Inputs & Assumptions'!$Q$44,"--") -> 450704.5 | AI67: =IFERROR(Y67*'Inputs & Assumptions'!$Q$45,"--") -> 2650 | AJ67: =IFERROR(Z67*'Inputs & Assumptions'!$Q$46,"--") -> 850 | AK67: =IFERROR(AA67*'Inputs & Assumptions'!$Q$47,"--") -> 0 | AL67: =IFERROR(AB67*'Inputs & Assumptions'!$Q$48,"--") -> 1720760.5 | AM67: =IFERROR(AC67*'Inputs & Assumptions'!$Q$49,"--") -> 210830.5
A68: 1403 | B68: Butler Borough | C68: Morris | D68: 3402709040 | E68: 65 | F68: 1247738091 | G68: 8785691 | H68: 0.7041294213 | I68: 3679186.5 | J68: 1301.564298 | K68: 2.496774564 | L68: 3202667.28 | M68: 19164849 | N68: 31153207.28 | O68: =G68/N68 -> 0.2820156179 | P68: =L68/N68 -> 0.102803774 | Q68: =M68/N68 -> 0.6151806081 | R68: 10762 | S68: =IFERROR(I68/R68,"--") -> 341.8682866 | T68: =VLOOKUP(A68,'[1]2024 Summary'!$A$8:$DK$571,92,FALSE) -> 2410070 | U68: =VLOOKUP(A68,'[1]2024 Summary'!$A$8:$DK$571,93,FALSE) -> 81505 | V68: =VLOOKUP(A68,'[1]2024 Summary'!$A$8:$DK$571,94,FALSE) -> 0 | W68: =VLOOKUP(A68,'[1]2024 Summary'!$A$8:$DK$571,96,FALSE) -> 3227737 | X68: =VLOOKUP(A68,'[1]2024 Summary'!$A$8:$DK$571,97,FALSE) -> 6936930 | Y68: =VLOOKUP(A68,'[1]2024 Summary'!$A$8:$DK$571,98,FALSE) -> 265286 | Z68: =VLOOKUP(A68,'[1]2024 Summary'!$A$8:$DK$571,100,FALSE) -> 430619 | AA68: =VLOOKUP(A68,'[1]2024 Summary'!$A$8:$DK$571,103,FALSE) -> 0 | AB68: =VLOOKUP(A68,'[1]2024 Summary'!$A$8:$DK$571,105,FALSE) -> 2105754 | AC68: =VLOOKUP(A68,'[1]2024 Summary'!$A$8:$DK$571,108,FALSE) -> 0 | AD68: =IFERROR(T68*'Inputs & Assumptions'!$Q$40,"--") -> 241007 | AE68: =IFERROR(U68*'Inputs & Assumptions'!$Q$41,"--") -> 8150.5 | AF68: =IFERROR(V68*'Inputs & Assumptions'!$Q$42,"--") -> 0 | AG68: =IFERROR(W68*'Inputs & Assumptions'!$Q$43,"--") -> 1613868.5 | AH68: =IFERROR(X68*'Inputs & Assumptions'!$Q$44,"--") -> 693693 | AI68: =IFERROR(Y68*'Inputs & Assumptions'!$Q$45,"--") -> 26528.6 | AJ68: =IFERROR(Z68*'Inputs & Assumptions'!$Q$46,"--") -> 43061.9 | AK68: =IFERROR(AA68*'Inputs & Assumptions'!$Q$47,"--") -> 0 | AL68: =IFERROR(AB68*'Inputs & Assumptions'!$Q$48,"--") -> 1052877 | AM68: =IFERROR(AC68*'Inputs & Assumptions'!$Q$49,"--") -> 0
A69: 1904 | B69: Byram Township | C69: Sussex | D69: 3403709160 | E69: =E68+1 -> 66 | F69: 924978100 | G69: 9295223.73 | H69: 1.004912844 | I69: =IF(IFERROR(SUM(AD69:AM69),"--")=0,"--",IFERROR(SUM(AD69:AM69),"--")) -> 2713196.21 | J69: 13779.55635 | K69: 3.82908912 | L69: 6048204.06 | M69: 20074808 | N69: 35418235.79 | O69: 0.2624417485 | P69: 0.1707652548 | Q69: 0.5667929967 | R69: 9219 | S69: 294.3048281 | T69: =VLOOKUP(A69,'[1]2024 Summary'!$A$8:$DK$571,92,FALSE) -> 1179764 | U69: =VLOOKUP(A69,'[1]2024 Summary'!$A$8:$DK$571,93,FALSE) -> 181050 | V69: =VLOOKUP(A69,'[1]2024 Summary'!$A$8:$DK$571,94,FALSE) -> 100 | W69: =VLOOKUP(A69,'[1]2024 Summary'!$A$8:$DK$571,96,FALSE) -> 2377304.82 | X69: =VLOOKUP(A69,'[1]2024 Summary'!$A$8:$DK$571,97,FALSE) -> 2241824 | Y69: =VLOOKUP(A69,'[1]2024 Summary'!$A$8:$DK$571,98,FALSE) -> 39500 | Z69: =VLOOKUP(A69,'[1]2024 Summary'!$A$8:$DK$571,100,FALSE) -> 0 | AA69: =VLOOKUP(A69,'[1]2024 Summary'!$A$8:$DK$571,103,FALSE) -> 1028200 | AB69: =VLOOKUP(A69,'[1]2024 Summary'!$A$8:$DK$571,105,FALSE) -> 1145906 | AC69: =VLOOKUP(A69,'[1]2024 Summary'!$A$8:$DK$571,108,FALSE) -> 146454 | AD69: =IFERROR(T69*'Inputs & Assumptions'!$Q$40,"--") -> 117976.4 | AE69: =IFERROR(U69*'Inputs & Assumptions'!$Q$41,"--") -> 18105 | AF69: =IFERROR(V69*'Inputs & Assumptions'!$Q$42,"--") -> 50 | AG69: =IFERROR(W69*'Inputs & Assumptions'!$Q$43,"--") -> 1188652.41 | AH69: =IFERROR(X69*'Inputs & Assumptions'!$Q$44,"--") -> 224182.4 | AI69: =IFERROR(Y69*'Inputs & Assumptions'!$Q$45,"--") -> 3950 | AJ69: =IFERROR(Z69*'Inputs & Assumptions'!$Q$46,"--") -> 0 | AK69: =IFERROR(AA69*'Inputs & Assumptions'!$Q$47,"--") -> 514100 | AL69: =IFERROR(AB69*'Inputs & Assumptions'!$Q$48,"--") -> 572953 | AM69: =IFERROR(AC69*'Inputs & Assumptions'!$Q$49,"--") -> 73227
A70: 0703 | B70: Caldwell Borough | C70: Essex | D70: 3401309250 | E70: 67 | F70: 1052116900 | G70: 10640324.37 | H70: =G70/(F70/100) -> 1.011325298 | I70: 3469261.965 | J70: 753.9869045 | K70: 3.183342101 | L70: 5504312.86 | M70: 17347843 | N70: 33492480.23 | O70: 0.3176929358 | P70: 0.1643447372 | Q70: 0.5179623271 | R70: 10788 | S70: 321.5852767 | T70: =VLOOKUP(A70,'[1]2024 Summary'!$A$8:$DK$571,92,FALSE) -> 6464888.07 | U70: =VLOOKUP(A70,'[1]2024 Summary'!$A$8:$DK$571,93,FALSE) -> 99693 | V70: =VLOOKUP(A70,'[1]2024 Summary'!$A$8:$DK$571,94,FALSE) -> 253407 | W70: =VLOOKUP(A70,'[1]2024 Summary'!$A$8:$DK$571,96,FALSE) -> 3451781 | X70: =VLOOKUP(A70,'[1]2024 Summary'!$A$8:$DK$571,97,FALSE) -> 1819540 | Y70: =VLOOKUP(A70,'[1]2024 Summary'!$A$8:$DK$571,98,FALSE) -> 216128.9269 | Z70: =VLOOKUP(A70,'[1]2024 Summary'!$A$8:$DK$571,100,FALSE) -> 475572.08 | AA70: =VLOOKUP(A70,'[1]2024 Summary'!$A$8:$DK$571,103,FALSE) -> 0 | AB70: =VLOOKUP(A70,'[1]2024 Summary'!$A$8:$DK$571,105,FALSE) -> 1256628.514 | AC70: =VLOOKUP(A70,'[1]2024 Summary'!$A$8:$DK$571,108,FALSE) -> 161543 | AD70: =IFERROR(T70*'Inputs & Assumptions'!$Q$40,"--") -> 646488.807 | AE70: =IFERROR(U70*'Inputs & Assumptions'!$Q$41,"--") -> 9969.3 | AF70: =IFERROR(V70*'Inputs & Assumptions'!$Q$42,"--") -> 126703.5 | AG70: =IFERROR(W70*'Inputs & Assumptions'!$Q$43,"--") -> 1725890.5 | AH70: =IFERROR(X70*'Inputs & Assumptions'!$Q$44,"--") -> 181954 | AI70: =IFERROR(Y70*'Inputs & Assumptions'!$Q$45,"--") -> 21612.89269 | AJ70: =IFERROR(Z70*'Inputs & Assumptions'!$Q$46,"--") -> 47557.208 | AK70: =IFERROR(AA70*'Inputs & Assumptions'!$Q$47,"--") -> 0 | AL70: =IFERROR(AB70*'Inputs & Assumptions'!$Q$48,"--") -> 628314.2571 | AM70: =IFERROR(AC70*'Inputs & Assumptions'!$Q$49,"--") -> 80771.5
A71: 1004 | B71: Califon Borough | C71: Hunterdon | D71: 3401909280 | E71: 68 | F71: 149135990 | G71: 1144623 | H71: 0.7675028677 | I71: 115971.6 | J71: 613.6669358 | K71: 3.828696011 | L71: 671842.7 | M71: 3893498 | N71: 5709963.7 | O71: 0.2004606439 | P71: 0.117661466 | Q71: 0.68187789 | R71: 1260 | S71: 92.04095238 | T71: =VLOOKUP(A71,'[1]2024 Summary'!$A$8:$DK$571,92,FALSE) -> 391321 | U71: =VLOOKUP(A71,'[1]2024 Summary'!$A$8:$DK$571,93,FALSE) -> 25380 | V71: =VLOOKUP(A71,'[1]2024 Summary'!$A$8:$DK$571,94,FALSE) -> 0 | W71: =VLOOKUP(A71,'[1]2024 Summary'!$A$8:$DK$571,96,FALSE) -> 79034 | X71: =VLOOKUP(A71,'[1]2024 Summary'!$A$8:$DK$571,97,FALSE) -> 164000 | Y71: =VLOOKUP(A71,'[1]2024 Summary'!$A$8:$DK$571,98,FALSE) -> 11120 | Z71: =VLOOKUP(A71,'[1]2024 Summary'!$A$8:$DK$571,100,FALSE) -> 100 | AA71: =VLOOKUP(A71,'[1]2024 Summary'!$A$8:$DK$571,103,FALSE) -> 0 | AB71: =VLOOKUP(A71,'[1]2024 Summary'!$A$8:$DK$571,105,FALSE) -> 30525 | AC71: =VLOOKUP(A71,'[1]2024 Summary'!$A$8:$DK$571,108,FALSE) -> 4000 | AD71: =IFERROR(T71*'Inputs & Assumptions'!$Q$40,"--") -> 39132.1 | AE71: =IFERROR(U71*'Inputs & Assumptions'!$Q$41,"--") -> 2538 | AF71: =IFERROR(V71*'Inputs & Assumptions'!$Q$42,"--") -> 0 | AG71: =IFERROR(W71*'Inputs & Assumptions'!$Q$43,"--") -> 39517 | AH71: =IFERROR(X71*'Inputs & Assumptions'!$Q$44,"--") -> 16400 | AI71: =IFERROR(Y71*'Inputs & Assumptions'!$Q$45,"--") -> 1112 | AJ71: =IFERROR(Z71*'Inputs & Assumptions'!$Q$46,"--") -> 10 | AK71: =IFERROR(AA71*'Inputs & Assumptions'!$Q$47,"--") -> 0 | AL71: =IFERROR(AB71*'Inputs & Assumptions'!$Q$48,"--") -> 15262.5 | AM71: =IFERROR(AC71*'Inputs & Assumptions'!$Q$49,"--") -> 2000
A72: 0408 | B72: Camden City | C72: Camden | D72: 3400710000 | E72: 69 | F72: 1728378512 | G72: 30553400.11 | H72: 1.767749361 | I72: 36778749 | J72: 5709.659573 | K72: 3.542478885 | L72: 15723262.73 | M72: 14950781 | N72: 61227443.84 | O72: 0.4990147913 | P72: 0.2568009008 | Q72: 0.2441843079 | R72: 97981 | S72: 375.3661322 | T72: =VLOOKUP(A72,'[1]2024 Summary'!$A$8:$DK$571,92,FALSE) -> 11651700 | U72: =VLOOKUP(A72,'[1]2024 Summary'!$A$8:$DK$571,93,FALSE) -> 2853400 | V72: =VLOOKUP(A72,'[1]2024 Summary'!$A$8:$DK$571,94,FALSE) -> 3507435 | W72: =VLOOKUP(A72,'[1]2024 Summary'!$A$8:$DK$571,96,FALSE) -> 48001287 | X72: =VLOOKUP(A72,'[1]2024 Summary'!$A$8:$DK$571,97,FALSE) -> 25685400 | Y72: =VLOOKUP(A72,'[1]2024 Summary'!$A$8:$DK$571,98,FALSE) -> 3485800 | Z72: =VLOOKUP(A72,'[1]2024 Summary'!$A$8:$DK$571,100,FALSE) -> 0 | AA72: =VLOOKUP(A72,'[1]2024 Summary'!$A$8:$DK$571,103,FALSE) -> 0 | AB72: =VLOOKUP(A72,'[1]2024 Summary'!$A$8:$DK$571,105,FALSE) -> 11361316 | AC72: =VLOOKUP(A72,'[1]2024 Summary'!$A$8:$DK$571,108,FALSE) -> 1952200 | AD72: =IFERROR(T72*'Inputs & Assumptions'!$Q$40,"--") -> 1165170 | AE72: =IFERROR(U72*'Inputs & Assumptions'!$Q$41,"--") -> 285340 | AF72: =IFERROR(V72*'Inputs & Assumptions'!$Q$42,"--") -> 1753717.5 | AG72: =IFERROR(W72*'Inputs & Assumptions'!$Q$43,"--") -> 24000643.5 | AH72: =IFERROR(X72*'Inputs & Assumptions'!$Q$44,"--") -> 2568540 | AI72: =IFERROR(Y72*'Inputs & Assumptions'!$Q$45,"--") -> 348580 | AJ72: =IFERROR(Z72*'Inputs & Assumptions'!$Q$46,"--") -> 0 | AK72: =IFERROR(AA72*'Inputs & Assumptions'!$Q$47,"--") -> 0 | AL72: =IFERROR(AB72*'Inputs & Assumptions'!$Q$48,"--") -> 5680658 | AM72: =IFERROR(AC72*'Inputs & Assumptions'!$Q$49,"--") -> 976100
A73: 0502 | B73: Cape May City | C73: Cape May | D73: 3400910270 | E73: 70 | F73: 3007475900 | G73: 10857708.16 | H73: 0.3610239457 | I73: 5431626.151 | J73: 1582.845968 | K73: 1.056119792 | L73: 10958858.05 | M73: 9945982 | N73: 31762548.21 | O73: 0.3418399584 | P73: 0.3450245231 | Q73: 0.3131355184 | R73: 6383 | S73: 850.9519272 | T73: =VLOOKUP(A73,'[1]2024 Summary'!$A$8:$DK$571,92,FALSE) -> 1982100 | U73: =VLOOKUP(A73,'[1]2024 Summary'!$A$8:$DK$571,93,FALSE) -> 130100 | V73: =VLOOKUP(A73,'[1]2024 Summary'!$A$8:$DK$571,94,FALSE) -> 476500 | W73: =VLOOKUP(A73,'[1]2024 Summary'!$A$8:$DK$571,96,FALSE) -> 5247796.69 | X73: =VLOOKUP(A73,'[1]2024 Summary'!$A$8:$DK$571,97,FALSE) -> 9340112.71 | Y73: =VLOOKUP(A73,'[1]2024 Summary'!$A$8:$DK$571,98,FALSE) -> 242700 | Z73: =VLOOKUP(A73,'[1]2024 Summary'!$A$8:$DK$571,100,FALSE) -> 0 | AA73: =VLOOKUP(A73,'[1]2024 Summary'!$A$8:$DK$571,103,FALSE) -> 8500 | AB73: =VLOOKUP(A73,'[1]2024 Summary'!$A$8:$DK$571,105,FALSE) -> 2483448.07 | AC73: =VLOOKUP(A73,'[1]2024 Summary'!$A$8:$DK$571,108,FALSE) -> 308005 | AD73: =IFERROR(T73*'Inputs & Assumptions'!$Q$40,"--") -> 198210 | AE73: =IFERROR(U73*'Inputs & Assumptions'!$Q$41,"--") -> 13010 | AF73: =IFERROR(V73*'Inputs & Assumptions'!$Q$42,"--") -> 238250 | AG73: =IFERROR(W73*'Inputs & Assumptions'!$Q$43,"--") -> 2623898.345 | AH73: =IFERROR(X73*'Inputs & Assumptions'!$Q$44,"--") -> 934011.271 | AI73: =IFERROR(Y73*'Inputs & Assumptions'!$Q$45,"--") -> 24270 | AJ73: =IFERROR(Z73*'Inputs & Assumptions'!$Q$46,"--") -> 0 | AK73: =IFERROR(AA73*'Inputs & Assumptions'!$Q$47,"--") -> 4250 | AL73: =IFERROR(AB73*'Inputs & Assumptions'!$Q$48,"--") -> 1241724.035 | AM73: =IFERROR(AC73*'Inputs & Assumptions'!$Q$49,"--") -> 154002.5
A74: 0503 | B74: Cape May Point Borough | C74: Cape May | D74: 3400910330 | E74: 71 | F74: 490310400 | G74: 1704431.58 | H74: 0.3476229711 | I74: 433186 | J74: 188.7800323 | K74: 0.7393825768 | L74: 1817720.09 | M74: 103118 | N74: 3625269.67 | O74: 0.4701530466 | P74: 0.5014027246 | Q74: 0.02844422881 | R74: 223 | S74: 1942.538117 | T74: =VLOOKUP(A74,'[1]2024 Summary'!$A$8:$DK$571,92,FALSE) -> 556300 | U74: =VLOOKUP(A74,'[1]2024 Summary'!$A$8:$DK$571,93,FALSE) -> 24750 | V74: =VLOOKUP(A74,'[1]2024 Summary'!$A$8:$DK$571,94,FALSE) -> 36050 | W74: =VLOOKUP(A74,'[1]2024 Summary'!$A$8:$DK$571,96,FALSE) -> 370660 | X74: =VLOOKUP(A74,'[1]2024 Summary'!$A$8:$DK$571,97,FALSE) -> 982860 | Y74: =VLOOKUP(A74,'[1]2024 Summary'!$A$8:$DK$571,98,FALSE) -> 6700 | Z74: =VLOOKUP(A74,'[1]2024 Summary'!$A$8:$DK$571,100,FALSE) -> 0 | AA74: =VLOOKUP(A74,'[1]2024 Summary'!$A$8:$DK$571,103,FALSE) -> 0 | AB74: =VLOOKUP(A74,'[1]2024 Summary'!$A$8:$DK$571,105,FALSE) -> 129690 | AC74: =VLOOKUP(A74,'[1]2024 Summary'!$A$8:$DK$571,108,FALSE) -> 15850 | AD74: =IFERROR(T74*'Inputs & Assumptions'!$Q$40,"--") -> 55630 | AE74: =IFERROR(U74*'Inputs & Assumptions'!$Q$41,"--") -> 2475 | AF74: =IFERROR(V74*'Inputs & Assumptions'!$Q$42,"--") -> 18025 | AG74: =IFERROR(W74*'Inputs & Assumptions'!$Q$43,"--") -> 185330 | AH74: =IFERROR(X74*'Inputs & Assumptions'!$Q$44,"--") -> 98286 | AI74: =IFERROR(Y74*'Inputs & Assumptions'!$Q$45,"--") -> 670 | AJ74: =IFERROR(Z74*'Inputs & Assumptions'!$Q$46,"--") -> 0 | AK74: =IFERROR(AA74*'Inputs & Assumptions'!$Q$47,"--") -> 0 | AL74: =IFERROR(AB74*'Inputs & Assumptions'!$Q$48,"--") -> 64845 | AM74: =IFERROR(AC74*'Inputs & Assumptions'!$Q$49,"--") -> 7925
A75: 0205 | B75: Carlstadt Borough | C75: Bergen | D75: 3400310480 | E75: 72 | F75: 3253904492 | G75: 24744662.71 | H75: 0.7604606334 | I75: 5682156.925 | J75: 2525.809353 | K75: 1.660726329 | L75: 7653005.91 | M75: 21640780 | N75: 54038448.62 | O75: 0.4579084585 | P75: 0.1416214955 | Q75: 0.4004700459 | R75: 14977 | S75: 379.3921964 | T75: =VLOOKUP(A75,'[1]2024 Summary'!$A$8:$DK$571,92,FALSE) -> 1801200 | U75: =VLOOKUP(A75,'[1]2024 Summary'!$A$8:$DK$571,93,FALSE) -> 173200 | V75: =VLOOKUP(A75,'[1]2024 Summary'!$A$8:$DK$571,94,FALSE) -> 172000 | W75: =VLOOKUP(A75,'[1]2024 Summary'!$A$8:$DK$571,96,FALSE) -> 7158529.64 | X75: =VLOOKUP(A75,'[1]2024 Summary'!$A$8:$DK$571,97,FALSE) -> 3671600.76 | Y75: =VLOOKUP(A75,'[1]2024 Summary'!$A$8:$DK$571,98,FALSE) -> 156500 | Z75: =VLOOKUP(A75,'[1]2024 Summary'!$A$8:$DK$571,100,FALSE) -> 1093281.04 | AA75: =VLOOKUP(A75,'[1]2024 Summary'!$A$8:$DK$571,103,FALSE) -> 0 | AB75: =VLOOKUP(A75,'[1]2024 Summary'!$A$8:$DK$571,105,FALSE) -> 2523627.85 | AC75: =VLOOKUP(A75,'[1]2024 Summary'!$A$8:$DK$571,108,FALSE) -> 131000 | AD75: =IFERROR(T75*'Inputs & Assumptions'!$Q$40,"--") -> 180120 | AE75: =IFERROR(U75*'Inputs & Assumptions'!$Q$41,"--") -> 17320 | AF75: =IFERROR(V75*'Inputs & Assumptions'!$Q$42,"--") -> 86000 | AG75: =IFERROR(W75*'Inputs & Assumptions'!$Q$43,"--") -> 3579264.82 | AH75: =IFERROR(X75*'Inputs & Assumptions'!$Q$44,"--") -> 367160.076 | AI75: =IFERROR(Y75*'Inputs & Assumptions'!$Q$45,"--") -> 15650 | AJ75: =IFERROR(Z75*'Inputs & Assumptions'!$Q$46,"--") -> 109328.104 | AK75: =IFERROR(AA75*'Inputs & Assumptions'!$Q$47,"--") -> 0 | AL75: =IFERROR(AB75*'Inputs & Assumptions'!$Q$48,"--") -> 1261813.925 | AM75: =IFERROR(AC75*'Inputs & Assumptions'!$Q$49,"--") -> 65500
A76: 1713 | B76: Carneys Point Township | C76: Salem | D76: 3403310610 | E76: 73 | F76: 701830000 | G76: 5359695.56 | H76: 0.7636743314 | I76: 2876546.625 | J76: 10823.58439 | K76: 3.686850038 | L76: 11061334.06 | M76: 9454390 | N76: 25875419.62 | O76: 0.2071346335 | P76: 0.4274842388 | Q76: 0.3653811277 | R76: 11085 | S76: 259.4990189 | T76: =VLOOKUP(A76,'[1]2024 Summary'!$A$8:$DK$571,92,FALSE) -> 1124325 | U76: =VLOOKUP(A76,'[1]2024 Summary'!$A$8:$DK$571,93,FALSE) -> 96650 | V76: =VLOOKUP(A76,'[1]2024 Summary'!$A$8:$DK$571,94,FALSE) -> 389300 | W76: =VLOOKUP(A76,'[1]2024 Summary'!$A$8:$DK$571,96,FALSE) -> 3338450 | X76: =VLOOKUP(A76,'[1]2024 Summary'!$A$8:$DK$571,97,FALSE) -> 947993.75 | Y76: =VLOOKUP(A76,'[1]2024 Summary'!$A$8:$DK$571,98,FALSE) -> 106170 | Z76: =VLOOKUP(A76,'[1]2024 Summary'!$A$8:$DK$571,100,FALSE) -> 0 | AA76: =VLOOKUP(A76,'[1]2024 Summary'!$A$8:$DK$571,103,FALSE) -> 392000 | AB76: =VLOOKUP(A76,'[1]2024 Summary'!$A$8:$DK$571,105,FALSE) -> 1052710 | AC76: =VLOOKUP(A76,'[1]2024 Summary'!$A$8:$DK$571,108,FALSE) -> 125605.5 | AD76: =IFERROR(T76*'Inputs & Assumptions'!$Q$40,"--") -> 112432.5 | AE76: =IFERROR(U76*'Inputs & Assumptions'!$Q$41,"--") -> 9665 | AF76: =IFERROR(V76*'Inputs & Assumptions'!$Q$42,"--") -> 194650 | AG76: =IFERROR(W76*'Inputs & Assumptions'!$Q$43,"--") -> 1669225 | AH76: =IFERROR(X76*'Inputs & Assumptions'!$Q$44,"--") -> 94799.375 | AI76: =IFERROR(Y76*'Inputs & Assumptions'!$Q$45,"--") -> 10617 | AJ76: =IFERROR(Z76*'Inputs & Assumptions'!$Q$46,"--") -> 0 | AK76: =IFERROR(AA76*'Inputs & Assumptions'!$Q$47,"--") -> 196000 | AL76: =IFERROR(AB76*'Inputs & Assumptions'!$Q$48,"--") -> 526355 | AM76: =IFERROR(AC76*'Inputs & Assumptions'!$Q$49,"--") -> 62802.75
A77: 1201 | B77: Carteret Borough | C77: Middlesex | D77: 3402310750 | E77: 74 | F77: 2601317183 | G77: 39282893.54 | H77: 1.510115483 | I77: 12760600.59 | J77: 2810.207515 | K77: 3.187306418 | L77: 14317737.99 | M77: 29311318 | N77: 82911949.53 | O77: 0.4737904942 | P77: 0.1726860612 | Q77: 0.3535234446 | R77: 33077 | S77: 385.7847021 | T77: =VLOOKUP(A77,'[1]2024 Summary'!$A$8:$DK$571,92,FALSE) -> 11484871.33 | U77: =VLOOKUP(A77,'[1]2024 Summary'!$A$8:$DK$571,93,FALSE) -> 1753100 | V77: =VLOOKUP(A77,'[1]2024 Summary'!$A$8:$DK$571,94,FALSE) -> 438000 | W77: =VLOOKUP(A77,'[1]2024 Summary'!$A$8:$DK$571,96,FALSE) -> 14497000 | X77: =VLOOKUP(A77,'[1]2024 Summary'!$A$8:$DK$571,97,FALSE) -> 10650616.58 | Y77: =VLOOKUP(A77,'[1]2024 Summary'!$A$8:$DK$571,98,FALSE) -> 167000 | Z77: =VLOOKUP(A77,'[1]2024 Summary'!$A$8:$DK$571,100,FALSE) -> 1265108 | AA77: =VLOOKUP(A77,'[1]2024 Summary'!$A$8:$DK$571,103,FALSE) -> 0 | AB77: =VLOOKUP(A77,'[1]2024 Summary'!$A$8:$DK$571,105,FALSE) -> 5080812 | AC77: =VLOOKUP(A77,'[1]2024 Summary'!$A$8:$DK$571,108,FALSE) -> 441250 | AD77: =IFERROR(T77*'Inputs & Assumptions'!$Q$40,"--") -> 1148487.133 | AE77: =IFERROR(U77*'Inputs & Assumptions'!$Q$41,"--") -> 175310 | AF77: =IFERROR(V77*'Inputs & Assumptions'!$Q$42,"--") -> 219000 | AG77: =IFERROR(W77*'Inputs & Assumptions'!$Q$43,"--") -> 7248500 | AH77: =IFERROR(X77*'Inputs & Assumptions'!$Q$44,"--") -> 1065061.658 | AI77: =IFERROR(Y77*'Inputs & Assumptions'!$Q$45,"--") -> 16700 | AJ77: =IFERROR(Z77*'Inputs & Assumptions'!$Q$46,"--") -> 126510.8 | AK77: =IFERROR(AA77*'Inputs & Assumptions'!$Q$47,"--") -> 0 | AL77: =IFERROR(AB77*'Inputs & Assumptions'!$Q$48,"--") -> 2540406 | AM77: =IFERROR(AC77*'Inputs & Assumptions'!$Q$49,"--") -> 220625
A78: 0704 | B78: Cedar Grove Township | C78: Essex | D78: 3401311200 | E78: 75 | F78: 2261045100 | G78: 12779009.54 | H78: 0.565181541 | I78: 6161499.905 | J78: 2711.571983 | K78: 2.531951348 | L78: 10716745.34 | M78: 33752807 | N78: 57248561.88 | O78: 0.2232197477 | P78: 0.1871967607 | Q78: 0.5895834916 | R78: 16665 | S78: 369.726967 | T78: =VLOOKUP(A78,'[1]2024 Summary'!$A$8:$DK$571,92,FALSE) -> 1122624 | U78: =VLOOKUP(A78,'[1]2024 Summary'!$A$8:$DK$571,93,FALSE) -> 26780 | V78: =VLOOKUP(A78,'[1]2024 Summary'!$A$8:$DK$571,94,FALSE) -> 367400 | W78: =VLOOKUP(A78,'[1]2024 Summary'!$A$8:$DK$571,96,FALSE) -> 6037556.92 | X78: =VLOOKUP(A78,'[1]2024 Summary'!$A$8:$DK$571,97,FALSE) -> 1324131 | Y78: =VLOOKUP(A78,'[1]2024 Summary'!$A$8:$DK$571,98,FALSE) -> 230641 | Z78: =VLOOKUP(A78,'[1]2024 Summary'!$A$8:$DK$571,100,FALSE) -> 944903 | AA78: =VLOOKUP(A78,'[1]2024 Summary'!$A$8:$DK$571,103,FALSE) -> 2164999 | AB78: =VLOOKUP(A78,'[1]2024 Summary'!$A$8:$DK$571,105,FALSE) -> 2679654.09 | AC78: =VLOOKUP(A78,'[1]2024 Summary'!$A$8:$DK$571,108,FALSE) -> 343574 | AD78: =IFERROR(T78*'Inputs & Assumptions'!$Q$40,"--") -> 112262.4 | AE78: =IFERROR(U78*'Inputs & Assumptions'!$Q$41,"--") -> 2678 | AF78: =IFERROR(V78*'Inputs & Assumptions'!$Q$42,"--") -> 183700 | AG78: =IFERROR(W78*'Inputs & Assumptions'!$Q$43,"--") -> 3018778.46 | AH78: =IFERROR(X78*'Inputs & Assumptions'!$Q$44,"--") -> 132413.1 | AI78: =IFERROR(Y78*'Inputs & Assumptions'!$Q$45,"--") -> 23064.1 | AJ78: =IFERROR(Z78*'Inputs & Assumptions'!$Q$46,"--") -> 94490.3 | AK78: =IFERROR(AA78*'Inputs & Assumptions'!$Q$47,"--") -> 1082499.5 | AL78: =IFERROR(AB78*'Inputs & Assumptions'!$Q$48,"--") -> 1339827.045 | AM78: =IFERROR(AC78*'Inputs & Assumptions'!$Q$49,"--") -> 171787
A79: 1404 | B79: Chatham Borough | C79: Morris | D79: 3402712100 | E79: 76 | F79: 3092109300 | G79: 10700640.09 | H79: 0.3460628022 | I79: 4391958.152 | J79: 1502.287422 | K79: 1.618848695 | L79: 7776281.97 | M79: 31579649 | N79: 50056571.06 | O79: 0.2137709368 | P79: 0.1553498733 | Q79: 0.6308791899 | R79: 12295 | S79: 357.2149778 | T79: =VLOOKUP(A79,'[1]2024 Summary'!$A$8:$DK$571,92,FALSE) -> 1531582.92 | U79: =VLOOKUP(A79,'[1]2024 Summary'!$A$8:$DK$571,93,FALSE) -> 93270 | V79: =VLOOKUP(A79,'[1]2024 Summary'!$A$8:$DK$571,94,FALSE) -> 0 | W79: =VLOOKUP(A79,'[1]2024 Summary'!$A$8:$DK$571,96,FALSE) -> 4437265 | X79: =VLOOKUP(A79,'[1]2024 Summary'!$A$8:$DK$571,97,FALSE) -> 2909910 | Y79: =VLOOKUP(A79,'[1]2024 Summary'!$A$8:$DK$571,98,FALSE) -> 162526 | Z79: =VLOOKUP(A79,'[1]2024 Summary'!$A$8:$DK$571,100,FALSE) -> 1159377.6 | AA79: =VLOOKUP(A79,'[1]2024 Summary'!$A$8:$DK$571,103,FALSE) -> 1269687 | AB79: =VLOOKUP(A79,'[1]2024 Summary'!$A$8:$DK$571,105,FALSE) -> 1727031 | AC79: =VLOOKUP(A79,'[1]2024 Summary'!$A$8:$DK$571,108,FALSE) -> 178600 | AD79: =IFERROR(T79*'Inputs & Assumptions'!$Q$40,"--") -> 153158.292 | AE79: =IFERROR(U79*'Inputs & Assumptions'!$Q$41,"--") -> 9327 | AF79: =IFERROR(V79*'Inputs & Assumptions'!$Q$42,"--") -> 0 | AG79: =IFERROR(W79*'Inputs & Assumptions'!$Q$43,"--") -> 2218632.5 | AH79: =IFERROR(X79*'Inputs & Assumptions'!$Q$44,"--") -> 290991 | AI79: =IFERROR(Y79*'Inputs & Assumptions'!$Q$45,"--") -> 16252.6 | AJ79: =IFERROR(Z79*'Inputs & Assumptions'!$Q$46,"--") -> 115937.76 | AK79: =IFERROR(AA79*'Inputs & Assumptions'!$Q$47,"--") -> 634843.5 | AL79: =IFERROR(AB79*'Inputs & Assumptions'!$Q$48,"--") -> 863515.5 | AM79: =IFERROR(AC79*'Inputs & Assumptions'!$Q$49,"--") -> 89300
A80: 1405 | B80: Chatham Township | C80: Morris | D80: 3402712130 | E80: 77 | F80: 3461241500 | G80: 13286523.39 | H80: 0.3838658294 | I80: 4037397.053 | J80: 5810.120224 | K80: 1.988600552 | L80: 11200957.2 | M80: 44342787 | N80: 68830267.59 | O80: 0.1930331503 | P80: 0.1627330184 | Q80: 0.6442338313 | R80: 12553 | S80: 321.6280613 | T80: =VLOOKUP(A80,'[1]2024 Summary'!$A$8:$DK$571,92,FALSE) -> 4423250 | U80: =VLOOKUP(A80,'[1]2024 Summary'!$A$8:$DK$571,93,FALSE) -> 87950 | V80: =VLOOKUP(A80,'[1]2024 Summary'!$A$8:$DK$571,94,FALSE) -> 386200 | W80: =VLOOKUP(A80,'[1]2024 Summary'!$A$8:$DK$571,96,FALSE) -> 3949319.75 | X80: =VLOOKUP(A80,'[1]2024 Summary'!$A$8:$DK$571,97,FALSE) -> 2735510 | Y80: =VLOOKUP(A80,'[1]2024 Summary'!$A$8:$DK$571,98,FALSE) -> 208436.19 | Z80: =VLOOKUP(A80,'[1]2024 Summary'!$A$8:$DK$571,100,FALSE) -> 1377530.59 | AA80: =VLOOKUP(A80,'[1]2024 Summary'!$A$8:$DK$571,103,FALSE) -> 0 | AB80: =VLOOKUP(A80,'[1]2024 Summary'!$A$8:$DK$571,105,FALSE) -> 1884239 | AC80: =VLOOKUP(A80,'[1]2024 Summary'!$A$8:$DK$571,108,FALSE) -> 88500 | AD80: =IFERROR(T80*'Inputs & Assumptions'!$Q$40,"--") -> 442325 | AE80: =IFERROR(U80*'Inputs & Assumptions'!$Q$41,"--") -> 8795 | AF80: =IFERROR(V80*'Inputs & Assumptions'!$Q$42,"--") -> 193100 | AG80: =IFERROR(W80*'Inputs & Assumptions'!$Q$43,"--") -> 1974659.875 | AH80: =IFERROR(X80*'Inputs & Assumptions'!$Q$44,"--") -> 273551 | AI80: =IFERROR(Y80*'Inputs & Assumptions'!$Q$45,"--") -> 20843.619 | AJ80: =IFERROR(Z80*'Inputs & Assumptions'!$Q$46,"--") -> 137753.059 | AK80: =IFERROR(AA80*'Inputs & Assumptions'!$Q$47,"--") -> 0 | AL80: =IFERROR(AB80*'Inputs & Assumptions'!$Q$48,"--") -> 942119.5 | AM80: =IFERROR(AC80*'Inputs & Assumptions'!$Q$49,"--") -> 44250
A81: 0409 | B81: Cherry Hill Township | C81: Camden | D81: 3400712280 | E81: 78 | F81: 8022988900 | G81: 48064053.42 | H81: 0.5990791464 | I81: 18877291.37 | J81: 15406.09003 | K81: 4.132227007 | L81: 77272786.71 | M81: 206191274 | N81: 331528114.1 | O81: 0.1449773077 | P81: 0.2330806451 | Q81: 0.6219420472 | R81: 110097 | S81: 171.4605427 | T81: =VLOOKUP(A81,'[1]2024 Summary'!$A$8:$DK$571,92,FALSE) -> 5015847 | U81: =VLOOKUP(A81,'[1]2024 Summary'!$A$8:$DK$571,93,FALSE) -> 993728 | V81: =VLOOKUP(A81,'[1]2024 Summary'!$A$8:$DK$571,94,FALSE) -> 1455578 | W81: =VLOOKUP(A81,'[1]2024 Summary'!$A$8:$DK$571,96,FALSE) -> 19987753.34 | X81: =VLOOKUP(A81,'[1]2024 Summary'!$A$8:$DK$571,97,FALSE) -> 13043648 | Y81: =VLOOKUP(A81,'[1]2024 Summary'!$A$8:$DK$571,98,FALSE) -> 0 | Z81: =VLOOKUP(A81,'[1]2024 Summary'!$A$8:$DK$571,100,FALSE) -> 3547234 | AA81: =VLOOKUP(A81,'[1]2024 Summary'!$A$8:$DK$571,103,FALSE) -> 2877500 | AB81: =VLOOKUP(A81,'[1]2024 Summary'!$A$8:$DK$571,105,FALSE) -> 8433500 | AC81: =VLOOKUP(A81,'[1]2024 Summary'!$A$8:$DK$571,108,FALSE) -> 480160 | AD81: =IFERROR(T81*'Inputs & Assumptions'!$Q$40,"--") -> 501584.7 | AE81: =IFERROR(U81*'Inputs & Assumptions'!$Q$41,"--") -> 99372.8 | AF81: =IFERROR(V81*'Inputs & Assumptions'!$Q$42,"--") -> 727789 | AG81: =IFERROR(W81*'Inputs & Assumptions'!$Q$43,"--") -> 9993876.67 | AH81: =IFERROR(X81*'Inputs & Assumptions'!$Q$44,"--") -> 1304364.8 | AI81: =IFERROR(Y81*'Inputs & Assumptions'!$Q$45,"--") -> 0 | AJ81: =IFERROR(Z81*'Inputs & Assumptions'!$Q$46,"--") -> 354723.4 | AK81: =IFERROR(AA81*'Inputs & Assumptions'!$Q$47,"--") -> 1438750 | AL81: =IFERROR(AB81*'Inputs & Assumptions'!$Q$48,"--") -> 4216750 | AM81: =IFERROR(AC81*'Inputs & Assumptions'!$Q$49,"--") -> 240080
A82: 0410 | B82: Chesilhurst Borough | C82: Camden | D82: 3400712550 | E82: 79 | F82: 88884600 | G82: 1886780.52 | H82: 2.122730507 | I82: 1002995.3 | J82: 1097.845516 | K82: 3.955826555 | L82: 729865.09 | M82: 899475 | N82: 3516120.61 | O82: 0.5366085892 | P82: 0.2075768072 | Q82: 0.2558146036 | R82: 1563 | S82: 641.7116443 | T82: =VLOOKUP(A82,'[1]2024 Summary'!$A$8:$DK$571,92,FALSE) -> 500946 | U82: =VLOOKUP(A82,'[1]2024 Summary'!$A$8:$DK$571,93,FALSE) -> 32479 | V82: =VLOOKUP(A82,'[1]2024 Summary'!$A$8:$DK$571,94,FALSE) -> 0 | W82: =VLOOKUP(A82,'[1]2024 Summary'!$A$8:$DK$571,96,FALSE) -> 1081823 | X82: =VLOOKUP(A82,'[1]2024 Summary'!$A$8:$DK$571,97,FALSE) -> 305338 | Y82: =VLOOKUP(A82,'[1]2024 Summary'!$A$8:$DK$571,98,FALSE) -> 30300 | Z82: =VLOOKUP(A82,'[1]2024 Summary'!$A$8:$DK$571,100,FALSE) -> 0 | AA82: =VLOOKUP(A82,'[1]2024 Summary'!$A$8:$DK$571,103,FALSE) -> 223969 | AB82: =VLOOKUP(A82,'[1]2024 Summary'!$A$8:$DK$571,105,FALSE) -> 431902 | AC82: =VLOOKUP(A82,'[1]2024 Summary'!$A$8:$DK$571,108,FALSE) -> 94484 | AD82: =IFERROR(T82*'Inputs & Assumptions'!$Q$40,"--") -> 50094.6 | AE82: =IFERROR(U82*'Inputs & Assumptions'!$Q$41,"--") -> 3247.9 | AF82: =IFERROR(V82*'Inputs & Assumptions'!$Q$42,"--") -> 0 | AG82: =IFERROR(W82*'Inputs & Assumptions'!$Q$43,"--") -> 540911.5 | AH82: =IFERROR(X82*'Inputs & Assumptions'!$Q$44,"--") -> 30533.8 | AI82: =IFERROR(Y82*'Inputs & Assumptions'!$Q$45,"--") -> 3030 | AJ82: =IFERROR(Z82*'Inputs & Assumptions'!$Q$46,"--") -> 0 | AK82: =IFERROR(AA82*'Inputs & Assumptions'!$Q$47,"--") -> 111984.5 | AL82: =IFERROR(AB82*'Inputs & Assumptions'!$Q$48,"--") -> 215951 | AM82: =IFERROR(AC82*'Inputs & Assumptions'!$Q$49,"--") -> 47242
A83: 1406 | B83: Chester Borough | C83: Morris | D83: 3402712580 | E83: 80 | F83: 467103520 | G83: 4173220.27 | H83: 0.8934251384 | I83: 1241954.462 | J83: 1019.052538 | K83: 2.443782104 | L83: 1162357.96 | M83: 6079414 | N83: 11414992.23 | O83: 0.3655911617 | P83: 0.1018273107 | Q83: 0.5325815277 | R83: 3841 | S83: 323.3414376 | T83: =VLOOKUP(A83,'[1]2024 Summary'!$A$8:$DK$571,92,FALSE) -> 736435.14 | U83: =VLOOKUP(A83,'[1]2024 Summary'!$A$8:$DK$571,93,FALSE) -> 73200 | V83: =VLOOKUP(A83,'[1]2024 Summary'!$A$8:$DK$571,94,FALSE) -> 123600 | W83: =VLOOKUP(A83,'[1]2024 Summary'!$A$8:$DK$571,96,FALSE) -> 1559423.79 | X83: =VLOOKUP(A83,'[1]2024 Summary'!$A$8:$DK$571,97,FALSE) -> 988190 | Y83: =VLOOKUP(A83,'[1]2024 Summary'!$A$8:$DK$571,98,FALSE) -> 77200 | Z83: =VLOOKUP(A83,'[1]2024 Summary'!$A$8:$DK$571,100,FALSE) -> 156010.93 | AA83: =VLOOKUP(A83,'[1]2024 Summary'!$A$8:$DK$571,103,FALSE) -> 204220.32 | AB83: =VLOOKUP(A83,'[1]2024 Summary'!$A$8:$DK$571,105,FALSE) -> 190457.6 | AC83: =VLOOKUP(A83,'[1]2024 Summary'!$A$8:$DK$571,108,FALSE) -> 0 | AD83: =IFERROR(T83*'Inputs & Assumptions'!$Q$40,"--") -> 73643.514 | AE83: =IFERROR(U83*'Inputs & Assumptions'!$Q$41,"--") -> 7320 | AF83: =IFERROR(V83*'Inputs & Assumptions'!$Q$42,"--") -> 61800 | AG83: =IFERROR(W83*'Inputs & Assumptions'!$Q$43,"--") -> 779711.895 | AH83: =IFERROR(X83*'Inputs & Assumptions'!$Q$44,"--") -> 98819 | AI83: =IFERROR(Y83*'Inputs & Assumptions'!$Q$45,"--") -> 7720 | AJ83: =IFERROR(Z83*'Inputs & Assumptions'!$Q$46,"--") -> 15601.093 | AK83: =IFERROR(AA83*'Inputs & Assumptions'!$Q$47,"--") -> 102110.16 | AL83: =IFERROR(AB83*'Inputs & Assumptions'!$Q$48,"--") -> 95228.8 | AM83: =IFERROR(AC83*'Inputs & Assumptions'!$Q$49,"--") -> 0
A84: 1407 | B84: Chester Township | C84: Morris | D84: 3402712610 | E84: 81 | F84: 1823774669 | G84: 10269099.85 | H84: 0.5630684549 | I84: 2977050.689 | J84: 18644.22236 | K84: 2.593907765 | L84: 5306850.9 | M84: 31731082 | N84: 47307032.75 | O84: 0.2170734297 | P84: 0.1121789001 | Q84: 0.6707476702 | R84: 9834 | S84: 302.7303934 | T84: =VLOOKUP(A84,'[1]2024 Summary'!$A$8:$DK$571,92,FALSE) -> 1035503 | U84: =VLOOKUP(A84,'[1]2024 Summary'!$A$8:$DK$571,93,FALSE) -> 209048 | V84: =VLOOKUP(A84,'[1]2024 Summary'!$A$8:$DK$571,94,FALSE) -> 249550 | W84: =VLOOKUP(A84,'[1]2024 Summary'!$A$8:$DK$571,96,FALSE) -> 2491628.73 | X84: =VLOOKUP(A84,'[1]2024 Summary'!$A$8:$DK$571,97,FALSE) -> 1862568.32 | Y84: =VLOOKUP(A84,'[1]2024 Summary'!$A$8:$DK$571,98,FALSE) -> 100400 | Z84: =VLOOKUP(A84,'[1]2024 Summary'!$A$8:$DK$571,100,FALSE) -> 716483.92 | AA84: =VLOOKUP(A84,'[1]2024 Summary'!$A$8:$DK$571,103,FALSE) -> 992000 | AB84: =VLOOKUP(A84,'[1]2024 Summary'!$A$8:$DK$571,105,FALSE) -> 1360944 | AC84: =VLOOKUP(A84,'[1]2024 Summary'!$A$8:$DK$571,108,FALSE) -> 75178 | AD84: =IFERROR(T84*'Inputs & Assumptions'!$Q$40,"--") -> 103550.3 | AE84: =IFERROR(U84*'Inputs & Assumptions'!$Q$41,"--") -> 20904.8 | AF84: =IFERROR(V84*'Inputs & Assumptions'!$Q$42,"--") -> 124775 | AG84: =IFERROR(W84*'Inputs & Assumptions'!$Q$43,"--") -> 1245814.365 | AH84: =IFERROR(X84*'Inputs & Assumptions'!$Q$44,"--") -> 186256.832 | AI84: =IFERROR(Y84*'Inputs & Assumptions'!$Q$45,"--") -> 10040 | AJ84: =IFERROR(Z84*'Inputs & Assumptions'!$Q$46,"--") -> 71648.392 | AK84: =IFERROR(AA84*'Inputs & Assumptions'!$Q$47,"--") -> 496000 | AL84: =IFERROR(AB84*'Inputs & Assumptions'!$Q$48,"--") -> 680472 | AM84: =IFERROR(AC84*'Inputs & Assumptions'!$Q$49,"--") -> 37589
A85: 0307 | B85: Chesterfield Township | C85: Burlington | D85: 3400512670 | E85: 82 | F85: 842664916 | G85: 3591597.96 | H85: 0.4262189978 | I85: 1449270 | J85: 13639.28358 | K85: 3.253153619 | L85: 3932699.249 | M85: 19888887 | N85: 27413184.21 | O85: 0.1310171753 | P85: 0.1434601402 | Q85: 0.7255226846 | R85: 10173 | S85: 142.4624005 | T85: =VLOOKUP(A85,'[1]2024 Summary'!$A$8:$DK$571,92,FALSE) -> 1316500 | U85: =VLOOKUP(A85,'[1]2024 Summary'!$A$8:$DK$571,93,FALSE) -> 33200 | V85: =VLOOKUP(A85,'[1]2024 Summary'!$A$8:$DK$571,94,FALSE) -> 175000 | W85: =VLOOKUP(A85,'[1]2024 Summary'!$A$8:$DK$571,96,FALSE) -> 1693094.85 | X85: =VLOOKUP(A85,'[1]2024 Summary'!$A$8:$DK$571,97,FALSE) -> 647700 | Y85: =VLOOKUP(A85,'[1]2024 Summary'!$A$8:$DK$571,98,FALSE) -> 16300 | Z85: =VLOOKUP(A85,'[1]2024 Summary'!$A$8:$DK$571,100,FALSE) -> 25000 | AA85: =VLOOKUP(A85,'[1]2024 Summary'!$A$8:$DK$571,103,FALSE) -> 0 | AB85: =VLOOKUP(A85,'[1]2024 Summary'!$A$8:$DK$571,105,FALSE) -> 622705.15 | AC85: =VLOOKUP(A85,'[1]2024 Summary'!$A$8:$DK$571,108,FALSE) -> 0 | AD85: =IFERROR(T85*'Inputs & Assumptions'!$Q$40,"--") -> 131650 | AE85: =IFERROR(U85*'Inputs & Assumptions'!$Q$41,"--") -> 3320 | AF85: =IFERROR(V85*'Inputs & Assumptions'!$Q$42,"--") -> 87500 | AG85: =IFERROR(W85*'Inputs & Assumptions'!$Q$43,"--") -> 846547.425 | AH85: =IFERROR(X85*'Inputs & Assumptions'!$Q$44,"--") -> 64770 | AI85: =IFERROR(Y85*'Inputs & Assumptions'!$Q$45,"--") -> 1630 | AJ85: =IFERROR(Z85*'Inputs & Assumptions'!$Q$46,"--") -> 2500 | AK85: =IFERROR(AA85*'Inputs & Assumptions'!$Q$47,"--") -> 0 | AL85: =IFERROR(AB85*'Inputs & Assumptions'!$Q$48,"--") -> 311352.575 | AM85: =IFERROR(AC85*'Inputs & Assumptions'!$Q$49,"--") -> 0
A86: 0308 | B86: Cinnaminson Township | C86: Burlington | D86: 3400512940 | E86: 83 | F86: 1644790421 | G86: 10395470.37 | H86: 0.6320240097 | I86: 4330577.319 | J86: 4751.272617 | K86: 3.54366824 | L86: 8750441.395 | M86: 39140004 | N86: 58285915.76 | O86: 0.1783530418 | P86: 0.150129603 | Q86: 0.6715173552 | R86: 22609 | S86: 191.5421876 | T86: =VLOOKUP(A86,'[1]2024 Summary'!$A$8:$DK$571,92,FALSE) -> 1536731.69 | U86: =VLOOKUP(A86,'[1]2024 Summary'!$A$8:$DK$571,93,FALSE) -> 128500 | V86: =VLOOKUP(A86,'[1]2024 Summary'!$A$8:$DK$571,94,FALSE) -> 0 | W86: =VLOOKUP(A86,'[1]2024 Summary'!$A$8:$DK$571,96,FALSE) -> 4084002.7 | X86: =VLOOKUP(A86,'[1]2024 Summary'!$A$8:$DK$571,97,FALSE) -> 1856501 | Y86: =VLOOKUP(A86,'[1]2024 Summary'!$A$8:$DK$571,98,FALSE) -> 26657 | Z86: =VLOOKUP(A86,'[1]2024 Summary'!$A$8:$DK$571,100,FALSE) -> 0 | AA86: =VLOOKUP(A86,'[1]2024 Summary'!$A$8:$DK$571,103,FALSE) -> 1898500 | AB86: =VLOOKUP(A86,'[1]2024 Summary'!$A$8:$DK$571,105,FALSE) -> 1749074 | AC86: =VLOOKUP(A86,'[1]2024 Summary'!$A$8:$DK$571,108,FALSE) -> 219900 | AD86: =IFERROR(T86*'Inputs & Assumptions'!$Q$40,"--") -> 153673.169 | AE86: =IFERROR(U86*'Inputs & Assumptions'!$Q$41,"--") -> 12850 | AF86: =IFERROR(V86*'Inputs & Assumptions'!$Q$42,"--") -> 0 | AG86: =IFERROR(W86*'Inputs & Assumptions'!$Q$43,"--") -> 2042001.35 | AH86: =IFERROR(X86*'Inputs & Assumptions'!$Q$44,"--") -> 185650.1 | AI86: =IFERROR(Y86*'Inputs & Assumptions'!$Q$45,"--") -> 2665.7 | AJ86: =IFERROR(Z86*'Inputs & Assumptions'!$Q$46,"--") -> 0 | AK86: =IFERROR(AA86*'Inputs & Assumptions'!$Q$47,"--") -> 949250 | AL86: =IFERROR(AB86*'Inputs & Assumptions'!$Q$48,"--") -> 874537 | AM86: =IFERROR(AC86*'Inputs & Assumptions'!$Q$49,"--") -> 109950
A87: 0717 | B87: City of Orange Township | C87: Essex | D87: 3401313045 | E87: 84 | F87: 2262972400 | G87: 66409322 | H87: 2.934605919 | I87: -- | J87: 1416.110939 | K87: 3.909548552 | L87: 8654720.69 | M87: 13407962 | N87: 88472004.69 | O87: 0.7506252654 | P87: 0.09782439903 | Q87: 0.1515503356 | R87: 38191 | S87: -- | T87: =VLOOKUP(A87,'[1]2024 Summary'!$A$8:$DK$571,92,FALSE) -> No data | U87: =VLOOKUP(A87,'[1]2024 Summary'!$A$8:$DK$571,93,FALSE) -> No data | V87: =VLOOKUP(A87,'[1]2024 Summary'!$A$8:$DK$571,94,FALSE) -> No data | W87: =VLOOKUP(A87,'[1]2024 Summary'!$A$8:$DK$571,96,FALSE) -> No data | X87: =VLOOKUP(A87,'[1]2024 Summary'!$A$8:$DK$571,97,FALSE) -> No data | Y87: =VLOOKUP(A87,'[1]2024 Summary'!$A$8:$DK$571,98,FALSE) -> No data | Z87: =VLOOKUP(A87,'[1]2024 Summary'!$A$8:$DK$571,100,FALSE) -> No data | AA87: =VLOOKUP(A87,'[1]2024 Summary'!$A$8:$DK$571,103,FALSE) -> No data | AB87: =VLOOKUP(A87,'[1]2024 Summary'!$A$8:$DK$571,105,FALSE) -> No data | AC87: =VLOOKUP(A87,'[1]2024 Summary'!$A$8:$DK$571,108,FALSE) -> No data | AD87: =IFERROR(T87*'Inputs & Assumptions'!$Q$40,"--") -> -- | AE87: =IFERROR(U87*'Inputs & Assumptions'!$Q$41,"--") -> -- | AF87: =IFERROR(V87*'Inputs & Assumptions'!$Q$42,"--") -> -- | AG87: =IFERROR(W87*'Inputs & Assumptions'!$Q$43,"--") -> -- | AH87: =IFERROR(X87*'Inputs & Assumptions'!$Q$44,"--") -> -- | AI87: =IFERROR(Y87*'Inputs & Assumptions'!$Q$45,"--") -> -- | AJ87: =IFERROR(Z87*'Inputs & Assumptions'!$Q$46,"--") -> -- | AK87: =IFERROR(AA87*'Inputs & Assumptions'!$Q$47,"--") -> -- | AL87: =IFERROR(AB87*'Inputs & Assumptions'!$Q$48,"--") -> -- | AM87: =IFERROR(AC87*'Inputs & Assumptions'!$Q$49,"--") -> --
A88: 2002 | B88: Clark Township | C88: Union | D88: 3403913150 | E88: 85 | F88: 3291110767 | G88: 21718222.39 | H88: 0.6599055434 | I88: 6668676.695 | J88: 2734.86215 | K88: 2.213355453 | L88: 14118040.23 | M88: 37007717 | N88: 72843979.62 | O88: 0.2981471153 | P88: 0.1938120392 | Q88: 0.5080408456 | R88: 22291 | S88: 299.164537 | T88: =VLOOKUP(A88,'[1]2024 Summary'!$A$8:$DK$571,92,FALSE) -> 3502168 | U88: =VLOOKUP(A88,'[1]2024 Summary'!$A$8:$DK$571,93,FALSE) -> 59490 | V88: =VLOOKUP(A88,'[1]2024 Summary'!$A$8:$DK$571,94,FALSE) -> 750339 | W88: =VLOOKUP(A88,'[1]2024 Summary'!$A$8:$DK$571,96,FALSE) -> 7674031.39 | X88: =VLOOKUP(A88,'[1]2024 Summary'!$A$8:$DK$571,97,FALSE) -> 2318947 | Y88: =VLOOKUP(A88,'[1]2024 Summary'!$A$8:$DK$571,98,FALSE) -> 284224 | Z88: =VLOOKUP(A88,'[1]2024 Summary'!$A$8:$DK$571,100,FALSE) -> 1204901 | AA88: =VLOOKUP(A88,'[1]2024 Summary'!$A$8:$DK$571,103,FALSE) -> 0 | AB88: =VLOOKUP(A88,'[1]2024 Summary'!$A$8:$DK$571,105,FALSE) -> 3141511 | AC88: =VLOOKUP(A88,'[1]2024 Summary'!$A$8:$DK$571,108,FALSE) -> 297526 | AD88: =IFERROR(T88*'Inputs & Assumptions'!$Q$40,"--") -> 350216.8 | AE88: =IFERROR(U88*'Inputs & Assumptions'!$Q$41,"--") -> 5949 | AF88: =IFERROR(V88*'Inputs & Assumptions'!$Q$42,"--") -> 375169.5 | AG88: =IFERROR(W88*'Inputs & Assumptions'!$Q$43,"--") -> 3837015.695 | AH88: =IFERROR(X88*'Inputs & Assumptions'!$Q$44,"--") -> 231894.7 | AI88: =IFERROR(Y88*'Inputs & Assumptions'!$Q$45,"--") -> 28422.4 | AJ88: =IFERROR(Z88*'Inputs & Assumptions'!$Q$46,"--") -> 120490.1 | AK88: =IFERROR(AA88*'Inputs & Assumptions'!$Q$47,"--") -> 0 | AL88: =IFERROR(AB88*'Inputs & Assumptions'!$Q$48,"--") -> 1570755.5 | AM88: =IFERROR(AC88*'Inputs & Assumptions'!$Q$49,"--") -> 148763
A89: 0801 | B89: Clayton Borough | C89: Gloucester | D89: 3401513360 | E89: 86 | F89: 801516000 | G89: 5302027.23 | H89: 0.6614998615 | I89: 2216488.613 | J89: 4527.823961 | K89: 2.474218535 | L89: 4052233.2 | M89: 10476997 | N89: 19831257.43 | O89: 0.2673570876 | P89: 0.2043356663 | Q89: 0.5283072461 | R89: 10137 | S89: 218.6533109 | T89: =VLOOKUP(A89,'[1]2024 Summary'!$A$8:$DK$571,92,FALSE) -> 956557.25 | U89: =VLOOKUP(A89,'[1]2024 Summary'!$A$8:$DK$571,93,FALSE) -> 32350 | V89: =VLOOKUP(A89,'[1]2024 Summary'!$A$8:$DK$571,94,FALSE) -> 108050 | W89: =VLOOKUP(A89,'[1]2024 Summary'!$A$8:$DK$571,96,FALSE) -> 2323479.82 | X89: =VLOOKUP(A89,'[1]2024 Summary'!$A$8:$DK$571,97,FALSE) -> 2367124.78 | Y89: =VLOOKUP(A89,'[1]2024 Summary'!$A$8:$DK$571,98,FALSE) -> 14650 | Z89: =VLOOKUP(A89,'[1]2024 Summary'!$A$8:$DK$571,100,FALSE) -> 0 | AA89: =VLOOKUP(A89,'[1]2024 Summary'!$A$8:$DK$571,103,FALSE) -> 327000 | AB89: =VLOOKUP(A89,'[1]2024 Summary'!$A$8:$DK$571,105,FALSE) -> 1000311 | AC89: =VLOOKUP(A89,'[1]2024 Summary'!$A$8:$DK$571,108,FALSE) -> 0 | AD89: =IFERROR(T89*'Inputs & Assumptions'!$Q$40,"--") -> 95655.725 | AE89: =IFERROR(U89*'Inputs & Assumptions'!$Q$41,"--") -> 3235 | AF89: =IFERROR(V89*'Inputs & Assumptions'!$Q$42,"--") -> 54025 | AG89: =IFERROR(W89*'Inputs & Assumptions'!$Q$43,"--") -> 1161739.91 | AH89: =IFERROR(X89*'Inputs & Assumptions'!$Q$44,"--") -> 236712.478 | AI89: =IFERROR(Y89*'Inputs & Assumptions'!$Q$45,"--") -> 1465 | AJ89: =IFERROR(Z89*'Inputs & Assumptions'!$Q$46,"--") -> 0 | AK89: =IFERROR(AA89*'Inputs & Assumptions'!$Q$47,"--") -> 163500 | AL89: =IFERROR(AB89*'Inputs & Assumptions'!$Q$48,"--") -> 500155.5 | AM89: =IFERROR(AC89*'Inputs & Assumptions'!$Q$49,"--") -> 0
A90: 0411 | B90: Clementon Borough | C90: Camden | D90: 3400713420 | E90: 87 | F90: 257147875 | G90: 4765149.34 | H90: 1.853077471 | I90: 1793034.43 | J90: 1211.381743 | K90: 4.511650621 | L90: 2243925.36 | M90: 4592539 | N90: 11601613.7 | O90: 0.4107315985 | P90: 0.193414935 | Q90: 0.3958534665 | R90: 6342 | S90: 282.7238143 | T90: =VLOOKUP(A90,'[1]2024 Summary'!$A$8:$DK$571,92,FALSE) -> 625386 | U90: =VLOOKUP(A90,'[1]2024 Summary'!$A$8:$DK$571,93,FALSE) -> 17655 | V90: =VLOOKUP(A90,'[1]2024 Summary'!$A$8:$DK$571,94,FALSE) -> 142400 | W90: =VLOOKUP(A90,'[1]2024 Summary'!$A$8:$DK$571,96,FALSE) -> 1875690.82 | X90: =VLOOKUP(A90,'[1]2024 Summary'!$A$8:$DK$571,97,FALSE) -> 1630500.4 | Y90: =VLOOKUP(A90,'[1]2024 Summary'!$A$8:$DK$571,98,FALSE) -> 50002 | Z90: =VLOOKUP(A90,'[1]2024 Summary'!$A$8:$DK$571,100,FALSE) -> 0 | AA90: =VLOOKUP(A90,'[1]2024 Summary'!$A$8:$DK$571,103,FALSE) -> 178400.36 | AB90: =VLOOKUP(A90,'[1]2024 Summary'!$A$8:$DK$571,105,FALSE) -> 794269 | AC90: =VLOOKUP(A90,'[1]2024 Summary'!$A$8:$DK$571,108,FALSE) -> 130600 | AD90: =IFERROR(T90*'Inputs & Assumptions'!$Q$40,"--") -> 62538.6 | AE90: =IFERROR(U90*'Inputs & Assumptions'!$Q$41,"--") -> 1765.5 | AF90: =IFERROR(V90*'Inputs & Assumptions'!$Q$42,"--") -> 71200 | AG90: =IFERROR(W90*'Inputs & Assumptions'!$Q$43,"--") -> 937845.41 | AH90: =IFERROR(X90*'Inputs & Assumptions'!$Q$44,"--") -> 163050.04 | AI90: =IFERROR(Y90*'Inputs & Assumptions'!$Q$45,"--") -> 5000.2 | AJ90: =IFERROR(Z90*'Inputs & Assumptions'!$Q$46,"--") -> 0 | AK90: =IFERROR(AA90*'Inputs & Assumptions'!$Q$47,"--") -> 89200.18 | AL90: =IFERROR(AB90*'Inputs & Assumptions'!$Q$48,"--") -> 397134.5 | AM90: =IFERROR(AC90*'Inputs & Assumptions'!$Q$49,"--") -> 65300
A91: 0206 | B91: Cliffside Park Borough | C91: Bergen | D91: 3400313570 | E91: 88 | F91: 3055167131 | G91: 35195885 | H91: 1.152011772 | I91: 9619074.3 | J91: 611.6945414 | K91: 2.755007274 | L91: 9949084.7 | M91: 39025107 | N91: 84170076.7 | O91: 0.4181519892 | P91: 0.1182021579 | Q91: 0.4636458529 | R91: 27343 | S91: 351.7929379 | T91: =VLOOKUP(A91,'[1]2024 Summary'!$A$8:$DK$571,92,FALSE) -> 3319000 | U91: =VLOOKUP(A91,'[1]2024 Summary'!$A$8:$DK$571,93,FALSE) -> 23000 | V91: =VLOOKUP(A91,'[1]2024 Summary'!$A$8:$DK$571,94,FALSE) -> 604000 | W91: =VLOOKUP(A91,'[1]2024 Summary'!$A$8:$DK$571,96,FALSE) -> 10542362 | X91: =VLOOKUP(A91,'[1]2024 Summary'!$A$8:$DK$571,97,FALSE) -> 11722716 | Y91: =VLOOKUP(A91,'[1]2024 Summary'!$A$8:$DK$571,98,FALSE) -> 212666 | Z91: =VLOOKUP(A91,'[1]2024 Summary'!$A$8:$DK$571,100,FALSE) -> 1396776 | AA91: =VLOOKUP(A91,'[1]2024 Summary'!$A$8:$DK$571,103,FALSE) -> 1000000 | AB91: =VLOOKUP(A91,'[1]2024 Summary'!$A$8:$DK$571,105,FALSE) -> 3445455 | AC91: =VLOOKUP(A91,'[1]2024 Summary'!$A$8:$DK$571,108,FALSE) -> 311500 | AD91: =IFERROR(T91*'Inputs & Assumptions'!$Q$40,"--") -> 331900 | AE91: =IFERROR(U91*'Inputs & Assumptions'!$Q$41,"--") -> 2300 | AF91: =IFERROR(V91*'Inputs & Assumptions'!$Q$42,"--") -> 302000 | AG91: =IFERROR(W91*'Inputs & Assumptions'!$Q$43,"--") -> 5271181 | AH91: =IFERROR(X91*'Inputs & Assumptions'!$Q$44,"--") -> 1172271.6 | AI91: =IFERROR(Y91*'Inputs & Assumptions'!$Q$45,"--") -> 21266.6 | AJ91: =IFERROR(Z91*'Inputs & Assumptions'!$Q$46,"--") -> 139677.6 | AK91: =IFERROR(AA91*'Inputs & Assumptions'!$Q$47,"--") -> 500000 | AL91: =IFERROR(AB91*'Inputs & Assumptions'!$Q$48,"--") -> 1722727.5 | AM91: =IFERROR(AC91*'Inputs & Assumptions'!$Q$49,"--") -> 155750
A92: 1602 | B92: Clifton City | C92: Passaic | D92: 3403113690 | E92: 89 | F92: 5378975380 | G92: 94940828 | H92: 1.765035556 | I92: 36705188.03 | J92: 7216.053885 | K92: 5.935694803 | L92: 71339979.09 | M92: 152998755 | N92: 319279562.1 | O92: 0.2973595534 | P92: 0.2234404815 | Q92: 0.4791999651 | R92: 113659 | S92: 322.9413248 | T92: =VLOOKUP(A92,'[1]2024 Summary'!$A$8:$DK$571,92,FALSE) -> 5655592 | U92: =VLOOKUP(A92,'[1]2024 Summary'!$A$8:$DK$571,93,FALSE) -> 803500 | V92: =VLOOKUP(A92,'[1]2024 Summary'!$A$8:$DK$571,94,FALSE) -> 1028150 | W92: =VLOOKUP(A92,'[1]2024 Summary'!$A$8:$DK$571,96,FALSE) -> 42287330.98 | X92: =VLOOKUP(A92,'[1]2024 Summary'!$A$8:$DK$571,97,FALSE) -> 6146753.43 | Y92: =VLOOKUP(A92,'[1]2024 Summary'!$A$8:$DK$571,98,FALSE) -> 3462940 | Z92: =VLOOKUP(A92,'[1]2024 Summary'!$A$8:$DK$571,100,FALSE) -> 0 | AA92: =VLOOKUP(A92,'[1]2024 Summary'!$A$8:$DK$571,103,FALSE) -> 9050000 | AB92: =VLOOKUP(A92,'[1]2024 Summary'!$A$8:$DK$571,105,FALSE) -> 16606788 | AC92: =VLOOKUP(A92,'[1]2024 Summary'!$A$8:$DK$571,108,FALSE) -> 1224350 | AD92: =IFERROR(T92*'Inputs & Assumptions'!$Q$40,"--") -> 565559.2 | AE92: =IFERROR(U92*'Inputs & Assumptions'!$Q$41,"--") -> 80350 | AF92: =IFERROR(V92*'Inputs & Assumptions'!$Q$42,"--") -> 514075 | AG92: =IFERROR(W92*'Inputs & Assumptions'!$Q$43,"--") -> 21143665.49 | AH92: =IFERROR(X92*'Inputs & Assumptions'!$Q$44,"--") -> 614675.343 | AI92: =IFERROR(Y92*'Inputs & Assumptions'!$Q$45,"--") -> 346294 | AJ92: =IFERROR(Z92*'Inputs & Assumptions'!$Q$46,"--") -> 0 | AK92: =IFERROR(AA92*'Inputs & Assumptions'!$Q$47,"--") -> 4525000 | AL92: =IFERROR(AB92*'Inputs & Assumptions'!$Q$48,"--") -> 8303394 | AM92: =IFERROR(AC92*'Inputs & Assumptions'!$Q$49,"--") -> 612175
A93: 1005 | B93: Clinton Town | C93: Hunterdon | D93: 3401913720 | E93: 90 | F93: 477027100 | G93: 3752869.98 | H93: 0.7867204987 | I93: 2175359.858 | J93: 861.7529766 | K93: 3.004865361 | L93: 1813475.11 | M93: 8767677 | N93: 14334022.09 | O93: 0.2618155572 | P93: 0.1265154399 | Q93: 0.6116690029 | R93: 3783 | S93: 575.0356484 | T93: =VLOOKUP(A93,'[1]2024 Summary'!$A$8:$DK$571,92,FALSE) -> 659301 | U93: =VLOOKUP(A93,'[1]2024 Summary'!$A$8:$DK$571,93,FALSE) -> 50895 | V93: =VLOOKUP(A93,'[1]2024 Summary'!$A$8:$DK$571,94,FALSE) -> 115475 | W93: =VLOOKUP(A93,'[1]2024 Summary'!$A$8:$DK$571,96,FALSE) -> 1792970 | X93: =VLOOKUP(A93,'[1]2024 Summary'!$A$8:$DK$571,97,FALSE) -> 5417005.58 | Y93: =VLOOKUP(A93,'[1]2024 Summary'!$A$8:$DK$571,98,FALSE) -> 9677 | Z93: =VLOOKUP(A93,'[1]2024 Summary'!$A$8:$DK$571,100,FALSE) -> 0 | AA93: =VLOOKUP(A93,'[1]2024 Summary'!$A$8:$DK$571,103,FALSE) -> 340085 | AB93: =VLOOKUP(A93,'[1]2024 Summary'!$A$8:$DK$571,105,FALSE) -> 874814 | AC93: =VLOOKUP(A93,'[1]2024 Summary'!$A$8:$DK$571,108,FALSE) -> 0 | AD93: =IFERROR(T93*'Inputs & Assumptions'!$Q$40,"--") -> 65930.1 | AE93: =IFERROR(U93*'Inputs & Assumptions'!$Q$41,"--") -> 5089.5 | AF93: =IFERROR(V93*'Inputs & Assumptions'!$Q$42,"--") -> 57737.5 | AG93: =IFERROR(W93*'Inputs & Assumptions'!$Q$43,"--") -> 896485 | AH93: =IFERROR(X93*'Inputs & Assumptions'!$Q$44,"--") -> 541700.558 | AI93: =IFERROR(Y93*'Inputs & Assumptions'!$Q$45,"--") -> 967.7 | AJ93: =IFERROR(Z93*'Inputs & Assumptions'!$Q$46,"--") -> 0 | AK93: =IFERROR(AA93*'Inputs & Assumptions'!$Q$47,"--") -> 170042.5 | AL93: =IFERROR(AB93*'Inputs & Assumptions'!$Q$48,"--") -> 437407 | AM93: =IFERROR(AC93*'Inputs & Assumptions'!$Q$49,"--") -> 0
A94: 1006 | B94: Clinton Township | C94: Hunterdon | D94: 3401913750 | E94: 91 | F94: 2154017800 | G94: 11196778.48 | H94: 0.5198090044 | I94: 3415529.605 | J94: 19115.92238 | K94: 2.980245546 | L94: 9337582.06 | M94: 43660659 | N94: 64195019.54 | O94: 0.1744181801 | P94: 0.1454564875 | Q94: 0.6801253324 | R94: 17082 | S94: 199.9490461 | T94: =VLOOKUP(A94,'[1]2024 Summary'!$A$8:$DK$571,92,FALSE) -> 1285100 | U94: =VLOOKUP(A94,'[1]2024 Summary'!$A$8:$DK$571,93,FALSE) -> 158800 | V94: =VLOOKUP(A94,'[1]2024 Summary'!$A$8:$DK$571,94,FALSE) -> 310800 | W94: =VLOOKUP(A94,'[1]2024 Summary'!$A$8:$DK$571,96,FALSE) -> 3880568.21 | X94: =VLOOKUP(A94,'[1]2024 Summary'!$A$8:$DK$571,97,FALSE) -> 1591700 | Y94: =VLOOKUP(A94,'[1]2024 Summary'!$A$8:$DK$571,98,FALSE) -> 33500 | Z94: =VLOOKUP(A94,'[1]2024 Summary'!$A$8:$DK$571,100,FALSE) -> 0 | AA94: =VLOOKUP(A94,'[1]2024 Summary'!$A$8:$DK$571,103,FALSE) -> 0 | AB94: =VLOOKUP(A94,'[1]2024 Summary'!$A$8:$DK$571,105,FALSE) -> 1668021 | AC94: =VLOOKUP(A94,'[1]2024 Summary'!$A$8:$DK$571,108,FALSE) -> 357850 | AD94: =IFERROR(T94*'Inputs & Assumptions'!$Q$40,"--") -> 128510 | AE94: =IFERROR(U94*'Inputs & Assumptions'!$Q$41,"--") -> 15880 | AF94: =IFERROR(V94*'Inputs & Assumptions'!$Q$42,"--") -> 155400 | AG94: =IFERROR(W94*'Inputs & Assumptions'!$Q$43,"--") -> 1940284.105 | AH94: =IFERROR(X94*'Inputs & Assumptions'!$Q$44,"--") -> 159170 | AI94: =IFERROR(Y94*'Inputs & Assumptions'!$Q$45,"--") -> 3350 | AJ94: =IFERROR(Z94*'Inputs & Assumptions'!$Q$46,"--") -> 0 | AK94: =IFERROR(AA94*'Inputs & Assumptions'!$Q$47,"--") -> 0 | AL94: =IFERROR(AB94*'Inputs & Assumptions'!$Q$48,"--") -> 834010.5 | AM94: =IFERROR(AC94*'Inputs & Assumptions'!$Q$49,"--") -> 178925
A95: 0207 | B95: Closter Borough | C95: Bergen | D95: 3400313810 | E95: 92 | F95: 2766820800 | G95: 14960548 | H95: 0.5407125752 | I95: 3962252.7 | J95: 2022.550045 | K95: 2.115198546 | L95: 6601615.33 | M95: 36961590 | N95: 58523753.33 | O95: 0.2556320664 | P95: 0.1128023231 | Q95: 0.6315656105 | R95: 11207 | S95: 353.5515928 | T95: =VLOOKUP(A95,'[1]2024 Summary'!$A$8:$DK$571,92,FALSE) -> 1391750 | U95: =VLOOKUP(A95,'[1]2024 Summary'!$A$8:$DK$571,93,FALSE) -> 155710 | V95: =VLOOKUP(A95,'[1]2024 Summary'!$A$8:$DK$571,94,FALSE) -> 450390 | W95: =VLOOKUP(A95,'[1]2024 Summary'!$A$8:$DK$571,96,FALSE) -> 3977842 | X95: =VLOOKUP(A95,'[1]2024 Summary'!$A$8:$DK$571,97,FALSE) -> 2953310 | Y95: =VLOOKUP(A95,'[1]2024 Summary'!$A$8:$DK$571,98,FALSE) -> 173703 | Z95: =VLOOKUP(A95,'[1]2024 Summary'!$A$8:$DK$571,100,FALSE) -> 963294 | AA95: =VLOOKUP(A95,'[1]2024 Summary'!$A$8:$DK$571,103,FALSE) -> 368750 | AB95: =VLOOKUP(A95,'[1]2024 Summary'!$A$8:$DK$571,105,FALSE) -> 1882545 | AC95: =VLOOKUP(A95,'[1]2024 Summary'!$A$8:$DK$571,108,FALSE) -> 117425 | AD95: =IFERROR(T95*'Inputs & Assumptions'!$Q$40,"--") -> 139175 | AE95: =IFERROR(U95*'Inputs & Assumptions'!$Q$41,"--") -> 15571 | AF95: =IFERROR(V95*'Inputs & Assumptions'!$Q$42,"--") -> 225195 | AG95: =IFERROR(W95*'Inputs & Assumptions'!$Q$43,"--") -> 1988921 | AH95: =IFERROR(X95*'Inputs & Assumptions'!$Q$44,"--") -> 295331 | AI95: =IFERROR(Y95*'Inputs & Assumptions'!$Q$45,"--") -> 17370.3 | AJ95: =IFERROR(Z95*'Inputs & Assumptions'!$Q$46,"--") -> 96329.4 | AK95: =IFERROR(AA95*'Inputs & Assumptions'!$Q$47,"--") -> 184375 | AL95: =IFERROR(AB95*'Inputs & Assumptions'!$Q$48,"--") -> 941272.5 | AM95: =IFERROR(AC95*'Inputs & Assumptions'!$Q$49,"--") -> 58712.5
A96: 0412 | B96: Collingswood Borough | C96: Camden | D96: 3400714260 | E96: 93 | F96: 1077845400 | G96: 12886190 | H96: 1.195550865 | I96: 4836781.044 | J96: 1171.212556 | K96: 3.878194418 | L96: 9384112.14 | M96: 19530638 | N96: 41800940.14 | O96: 0.3082751239 | P96: 0.2244952412 | Q96: 0.4672296349 | R96: 17693 | S96: 273.3725792 | T96: =VLOOKUP(A96,'[1]2024 Summary'!$A$8:$DK$571,92,FALSE) -> 1231655.42 | U96: =VLOOKUP(A96,'[1]2024 Summary'!$A$8:$DK$571,93,FALSE) -> 78500 | V96: =VLOOKUP(A96,'[1]2024 Summary'!$A$8:$DK$571,94,FALSE) -> 171500 | W96: =VLOOKUP(A96,'[1]2024 Summary'!$A$8:$DK$571,96,FALSE) -> 5208019.3 | X96: =VLOOKUP(A96,'[1]2024 Summary'!$A$8:$DK$571,97,FALSE) -> 5654615.97 | Y96: =VLOOKUP(A96,'[1]2024 Summary'!$A$8:$DK$571,98,FALSE) -> 87350 | Z96: =VLOOKUP(A96,'[1]2024 Summary'!$A$8:$DK$571,100,FALSE) -> 506150 | AA96: =VLOOKUP(A96,'[1]2024 Summary'!$A$8:$DK$571,103,FALSE) -> 582500 | AB96: =VLOOKUP(A96,'[1]2024 Summary'!$A$8:$DK$571,105,FALSE) -> 1990888.51 | AC96: =VLOOKUP(A96,'[1]2024 Summary'!$A$8:$DK$571,108,FALSE) -> 209000 | AD96: =IFERROR(T96*'Inputs & Assumptions'!$Q$40,"--") -> 123165.542 | AE96: =IFERROR(U96*'Inputs & Assumptions'!$Q$41,"--") -> 7850 | AF96: =IFERROR(V96*'Inputs & Assumptions'!$Q$42,"--") -> 85750 | AG96: =IFERROR(W96*'Inputs & Assumptions'!$Q$43,"--") -> 2604009.65 | AH96: =IFERROR(X96*'Inputs & Assumptions'!$Q$44,"--") -> 565461.597 | AI96: =IFERROR(Y96*'Inputs & Assumptions'!$Q$45,"--") -> 8735 | AJ96: =IFERROR(Z96*'Inputs & Assumptions'!$Q$46,"--") -> 50615 | AK96: =IFERROR(AA96*'Inputs & Assumptions'!$Q$47,"--") -> 291250 | AL96: =IFERROR(AB96*'Inputs & Assumptions'!$Q$48,"--") -> 995444.255 | AM96: =IFERROR(AC96*'Inputs & Assumptions'!$Q$49,"--") -> 104500
A97: 1309 | B97: Colts Neck Township | C97: Monmouth | D97: 3402514560 | E97: 94 | F97: 4006037271 | G97: 11509729.27 | H97: 0.2873095903 | I97: 3014383.936 | J97: 19657.74913 | K97: 1.489542827 | L97: 8823410.56 | M97: 39338501 | N97: 59671640.83 | O97: 0.1928844106 | P97: 0.1478660623 | Q97: 0.6592495271 | R97: 12925 | S97: 233.2211943 | T97: =VLOOKUP(A97,'[1]2024 Summary'!$A$8:$DK$571,92,FALSE) -> 1262166.36 | U97: =VLOOKUP(A97,'[1]2024 Summary'!$A$8:$DK$571,93,FALSE) -> 169484.13 | V97: =VLOOKUP(A97,'[1]2024 Summary'!$A$8:$DK$571,94,FALSE) -> 79637.5 | W97: =VLOOKUP(A97,'[1]2024 Summary'!$A$8:$DK$571,96,FALSE) -> 3538094.04 | X97: =VLOOKUP(A97,'[1]2024 Summary'!$A$8:$DK$571,97,FALSE) -> 2455240.38 | Y97: =VLOOKUP(A97,'[1]2024 Summary'!$A$8:$DK$571,98,FALSE) -> 207304.94 | Z97: =VLOOKUP(A97,'[1]2024 Summary'!$A$8:$DK$571,100,FALSE) -> 62035 | AA97: =VLOOKUP(A97,'[1]2024 Summary'!$A$8:$DK$571,103,FALSE) -> 40000 | AB97: =VLOOKUP(A97,'[1]2024 Summary'!$A$8:$DK$571,105,FALSE) -> 1454538 | AC97: =VLOOKUP(A97,'[1]2024 Summary'!$A$8:$DK$571,108,FALSE) -> 85252.17 | AD97: =IFERROR(T97*'Inputs & Assumptions'!$Q$40,"--") -> 126216.636 | AE97: =IFERROR(U97*'Inputs & Assumptions'!$Q$41,"--") -> 16948.413 | AF97: =IFERROR(V97*'Inputs & Assumptions'!$Q$42,"--") -> 39818.75 | AG97: =IFERROR(W97*'Inputs & Assumptions'!$Q$43,"--") -> 1769047.02 | AH97: =IFERROR(X97*'Inputs & Assumptions'!$Q$44,"--") -> 245524.038 | AI97: =IFERROR(Y97*'Inputs & Assumptions'!$Q$45,"--") -> 20730.494 | AJ97: =IFERROR(Z97*'Inputs & Assumptions'!$Q$46,"--") -> 6203.5 | AK97: =IFERROR(AA97*'Inputs & Assumptions'!$Q$47,"--") -> 20000 | AL97: =IFERROR(AB97*'Inputs & Assumptions'!$Q$48,"--") -> 727269 | AM97: =IFERROR(AC97*'Inputs & Assumptions'!$Q$49,"--") -> 42626.085
A98: 0602 | B98: Commercial Township | C98: Cumberland | D98: 3401114710 | E98: 95 | F98: 271304200 | G98: 1853432.38 | H98: 0.6831565379 | I98: 515351.811 | J98: 20424.64556 | K98: 2.608010477 | L98: 2800767.58 | M98: 2421442 | N98: 7075641.96 | O98: 0.261945473 | P98: 0.3958322928 | Q98: 0.3422222342 | R98: 4918 | S98: 104.7889002 | T98: =VLOOKUP(A98,'[1]2024 Summary'!$A$8:$DK$571,92,FALSE) -> 720085.61 | U98: =VLOOKUP(A98,'[1]2024 Summary'!$A$8:$DK$571,93,FALSE) -> 7900 | V98: =VLOOKUP(A98,'[1]2024 Summary'!$A$8:$DK$571,94,FALSE) -> 188600 | W98: =VLOOKUP(A98,'[1]2024 Summary'!$A$8:$DK$571,96,FALSE) -> 8000 | X98: =VLOOKUP(A98,'[1]2024 Summary'!$A$8:$DK$571,97,FALSE) -> 1456354 | Y98: =VLOOKUP(A98,'[1]2024 Summary'!$A$8:$DK$571,98,FALSE) -> 87900 | Z98: =VLOOKUP(A98,'[1]2024 Summary'!$A$8:$DK$571,100,FALSE) -> 27598.5 | AA98: =VLOOKUP(A98,'[1]2024 Summary'!$A$8:$DK$571,103,FALSE) -> 208300 | AB98: =VLOOKUP(A98,'[1]2024 Summary'!$A$8:$DK$571,105,FALSE) -> 165836 | AC98: =VLOOKUP(A98,'[1]2024 Summary'!$A$8:$DK$571,108,FALSE) -> 0 | AD98: =IFERROR(T98*'Inputs & Assumptions'!$Q$40,"--") -> 72008.561 | AE98: =IFERROR(U98*'Inputs & Assumptions'!$Q$41,"--") -> 790 | AF98: =IFERROR(V98*'Inputs & Assumptions'!$Q$42,"--") -> 94300 | AG98: =IFERROR(W98*'Inputs & Assumptions'!$Q$43,"--") -> 4000 | AH98: =IFERROR(X98*'Inputs & Assumptions'!$Q$44,"--") -> 145635.4 | AI98: =IFERROR(Y98*'Inputs & Assumptions'!$Q$45,"--") -> 8790 | AJ98: =IFERROR(Z98*'Inputs & Assumptions'!$Q$46,"--") -> 2759.85 | AK98: =IFERROR(AA98*'Inputs & Assumptions'!$Q$47,"--") -> 104150 | AL98: =IFERROR(AB98*'Inputs & Assumptions'!$Q$48,"--") -> 82918 | AM98: =IFERROR(AC98*'Inputs & Assumptions'!$Q$49,"--") -> 0
A99: 0106 | B99: Corbin City | C99: Atlantic | D99: 3400115160 | E99: 96 | F99: 51171600 | G99: 194767.64 | H99: 0.3806166702 | I99: 50779.2 | J99: 4926.259974 | K99: 2.19967226 | L99: 340483.85 | M99: 590356 | N99: 1125607.49 | O99: 0.1730333546 | P99: 0.3024889698 | Q99: 0.5244776756 | R99: 714 | S99: 71.11932773 | T99: =VLOOKUP(A99,'[1]2024 Summary'!$A$8:$DK$571,92,FALSE) -> 200931 | U99: =VLOOKUP(A99,'[1]2024 Summary'!$A$8:$DK$571,93,FALSE) -> 17100 | V99: =VLOOKUP(A99,'[1]2024 Summary'!$A$8:$DK$571,94,FALSE) -> 0 | W99: =VLOOKUP(A99,'[1]2024 Summary'!$A$8:$DK$571,96,FALSE) -> 4901 | X99: =VLOOKUP(A99,'[1]2024 Summary'!$A$8:$DK$571,97,FALSE) -> 111930 | Y99: =VLOOKUP(A99,'[1]2024 Summary'!$A$8:$DK$571,98,FALSE) -> 6801 | Z99: =VLOOKUP(A99,'[1]2024 Summary'!$A$8:$DK$571,100,FALSE) -> 0 | AA99: =VLOOKUP(A99,'[1]2024 Summary'!$A$8:$DK$571,103,FALSE) -> 0 | AB99: =VLOOKUP(A99,'[1]2024 Summary'!$A$8:$DK$571,105,FALSE) -> 24005 | AC99: =VLOOKUP(A99,'[1]2024 Summary'!$A$8:$DK$571,108,FALSE) -> 5300 | AD99: =IFERROR(T99*'Inputs & Assumptions'!$Q$40,"--") -> 20093.1 | AE99: =IFERROR(U99*'Inputs & Assumptions'!$Q$41,"--") -> 1710 | AF99: =IFERROR(V99*'Inputs & Assumptions'!$Q$42,"--") -> 0 | AG99: =IFERROR(W99*'Inputs & Assumptions'!$Q$43,"--") -> 2450.5 | AH99: =IFERROR(X99*'Inputs & Assumptions'!$Q$44,"--") -> 11193 | AI99: =IFERROR(Y99*'Inputs & Assumptions'!$Q$45,"--") -> 680.1 | AJ99: =IFERROR(Z99*'Inputs & Assumptions'!$Q$46,"--") -> 0 | AK99: =IFERROR(AA99*'Inputs & Assumptions'!$Q$47,"--") -> 0 | AL99: =IFERROR(AB99*'Inputs & Assumptions'!$Q$48,"--") -> 12002.5 | AM99: =IFERROR(AC99*'Inputs & Assumptions'!$Q$49,"--") -> 2650
A100: 1202 | B100: Cranbury Township | C100: Middlesex | D100: 3402315550 | E100: 97 | F100: 1973441600 | G100: 7907517.41 | H100: 0.4006968035 | I100: 2536703.613 | J100: 8501.251164 | K100: 1.833611035 | L100: 8611845.53 | M100: 19665880 | N100: 36185242.94 | O100: 0.2185287915 | P100: 0.2379933042 | Q100: 0.5434779043 | R100: 14045 | S100: 180.6125748 | T100: =VLOOKUP(A100,'[1]2024 Summary'!$A$8:$DK$571,92,FALSE) -> 1734953 | U100: =VLOOKUP(A100,'[1]2024 Summary'!$A$8:$DK$571,93,FALSE) -> 214339 | V100: =VLOOKUP(A100,'[1]2024 Summary'!$A$8:$DK$571,94,FALSE) -> 0 | W100: =VLOOKUP(A100,'[1]2024 Summary'!$A$8:$DK$571,96,FALSE) -> 3034195 | X100: =VLOOKUP(A100,'[1]2024 Summary'!$A$8:$DK$571,97,FALSE) -> 1094776.43 | Y100: =VLOOKUP(A100,'[1]2024 Summary'!$A$8:$DK$571,98,FALSE) -> 2106 | Z100: =VLOOKUP(A100,'[1]2024 Summary'!$A$8:$DK$571,100,FALSE) -> 787899 | AA100: =VLOOKUP(A100,'[1]2024 Summary'!$A$8:$DK$571,103,FALSE) -> 0 | AB100: =VLOOKUP(A100,'[1]2024 Summary'!$A$8:$DK$571,105,FALSE) -> 1272397.54 | AC100: =VLOOKUP(A100,'[1]2024 Summary'!$A$8:$DK$571,108,FALSE) -> 0 | AD100: =IFERROR(T100*'Inputs & Assumptions'!$Q$40,"--") -> 173495.3 | AE100: =IFERROR(U100*'Inputs & Assumptions'!$Q$41,"--") -> 21433.9 | AF100: =IFERROR(V100*'Inputs & Assumptions'!$Q$42,"--") -> 0 | AG100: =IFERROR(W100*'Inputs & Assumptions'!$Q$43,"--") -> 1517097.5 | AH100: =IFERROR(X100*'Inputs & Assumptions'!$Q$44,"--") -> 109477.643 | AI100: =IFERROR(Y100*'Inputs & Assumptions'!$Q$45,"--") -> 210.6 | AJ100: =IFERROR(Z100*'Inputs & Assumptions'!$Q$46,"--") -> 78789.9 | AK100: =IFERROR(AA100*'Inputs & Assumptions'!$Q$47,"--") -> 0 | AL100: =IFERROR(AB100*'Inputs & Assumptions'!$Q$48,"--") -> 636198.77 | AM100: =IFERROR(AC100*'Inputs & Assumptions'!$Q$49,"--") -> 0
A101: 2003 | B101: Cranford Township | C101: Union | D101: 3403915640 | E101: 98 | F101: 1690661829 | G101: 28420005.97 | H101: 1.680998854 | I101: 10574241.36 | J101: 3094.438634 | K101: 6.778202525 | L101: 20625414.82 | M101: 65551062 | N101: 114596482.8 | O101: 0.2480006827 | P101: 0.1799829656 | Q101: 0.5720163517 | R101: 32467 | S101: 325.6919754 | T101: =VLOOKUP(A101,'[1]2024 Summary'!$A$8:$DK$571,92,FALSE) -> 2756575 | U101: =VLOOKUP(A101,'[1]2024 Summary'!$A$8:$DK$571,93,FALSE) -> 321040 | V101: =VLOOKUP(A101,'[1]2024 Summary'!$A$8:$DK$571,94,FALSE) -> 716500 | W101: =VLOOKUP(A101,'[1]2024 Summary'!$A$8:$DK$571,96,FALSE) -> 13398014.53 | X101: =VLOOKUP(A101,'[1]2024 Summary'!$A$8:$DK$571,97,FALSE) -> 4005300 | Y101: =VLOOKUP(A101,'[1]2024 Summary'!$A$8:$DK$571,98,FALSE) -> 339800 | Z101: =VLOOKUP(A101,'[1]2024 Summary'!$A$8:$DK$571,100,FALSE) -> 1780126 | AA101: =VLOOKUP(A101,'[1]2024 Summary'!$A$8:$DK$571,103,FALSE) -> 0 | AB101: =VLOOKUP(A101,'[1]2024 Summary'!$A$8:$DK$571,105,FALSE) -> 4897784 | AC101: =VLOOKUP(A101,'[1]2024 Summary'!$A$8:$DK$571,108,FALSE) -> 295616 | AD101: =IFERROR(T101*'Inputs & Assumptions'!$Q$40,"--") -> 275657.5 | AE101: =IFERROR(U101*'Inputs & Assumptions'!$Q$41,"--") -> 32104 | AF101: =IFERROR(V101*'Inputs & Assumptions'!$Q$42,"--") -> 358250 | AG101: =IFERROR(W101*'Inputs & Assumptions'!$Q$43,"--") -> 6699007.265 | AH101: =IFERROR(X101*'Inputs & Assumptions'!$Q$44,"--") -> 400530 | AI101: =IFERROR(Y101*'Inputs & Assumptions'!$Q$45,"--") -> 33980 | AJ101: =IFERROR(Z101*'Inputs & Assumptions'!$Q$46,"--") -> 178012.6 | AK101: =IFERROR(AA101*'Inputs & Assumptions'!$Q$47,"--") -> 0 | AL101: =IFERROR(AB101*'Inputs & Assumptions'!$Q$48,"--") -> 2448892 | AM101: =IFERROR(AC101*'Inputs & Assumptions'!$Q$49,"--") -> 147808
A102: 0208 | B102: Cresskill Borough | C102: Bergen | D102: 3400315820 | E102: 99 | F102: 2555288300 | G102: 19447325 | H102: 0.7610618731 | I102: 5699533.4 | J102: 1321.407593 | K102: 2.29965037 | L102: 6514019.85 | M102: 32801352 | N102: 58762696.85 | O102: 0.3309467748 | P102: 0.1108529764 | Q102: 0.5582002488 | R102: 10630 | S102: 536.1743556 | T102: =VLOOKUP(A102,'[1]2024 Summary'!$A$8:$DK$571,92,FALSE) -> 1710700 | U102: =VLOOKUP(A102,'[1]2024 Summary'!$A$8:$DK$571,93,FALSE) -> 57400 | V102: =VLOOKUP(A102,'[1]2024 Summary'!$A$8:$DK$571,94,FALSE) -> 251500 | W102: =VLOOKUP(A102,'[1]2024 Summary'!$A$8:$DK$571,96,FALSE) -> 6908750 | X102: =VLOOKUP(A102,'[1]2024 Summary'!$A$8:$DK$571,97,FALSE) -> 3567235 | Y102: =VLOOKUP(A102,'[1]2024 Summary'!$A$8:$DK$571,98,FALSE) -> 197775 | Z102: =VLOOKUP(A102,'[1]2024 Summary'!$A$8:$DK$571,100,FALSE) -> 1028409 | AA102: =VLOOKUP(A102,'[1]2024 Summary'!$A$8:$DK$571,103,FALSE) -> 375000 | AB102: =VLOOKUP(A102,'[1]2024 Summary'!$A$8:$DK$571,105,FALSE) -> 2429863 | AC102: =VLOOKUP(A102,'[1]2024 Summary'!$A$8:$DK$571,108,FALSE) -> 121650 | AD102: =IFERROR(T102*'Inputs & Assumptions'!$Q$40,"--") -> 171070 | AE102: =IFERROR(U102*'Inputs & Assumptions'!$Q$41,"--") -> 5740 | AF102: =IFERROR(V102*'Inputs & Assumptions'!$Q$42,"--") -> 125750 | AG102: =IFERROR(W102*'Inputs & Assumptions'!$Q$43,"--") -> 3454375 | AH102: =IFERROR(X102*'Inputs & Assumptions'!$Q$44,"--") -> 356723.5 | AI102: =IFERROR(Y102*'Inputs & Assumptions'!$Q$45,"--") -> 19777.5 | AJ102: =IFERROR(Z102*'Inputs & Assumptions'!$Q$46,"--") -> 102840.9 | AK102: =IFERROR(AA102*'Inputs & Assumptions'!$Q$47,"--") -> 187500 | AL102: =IFERROR(AB102*'Inputs & Assumptions'!$Q$48,"--") -> 1214931.5 | AM102: =IFERROR(AC102*'Inputs & Assumptions'!$Q$49,"--") -> 60825
A103: 1310 | B103: Deal Borough | C103: Monmouth | D103: 3402516660 | E103: 100 | F103: 4960849600 | G103: 8817815.39 | H103: 0.1777480896 | I103: 2993175.867 | J103: 757.9116777 | K103: 0.4262043143 | L103: 10109586.63 | M103: 2215953 | N103: 21143355.02 | O103: 0.4170490152 | P103: 0.4781448649 | Q103: 0.1048061198 | R103: 962 | S103: 3111.409425 | T103: =VLOOKUP(A103,'[1]2024 Summary'!$A$8:$DK$571,92,FALSE) -> 2021302 | U103: =VLOOKUP(A103,'[1]2024 Summary'!$A$8:$DK$571,93,FALSE) -> 110150 | V103: =VLOOKUP(A103,'[1]2024 Summary'!$A$8:$DK$571,94,FALSE) -> 260800 | W103: =VLOOKUP(A103,'[1]2024 Summary'!$A$8:$DK$571,96,FALSE) -> 3106579.76 | X103: =VLOOKUP(A103,'[1]2024 Summary'!$A$8:$DK$571,97,FALSE) -> 1102443.87 | Y103: =VLOOKUP(A103,'[1]2024 Summary'!$A$8:$DK$571,98,FALSE) -> 44500 | Z103: =VLOOKUP(A103,'[1]2024 Summary'!$A$8:$DK$571,100,FALSE) -> 0 | AA103: =VLOOKUP(A103,'[1]2024 Summary'!$A$8:$DK$571,103,FALSE) -> 255000 | AB103: =VLOOKUP(A103,'[1]2024 Summary'!$A$8:$DK$571,105,FALSE) -> 1527838.52 | AC103: =VLOOKUP(A103,'[1]2024 Summary'!$A$8:$DK$571,108,FALSE) -> 180454.28 | AD103: =IFERROR(T103*'Inputs & Assumptions'!$Q$40,"--") -> 202130.2 | AE103: =IFERROR(U103*'Inputs & Assumptions'!$Q$41,"--") -> 11015 | AF103: =IFERROR(V103*'Inputs & Assumptions'!$Q$42,"--") -> 130400 | AG103: =IFERROR(W103*'Inputs & Assumptions'!$Q$43,"--") -> 1553289.88 | AH103: =IFERROR(X103*'Inputs & Assumptions'!$Q$44,"--") -> 110244.387 | AI103: =IFERROR(Y103*'Inputs & Assumptions'!$Q$45,"--") -> 4450 | AJ103: =IFERROR(Z103*'Inputs & Assumptions'!$Q$46,"--") -> 0 | AK103: =IFERROR(AA103*'Inputs & Assumptions'!$Q$47,"--") -> 127500 | AL103: =IFERROR(AB103*'Inputs & Assumptions'!$Q$48,"--") -> 763919.26 | AM103: =IFERROR(AC103*'Inputs & Assumptions'!$Q$49,"--") -> 90227.14
A104: 0603 | B104: Deerfield Township | C104: Cumberland | D104: 3401116900 | E104: 101 | F104: 197424128 | G104: 291139.57 | H104: 0.1474690925 | I104: 281424.119 | J104: 10778.67251 | K104: 3.720864893 | L104: 2600401.5 | M104: 4454344 | N104: 7345885.07 | O104: 0.03963301457 | P104: 0.3539943077 | Q104: 0.6063726777 | R104: 4358 | S104: 64.5764385 | T104: =VLOOKUP(A104,'[1]2024 Summary'!$A$8:$DK$571,92,FALSE) -> 645509.75 | U104: =VLOOKUP(A104,'[1]2024 Summary'!$A$8:$DK$571,93,FALSE) -> 23351 | V104: =VLOOKUP(A104,'[1]2024 Summary'!$A$8:$DK$571,94,FALSE) -> 17252 | W104: =VLOOKUP(A104,'[1]2024 Summary'!$A$8:$DK$571,96,FALSE) -> 181760 | X104: =VLOOKUP(A104,'[1]2024 Summary'!$A$8:$DK$571,97,FALSE) -> 517002.44 | Y104: =VLOOKUP(A104,'[1]2024 Summary'!$A$8:$DK$571,98,FALSE) -> 60058 | Z104: =VLOOKUP(A104,'[1]2024 Summary'!$A$8:$DK$571,100,FALSE) -> 1500 | AA104: =VLOOKUP(A104,'[1]2024 Summary'!$A$8:$DK$571,103,FALSE) -> 655 | AB104: =VLOOKUP(A104,'[1]2024 Summary'!$A$8:$DK$571,105,FALSE) -> 113697 | AC104: =VLOOKUP(A104,'[1]2024 Summary'!$A$8:$DK$571,108,FALSE) -> 0 | AD104: =IFERROR(T104*'Inputs & Assumptions'!$Q$40,"--") -> 64550.975 | AE104: =IFERROR(U104*'Inputs & Assumptions'!$Q$41,"--") -> 2335.1 | AF104: =IFERROR(V104*'Inputs & Assumptions'!$Q$42,"--") -> 8626 | AG104: =IFERROR(W104*'Inputs & Assumptions'!$Q$43,"--") -> 90880 | AH104: =IFERROR(X104*'Inputs & Assumptions'!$Q$44,"--") -> 51700.244 | AI104: =IFERROR(Y104*'Inputs & Assumptions'!$Q$45,"--") -> 6005.8 | AJ104: =IFERROR(Z104*'Inputs & Assumptions'!$Q$46,"--") -> 150 | AK104: =IFERROR(AA104*'Inputs & Assumptions'!$Q$47,"--") -> 327.5 | AL104: =IFERROR(AB104*'Inputs & Assumptions'!$Q$48,"--") -> 56848.5 | AM104: =IFERROR(AC104*'Inputs & Assumptions'!$Q$49,"--") -> 0
A105: 0309 | B105: Delanco Township | C105: Burlington | D105: 3400517080 | E105: 102 | F105: 448960670 | G105: 5239951.18 | H105: 1.167129223 | I105: 1800239.865 | J105: 1508.868083 | K105: 3.410983111 | L105: 2285832.449 | M105: 7788189 | N105: 15313972.63 | O105: 0.3421679865 | P105: 0.1492644988 | Q105: 0.5085675147 | R105: 6319 | S105: 284.8931579 | T105: =VLOOKUP(A105,'[1]2024 Summary'!$A$8:$DK$571,92,FALSE) -> 853300 | U105: =VLOOKUP(A105,'[1]2024 Summary'!$A$8:$DK$571,93,FALSE) -> 0 | V105: =VLOOKUP(A105,'[1]2024 Summary'!$A$8:$DK$571,94,FALSE) -> 140700 | W105: =VLOOKUP(A105,'[1]2024 Summary'!$A$8:$DK$571,96,FALSE) -> 1945925.83 | X105: =VLOOKUP(A105,'[1]2024 Summary'!$A$8:$DK$571,97,FALSE) -> 1457550.1 | Y105: =VLOOKUP(A105,'[1]2024 Summary'!$A$8:$DK$571,98,FALSE) -> 11900 | Z105: =VLOOKUP(A105,'[1]2024 Summary'!$A$8:$DK$571,100,FALSE) -> 96229 | AA105: =VLOOKUP(A105,'[1]2024 Summary'!$A$8:$DK$571,103,FALSE) -> 232500 | AB105: =VLOOKUP(A105,'[1]2024 Summary'!$A$8:$DK$571,105,FALSE) -> 710183.08 | AC105: =VLOOKUP(A105,'[1]2024 Summary'!$A$8:$DK$571,108,FALSE) -> 87375 | AD105: =IFERROR(T105*'Inputs & Assumptions'!$Q$40,"--") -> 85330 | AE105: =IFERROR(U105*'Inputs & Assumptions'!$Q$41,"--") -> 0 | AF105: =IFERROR(V105*'Inputs & Assumptions'!$Q$42,"--") -> 70350 | AG105: =IFERROR(W105*'Inputs & Assumptions'!$Q$43,"--") -> 972962.915 | AH105: =IFERROR(X105*'Inputs & Assumptions'!$Q$44,"--") -> 145755.01 | AI105: =IFERROR(Y105*'Inputs & Assumptions'!$Q$45,"--") -> 1190 | AJ105: =IFERROR(Z105*'Inputs & Assumptions'!$Q$46,"--") -> 9622.9 | AK105: =IFERROR(AA105*'Inputs & Assumptions'!$Q$47,"--") -> 116250 | AL105: =IFERROR(AB105*'Inputs & Assumptions'!$Q$48,"--") -> 355091.54 | AM105: =IFERROR(AC105*'Inputs & Assumptions'!$Q$49,"--") -> 43687.5
A106: 1007 | B106: Delaware Township | C106: Hunterdon | D106: 3401917170 | E106: 103 | F106: 814722400 | G106: 4399667.52 | H106: 0.5400204438 | I106: 1141506.925 | J106: 23459.57333 | K106: 2.748385456 | L106: 4066059.43 | M106: 13925985 | N106: 22391711.95 | O106: 0.196486429 | P106: 0.1815876981 | Q106: 0.6219258729 | R106: 5212 | S106: 219.0151429 | T106: =VLOOKUP(A106,'[1]2024 Summary'!$A$8:$DK$571,92,FALSE) -> 602735 | U106: =VLOOKUP(A106,'[1]2024 Summary'!$A$8:$DK$571,93,FALSE) -> 56035 | V106: =VLOOKUP(A106,'[1]2024 Summary'!$A$8:$DK$571,94,FALSE) -> 118160 | W106: =VLOOKUP(A106,'[1]2024 Summary'!$A$8:$DK$571,96,FALSE) -> 1195600 | X106: =VLOOKUP(A106,'[1]2024 Summary'!$A$8:$DK$571,97,FALSE) -> 944150 | Y106: =VLOOKUP(A106,'[1]2024 Summary'!$A$8:$DK$571,98,FALSE) -> 13160 | Z106: =VLOOKUP(A106,'[1]2024 Summary'!$A$8:$DK$571,100,FALSE) -> 0 | AA106: =VLOOKUP(A106,'[1]2024 Summary'!$A$8:$DK$571,103,FALSE) -> 0 | AB106: =VLOOKUP(A106,'[1]2024 Summary'!$A$8:$DK$571,105,FALSE) -> 546487.85 | AC106: =VLOOKUP(A106,'[1]2024 Summary'!$A$8:$DK$571,108,FALSE) -> 99550 | AD106: =IFERROR(T106*'Inputs & Assumptions'!$Q$40,"--") -> 60273.5 | AE106: =IFERROR(U106*'Inputs & Assumptions'!$Q$41,"--") -> 5603.5 | AF106: =IFERROR(V106*'Inputs & Assumptions'!$Q$42,"--") -> 59080 | AG106: =IFERROR(W106*'Inputs & Assumptions'!$Q$43,"--") -> 597800 | AH106: =IFERROR(X106*'Inputs & Assumptions'!$Q$44,"--") -> 94415 | AI106: =IFERROR(Y106*'Inputs & Assumptions'!$Q$45,"--") -> 1316 | AJ106: =IFERROR(Z106*'Inputs & Assumptions'!$Q$46,"--") -> 0 | AK106: =IFERROR(AA106*'Inputs & Assumptions'!$Q$47,"--") -> 0 | AL106: =IFERROR(AB106*'Inputs & Assumptions'!$Q$48,"--") -> 273243.925 | AM106: =IFERROR(AC106*'Inputs & Assumptions'!$Q$49,"--") -> 49775
A107: 0310 | B107: Delran Township | C107: Burlington | D107: 3400517440 | E107: 104 | F107: 1468617173 | G107: 12008167 | H107: 0.8176512723 | I107: 5041050.126 | J107: 4243.199204 | K107: 3.815110391 | L107: 7734367.364 | M107: 36286832 | N107: 56029366.36 | O107: 0.2143191647 | P107: 0.1380413142 | Q107: 0.6476395211 | R107: 22573 | S107: 223.3221161 | T107: =VLOOKUP(A107,'[1]2024 Summary'!$A$8:$DK$571,92,FALSE) -> 4827944 | U107: =VLOOKUP(A107,'[1]2024 Summary'!$A$8:$DK$571,93,FALSE) -> 132286 | V107: =VLOOKUP(A107,'[1]2024 Summary'!$A$8:$DK$571,94,FALSE) -> 357909 | W107: =VLOOKUP(A107,'[1]2024 Summary'!$A$8:$DK$571,96,FALSE) -> 4773199.43 | X107: =VLOOKUP(A107,'[1]2024 Summary'!$A$8:$DK$571,97,FALSE) -> 2766214.11 | Y107: =VLOOKUP(A107,'[1]2024 Summary'!$A$8:$DK$571,98,FALSE) -> 70700 | Z107: =VLOOKUP(A107,'[1]2024 Summary'!$A$8:$DK$571,100,FALSE) -> 0 | AA107: =VLOOKUP(A107,'[1]2024 Summary'!$A$8:$DK$571,103,FALSE) -> 1160000 | AB107: =VLOOKUP(A107,'[1]2024 Summary'!$A$8:$DK$571,105,FALSE) -> 2027000 | AC107: =VLOOKUP(A107,'[1]2024 Summary'!$A$8:$DK$571,108,FALSE) -> 204563 | AD107: =IFERROR(T107*'Inputs & Assumptions'!$Q$40,"--") -> 482794.4 | AE107: =IFERROR(U107*'Inputs & Assumptions'!$Q$41,"--") -> 13228.6 | AF107: =IFERROR(V107*'Inputs & Assumptions'!$Q$42,"--") -> 178954.5 | AG107: =IFERROR(W107*'Inputs & Assumptions'!$Q$43,"--") -> 2386599.715 | AH107: =IFERROR(X107*'Inputs & Assumptions'!$Q$44,"--") -> 276621.411 | AI107: =IFERROR(Y107*'Inputs & Assumptions'!$Q$45,"--") -> 7070 | AJ107: =IFERROR(Z107*'Inputs & Assumptions'!$Q$46,"--") -> 0 | AK107: =IFERROR(AA107*'Inputs & Assumptions'!$Q$47,"--") -> 580000 | AL107: =IFERROR(AB107*'Inputs & Assumptions'!$Q$48,"--") -> 1013500 | AM107: =IFERROR(AC107*'Inputs & Assumptions'!$Q$49,"--") -> 102281.5
A108: 0209 | B108: Demarest Borough | C108: Bergen | D108: 3400317530 | E108: 105 | F108: 1389029310 | G108: 9961178 | H108: 0.7171323116 | I108: 2776729.9 | J108: 1326.364772 | K108: 3.05639459 | L108: 4654246.68 | M108: 27838792 | N108: 42454216.68 | O108: 0.2346334188 | P108: 0.1096297858 | Q108: 0.6557367955 | R108: 5649 | S108: 491.5436183 | T108: =VLOOKUP(A108,'[1]2024 Summary'!$A$8:$DK$571,92,FALSE) -> 1157200 | U108: =VLOOKUP(A108,'[1]2024 Summary'!$A$8:$DK$571,93,FALSE) -> 34000 | V108: =VLOOKUP(A108,'[1]2024 Summary'!$A$8:$DK$571,94,FALSE) -> 218000 | W108: =VLOOKUP(A108,'[1]2024 Summary'!$A$8:$DK$571,96,FALSE) -> 3300947 | X108: =VLOOKUP(A108,'[1]2024 Summary'!$A$8:$DK$571,97,FALSE) -> 2171565 | Y108: =VLOOKUP(A108,'[1]2024 Summary'!$A$8:$DK$571,98,FALSE) -> 56150 | Z108: =VLOOKUP(A108,'[1]2024 Summary'!$A$8:$DK$571,100,FALSE) -> 663864 | AA108: =VLOOKUP(A108,'[1]2024 Summary'!$A$8:$DK$571,103,FALSE) -> 0 | AB108: =VLOOKUP(A108,'[1]2024 Summary'!$A$8:$DK$571,105,FALSE) -> 1157557 | AC108: =VLOOKUP(A108,'[1]2024 Summary'!$A$8:$DK$571,108,FALSE) -> 60400 | AD108: =IFERROR(T108*'Inputs & Assumptions'!$Q$40,"--") -> 115720 | AE108: =IFERROR(U108*'Inputs & Assumptions'!$Q$41,"--") -> 3400 | AF108: =IFERROR(V108*'Inputs & Assumptions'!$Q$42,"--") -> 109000 | AG108: =IFERROR(W108*'Inputs & Assumptions'!$Q$43,"--") -> 1650473.5 | AH108: =IFERROR(X108*'Inputs & Assumptions'!$Q$44,"--") -> 217156.5 | AI108: =IFERROR(Y108*'Inputs & Assumptions'!$Q$45,"--") -> 5615 | AJ108: =IFERROR(Z108*'Inputs & Assumptions'!$Q$46,"--") -> 66386.4 | AK108: =IFERROR(AA108*'Inputs & Assumptions'!$Q$47,"--") -> 0 | AL108: =IFERROR(AB108*'Inputs & Assumptions'!$Q$48,"--") -> 578778.5 | AM108: =IFERROR(AC108*'Inputs & Assumptions'!$Q$49,"--") -> 30200
A109: 0504 | B109: Dennis Township | C109: Cape May | D109: 3400917560 | E109: 106 | F109: 908445829 | G109: 2198526.18 | H109: 0.2420096069 | I109: 658026.722 | J109: 38669.25693 | K109: 1.895616064 | L109: 2722516.89 | M109: 12299602 | N109: 17220645.07 | O109: 0.1276680502 | P109: 0.1580961038 | Q109: 0.714235846 | R109: 7797 | S109: 84.39485982 | T109: =VLOOKUP(A109,'[1]2024 Summary'!$A$8:$DK$571,92,FALSE) -> 948805.82 | U109: =VLOOKUP(A109,'[1]2024 Summary'!$A$8:$DK$571,93,FALSE) -> 35000 | V109: =VLOOKUP(A109,'[1]2024 Summary'!$A$8:$DK$571,94,FALSE) -> 0 | W109: =VLOOKUP(A109,'[1]2024 Summary'!$A$8:$DK$571,96,FALSE) -> 366460 | X109: =VLOOKUP(A109,'[1]2024 Summary'!$A$8:$DK$571,97,FALSE) -> 1113280 | Y109: =VLOOKUP(A109,'[1]2024 Summary'!$A$8:$DK$571,98,FALSE) -> 108398.75 | Z109: =VLOOKUP(A109,'[1]2024 Summary'!$A$8:$DK$571,100,FALSE) -> 0 | AA109: =VLOOKUP(A109,'[1]2024 Summary'!$A$8:$DK$571,103,FALSE) -> 274533.53 | AB109: =VLOOKUP(A109,'[1]2024 Summary'!$A$8:$DK$571,105,FALSE) -> 233963 | AC109: =VLOOKUP(A109,'[1]2024 Summary'!$A$8:$DK$571,108,FALSE) -> 0 | AD109: =IFERROR(T109*'Inputs & Assumptions'!$Q$40,"--") -> 94880.582 | AE109: =IFERROR(U109*'Inputs & Assumptions'!$Q$41,"--") -> 3500 | AF109: =IFERROR(V109*'Inputs & Assumptions'!$Q$42,"--") -> 0 | AG109: =IFERROR(W109*'Inputs & Assumptions'!$Q$43,"--") -> 183230 | AH109: =IFERROR(X109*'Inputs & Assumptions'!$Q$44,"--") -> 111328 | AI109: =IFERROR(Y109*'Inputs & Assumptions'!$Q$45,"--") -> 10839.875 | AJ109: =IFERROR(Z109*'Inputs & Assumptions'!$Q$46,"--") -> 0 | AK109: =IFERROR(AA109*'Inputs & Assumptions'!$Q$47,"--") -> 137266.765 | AL109: =IFERROR(AB109*'Inputs & Assumptions'!$Q$48,"--") -> 116981.5 | AM109: =IFERROR(AC109*'Inputs & Assumptions'!$Q$49,"--") -> 0
A110: 1408 | B110: Denville Township | C110: Morris | D110: 3402717650 | E110: 107 | F110: 3109423200 | G110: 16568755.17 | H110: 0.5328562278 | I110: 6002397.932 | J110: 7674.606659 | K110: 2.755621826 | L110: 10359821.2 | M110: 58755368 | N110: 85683944.37 | O110: 0.1933705934 | P110: 0.1209073797 | Q110: 0.6857220268 | R110: 24005 | S110: 250.0478205 | T110: =VLOOKUP(A110,'[1]2024 Summary'!$A$8:$DK$571,92,FALSE) -> 2241315 | U110: =VLOOKUP(A110,'[1]2024 Summary'!$A$8:$DK$571,93,FALSE) -> 223708 | V110: =VLOOKUP(A110,'[1]2024 Summary'!$A$8:$DK$571,94,FALSE) -> 443757 | W110: =VLOOKUP(A110,'[1]2024 Summary'!$A$8:$DK$571,96,FALSE) -> 5572533 | X110: =VLOOKUP(A110,'[1]2024 Summary'!$A$8:$DK$571,97,FALSE) -> 6294458 | Y110: =VLOOKUP(A110,'[1]2024 Summary'!$A$8:$DK$571,98,FALSE) -> 416137 | Z110: =VLOOKUP(A110,'[1]2024 Summary'!$A$8:$DK$571,100,FALSE) -> 1392141.32 | AA110: =VLOOKUP(A110,'[1]2024 Summary'!$A$8:$DK$571,103,FALSE) -> 767000 | AB110: =VLOOKUP(A110,'[1]2024 Summary'!$A$8:$DK$571,105,FALSE) -> 2874435 | AC110: =VLOOKUP(A110,'[1]2024 Summary'!$A$8:$DK$571,108,FALSE) -> 233519 | AD110: =IFERROR(T110*'Inputs & Assumptions'!$Q$40,"--") -> 224131.5 | AE110: =IFERROR(U110*'Inputs & Assumptions'!$Q$41,"--") -> 22370.8 | AF110: =IFERROR(V110*'Inputs & Assumptions'!$Q$42,"--") -> 221878.5 | AG110: =IFERROR(W110*'Inputs & Assumptions'!$Q$43,"--") -> 2786266.5 | AH110: =IFERROR(X110*'Inputs & Assumptions'!$Q$44,"--") -> 629445.8 | AI110: =IFERROR(Y110*'Inputs & Assumptions'!$Q$45,"--") -> 41613.7 | AJ110: =IFERROR(Z110*'Inputs & Assumptions'!$Q$46,"--") -> 139214.132 | AK110: =IFERROR(AA110*'Inputs & Assumptions'!$Q$47,"--") -> 383500 | AL110: =IFERROR(AB110*'Inputs & Assumptions'!$Q$48,"--") -> 1437217.5 | AM110: =IFERROR(AC110*'Inputs & Assumptions'!$Q$49,"--") -> 116759.5
A111: 0802 | B111: Deptford Township | C111: Gloucester | D111: 3401517710 | E111: 108 | F111: 2797878600 | G111: 26507617.61 | H111: 0.9474184337 | I111: 8255003.892 | J111: 11092.03883 | K111: 3.370694975 | L111: 18913244.76 | M111: 48887091 | N111: 94307953.37 | O111: 0.281075102 | P111: 0.2005477172 | Q111: 0.5183771809 | R111: 41964 | S111: 196.7163257 | T111: =VLOOKUP(A111,'[1]2024 Summary'!$A$8:$DK$571,92,FALSE) -> 2945100 | U111: =VLOOKUP(A111,'[1]2024 Summary'!$A$8:$DK$571,93,FALSE) -> 343000 | V111: =VLOOKUP(A111,'[1]2024 Summary'!$A$8:$DK$571,94,FALSE) -> 628500 | W111: =VLOOKUP(A111,'[1]2024 Summary'!$A$8:$DK$571,96,FALSE) -> 8085452.9 | X111: =VLOOKUP(A111,'[1]2024 Summary'!$A$8:$DK$571,97,FALSE) -> 4767500 | Y111: =VLOOKUP(A111,'[1]2024 Summary'!$A$8:$DK$571,98,FALSE) -> 348200 | Z111: =VLOOKUP(A111,'[1]2024 Summary'!$A$8:$DK$571,100,FALSE) -> 1281474.42 | AA111: =VLOOKUP(A111,'[1]2024 Summary'!$A$8:$DK$571,103,FALSE) -> 1400000 | AB111: =VLOOKUP(A111,'[1]2024 Summary'!$A$8:$DK$571,105,FALSE) -> 3878000 | AC111: =VLOOKUP(A111,'[1]2024 Summary'!$A$8:$DK$571,108,FALSE) -> 581000 | AD111: =IFERROR(T111*'Inputs & Assumptions'!$Q$40,"--") -> 294510 | AE111: =IFERROR(U111*'Inputs & Assumptions'!$Q$41,"--") -> 34300 | AF111: =IFERROR(V111*'Inputs & Assumptions'!$Q$42,"--") -> 314250 | AG111: =IFERROR(W111*'Inputs & Assumptions'!$Q$43,"--") -> 4042726.45 | AH111: =IFERROR(X111*'Inputs & Assumptions'!$Q$44,"--") -> 476750 | AI111: =IFERROR(Y111*'Inputs & Assumptions'!$Q$45,"--") -> 34820 | AJ111: =IFERROR(Z111*'Inputs & Assumptions'!$Q$46,"--") -> 128147.442 | AK111: =IFERROR(AA111*'Inputs & Assumptions'!$Q$47,"--") -> 700000 | AL111: =IFERROR(AB111*'Inputs & Assumptions'!$Q$48,"--") -> 1939000 | AM111: =IFERROR(AC111*'Inputs & Assumptions'!$Q$49,"--") -> 290500
A112: 1409 | B112: Dover Town | C112: Morris | D112: 3402718070 | E112: 109 | F112: 1306383900 | G112: 20522724.92 | H112: 1.570956663 | I112: 7905193.98 | J112: 1712.433907 | K112: 3.272950174 | L112: 4400673.21 | M112: 17833896 | N112: 42757294.13 | O112: 0.4799818449 | P112: 0.1029221633 | Q112: 0.4170959918 | R112: 24019 | S112: 329.1225272 | T112: =VLOOKUP(A112,'[1]2024 Summary'!$A$8:$DK$571,92,FALSE) -> 4760916 | U112: =VLOOKUP(A112,'[1]2024 Summary'!$A$8:$DK$571,93,FALSE) -> 15000 | V112: =VLOOKUP(A112,'[1]2024 Summary'!$A$8:$DK$571,94,FALSE) -> 615405 | W112: =VLOOKUP(A112,'[1]2024 Summary'!$A$8:$DK$571,96,FALSE) -> 9339157.56 | X112: =VLOOKUP(A112,'[1]2024 Summary'!$A$8:$DK$571,97,FALSE) -> 4155270 | Y112: =VLOOKUP(A112,'[1]2024 Summary'!$A$8:$DK$571,98,FALSE) -> 414606 | Z112: =VLOOKUP(A112,'[1]2024 Summary'!$A$8:$DK$571,100,FALSE) -> 591115 | AA112: =VLOOKUP(A112,'[1]2024 Summary'!$A$8:$DK$571,103,FALSE) -> 0 | AB112: =VLOOKUP(A112,'[1]2024 Summary'!$A$8:$DK$571,105,FALSE) -> 3529674 | AC112: =VLOOKUP(A112,'[1]2024 Summary'!$A$8:$DK$571,108,FALSE) -> 338770 | AD112: =IFERROR(T112*'Inputs & Assumptions'!$Q$40,"--") -> 476091.6 | AE112: =IFERROR(U112*'Inputs & Assumptions'!$Q$41,"--") -> 1500 | AF112: =IFERROR(V112*'Inputs & Assumptions'!$Q$42,"--") -> 307702.5 | AG112: =IFERROR(W112*'Inputs & Assumptions'!$Q$43,"--") -> 4669578.78 | AH112: =IFERROR(X112*'Inputs & Assumptions'!$Q$44,"--") -> 415527 | AI112: =IFERROR(Y112*'Inputs & Assumptions'!$Q$45,"--") -> 41460.6 | AJ112: =IFERROR(Z112*'Inputs & Assumptions'!$Q$46,"--") -> 59111.5 | AK112: =IFERROR(AA112*'Inputs & Assumptions'!$Q$47,"--") -> 0 | AL112: =IFERROR(AB112*'Inputs & Assumptions'!$Q$48,"--") -> 1764837 | AM112: =IFERROR(AC112*'Inputs & Assumptions'!$Q$49,"--") -> 169385
A113: 0604 | B113: Downe Township | C113: Cumberland | D113: 3401118220 | E113: 110 | F113: 158437600 | G113: 611600.45 | H113: 0.3860197642 | I113: 211598.1 | J113: 30977.91704 | K113: 2.655204314 | L113: 1660766.54 | M113: 1934475 | N113: 4206841.99 | O113: 0.1453823204 | P113: 0.3947774944 | Q113: 0.4598401853 | R113: 1927 | S113: 109.8070057 | T113: =VLOOKUP(A113,'[1]2024 Summary'!$A$8:$DK$571,92,FALSE) -> 420127 | U113: =VLOOKUP(A113,'[1]2024 Summary'!$A$8:$DK$571,93,FALSE) -> 26039 | V113: =VLOOKUP(A113,'[1]2024 Summary'!$A$8:$DK$571,94,FALSE) -> 0 | W113: =VLOOKUP(A113,'[1]2024 Summary'!$A$8:$DK$571,96,FALSE) -> 15143 | X113: =VLOOKUP(A113,'[1]2024 Summary'!$A$8:$DK$571,97,FALSE) -> 278600 | Y113: =VLOOKUP(A113,'[1]2024 Summary'!$A$8:$DK$571,98,FALSE) -> 21800 | Z113: =VLOOKUP(A113,'[1]2024 Summary'!$A$8:$DK$571,100,FALSE) -> 0 | AA113: =VLOOKUP(A113,'[1]2024 Summary'!$A$8:$DK$571,103,FALSE) -> 162000 | AB113: =VLOOKUP(A113,'[1]2024 Summary'!$A$8:$DK$571,105,FALSE) -> 88740 | AC113: =VLOOKUP(A113,'[1]2024 Summary'!$A$8:$DK$571,108,FALSE) -> 8000 | AD113: =IFERROR(T113*'Inputs & Assumptions'!$Q$40,"--") -> 42012.7 | AE113: =IFERROR(U113*'Inputs & Assumptions'!$Q$41,"--") -> 2603.9 | AF113: =IFERROR(V113*'Inputs & Assumptions'!$Q$42,"--") -> 0 | AG113: =IFERROR(W113*'Inputs & Assumptions'!$Q$43,"--") -> 7571.5 | AH113: =IFERROR(X113*'Inputs & Assumptions'!$Q$44,"--") -> 27860 | AI113: =IFERROR(Y113*'Inputs & Assumptions'!$Q$45,"--") -> 2180 | AJ113: =IFERROR(Z113*'Inputs & Assumptions'!$Q$46,"--") -> 0 | AK113: =IFERROR(AA113*'Inputs & Assumptions'!$Q$47,"--") -> 81000 | AL113: =IFERROR(AB113*'Inputs & Assumptions'!$Q$48,"--") -> 44370 | AM113: =IFERROR(AC113*'Inputs & Assumptions'!$Q$49,"--") -> 4000
A114: 0210 | B114: Dumont Borough | C114: Bergen | D114: 3400318400 | E114: 111 | F114: 1692955440 | G114: 23118558 | H114: 1.365573922 | I114: 6363126 | J114: 1247.617014 | K114: 4.06499317 | L114: 6299434.01 | M114: 39400531 | N114: 68818523.01 | O114: 0.3359351086 | P114: 0.09153689638 | Q114: 0.572527995 | R114: 19977 | S114: 318.522601 | T114: =VLOOKUP(A114,'[1]2024 Summary'!$A$8:$DK$571,92,FALSE) -> 1525007 | U114: =VLOOKUP(A114,'[1]2024 Summary'!$A$8:$DK$571,93,FALSE) -> 37150 | V114: =VLOOKUP(A114,'[1]2024 Summary'!$A$8:$DK$571,94,FALSE) -> 261385 | W114: =VLOOKUP(A114,'[1]2024 Summary'!$A$8:$DK$571,96,FALSE) -> 6442831 | X114: =VLOOKUP(A114,'[1]2024 Summary'!$A$8:$DK$571,97,FALSE) -> 5236979 | Y114: =VLOOKUP(A114,'[1]2024 Summary'!$A$8:$DK$571,98,FALSE) -> 300387 | Z114: =VLOOKUP(A114,'[1]2024 Summary'!$A$8:$DK$571,100,FALSE) -> 899752 | AA114: =VLOOKUP(A114,'[1]2024 Summary'!$A$8:$DK$571,103,FALSE) -> 2217596 | AB114: =VLOOKUP(A114,'[1]2024 Summary'!$A$8:$DK$571,105,FALSE) -> 2050191 | AC114: =VLOOKUP(A114,'[1]2024 Summary'!$A$8:$DK$571,108,FALSE) -> 154394 | AD114: =IFERROR(T114*'Inputs & Assumptions'!$Q$40,"--") -> 152500.7 | AE114: =IFERROR(U114*'Inputs & Assumptions'!$Q$41,"--") -> 3715 | AF114: =IFERROR(V114*'Inputs & Assumptions'!$Q$42,"--") -> 130692.5 | AG114: =IFERROR(W114*'Inputs & Assumptions'!$Q$43,"--") -> 3221415.5 | AH114: =IFERROR(X114*'Inputs & Assumptions'!$Q$44,"--") -> 523697.9 | AI114: =IFERROR(Y114*'Inputs & Assumptions'!$Q$45,"--") -> 30038.7 | AJ114: =IFERROR(Z114*'Inputs & Assumptions'!$Q$46,"--") -> 89975.2 | AK114: =IFERROR(AA114*'Inputs & Assumptions'!$Q$47,"--") -> 1108798 | AL114: =IFERROR(AB114*'Inputs & Assumptions'!$Q$48,"--") -> 1025095.5 | AM114: =IFERROR(AC114*'Inputs & Assumptions'!$Q$49,"--") -> 77197
A115: 1203 | B115: Dunellen Borough | C115: Middlesex | D115: 3402318490 | E115: 112 | F115: 937674500 | G115: 6297251.02 | H115: 0.6715817717 | I115: 2491420.889 | J115: 679.818749 | K115: 2.507137435 | L115: 3333546.39 | M115: 13877991 | N115: 23508788.41 | O115: 0.2678679526 | P115: 0.1418000082 | Q115: 0.5903320391 | R115: 8621 | S115: 288.9944193 | T115: =VLOOKUP(A115,'[1]2024 Summary'!$A$8:$DK$571,92,FALSE) -> 1863885 | U115: =VLOOKUP(A115,'[1]2024 Summary'!$A$8:$DK$571,93,FALSE) -> 29200 | V115: =VLOOKUP(A115,'[1]2024 Summary'!$A$8:$DK$571,94,FALSE) -> 202015 | W115: =VLOOKUP(A115,'[1]2024 Summary'!$A$8:$DK$571,96,FALSE) -> 2856239.05 | X115: =VLOOKUP(A115,'[1]2024 Summary'!$A$8:$DK$571,97,FALSE) -> 781513 | Y115: =VLOOKUP(A115,'[1]2024 Summary'!$A$8:$DK$571,98,FALSE) -> 65811 | Z115: =VLOOKUP(A115,'[1]2024 Summary'!$A$8:$DK$571,100,FALSE) -> 299625.19 | AA115: =VLOOKUP(A115,'[1]2024 Summary'!$A$8:$DK$571,103,FALSE) -> 24000 | AB115: =VLOOKUP(A115,'[1]2024 Summary'!$A$8:$DK$571,105,FALSE) -> 1089035 | AC115: =VLOOKUP(A115,'[1]2024 Summary'!$A$8:$DK$571,108,FALSE) -> 203545.89 | AD115: =IFERROR(T115*'Inputs & Assumptions'!$Q$40,"--") -> 186388.5 | AE115: =IFERROR(U115*'Inputs & Assumptions'!$Q$41,"--") -> 2920 | AF115: =IFERROR(V115*'Inputs & Assumptions'!$Q$42,"--") -> 101007.5 | AG115: =IFERROR(W115*'Inputs & Assumptions'!$Q$43,"--") -> 1428119.525 | AH115: =IFERROR(X115*'Inputs & Assumptions'!$Q$44,"--") -> 78151.3 | AI115: =IFERROR(Y115*'Inputs & Assumptions'!$Q$45,"--") -> 6581.1 | AJ115: =IFERROR(Z115*'Inputs & Assumptions'!$Q$46,"--") -> 29962.519 | AK115: =IFERROR(AA115*'Inputs & Assumptions'!$Q$47,"--") -> 12000 | AL115: =IFERROR(AB115*'Inputs & Assumptions'!$Q$48,"--") -> 544517.5 | AM115: =IFERROR(AC115*'Inputs & Assumptions'!$Q$49,"--") -> 101772.945
A116: 1508 | B116: Eagleswood Township | C116: Ocean | D116: 3402918670 | E116: 113 | F116: 240217100 | G116: 1087977.85 | H116: 0.4529144053 | I116: 187433.14 | J116: 10306.098 | K116: 2.752516336 | L116: 1078476.07 | M116: 4445561 | N116: 6612014.92 | O116: 0.164545583 | P116: 0.1631085355 | Q116: 0.6723458815 | R116: 2231 | S116: 84.01306141 | T116: =VLOOKUP(A116,'[1]2024 Summary'!$A$8:$DK$571,92,FALSE) -> 442502 | U116: =VLOOKUP(A116,'[1]2024 Summary'!$A$8:$DK$571,93,FALSE) -> 4501 | V116: =VLOOKUP(A116,'[1]2024 Summary'!$A$8:$DK$571,94,FALSE) -> 16100 | W116: =VLOOKUP(A116,'[1]2024 Summary'!$A$8:$DK$571,96,FALSE) -> 74002 | X116: =VLOOKUP(A116,'[1]2024 Summary'!$A$8:$DK$571,97,FALSE) -> 520108.4 | Y116: =VLOOKUP(A116,'[1]2024 Summary'!$A$8:$DK$571,98,FALSE) -> 4200 | Z116: =VLOOKUP(A116,'[1]2024 Summary'!$A$8:$DK$571,100,FALSE) -> 0 | AA116: =VLOOKUP(A116,'[1]2024 Summary'!$A$8:$DK$571,103,FALSE) -> 3200 | AB116: =VLOOKUP(A116,'[1]2024 Summary'!$A$8:$DK$571,105,FALSE) -> 87302 | AC116: =VLOOKUP(A116,'[1]2024 Summary'!$A$8:$DK$571,108,FALSE) -> 0 | AD116: =IFERROR(T116*'Inputs & Assumptions'!$Q$40,"--") -> 44250.2 | AE116: =IFERROR(U116*'Inputs & Assumptions'!$Q$41,"--") -> 450.1 | AF116: =IFERROR(V116*'Inputs & Assumptions'!$Q$42,"--") -> 8050 | AG116: =IFERROR(W116*'Inputs & Assumptions'!$Q$43,"--") -> 37001 | AH116: =IFERROR(X116*'Inputs & Assumptions'!$Q$44,"--") -> 52010.84 | AI116: =IFERROR(Y116*'Inputs & Assumptions'!$Q$45,"--") -> 420 | AJ116: =IFERROR(Z116*'Inputs & Assumptions'!$Q$46,"--") -> 0 | AK116: =IFERROR(AA116*'Inputs & Assumptions'!$Q$47,"--") -> 1600 | AL116: =IFERROR(AB116*'Inputs & Assumptions'!$Q$48,"--") -> 43651 | AM116: =IFERROR(AC116*'Inputs & Assumptions'!$Q$49,"--") -> 0
A117: 1008 | B117: East Amwell Township | C117: Hunterdon | D117: 3401918820 | E117: 114 | F117: 675327900 | G117: 1744628.67 | H117: 0.2583380118 | I117: 240884.7 | J117: 18211.15702 | K117: 2.601563543 | L117: 3454635.77 | M117: 12369820 | N117: 17569084.44 | O117: 0.09930105783 | P117: 0.1966315195 | Q117: 0.7040674227 | R117: 4558 | S117: 52.84877139 | T117: =VLOOKUP(A117,'[1]2024 Summary'!$A$8:$DK$571,92,FALSE) -> 494493 | U117: =VLOOKUP(A117,'[1]2024 Summary'!$A$8:$DK$571,93,FALSE) -> 74610 | V117: =VLOOKUP(A117,'[1]2024 Summary'!$A$8:$DK$571,94,FALSE) -> 0 | W117: =VLOOKUP(A117,'[1]2024 Summary'!$A$8:$DK$571,96,FALSE) -> 39740 | X117: =VLOOKUP(A117,'[1]2024 Summary'!$A$8:$DK$571,97,FALSE) -> 490796 | Y117: =VLOOKUP(A117,'[1]2024 Summary'!$A$8:$DK$571,98,FALSE) -> 27278 | Z117: =VLOOKUP(A117,'[1]2024 Summary'!$A$8:$DK$571,100,FALSE) -> 0 | AA117: =VLOOKUP(A117,'[1]2024 Summary'!$A$8:$DK$571,103,FALSE) -> 100 | AB117: =VLOOKUP(A117,'[1]2024 Summary'!$A$8:$DK$571,105,FALSE) -> 167441 | AC117: =VLOOKUP(A117,'[1]2024 Summary'!$A$8:$DK$571,108,FALSE) -> 57053 | AD117: =IFERROR(T117*'Inputs & Assumptions'!$Q$40,"--") -> 49449.3 | AE117: =IFERROR(U117*'Inputs & Assumptions'!$Q$41,"--") -> 7461 | AF117: =IFERROR(V117*'Inputs & Assumptions'!$Q$42,"--") -> 0 | AG117: =IFERROR(W117*'Inputs & Assumptions'!$Q$43,"--") -> 19870 | AH117: =IFERROR(X117*'Inputs & Assumptions'!$Q$44,"--") -> 49079.6 | AI117: =IFERROR(Y117*'Inputs & Assumptions'!$Q$45,"--") -> 2727.8 | AJ117: =IFERROR(Z117*'Inputs & Assumptions'!$Q$46,"--") -> 0 | AK117: =IFERROR(AA117*'Inputs & Assumptions'!$Q$47,"--") -> 50 | AL117: =IFERROR(AB117*'Inputs & Assumptions'!$Q$48,"--") -> 83720.5 | AM117: =IFERROR(AC117*'Inputs & Assumptions'!$Q$49,"--") -> 28526.5
A118: 1204 | B118: East Brunswick Township | C118: Middlesex | D118: 3402319000 | E118: 115 | F118: 1926008550 | G118: 46487389.73 | H118: 2.413664764 | I118: -- | J118: 13941.92058 | K118: 11.82114256 | L118: 34168876.77 | M118: 147019950 | N118: 227676216.5 | O118: 0.2041820197 | P118: 0.1500766189 | Q118: 0.6457413614 | R118: 66249 | S118: -- | T118: =VLOOKUP(A118,'[1]2024 Summary'!$A$8:$DK$571,92,FALSE) -> No data | U118: =VLOOKUP(A118,'[1]2024 Summary'!$A$8:$DK$571,93,FALSE) -> No data | V118: =VLOOKUP(A118,'[1]2024 Summary'!$A$8:$DK$571,94,FALSE) -> No data | W118: =VLOOKUP(A118,'[1]2024 Summary'!$A$8:$DK$571,96,FALSE) -> No data | X118: =VLOOKUP(A118,'[1]2024 Summary'!$A$8:$DK$571,97,FALSE) -> No data | Y118: =VLOOKUP(A118,'[1]2024 Summary'!$A$8:$DK$571,98,FALSE) -> No data | Z118: =VLOOKUP(A118,'[1]2024 Summary'!$A$8:$DK$571,100,FALSE) -> No data | AA118: =VLOOKUP(A118,'[1]2024 Summary'!$A$8:$DK$571,103,FALSE) -> No data | AB118: =VLOOKUP(A118,'[1]2024 Summary'!$A$8:$DK$571,105,FALSE) -> No data | AC118: =VLOOKUP(A118,'[1]2024 Summary'!$A$8:$DK$571,108,FALSE) -> No data | AD118: =IFERROR(T118*'Inputs & Assumptions'!$Q$40,"--") -> -- | AE118: =IFERROR(U118*'Inputs & Assumptions'!$Q$41,"--") -> -- | AF118: =IFERROR(V118*'Inputs & Assumptions'!$Q$42,"--") -> -- | AG118: =IFERROR(W118*'Inputs & Assumptions'!$Q$43,"--") -> -- | AH118: =IFERROR(X118*'Inputs & Assumptions'!$Q$44,"--") -> -- | AI118: =IFERROR(Y118*'Inputs & Assumptions'!$Q$45,"--") -> -- | AJ118: =IFERROR(Z118*'Inputs & Assumptions'!$Q$46,"--") -> -- | AK118: =IFERROR(AA118*'Inputs & Assumptions'!$Q$47,"--") -> -- | AL118: =IFERROR(AB118*'Inputs & Assumptions'!$Q$48,"--") -> -- | AM118: =IFERROR(AC118*'Inputs & Assumptions'!$Q$49,"--") -> --
A119: 0803 | B119: East Greenwich Township | C119: Gloucester | D119: 3401519180 | E119: 116 | F119: 1285077525 | G119: 4917783.89 | H119: 0.3826838299 | I119: 2601550.5 | J119: 9243.792894 | K119: 3.178371685 | L119: 9215975.3 | M119: 26710781 | N119: 40844540.19 | O119: 0.1204024789 | P119: 0.2256354278 | Q119: 0.6539620932 | R119: 13364 | S119: 194.6685498 | T119: =VLOOKUP(A119,'[1]2024 Summary'!$A$8:$DK$571,92,FALSE) -> 4638455 | U119: =VLOOKUP(A119,'[1]2024 Summary'!$A$8:$DK$571,93,FALSE) -> 5000 | V119: =VLOOKUP(A119,'[1]2024 Summary'!$A$8:$DK$571,94,FALSE) -> 164675 | W119: =VLOOKUP(A119,'[1]2024 Summary'!$A$8:$DK$571,96,FALSE) -> 2340709 | X119: =VLOOKUP(A119,'[1]2024 Summary'!$A$8:$DK$571,97,FALSE) -> 985300 | Y119: =VLOOKUP(A119,'[1]2024 Summary'!$A$8:$DK$571,98,FALSE) -> 5500 | Z119: =VLOOKUP(A119,'[1]2024 Summary'!$A$8:$DK$571,100,FALSE) -> 0 | AA119: =VLOOKUP(A119,'[1]2024 Summary'!$A$8:$DK$571,103,FALSE) -> 0 | AB119: =VLOOKUP(A119,'[1]2024 Summary'!$A$8:$DK$571,105,FALSE) -> 1272116 | AC119: =VLOOKUP(A119,'[1]2024 Summary'!$A$8:$DK$571,108,FALSE) -> 298750 | AD119: =IFERROR(T119*'Inputs & Assumptions'!$Q$40,"--") -> 463845.5 | AE119: =IFERROR(U119*'Inputs & Assumptions'!$Q$41,"--") -> 500 | AF119: =IFERROR(V119*'Inputs & Assumptions'!$Q$42,"--") -> 82337.5 | AG119: =IFERROR(W119*'Inputs & Assumptions'!$Q$43,"--") -> 1170354.5 | AH119: =IFERROR(X119*'Inputs & Assumptions'!$Q$44,"--") -> 98530 | AI119: =IFERROR(Y119*'Inputs & Assumptions'!$Q$45,"--") -> 550 | AJ119: =IFERROR(Z119*'Inputs & Assumptions'!$Q$46,"--") -> 0 | AK119: =IFERROR(AA119*'Inputs & Assumptions'!$Q$47,"--") -> 0 | AL119: =IFERROR(AB119*'Inputs & Assumptions'!$Q$48,"--") -> 636058 | AM119: =IFERROR(AC119*'Inputs & Assumptions'!$Q$49,"--") -> 149375
A120: 1410 | B120: East Hanover Township | C120: Morris | D120: 3402719210 | E120: 117 | F120: 2522316339 | G120: 20771895.36 | H120: 0.8235245928 | I120: 6261488.626 | J120: 5039.882194 | K120: 2.593127082 | L120: 9803972.73 | M120: 34831000 | N120: 65406868.09 | O120: 0.3175797277 | P120: 0.1498920987 | Q120: 0.5325281735 | R120: 22811 | S120: 274.4942627 | T120: =VLOOKUP(A120,'[1]2024 Summary'!$A$8:$DK$571,92,FALSE) -> 2042509 | U120: =VLOOKUP(A120,'[1]2024 Summary'!$A$8:$DK$571,93,FALSE) -> 86900 | V120: =VLOOKUP(A120,'[1]2024 Summary'!$A$8:$DK$571,94,FALSE) -> 519100 | W120: =VLOOKUP(A120,'[1]2024 Summary'!$A$8:$DK$571,96,FALSE) -> 6344343.65 | X120: =VLOOKUP(A120,'[1]2024 Summary'!$A$8:$DK$571,97,FALSE) -> 8497868.01 | Y120: =VLOOKUP(A120,'[1]2024 Summary'!$A$8:$DK$571,98,FALSE) -> 320694 | Z120: =VLOOKUP(A120,'[1]2024 Summary'!$A$8:$DK$571,100,FALSE) -> 1309592 | AA120: =VLOOKUP(A120,'[1]2024 Summary'!$A$8:$DK$571,103,FALSE) -> 0 | AB120: =VLOOKUP(A120,'[1]2024 Summary'!$A$8:$DK$571,105,FALSE) -> 3012820 | AC120: =VLOOKUP(A120,'[1]2024 Summary'!$A$8:$DK$571,108,FALSE) -> 195201 | AD120: =IFERROR(T120*'Inputs & Assumptions'!$Q$40,"--") -> 204250.9 | AE120: =IFERROR(U120*'Inputs & Assumptions'!$Q$41,"--") -> 8690 | AF120: =IFERROR(V120*'Inputs & Assumptions'!$Q$42,"--") -> 259550 | AG120: =IFERROR(W120*'Inputs & Assumptions'!$Q$43,"--") -> 3172171.825 | AH120: =IFERROR(X120*'Inputs & Assumptions'!$Q$44,"--") -> 849786.801 | AI120: =IFERROR(Y120*'Inputs & Assumptions'!$Q$45,"--") -> 32069.4 | AJ120: =IFERROR(Z120*'Inputs & Assumptions'!$Q$46,"--") -> 130959.2 | AK120: =IFERROR(AA120*'Inputs & Assumptions'!$Q$47,"--") -> 0 | AL120: =IFERROR(AB120*'Inputs & Assumptions'!$Q$48,"--") -> 1506410 | AM120: =IFERROR(AC120*'Inputs & Assumptions'!$Q$49,"--") -> 97600.5
A121: 0902 | B121: East Newark Borough | C121: Hudson | D121: 3401719360 | E121: 118 | F121: 161539200 | G121: 2185680.72 | H121: 1.35303426 | I121: 1063933.826 | J121: 65.61510052 | K121: 2.96296065 | L121: 1050304.21 | M121: 1550358 | N121: 4786342.93 | O121: 0.4566494194 | P121: 0.2194377263 | Q121: 0.3239128543 | R121: 3086 | S121: 344.7614472 | T121: =VLOOKUP(A121,'[1]2024 Summary'!$A$8:$DK$571,92,FALSE) -> 946217 | U121: =VLOOKUP(A121,'[1]2024 Summary'!$A$8:$DK$571,93,FALSE) -> 8500 | V121: =VLOOKUP(A121,'[1]2024 Summary'!$A$8:$DK$571,94,FALSE) -> 43500 | W121: =VLOOKUP(A121,'[1]2024 Summary'!$A$8:$DK$571,96,FALSE) -> 1125480.3 | X121: =VLOOKUP(A121,'[1]2024 Summary'!$A$8:$DK$571,97,FALSE) -> 286674.76 | Y121: =VLOOKUP(A121,'[1]2024 Summary'!$A$8:$DK$571,98,FALSE) -> 24500 | Z121: =VLOOKUP(A121,'[1]2024 Summary'!$A$8:$DK$571,100,FALSE) -> 0 | AA121: =VLOOKUP(A121,'[1]2024 Summary'!$A$8:$DK$571,103,FALSE) -> 311500 | AB121: =VLOOKUP(A121,'[1]2024 Summary'!$A$8:$DK$571,105,FALSE) -> 341209 | AC121: =VLOOKUP(A121,'[1]2024 Summary'!$A$8:$DK$571,108,FALSE) -> 53000 | AD121: =IFERROR(T121*'Inputs & Assumptions'!$Q$40,"--") -> 94621.7 | AE121: =IFERROR(U121*'Inputs & Assumptions'!$Q$41,"--") -> 850 | AF121: =IFERROR(V121*'Inputs & Assumptions'!$Q$42,"--") -> 21750 | AG121: =IFERROR(W121*'Inputs & Assumptions'!$Q$43,"--") -> 562740.15 | AH121: =IFERROR(X121*'Inputs & Assumptions'!$Q$44,"--") -> 28667.476 | AI121: =IFERROR(Y121*'Inputs & Assumptions'!$Q$45,"--") -> 2450 | AJ121: =IFERROR(Z121*'Inputs & Assumptions'!$Q$46,"--") -> 0 | AK121: =IFERROR(AA121*'Inputs & Assumptions'!$Q$47,"--") -> 155750 | AL121: =IFERROR(AB121*'Inputs & Assumptions'!$Q$48,"--") -> 170604.5 | AM121: =IFERROR(AC121*'Inputs & Assumptions'!$Q$49,"--") -> 26500
A122: 0705 | B122: East Orange City | C122: Essex | D122: 3401319390 | E122: 119 | F122: 4790277370 | G122: 98712827.65 | H122: 2.060691272 | I122: 49258904.57 | J122: 2513.656221 | K122: 3.14045351 | L122: 19945371.14 | M122: 31778235 | N122: 150436433.8 | O122: 0.6561763342 | P122: 0.1325833818 | Q122: 0.211240284 | R122: 79916 | S122: 616.3835098 | T122: =VLOOKUP(A122,'[1]2024 Summary'!$A$8:$DK$571,92,FALSE) -> 20766442.22 | U122: =VLOOKUP(A122,'[1]2024 Summary'!$A$8:$DK$571,93,FALSE) -> 38096 | V122: =VLOOKUP(A122,'[1]2024 Summary'!$A$8:$DK$571,94,FALSE) -> 3180645.45 | W122: =VLOOKUP(A122,'[1]2024 Summary'!$A$8:$DK$571,96,FALSE) -> 52400745.27 | X122: =VLOOKUP(A122,'[1]2024 Summary'!$A$8:$DK$571,97,FALSE) -> 32504813.94 | Y122: =VLOOKUP(A122,'[1]2024 Summary'!$A$8:$DK$571,98,FALSE) -> 22723835.82 | Z122: =VLOOKUP(A122,'[1]2024 Summary'!$A$8:$DK$571,100,FALSE) -> 4435587 | AA122: =VLOOKUP(A122,'[1]2024 Summary'!$A$8:$DK$571,103,FALSE) -> 101348.98 | AB122: =VLOOKUP(A122,'[1]2024 Summary'!$A$8:$DK$571,105,FALSE) -> 23892885.75 | AC122: =VLOOKUP(A122,'[1]2024 Summary'!$A$8:$DK$571,108,FALSE) -> 2848428.69 | AD122: =IFERROR(T122*'Inputs & Assumptions'!$Q$40,"--") -> 2076644.222 | AE122: =IFERROR(U122*'Inputs & Assumptions'!$Q$41,"--") -> 3809.6 | AF122: =IFERROR(V122*'Inputs & Assumptions'!$Q$42,"--") -> 1590322.725 | AG122: =IFERROR(W122*'Inputs & Assumptions'!$Q$43,"--") -> 26200372.64 | AH122: =IFERROR(X122*'Inputs & Assumptions'!$Q$44,"--") -> 3250481.394 | AI122: =IFERROR(Y122*'Inputs & Assumptions'!$Q$45,"--") -> 2272383.582 | AJ122: =IFERROR(Z122*'Inputs & Assumptions'!$Q$46,"--") -> 443558.7 | AK122: =IFERROR(AA122*'Inputs & Assumptions'!$Q$47,"--") -> 50674.49 | AL122: =IFERROR(AB122*'Inputs & Assumptions'!$Q$48,"--") -> 11946442.88 | AM122: =IFERROR(AC122*'Inputs & Assumptions'!$Q$49,"--") -> 1424214.345
